Workbook

Sheet Intro
B1: McGeachie's Multi-Class Average-Case 5e DPR Calculator
B3: Purpose
B4: This is an average-case Damage-per-Round (DPR) calculator for multiclass builds in Dungeons and Dragons 5th Edition.
B6: Disclaimer
B7: Damage per round is not everything. This calculator only considers damage done using the elements modeled herein. Damage is averaged over the expected length of the fight. DPR is only one tool that may help you to design a character that is enjoyable for you. Only you can pick the character right for you.
B9: Instructions
B10: To edit this spreadsheet, download a copy to your device or drive in Microsoft Excel format. Then open that file using MS Excel or Google Sheets. You can then edit your own copy!
B11: the main DPR is done on the page called "Sorcadins." To model a character, edit the Green Box areas in the first 100-150 rows of the sheet. The DPR is listed at the very bottom of the sheet, and at the top row, and is also graphed at the top right.
B12: Each column from E to X represents the character and the character's DPR at a specific level, from Level 1 to Level 20.
B14: Step 1. Enter multiclass levels
B15: The character's levels in various classes are represented in the green box labeled Class from E7 to X19. At each Character Level, a character can have Class Levels in one or more classes that sum to the Total Character Level.
B16: Input the level of the corresponding class in the column for character level.
B17: For example, if at Level 1, your character will have one level of Paladin, enter a "1" in box E7. Make sure there are no non-zero entries in the rows corresponding to other classes.
B18: Then at Level 2, if you will have two levels of Paladin, enter a "2" in box F7. If the character will progress only as a Paladin, continue entering the class level of paladin in the column corresponding to total character level, in other words enter the sequence of numbers from 1 to 20 in boxes E7 to X7.
B19: Multiclass characters are entered in the same way. At each level, the character's total class levels must sum to the character's Total Character Level.
B20: For example, suppose the Paladin at Level 3 decides to multiclass into Warlock. In the column for Character Level 3, enter a "2" in the Paladin row and a "1" in the Warlock row to indicate they have 2 Levels of Paladin and 1 Level of Warlock.
B22: Step 2. Indicate Subclasses
B23: Character subclasses are indicated in the green and white striped boxes from rows 40 to 90.
B24: A character's subclass is indicated by a "1" for having the subclass and a "0" for not having the subclass.
B25: There should be only one subclass with a "1" indicated for each class at each level.
B26: If you wish to model the DPR of a subclass that doesn't contribute to DPR, such as a Bear Totem Barbarian, simply place "0"s in all barbarian subclasses.
B28: Step 3. Feats and Ability Score Increases (ASIs)
B29: Feats and ASI's are indicated in the green box from B5 to B29.
B30: The total number of ASI's and/or feats your character has at each Total Character Level is shown in Row 22. This is a guide for you. If your DM awards other ASI's/Feats, it's ok to deviate from this number. This does not include Level-1 Feats awarded by certain races.
B31: A feat or ASI is indicated with a non-zero number for the Total Character Level at which the feat or ASI is obtained.
B32: For example, if the Paladin/Warlock character takes the Great Weapon Master (GWM) feat at L6, enter a "6" in box B6.
B33: If the Paladin/Warlock character is a race that provides a Feat at Level 1, then enter a "1" in (for example) box B8 to indicate that Pole Arm Master feat was taken at Level 1.
B34: Ability scores are all treated as having a 16 (or a +3 bonus) at character creation. This is a reasonable assumption if this score is important to the class.
B35: For each additional ability score increases resulting in an increase of the ability score bonus (increases to 18 and then to 20), indicate the Level at which this is obtained in the same manner as Feats.
B36: For example, if the Paladin/Warlock takes an ASI for Charisma at Level 12, then enter a "12" in box B10.
B37: If the Paladin/Warlock's DM lets players roll for stats or start with stats much higher than 16, then indicate this with Level 1 ASI increases.
B38: For example, if the Paladin/Warlock started with a 20 charisma, enter a "1" in box B10 and also a "1" in box B11. This shows that at L1, this character has a +5 bonus to Charisma-based abilities and attacks.
B39: Half Feats.
B40: If a character obtains a Half-Feat (such as Piercer, or Elven Accuracy) and this also results in an increase in an ability score to the next even number, these must be indicated separately.
B41: For example, if the Paladin/Warlock is an Elf and at Level 10 takes Elven Accuracy with a +1 Charisma bonus, and this increases his/her charisma to 18, indicate this with a "1" in box B7 and a "1" in box B10.
B43: Step 4. Weapon Choice
B44: Weapon choice is indicated in the green box from B32 to B40. Use a "1" to indicate that the character will use this type of weapon, and a "0" to indicate that he/she will not.
B45: Indicate only one weapon!
B47: Step 5. Fighting Options
B48: In the green box from B43 to B48, certain strategic options can be indicated.
B49: These are indicated with a "1" for something the character will do, and a "0" for something the character will not do
B50: Indicate "Use 2 Weapons" if the character will dual-weild melee weapons
B51: Indicate "Force Range" or "Force Melee" if the character will exclusively fight from range or in melee. If both are "0" then DPR simulator will try to guess based on feats and weapon selections.
B52: Indicate "Exclude Eld Blast" if your character would qualify for the Eldritch Blast cantrip, but you do not want this to be a source of your DPR.
B53: Indicate "use a shield" to indicate your character will fight with a weapon and shield. This disables dual weidling, which is assumed with one-handed weapons in some cases.
B54: Indicate "use Shilalegh" if you will start every combat by using a bonus action on the Druid Cantrip of the same name. This makes WIS your main attack stat.
B56: Step 6. Racial Traits
B57: Racial traits that impact DPR are indicated in the green box from B51 to B54.
B58: These are indicated with a "1" for an ability the the character has, and a "0" for an ability the character lacks
B60: Step 7. Fighting Style (Martial Classes)
B61: In the green box from B57 to B65, indicate at what level the character obtains a martial fighting style. These styles are granted from Classes: Fighter, Paladin, and Ranger. Fighting Styles can also be granted by Feats.
B62: Indicate in the corresponding box what level the character obtains a particular fighting style. Characters can potentially obtain more than one. Leave other fighting styles with a "0" to indicate the character does not have them.
B63: If you wish to model a fighting style that does not contribute to DPR, such as the Defensive style which adds +1 to AC, simply do not select a fighting style. Place "0" in all fighting style boxes.
B65: Step 8. Spell Casts per Day
B66: The large green and white striped box from E94 to X148 indicates which spells will be cast per day.
B67: For each spell the character wishes to cast every day, indicate the number of times this spell will be cast.
B68: There is some checking for available spells and spell slots, but this works best if the number of spells cast is kept under the limit of spells that the character would have from their class abilities.
B69: Spells that can be upcast using a higher level slot for a numerical benefit will automatically be upcast to the highest available slot.
B70: Spells take higher priority than other actions, such as attacking. Thus casting a spell that has a sub-optimal effect may decrease your total DRP.
B71: At the bottom of the Spells section, there are certain spell-like actions and strategic options.
B72: "Favored Foe Ranger marking ability (c)" and "Bonus Action to provide Advantage (Spell-like action: Rogue, Ranger)" are like spells. Indicate the number of times per day your character will use them.
B73: "Use GWM only with Advantage" and "Cleric Blessed Strikes (Tasha's) instead of Divine Strikes/Potent Spellcasting" are binary options. Indicate with a 0 or 1 if these options are ones you would like the character to use.
B75: Step 9. Warlock Invocations
B76: In the green box from B67 to B74, indicate at what level the character obtains particular warlock invocations. Thses are generally restricted to Warlocks, but can also be granted by Feats.
B78: Step 10. (Optionally) Adjust magic item progression
B79: The yellow box from E20 to X23 can be used to indicate when your character will (likely) obtain a magical weapon of a particular bonus to hit or damage.
B80: For example, if you expect that at L6 your character will have a +1 magical weapon, enter a "1" in boxes J20 (for +1 to hit) and J21 (for +1 to damage). Note this includes +1 spell attack for spells which make attack rolls.
B81: Enter the average damage dice for "Magic Weapon Avg Dice Damage Bonus", for example for a Flame Tongue weapon which does 2d6, enter the average damage "7". For a weapon that adds 1d6 to each hit, enter "3.5"
B83: Step 11. Done! (optionally look at Simulation Parameters)
B84: There's no need to look at any sheets besides the main one, "Sorcadins", and the base parameters sheet, "Base Numbers".
B86: Advanced DPR Simluation Parameters ("Base Numbers")
B87: The "Base Numbers" sheet has many parameters used by the DPR calculations here. These can be edited to match the expectations of your DM, playgroup, and adventuring style.
B88: The most important numbers for the DPR simulation are the number of fights per day (or per long rest, these terms are used interchangably), the length of those fights in rounds, and the number of short rests per adventuring day.
B89: These numbers are in boxes C5 to C7 on the "Base Numbers" sheet
B90: Your campaign and DM's style will determine how many fights you have per long rest (or per day). WOTC recommends 9 fights per day, popular DND podcasts such as Critical Role are closer to 1.5 per day. A more typical number is probably 4 or 5 fights per long rest.
B91: The average DND combat encounter lasts 3.5 rounds. You can adjust this number based on your DM's style: maybe fights are long and involved, maybe they're more typical.
B92: The number of short rests per long rest will determine how effective short-rest characters (monks, warlocks, certain fighters) are relative to long-rest characters (barbarians, paladins, sorcerers, wizards, etc). WOTC recommends 2 short rests per long rest (or 2 short rests per 9 fights), but most campaigns seem to have fewer.
B93: Percent of Fights with a Buff Round is the proportion of fights where casters will have a round to prepare and cast something like Bless without taking up an action during the fight itself.
B94: Some general modifiers can be set for the DPR simulation, these include global changes to enemy's armor class.
B95: The chance for Booming Blade to deal it's secondary damage, triggered upon the target's voluntary movement, is entered in the "booming blade secondary damage percent" box. This is meant to include choosing to cast GFB or BB based on which will likely cause secondary damage. This may be character driven if you play as a character with movement skills or taunt skills; and may also be DM dependent if your character tends to be attacked more or less frequently than others in your party.
B96: Since the publication of Tasha's Cauldron of Everything, it has been against Rules As Written for booming blade to be cast using a shadowblade as the weapon. It seems to be allowed by Rules As Intended, since Jeremy Crawford himself has said he would allow it at his table. There is an option here for you to indicate the ruling used by your DM: enter a "1" if allowed and a "0" if disallowed.
B97: There are a number of parameters that reflect the likelihood of a character to be able to execute an opportunity attack on an opponent's turn, and these may be edited. It is recommended to leave them as is.
B98: A number of parameters relating to Area of Effect attacks can be indicated.
B99: The total number of opportunities to use each Area of Effect skill can be indicated. This limits the total number of, for example, fireballs that can be usefully cast on multiple targets.
B100: The number of targets effected by each ability is also indicated here. This is sometimes increased by certain skills which have much larger areas of effect (such as fireball).
B101: Simulacrum, when available, tends to dominate DPR calculations. To disable the contribution from Simulacrum, enter a "0" in this box.
B104: Copyright 2021 Michael McGeachie. Permission is given to use this for non-commercial purposes as long as attribution is preserved.
B105: Contact me at u/mmcgeach on Reddit with comments, suggestions, error reports, and bugs!

Sheet Sorcadins
D1: TOTAL DPR OUTPUT | E1: =E1618 -> 8.52 | F1: =F1618 -> 9.45 | G1: 11.47 | H1: 14.86 | I1: 24.00 | J1: 26.38 | K1: 29.47 | L1: 37.42 | M1: 47.03 | N1: 49.74 | O1: 59.24 | P1: 62.12 | Q1: 72.31 | R1: 73.91 | S1: 76.88 | T1: 77.77 | U1: 89.07 | V1: 92.36 | W1: 91.75 | X1: 93.73
A3: Feats / ASI | B3: Level
A5: Warcaster | B5: 1 | D5: CLASS
A6: Great Weapon Master (GWM) | B6: 0 | D6: Total Character Level | E6: 1 | F6: 2 | G6: 3 | H6: 4 | I6: 5 | J6: 6 | K6: 7 | L6: 8 | M6: 9 | N6: 10 | O6: 11 | P6: 12 | Q6: 13 | R6: 14 | S6: 15 | T6: 16 | U6: 17 | V6: 18 | W6: 19 | X6: 20
A7: Elven Accuracy (half) | B7: 0 | D7: Paladin Level | E7: 0 | F7: 0 | G7: 0 | H7: 0 | I7: 0 | J7: 0 | K7: 0 | L7: 0 | M7: 0 | N7: 0 | O7: 0 | P7: 0 | Q7: 0 | R7: 0 | S7: 0 | T7: 0 | U7: 0 | V7: 0 | W7: 0 | X7: 0
A8: Polearm Master | B8: 0 | D8: Barbarian Level | E8: 0 | F8: 0 | G8: 0 | H8: 0 | I8: 0 | J8: 0 | K8: 0 | L8: 0 | M8: 0 | N8: 0 | O8: 0 | P8: 0 | Q8: 0 | R8: 0 | S8: 0 | T8: 0 | U8: 0 | V8: 0 | W8: 0 | X8: 0
A9: Sentinel | B9: 0 | D9: Ranger Level | E9: 0 | F9: 0 | G9: 0 | H9: 0 | I9: 0 | J9: 0 | K9: 0 | L9: 0 | M9: 0 | N9: 0 | O9: 0 | P9: 0 | Q9: 0 | R9: 0 | S9: 0 | T9: 0 | U9: 0 | V9: 0 | W9: 0 | X9: 0
A10: first CHA +2 | B10: 0 | D10: Fighter Level | E10: 0 | F10: 0 | G10: 0 | H10: 0 | I10: 0 | J10: 0 | K10: 0 | L10: 0 | M10: 0 | N10: 0 | O10: 0 | P10: 0 | Q10: 0 | R10: 0 | S10: 0 | T10: 0 | U10: 0 | V10: 0 | W10: 0 | X10: 0
A11: second CHA +2 | B11: 0 | D11: Rogue Level | E11: 0 | F11: 0 | G11: 0 | H11: 0 | I11: 0 | J11: 0 | K11: 0 | L11: 0 | M11: 0 | N11: 0 | O11: 0 | P11: 0 | Q11: 0 | R11: 0 | S11: 0 | T11: 0 | U11: 0 | V11: 0 | W11: 0 | X11: 0
A12: first STR +2 | B12: 0 | D12: Warlock Level | E12: 0 | F12: 0 | G12: 0 | H12: 0 | I12: 0 | J12: 0 | K12: 0 | L12: 0 | M12: 0 | N12: 0 | O12: 0 | P12: 0 | Q12: 0 | R12: 0 | S12: 0 | T12: 0 | U12: 0 | V12: 0 | W12: 0 | X12: 0
A13: second STR +2 | B13: 0 | D13: Sorceror Level | E13: 0 | F13: 0 | G13: 0 | H13: 0 | I13: 0 | J13: 0 | K13: 0 | L13: 0 | M13: 0 | N13: 0 | O13: 0 | P13: 0 | Q13: 0 | R13: 0 | S13: 0 | T13: 0 | U13: 0 | V13: 0 | W13: 0 | X13: 0
A14: first DEX +2 | B14: 0 | D14: Bard Level | E14: 0 | F14: 0 | G14: 0 | H14: 0 | I14: 0 | J14: 0 | K14: 0 | L14: 0 | M14: 0 | N14: 0 | O14: 0 | P14: 0 | Q14: 0 | R14: 0 | S14: 0 | T14: 0 | U14: 0 | V14: 0 | W14: 0 | X14: 0
A15: second DEX +2 | B15: 0 | D15: Wizard Level | E15: 0 | F15: 0 | G15: 0 | H15: 0 | I15: 0 | J15: 0 | K15: 0 | L15: 0 | M15: 0 | N15: 0 | O15: 0 | P15: 0 | Q15: 0 | R15: 0 | S15: 0 | T15: 0 | U15: 0 | V15: 0 | W15: 0 | X15: 0
A16: resilient CON | B16: 12 | D16: Cleric Level | E16: 1 | F16: 2 | G16: 3 | H16: 4 | I16: 5 | J16: 6 | K16: 7 | L16: 8 | M16: 9 | N16: 10 | O16: 11 | P16: 12 | Q16: 13 | R16: 14 | S16: 15 | T16: 16 | U16: 17 | V16: 18 | W16: 19 | X16: 20
A17: first INT +2 | B17: 0 | D17: Druid Level | E17: 0 | F17: 0 | G17: 0 | H17: 0 | I17: 0 | J17: 0 | K17: 0 | L17: 0 | M17: 0 | N17: 0 | O17: 0 | P17: 0 | Q17: 0 | R17: 0 | S17: 0 | T17: 0 | U17: 0 | V17: 0 | W17: 0 | X17: 0
A18: second INT +2 | B18: 0 | D18: Monk Level | E18: 0 | F18: 0 | G18: 0 | H18: 0 | I18: 0 | J18: 0 | K18: 0 | L18: 0 | M18: 0 | N18: 0 | O18: 0 | P18: 0 | Q18: 0 | R18: 0 | S18: 0 | T18: 0 | U18: 0 | V18: 0 | W18: 0 | X18: 0
A19: first WIS +2 | B19: 4 | D19: Artificer Level | E19: 0 | F19: 0 | G19: 0 | H19: 0 | I19: 0 | J19: 0 | K19: 0 | L19: 0 | M19: 0 | N19: 0 | O19: 0 | P19: 0 | Q19: 0 | R19: 0 | S19: 0 | T19: 0 | U19: 0 | V19: 0 | W19: 0 | X19: 0
A20: second WIS +2 | B20: 8 | D20: Magic Weapon Hit Bonus (including spell attacks for casters) | E20: 0 | F20: 0 | G20: 0 | H20: 0 | I20: 0 | J20: 1 | K20: 1 | L20: 1 | M20: 1 | N20: 1 | O20: 1 | P20: 1 | Q20: 2 | R20: 2 | S20: 2 | T20: 2 | U20: 2 | V20: 2 | W20: 2 | X20: 2
A21: Dual Wielder | B21: 0 | D21: Magic Weapon Damage Bonus | E21: 0 | F21: 0 | G21: 0 | H21: 0 | I21: 0 | J21: 1 | K21: 1 | L21: 1 | M21: 1 | N21: 1 | O21: 1 | P21: 1 | Q21: 2 | R21: 2 | S21: 2 | T21: 2 | U21: 2 | V21: 2 | W21: 2 | X21: 2
A22: Sharpshooter | B22: 0 | D22: Magic Weapon Avg Dice Damage Bonus (flame tongue, etc) | E22: 0 | F22: 0 | G22: 0 | H22: 0 | I22: 0 | J22: 0 | K22: 0 | L22: 0 | M22: 0 | N22: 0 | O22: 0 | P22: 0 | Q22: 0 | R22: 0 | S22: 0 | T22: 0 | U22: 0 | V22: 0 | W22: 0 | X22: 0
A23: Xbow Master | B23: 0 | D23: Magic Item +Caster DC Bonus | E23: 0 | F23: 0 | G23: 0 | H23: 0 | I23: 0 | J23: 0 | K23: 0 | L23: 1 | M23: 1 | N23: 1 | O23: 1 | P23: 1 | Q23: 1 | R23: 2 | S23: 2 | T23: 2 | U23: 2 | V23: 2 | W23: 2 | X23: 2
A24: Magic Initiate/Eld Blast | B24: 0 | D24: Use single class caster levels | E24: =IF(IF(E7>=2,1,0)+IF(E9>=2,1,0)+IF(E13>=1,1,0)+IF(E14>=1,1,0)+IF(E15>=1,1,0)+IF(E16>=1,1,0)+IF(E17>=1,1,0)+IF(E19>=1,1,0)+IF(AND(E10>=3,E59>=1),1,0)+IF(AND(E11>=3,E72>=1),1,0)=1,1,0) -> 1 | F24: =IF(IF(F7>=2,1,0)+IF(F9>=2,1,0)+IF(F13>=1,1,0)+IF(F14>=1,1,0)+IF(F15>=1,1,0)+IF(F16>=1,1,0)+IF(F17>=1,1,0)+IF(F19>=1,1,0)+IF(AND(F10>=3,F59>=1),1,0)+IF(AND(F11>=3,F72>=1),1,0)=1,1,0) -> 1 | G24: 1 | H24: 1 | I24: 1 | J24: 1 | K24: 1 | L24: 1 | M24: 1 | N24: 1 | O24: 1 | P24: 1 | Q24: 1 | R24: 1 | S24: 1 | T24: 1 | U24: 1 | V24: 1 | W24: 1 | X24: 1
A25: RitualCaster/FF/BB | B25: 16 | D25: total multiclass caster levels | E25: =E16+E13+E14+E15+E17+IF(AND(E24>=1,E9+E7>=2),CEILING((E9+E19+E7)/2,1),FLOOR((E9+E7)/2,1)+CEILING(E19/2,1))+IF(AND(E24>=1,OR(AND(E10>=3,E59>=1),AND(E11>=3,E72>=1))),CEILING((E10+E11)/3,1),IF(OR(AND(E10>=3,E59>=1),AND(E11>=3,E72>=1)),FLOOR((E10+E11)/3,1),0)) -> 1 | F25: =F16+F13+F14+F15+F17+IF(AND(F24>=1,F9+F7>=2),CEILING((F9+F19+F7)/2,1),FLOOR((F9+F7)/2,1)+CEILING(F19/2,1))+IF(AND(F24>=1,OR(AND(F10>=3,F59>=1),AND(F11>=3,F72>=1))),CEILING((F10+F11)/3,1),IF(OR(AND(F10>=3,F59>=1),AND(F11>=3,F72>=1)),FLOOR((F10+F11)/3,1),0)) -> 2 | G25: 3 | H25: 4 | I25: 5 | J25: 6 | K25: 7 | L25: 8 | M25: 9 | N25: 10 | O25: 11 | P25: 12 | Q25: 13 | R25: 14 | S25: 15 | T25: 16 | U25: 17 | V25: 18 | W25: 19 | X25: 20
A26: Metamagic Adept | B26: 0 | D26: ASI's (Ability Score Increase or Feats) | E26: =IF(E10>=19,7,IF(E11>=19,6,IF(OR(E7>=19,E12>=19,E16>=19,E14>=19,E15>19,E8>=19,E9>=19,E17>=19,E18>=19,E19>=19,E13>=19),5,FLOOR(E7/4,1)+FLOOR(E13/4,1)+FLOOR(E14/4,1)+FLOOR(E12/4,1)+FLOOR(E16/4,1)+FLOOR(E15/4,1)+FLOOR(E10/4,1)+FLOOR(E8/4,1)+FLOOR(E11/4,1)+FLOOR(E17/4,1)+FLOOR(E9/4,1)+FLOOR(E18/4,1)+FLOOR(E19/4,1)+IF(E10>=6,1,0)+IF(E10>=14,1,0)+IF(E11>=10,1,0)))) -> 0 | F26: =IF(F10>=19,7,IF(F11>=19,6,IF(OR(F7>=19,F12>=19,F16>=19,F14>=19,F15>19,F8>=19,F9>=19,F17>=19,F18>=19,F19>=19,F13>=19),5,FLOOR(F7/4,1)+FLOOR(F13/4,1)+FLOOR(F14/4,1)+FLOOR(F12/4,1)+FLOOR(F16/4,1)+FLOOR(F15/4,1)+FLOOR(F10/4,1)+FLOOR(F8/4,1)+FLOOR(F11/4,1)+FLOOR(F17/4,1)+FLOOR(F9/4,1)+FLOOR(F18/4,1)+FLOOR(F19/4,1)+IF(F10>=6,1,0)+IF(F10>=14,1,0)+IF(F11>=10,1,0)))) -> 0 | G26: 0 | H26: 1 | I26: 1 | J26: 1 | K26: 1 | L26: 2 | M26: 2 | N26: 2 | O26: 2 | P26: 3 | Q26: 3 | R26: 3 | S26: 3 | T26: 4 | U26: 4 | V26: 4 | W26: 5 | X26: 5
A27: Piercer (+1 Dex/Str) | B27: 0 | D27: feat: Warcaster (opportunity spell attack) | E27: =IF(AND($B5>0,E$6>=$B5),1,0) -> 1 | F27: 1 | G27: 1 | H27: 1 | I27: 1 | J27: 1 | K27: 1 | L27: 1 | M27: 1 | N27: 1 | O27: 1 | P27: 1 | Q27: 1 | R27: 1 | S27: 1 | T27: 1 | U27: 1 | V27: 1 | W27: 1 | X27: 1
A28: Crusher (+1 Str/Con) | B28: 0 | D28: feat: GWM (-5 hit, +10 dmg) | E28: =IF(AND($B6>0,E$6>=$B6),1,0) -> 0 | F28: 0 | G28: 0 | H28: 0 | I28: 0 | J28: 0 | K28: 0 | L28: 0 | M28: 0 | N28: 0 | O28: 0 | P28: 0 | Q28: 0 | R28: 0 | S28: 0 | T28: 0 | U28: 0 | V28: 0 | W28: 0 | X28: 0
A29: Fey Touched (half) | B29: 0 | D29: feat: Elven Acc (3 adv dice vs 2) | E29: =IF(AND($B$7>0,E6>=$B$7),1,0) -> 0 | F29: =IF(AND($B$7>0,F6>=$B$7),1,0) -> 0 | G29: 0 | H29: 0 | I29: 0 | J29: 0 | K29: 0 | L29: 0 | M29: 0 | N29: 0 | O29: 0 | P29: 0 | Q29: 0 | R29: 0 | S29: 0 | T29: 0 | U29: 0 | V29: 0 | W29: 0 | X29: 0
D30: feat: Polearm Master (bonus action attack) | E30: =IF(AND($B8>0,E$6>=$B8),1,0) -> 0 | F30: 0 | G30: 0 | H30: 0 | I30: 0 | J30: 0 | K30: 0 | L30: 0 | M30: 0 | N30: 0 | O30: 0 | P30: 0 | Q30: 0 | R30: 0 | S30: 0 | T30: 0 | U30: 0 | V30: 0 | W30: 0 | X30: 0
A31: Weapon Choice | D31: feat: Sentinel (increases opp attacks) | E31: =IF(AND($B9>0,E$6>=$B9),1,0) -> 0 | F31: 0 | G31: 0 | H31: 0 | I31: 0 | J31: 0 | K31: 0 | L31: 0 | M31: 0 | N31: 0 | O31: 0 | P31: 0 | Q31: 0 | R31: 0 | S31: 0 | T31: 0 | U31: 0 | V31: 0 | W31: 0 | X31: 0
A32: Daggers (d4) | B32: 0 | D32: feat: Sharpshooter (-5 hit, +10 dmg, forces ranged) | E32: =IF(AND($B22>0,E$6>=$B22),1,0) -> 0 | F32: 0 | G32: 0 | H32: 0 | I32: 0 | J32: 0 | K32: 0 | L32: 0 | M32: 0 | N32: 0 | O32: 0 | P32: 0 | Q32: 0 | R32: 0 | S32: 0 | T32: 0 | U32: 0 | V32: 0 | W32: 0 | X32: 0
A33: Short Sword, Spear, Staff (d6) | B33: 0 | D33: feat: xbow master (ranged bonus attack, no DisAdv from melee) | E33: =IF(AND($B23>0,E$6>=$B23),1,0) -> 0 | F33: 0 | G33: 0 | H33: 0 | I33: 0 | J33: 0 | K33: 0 | L33: 0 | M33: 0 | N33: 0 | O33: 0 | P33: 0 | Q33: 0 | R33: 0 | S33: 0 | T33: 0 | U33: 0 | V33: 0 | W33: 0 | X33: 0
A34: Long Sword, Rapier (d8) | B34: 1 | D34: str bon | E34: =IF(E8>=20,7,MIN(5,3+SUM(IF(AND($B$12>0,E6>=$B$12),1,0),IF(AND($B$13>0,E6>=$B$13),1,0)))) -> 3 | F34: =IF(F8>=20,7,MIN(5,3+SUM(IF(AND($B$12>0,F6>=$B$12),1,0),IF(AND($B$13>0,F6>=$B$13),1,0)))) -> 3 | G34: 3 | H34: 3 | I34: 3 | J34: 3 | K34: 3 | L34: 3 | M34: 3 | N34: 3 | O34: 3 | P34: 3 | Q34: 3 | R34: 3 | S34: 3 | T34: 3 | U34: 3 | V34: 3 | W34: 3 | X34: 3
A35: Pole arm (d10), reach | B35: 0 | D35: dex bon | E35: =MIN(5,3+SUM(IF(AND($B$14>0,E6>=$B$14),1,0),IF(AND($B$15>0,E6>=$B$15),1,0))) -> 3 | F35: =MIN(5,3+SUM(IF(AND($B$14>0,F6>=$B$14),1,0),IF(AND($B$15>0,F6>=$B$15),1,0))) -> 3 | G35: 3 | H35: 3 | I35: 3 | J35: 3 | K35: 3 | L35: 3 | M35: 3 | N35: 3 | O35: 3 | P35: 3 | Q35: 3 | R35: 3 | S35: 3 | T35: 3 | U35: 3 | V35: 3 | W35: 3 | X35: 3
A36: Great Axe (d12) | B36: 0 | D36: cha bonus | E36: =MIN(5,3+SUM(IF(AND($B$10>0,E6>=$B$10),1,0),IF(AND($B$11>0,E6>=$B$11),1,0))) -> 3 | F36: =MIN(5,3+SUM(IF(AND($B$10>0,F6>=$B$10),1,0),IF(AND($B$11>0,F6>=$B$11),1,0))) -> 3 | G36: 3 | H36: 3 | I36: 3 | J36: 3 | K36: 3 | L36: 3 | M36: 3 | N36: 3 | O36: 3 | P36: 3 | Q36: 3 | R36: 3 | S36: 3 | T36: 3 | U36: 3 | V36: 3 | W36: 3 | X36: 3
A37: Great Sword (2d6) | B37: 0 | D37: int bonus | E37: =MIN(5,3+SUM(IF(AND($B$17>0,E6>=$B$17),1,0),IF(AND($B$18>0,E6>=$B$18),1,0))) -> 3 | F37: =MIN(5,3+SUM(IF(AND($B$17>0,F6>=$B$17),1,0),IF(AND($B$18>0,F6>=$B$18),1,0))) -> 3 | G37: 3 | H37: 3 | I37: 3 | J37: 3 | K37: 3 | L37: 3 | M37: 3 | N37: 3 | O37: 3 | P37: 3 | Q37: 3 | R37: 3 | S37: 3 | T37: 3 | U37: 3 | V37: 3 | W37: 3 | X37: 3
A38: hand xbow (d6) | B38: 0 | D38: wis bonus | E38: =MIN(5,3+SUM(IF(AND($B$19>0,E6>=$B$19),1,0),IF(AND($B$20>0,E6>=$B$20),1,0))) -> 3 | F38: =MIN(5,3+SUM(IF(AND($B$19>0,F6>=$B$19),1,0),IF(AND($B$20>0,F6>=$B$20),1,0))) -> 3 | G38: 3 | H38: 4 | I38: 4 | J38: 4 | K38: 4 | L38: 5 | M38: 5 | N38: 5 | O38: 5 | P38: 5 | Q38: 5 | R38: 5 | S38: 5 | T38: 5 | U38: 5 | V38: 5 | W38: 5 | X38: 5
A39: long bow (d8) | B39: 0 | D39: prof bon | E39: 2 | F39: 2 | G39: 2 | H39: 2 | I39: 3 | J39: 3 | K39: 3 | L39: 3 | M39: 4 | N39: 4 | O39: 4 | P39: 4 | Q39: 5 | R39: 5 | S39: 5 | T39: 5 | U39: 6 | V39: 6 | W39: 6 | X39: 6
A40: heavy xbow (d10) | B40: 0 | D40: paladin devotion: Oath of Vengence | E40: 0 | F40: 1 | G40: 1 | H40: 1 | I40: 1 | J40: 1 | K40: 1 | L40: 1 | M40: 1 | N40: 1 | O40: 1 | P40: 1 | Q40: 1 | R40: 1 | S40: 1 | T40: 1 | U40: 1 | V40: 1 | W40: 1 | X40: 1
D41: paladin devotion: Oathbreaker | E41: 0 | F41: 0 | G41: 0 | H41: 0 | I41: 0 | J41: 0 | K41: 0 | L41: 0 | M41: 0 | N41: 0 | O41: 0 | P41: 0 | Q41: 0 | R41: 0 | S41: 0 | T41: 0 | U41: 0 | V41: 0 | W41: 0 | X41: 0 | Z41: To Do List:
A42: Fighting Options | D42: paladin devotion: Oath of Conquest | E42: 0 | F42: 0 | G42: 0 | H42: 0 | I42: 0 | J42: 0 | K42: 0 | L42: 0 | M42: 0 | N42: 0 | O42: 0 | P42: 0 | Q42: 0 | R42: 0 | S42: 0 | T42: 0 | U42: 0 | V42: 0 | W42: 0 | X42: 0 | Z42: shadow sorc hound
A43: Use 2 Weapons | B43: 0 | D43: sorcerous origin: shadow | E43: 1 | F43: 1 | G43: 1 | H43: 1 | I43: 1 | J43: 1 | K43: 1 | L43: 1 | M43: 1 | N43: 1 | O43: 1 | P43: 1 | Q43: 1 | R43: 1 | S43: 1 | T43: 1 | U43: 1 | V43: 1 | W43: 1 | X43: 1 | Z43: oathbreaker L20 ability
A44: Force Ranged | B44: 0 | D44: sorcerous origin: divine soul | E44: 0 | F44: 0 | G44: 0 | H44: 0 | I44: 0 | J44: 0 | K44: 0 | L44: 0 | M44: 0 | N44: 0 | O44: 0 | P44: 0 | Q44: 0 | R44: 0 | S44: 0 | T44: 0 | U44: 0 | V44: 0 | W44: 0 | X44: 0 | Z44: oath of veng L20 ability
A45: Force Melee | B45: 0 | D45: sorcerous origin: draconic ancestor | E45: 0 | F45: 0 | G45: 0 | H45: 0 | I45: 0 | J45: 0 | K45: 0 | L45: 0 | M45: 0 | N45: 0 | O45: 0 | P45: 0 | Q45: 0 | R45: 0 | S45: 0 | T45: 0 | U45: 0 | V45: 0 | W45: 0 | X45: 0
A46: Exclude Eld Blast | B46: 0 | D46: wizard arcane tradition: Bladesinger | E46: 0 | F46: 1 | G46: 1 | H46: 1 | I46: 1 | J46: 1 | K46: 1 | L46: 1 | M46: 1 | N46: 1 | O46: 1 | P46: 1 | Q46: 1 | R46: 1 | S46: 1 | T46: 1 | U46: 1 | V46: 1 | W46: 1 | X46: 1 | Z46: crusher plus PAM feats leads to more Opp Atts
A47: Use a Shield (disables 2 weapon) | B47: 1 | D47: wizard arcane tradition: Conjurer | E47: 0 | F47: 0 | G47: 0 | H47: 0 | I47: 0 | J47: 0 | K47: 0 | L47: 0 | M47: 0 | N47: 0 | O47: 0 | P47: 0 | Q47: 0 | R47: 0 | S47: 0 | T47: 0 | U47: 0 | V47: 0 | W47: 0 | X47: 0 | Z47: rogue sneak crit chance should be proportional to : (crit attack 1)+(miss att 1)*(crit att2)
A48: Use Shillalegh (WIS attacks) | B48: 1 | D48: wizard arcane tradition: Evoker | E48: 0 | F48: 0 | G48: 0 | H48: 0 | I48: 0 | J48: 0 | K48: 0 | L48: 0 | M48: 0 | N48: 0 | O48: 0 | P48: 0 | Q48: 0 | R48: 0 | S48: 0 | T48: 0 | U48: 0 | V48: 0 | W48: 0 | X48: 0 | Z48: kensei monk longbow may benefit from ki-fueled bonus attack at range
D49: wizard arcane tradition: Necromancer | E49: 0 | F49: 0 | G49: 0 | H49: 0 | I49: 0 | J49: 0 | K49: 0 | L49: 0 | M49: 0 | N49: 0 | O49: 0 | P49: 0 | Q49: 0 | R49: 0 | S49: 0 | T49: 0 | U49: 0 | V49: 0 | W49: 0 | X49: 0 | Z49: shield option which limits dual wielding
A50: Racial Traits | D50: warlock patron: Hexblade | E50: 1 | F50: 1 | G50: 1 | H50: 1 | I50: 1 | J50: 1 | K50: 1 | L50: 1 | M50: 1 | N50: 1 | O50: 1 | P50: 1 | Q50: 1 | R50: 1 | S50: 1 | T50: 1 | U50: 1 | V50: 1 | W50: 1 | X50: 1
A51: Half Orc Brutal Crit | B51: 0 | D51: warlock patron: Fiend | E51: 0 | F51: 0 | G51: 0 | H51: 0 | I51: 0 | J51: 0 | K51: 0 | L51: 0 | M51: 0 | N51: 0 | O51: 0 | P51: 0 | Q51: 0 | R51: 0 | S51: 0 | T51: 0 | U51: 0 | V51: 0 | W51: 0 | X51: 0 | Z51: fix rogue haste held action sneak attacks (works with sneak but not BB)
A52: Halfling Lucky | B52: 0 | D52: warlock patron: Genie | E52: 0 | F52: 0 | G52: 0 | H52: 0 | I52: 0 | J52: 0 | K52: 0 | L52: 0 | M52: 0 | N52: 0 | O52: 0 | P52: 0 | Q52: 0 | R52: 0 | S52: 0 | T52: 0 | U52: 0 | V52: 0 | W52: 0 | X52: 0 | Z52: rogue haste held action currently allows BB
A53: Kobold pack tactics | B53: 0 | D53: warlock patron: Undead | E53: 0 | F53: 0 | G53: 0 | H53: 0 | I53: 0 | J53: 0 | K53: 0 | L53: 0 | M53: 0 | N53: 0 | O53: 0 | P53: 0 | Q53: 0 | R53: 0 | S53: 0 | T53: 0 | U53: 0 | V53: 0 | W53: 0 | X53: 0
A54: Booming Blade / GFB cantrip | B54: 1 | D54: warlock pact: pact of the blade | E54: 0 | F54: 0 | G54: 1 | H54: 1 | I54: 1 | J54: 1 | K54: 1 | L54: 1 | M54: 1 | N54: 1 | O54: 1 | P54: 1 | Q54: 1 | R54: 1 | S54: 1 | T54: 1 | U54: 1 | V54: 1 | W54: 1 | X54: 1 | Z54: include processing logic for range of ranged attacks which impact darkness efficacy
D55: warlock pact: pact of the tome | E55: 0 | F55: 0 | G55: 0 | H55: 0 | I55: 0 | J55: 0 | K55: 0 | L55: 0 | M55: 0 | N55: 0 | O55: 0 | P55: 0 | Q55: 0 | R55: 0 | S55: 0 | T55: 0 | U55: 0 | V55: 0 | W55: 0 | X55: 0
A56: Fighting Style | B56: Level | D56: warlock pact: pact of the chain | E56: 0 | F56: 0 | G56: 0 | H56: 0 | I56: 0 | J56: 0 | K56: 0 | L56: 0 | M56: 0 | N56: 0 | O56: 0 | P56: 0 | Q56: 0 | R56: 0 | S56: 0 | T56: 0 | U56: 0 | V56: 0 | W56: 0 | X56: 0
A57: Archery | B57: 0 | D57: fighter martial archetype: Battlemaster | E57: 0 | F57: 0 | G57: 1 | H57: 1 | I57: 1 | J57: 1 | K57: 1 | L57: 1 | M57: 1 | N57: 1 | O57: 1 | P57: 1 | Q57: 1 | R57: 1 | S57: 1 | T57: 1 | U57: 1 | V57: 1 | W57: 1 | X57: 1
A58: Blind Fighting | B58: 0 | D58: fighter martial archetype: Champion | E58: 0 | F58: 0 | G58: 0 | H58: 0 | I58: 0 | J58: 0 | K58: 0 | L58: 0 | M58: 0 | N58: 0 | O58: 0 | P58: 0 | Q58: 0 | R58: 0 | S58: 0 | T58: 0 | U58: 0 | V58: 0 | W58: 0 | X58: 0
A59: Dueling | B59: 0 | D59: fighter martial archetype: Eldritch Knight | E59: 0 | F59: 0 | G59: 0 | H59: 0 | I59: 0 | J59: 0 | K59: 0 | L59: 0 | M59: 0 | N59: 0 | O59: 0 | P59: 0 | Q59: 0 | R59: 0 | S59: 0 | T59: 0 | U59: 0 | V59: 0 | W59: 0 | X59: 0
A60: GW Fighting | B60: 0 | D60: fighter martial archetype: Echo Knight | E60: 0 | F60: 0 | G60: 0 | H60: 0 | I60: 0 | J60: 0 | K60: 0 | L60: 0 | M60: 0 | N60: 0 | O60: 0 | P60: 0 | Q60: 0 | R60: 0 | S60: 0 | T60: 0 | U60: 0 | V60: 0 | W60: 0 | X60: 0
A61: Superior Technique | B61: 0 | D61: fighter martial archetype: Samurai | E61: 0 | F61: 0 | G61: 0 | H61: 0 | I61: 0 | J61: 0 | K61: 0 | L61: 0 | M61: 0 | N61: 0 | O61: 0 | P61: 0 | Q61: 0 | R61: 0 | S61: 0 | T61: 0 | U61: 0 | V61: 0 | W61: 0 | X61: 0
A62: Thrown Weapon Fighting | B62: 0 | D62: fighter martial archetype: Cavalier | E62: 0 | F62: 0 | G62: 0 | H62: 0 | I62: 0 | J62: 0 | K62: 0 | L62: 0 | M62: 0 | N62: 0 | O62: 0 | P62: 0 | Q62: 0 | R62: 0 | S62: 0 | T62: 0 | U62: 0 | V62: 0 | W62: 0 | X62: 0
A63: Two Weapon Fighting | B63: 0 | D63: fighter martial archetype: Psi-Warrior | E63: 0 | F63: 0 | G63: 0 | H63: 0 | I63: 0 | J63: 0 | K63: 0 | L63: 0 | M63: 0 | N63: 0 | O63: 0 | P63: 0 | Q63: 0 | R63: 0 | S63: 0 | T63: 0 | U63: 0 | V63: 0 | W63: 0 | X63: 0
A64: Unarmed Fighting | B64: 0 | D64: fighter martial archetype: Rune Knight | E64: 0 | F64: 0 | G64: 0 | H64: 0 | I64: 0 | J64: 0 | K64: 0 | L64: 0 | M64: 0 | N64: 0 | O64: 0 | P64: 0 | Q64: 0 | R64: 0 | S64: 0 | T64: 0 | U64: 0 | V64: 0 | W64: 0 | X64: 0
D65: bard college: swords | E65: 0 | F65: 0 | G65: 0 | H65: 0 | I65: 0 | J65: 0 | K65: 0 | L65: 0 | M65: 0 | N65: 0 | O65: 0 | P65: 0 | Q65: 0 | R65: 0 | S65: 0 | T65: 0 | U65: 0 | V65: 0 | W65: 0 | X65: 0 | Z65: DONE
A66: Warlock Invocations | B66: Level | D66: bard college: whispers | E66: 1 | F66: 1 | G66: 1 | H66: 1 | I66: 1 | J66: 1 | K66: 1 | L66: 1 | M66: 1 | N66: 1 | O66: 1 | P66: 1 | Q66: 1 | R66: 1 | S66: 1 | T66: 1 | U66: 1 | V66: 1 | W66: 1 | X66: 1 | Z66: sentinel feat should reduce booming blade movement bonuses
A67: Agonizing Blast (L2) | B67: 0 | D67: bard college: lore | E67: 0 | F67: 0 | G67: 0 | H67: 0 | I67: 0 | J67: 0 | K67: 0 | L67: 0 | M67: 0 | N67: 0 | O67: 0 | P67: 0 | Q67: 0 | R67: 0 | S67: 0 | T67: 0 | U67: 0 | V67: 0 | W67: 0 | X67: 0 | Z67: Bards
A68: Devil's Sight (L2) | B68: 0 | D68: barbarian path: zealot | E68: 0 | F68: 1 | G68: 1 | H68: 1 | I68: 1 | J68: 1 | K68: 1 | L68: 1 | M68: 1 | N68: 1 | O68: 1 | P68: 1 | Q68: 1 | R68: 1 | S68: 1 | T68: 1 | U68: 1 | V68: 1 | W68: 1 | X68: 1 | Z68: College of Swords
A69: Eldritch Mind (L2) | B69: 0 | D69: barbarian path: ancestral guardian | E69: 0 | F69: 0 | G69: 0 | H69: 0 | I69: 0 | J69: 0 | K69: 0 | L69: 0 | M69: 0 | N69: 0 | O69: 0 | P69: 0 | Q69: 0 | R69: 0 | S69: 0 | T69: 0 | U69: 0 | V69: 0 | W69: 0 | X69: 0 | Z69: monks
A70: Improved Pact Weapon (L3) | B70: 0 | D70: barbarian path: beast | E70: 0 | F70: 0 | G70: 0 | H70: 0 | I70: 0 | J70: 0 | K70: 0 | L70: 0 | M70: 0 | N70: 0 | O70: 0 | P70: 0 | Q70: 0 | R70: 0 | S70: 0 | T70: 0 | U70: 0 | V70: 0 | W70: 0 | X70: 0 | Z70: model using best slot by decreasing damage of slot-based spells per action
A71: Book of Ancient Secrets (L3) | B71: 0 | D71: roguish archetype: assassin | E71: 0 | F71: 0 | G71: 1 | H71: 1 | I71: 1 | J71: 1 | K71: 1 | L71: 1 | M71: 1 | N71: 1 | O71: 1 | P71: 1 | Q71: 1 | R71: 1 | S71: 1 | T71: 1 | U71: 1 | V71: 1 | W71: 1 | X71: 1 | Z71: Eldritch Smite: knock target prone if used a warlock slot for smiting. L5 Warlock
A72: Thirsting Blade (L5) | B72: 0 | D72: roguish archetype: arcane trickster | E72: 0 | F72: 0 | G72: 0 | H72: 0 | I72: 0 | J72: 0 | K72: 0 | L72: 0 | M72: 0 | N72: 0 | O72: 0 | P72: 0 | Q72: 0 | R72: 0 | S72: 0 | T72: 0 | U72: 0 | V72: 0 | W72: 0 | X72: 0 | Z72: warlock smite (eldritch smite) only once per turn
A73: Eldritch Smite (L5) | B73: 0 | D73: roguish archetype: phantom | E73: 0 | F73: 0 | G73: 0 | H73: 0 | I73: 0 | J73: 0 | K73: 0 | L73: 0 | M73: 0 | N73: 0 | O73: 0 | P73: 0 | Q73: 0 | R73: 0 | S73: 0 | T73: 0 | U73: 0 | V73: 0 | W73: 0 | X73: 0 | Z73: Dual Weilding
A74: Lifedrinker (L12) | B74: 0 | D74: roguish archetype: swashbuckler | E74: 0 | F74: 0 | G74: 0 | H74: 0 | I74: 0 | J74: 0 | K74: 0 | L74: 0 | M74: 0 | N74: 0 | O74: 0 | P74: 0 | Q74: 0 | R74: 0 | S74: 0 | T74: 0 | U74: 0 | V74: 0 | W74: 0 | X74: 0 | Z74: Dual Wielding feat
D75: artificer specialist: battle smith | E75: 0 | F75: 0 | G75: 1 | H75: 1 | I75: 1 | J75: 1 | K75: 1 | L75: 1 | M75: 1 | N75: 1 | O75: 1 | P75: 1 | Q75: 1 | R75: 1 | S75: 1 | T75: 1 | U75: 1 | V75: 1 | W75: 1 | X75: 1 | Z75: Sorc Points coverted to Smite Slots if not used on Quicken
D76: artificer specialist: artillerist | E76: 0 | F76: 0 | G76: 0 | H76: 0 | I76: 0 | J76: 0 | K76: 0 | L76: 0 | M76: 0 | N76: 0 | O76: 0 | P76: 0 | Q76: 0 | R76: 0 | S76: 0 | T76: 0 | U76: 0 | V76: 0 | W76: 0 | X76: 0 | Z76: percent of fights with a buff round preceeding them
D77: druid circle: stars | E77: 0 | F77: 1 | G77: 1 | H77: 1 | I77: 1 | J77: 1 | K77: 1 | L77: 1 | M77: 1 | N77: 1 | O77: 1 | P77: 1 | Q77: 1 | R77: 1 | S77: 1 | T77: 1 | U77: 1 | V77: 1 | W77: 1 | X77: 1 | Z77: compute average duration of concentration spells
D78: druid circle: spores | E78: 0 | F78: 0 | G78: 0 | H78: 0 | I78: 0 | J78: 0 | K78: 0 | L78: 0 | M78: 0 | N78: 0 | O78: 0 | P78: 0 | Q78: 0 | R78: 0 | S78: 0 | T78: 0 | U78: 0 | V78: 0 | W78: 0 | X78: 0 | Z78: concentration probability, based on feats
D79: druid circle: shepherd | E79: 0 | F79: 0 | G79: 0 | H79: 0 | I79: 0 | J79: 0 | K79: 0 | L79: 0 | M79: 0 | N79: 0 | O79: 0 | P79: 0 | Q79: 0 | R79: 0 | S79: 0 | T79: 0 | U79: 0 | V79: 0 | W79: 0 | X79: 0 | Z79: intelligent use of GWM bonus; only on advantage, for example
D80: monastic tradition: kensei | E80: 1 | F80: 1 | G80: 1 | H80: 1 | I80: 1 | J80: 1 | K80: 1 | L80: 1 | M80: 1 | N80: 1 | O80: 1 | P80: 1 | Q80: 1 | R80: 1 | S80: 1 | T80: 1 | U80: 1 | V80: 1 | W80: 1 | X80: 1 | Z80: actual DEX stat, some kind of Main Stat indicator
D81: monastic tradition: way of mercy | E81: 0 | F81: 0 | G81: 0 | H81: 0 | I81: 0 | J81: 0 | K81: 0 | L81: 0 | M81: 0 | N81: 0 | O81: 0 | P81: 0 | Q81: 0 | R81: 0 | S81: 0 | T81: 0 | U81: 0 | V81: 0 | W81: 0 | X81: 0 | Z81: wizard spell allowances
D82: ranger conclave: gloomstalker | E82: 0 | F82: 0 | G82: 1 | H82: 1 | I82: 1 | J82: 1 | K82: 1 | L82: 1 | M82: 1 | N82: 1 | O82: 1 | P82: 1 | Q82: 1 | R82: 1 | S82: 1 | T82: 1 | U82: 1 | V82: 1 | W82: 1 | X82: 1 | Z82: rogue
D83: ranger conclave: swarmkeeper | E83: 0 | F83: 0 | G83: 0 | H83: 0 | I83: 0 | J83: 0 | K83: 0 | L83: 0 | M83: 0 | N83: 0 | O83: 0 | P83: 0 | Q83: 0 | R83: 0 | S83: 0 | T83: 0 | U83: 0 | V83: 0 | W83: 0 | X83: 0 | Z83: barbarian
D84: ranger conclave: beastmaster | E84: 0 | F84: 0 | G84: 0 | H84: 0 | I84: 0 | J84: 0 | K84: 0 | L84: 0 | M84: 0 | N84: 0 | O84: 0 | P84: 0 | Q84: 0 | R84: 0 | S84: 0 | T84: 0 | U84: 0 | V84: 0 | W84: 0 | X84: 0 | Z84: reckless only with STR attacks
D85: ranger conclave: hunter | E85: 0 | F85: 0 | G85: 0 | H85: 0 | I85: 0 | J85: 0 | K85: 0 | L85: 0 | M85: 0 | N85: 0 | O85: 0 | P85: 0 | Q85: 0 | R85: 0 | S85: 0 | T85: 0 | U85: 0 | V85: 0 | W85: 0 | X85: 0 | Z85: fewer prone targets at level increases
D86: cleric domain: war | E86: 0 | F86: 0 | G86: 0 | H86: 0 | I86: 0 | J86: 0 | K86: 0 | L86: 0 | M86: 0 | N86: 0 | O86: 0 | P86: 0 | Q86: 0 | R86: 0 | S86: 0 | T86: 0 | U86: 0 | V86: 0 | W86: 0 | X86: 0 | Z86: bard spell allowances
D87: cleric domain: death | E87: 0 | F87: 0 | G87: 0 | H87: 0 | I87: 0 | J87: 0 | K87: 0 | L87: 0 | M87: 0 | N87: 0 | O87: 0 | P87: 0 | Q87: 0 | R87: 0 | S87: 0 | T87: 0 | U87: 0 | V87: 0 | W87: 0 | X87: 0 | Z87: other ranged attacks
D88: cleric domain: tempest | E88: 1 | F88: 1 | G88: 1 | H88: 1 | I88: 1 | J88: 1 | K88: 1 | L88: 1 | M88: 1 | N88: 1 | O88: 1 | P88: 1 | Q88: 1 | R88: 1 | S88: 1 | T88: 1 | U88: 1 | V88: 1 | W88: 1 | X88: 1 | Z88: should allow ranged Rogues to use bonus action on hiding
D89: cleric domain: peace | E89: 0 | F89: 0 | G89: 0 | H89: 0 | I89: 0 | J89: 0 | K89: 0 | L89: 0 | M89: 0 | N89: 0 | O89: 0 | P89: 0 | Q89: 0 | R89: 0 | S89: 0 | T89: 0 | U89: 0 | V89: 0 | W89: 0 | X89: 0 | Z89: and L14 rangers
D90: cleric domain: arcana | E90: 0 | F90: 0 | G90: 0 | H90: 0 | I90: 0 | J90: 0 | K90: 0 | L90: 0 | M90: 0 | N90: 0 | O90: 0 | P90: 0 | Q90: 0 | R90: 0 | S90: 0 | T90: 0 | U90: 0 | V90: 0 | W90: 0 | X90: 0 | Z90: need to compare booming blade auto crit damage to
Z91: all regular attacks during main attack
D92: DESIRED CASTS PER DAY | Z92: tiny servant
D93: LEVEL 1 | Z93: bigby's hand
D94: bless casts: (c) | E94: 1 | F94: 1 | G94: 0 | H94: 0 | I94: 0 | J94: 0 | K94: 0 | L94: 0 | M94: 0 | N94: 0 | O94: 0 | P94: 0 | Q94: 0 | R94: 0 | S94: 0 | T94: 0 | U94: 0 | V94: 0 | W94: 0 | X94: 0 | Z94: wizard
D95: divine favor casts: (c) | E95: 0 | F95: 0 | G95: 0 | H95: 0 | I95: 0 | J95: 0 | K95: 0 | L95: 0 | M95: 0 | N95: 0 | O95: 0 | P95: 0 | Q95: 0 | R95: 0 | S95: 0 | T95: 0 | U95: 0 | V95: 0 | W95: 0 | X95: 0 | Z95: would let you smite, can choose to not knock prone
D96: faerie fire casts: (c) | E96: 0 | F96: 0 | G96: 0 | H96: 0 | I96: 0 | J96: 0 | K96: 0 | L96: 0 | M96: 0 | N96: 0 | O96: 0 | P96: 0 | Q96: 0 | R96: 0 | S96: 0 | T96: 0 | U96: 0 | V96: 0 | W96: 0 | X96: 0 | Z96: split rogue damage into ranged vs melee
D97: fog cloud casts: (c) | E97: 0 | F97: 0 | G97: 0 | H97: 0 | I97: 0 | J97: 0 | K97: 0 | L97: 0 | M97: 0 | N97: 0 | O97: 0 | P97: 0 | Q97: 0 | R97: 0 | S97: 0 | T97: 0 | U97: 0 | V97: 0 | W97: 0 | X97: 0 | Z97: flaming sphere
D98: guiding bolt casts: AE | E98: 1 | F98: 2 | G98: 2 | H98: 2 | I98: 2 | J98: 2 | K98: 2 | L98: 2 | M98: 2 | N98: 2 | O98: 2 | P98: 2 | Q98: 2 | R98: 2 | S98: 2 | T98: 2 | U98: 2 | V98: 2 | W98: 2 | X98: 2 | Z98: reckless attacks doesn't apply to Opp attacks
D99: hunter's mark / hex casts: (c, bonus action) | E99: 0 | F99: 0 | G99: 0 | H99: 0 | I99: 0 | J99: 0 | K99: 0 | L99: 0 | M99: 0 | N99: 0 | O99: 0 | P99: 0 | Q99: 0 | R99: 0 | S99: 0 | T99: 0 | U99: 0 | V99: 0 | W99: 0 | X99: 0 | Z99: rogue weapons (finesse weapons)
D100: magic missile casts: AE | E100: 0 | F100: 0 | G100: 0 | H100: 0 | I100: 0 | J100: 0 | K100: 0 | L100: 0 | M100: 0 | N100: 0 | O100: 0 | P100: 0 | Q100: 0 | R100: 0 | S100: 0 | T100: 0 | U100: 0 | V100: 0 | W100: 0 | X100: 0 | Z100: Should fully integrate Eld Blas
D101: thunderous smite casts: (bonus action, c) | E101: 0 | F101: 0 | G101: 0 | H101: 0 | I101: 0 | J101: 0 | K101: 0 | L101: 0 | M101: 0 | N101: 0 | O101: 0 | P101: 0 | Q101: 0 | R101: 0 | S101: 0 | T101: 0 | U101: 0 | V101: 0 | W101: 0 | X101: 0 | Z101: spending leftover sorc points on Empowered Spell
D102: LEVEL 2 | Z102: shadow blade damage scaling
D103: darkness casts: (c) | E103: 0 | F103: 0 | G103: 0 | H103: 0 | I103: 0 | J103: 0 | K103: 0 | L103: 0 | M103: 0 | N103: 0 | O103: 0 | P103: 0 | Q103: 0 | R103: 0 | S103: 0 | T103: 0 | U103: 0 | V103: 0 | W103: 0 | X103: 0 | Z103: requires a L2 eldritch invocation, no hand xbow.
D104: flaming sphere casts: (c) | E104: 0 | F104: 0 | G104: 0 | H104: 0 | I104: 0 | J104: 0 | K104: 0 | L104: 0 | M104: 0 | N104: 0 | O104: 0 | P104: 0 | Q104: 0 | R104: 0 | S104: 0 | T104: 0 | U104: 0 | V104: 0 | W104: 0 | X104: 0 | Z104: longbow hexweapon combo…
D105: hold person casts: (c) | E105: 0 | F105: 0 | G105: 0 | H105: 0 | I105: 0 | J105: 0 | K105: 0 | L105: 0 | M105: 0 | N105: 0 | O105: 0 | P105: 0 | Q105: 0 | R105: 0 | S105: 0 | T105: 0 | U105: 0 | V105: 0 | W105: 0 | X105: 0 | Z105: animate objects
D106: moonbeam casts: (c, AE) | E106: 0 | F106: 0 | G106: 0 | H106: 0 | I106: 0 | J106: 0 | K106: 0 | L106: 0 | M106: 0 | N106: 0 | O106: 0 | P106: 0 | Q106: 0 | R106: 0 | S106: 0 | T106: 0 | U106: 0 | V106: 0 | W106: 0 | X106: 0 | Z106: and also the d4 bonus attack from PAM
D107: pyrotechnics casts: | E107: 0 | F107: 0 | G107: 0 | H107: 0 | I107: 0 | J107: 0 | K107: 0 | L107: 0 | M107: 0 | N107: 0 | O107: 0 | P107: 0 | Q107: 0 | R107: 0 | S107: 0 | T107: 0 | U107: 0 | V107: 0 | W107: 0 | X107: 0 | Z107: need to fix spell effects to be based on rounds active
D108: scorching ray casts: AE | E108: 0 | F108: 0 | G108: 0 | H108: 0 | I108: 0 | J108: 0 | K108: 0 | L108: 0 | M108: 0 | N108: 0 | O108: 0 | P108: 0 | Q108: 0 | R108: 0 | S108: 0 | T108: 0 | U108: 0 | V108: 0 | W108: 0 | X108: 0 | Z108: ss damage on spiritual weapon
D109: shadow blade casts: (c) | E109: 0 | F109: 0 | G109: 0 | H109: 0 | I109: 0 | J109: 0 | K109: 0 | L109: 0 | M109: 0 | N109: 0 | O109: 0 | P109: 0 | Q109: 0 | R109: 0 | S109: 0 | T109: 0 | U109: 0 | V109: 0 | W109: 0 | X109: 0 | Z109: feat for blindfighting allowing darkness.
D110: spirtual weapon casts: (free cast) | E110: 0 | F110: 0 | G110: 2 | H110: 3 | I110: 3 | J110: 3 | K110: 3 | L110: 3 | M110: 3 | N110: 3 | O110: 3 | P110: 3 | Q110: 3 | R110: 3 | S110: 3 | T110: 3 | U110: 3 | V110: 3 | W110: 3 | X110: 3 | Z110: Eld Blast review
D111: summon beast casts: (c) | E111: 0 | F111: 0 | G111: 0 | H111: 0 | I111: 0 | J111: 0 | K111: 0 | L111: 0 | M111: 0 | N111: 0 | O111: 0 | P111: 0 | Q111: 0 | R111: 0 | S111: 0 | T111: 0 | U111: 0 | V111: 0 | W111: 0 | X111: 0 | Z111: spirit shroud - scaling spell attack damage buff
D112: LEVEL 3 | Z112: simulacrum
D113: animate dead casts: (non-combat) | E113: 0 | F113: 0 | G113: 0 | H113: 0 | I113: 0 | J113: 0 | K113: 0 | L113: 0 | M113: 0 | N113: 0 | O113: 0 | P113: 0 | Q113: 0 | R113: 0 | S113: 0 | T113: 0 | U113: 0 | V113: 0 | W113: 0 | X113: 0 | Z113: tenser's transformation
D114: call lightning casts: (c, AE) | E114: 0 | F114: 0 | G114: 0 | H114: 0 | I114: 2 | J114: 2 | K114: 2 | L114: 2 | M114: 2 | N114: 2 | O114: 2 | P114: 2 | Q114: 2 | R114: 2 | S114: 2 | T114: 2 | U114: 2 | V114: 2 | W114: 2 | X114: 2 | Z114: bladesinger
D115: conjure animals casts: (c) | E115: 0 | F115: 0 | G115: 0 | H115: 0 | I115: 0 | J115: 0 | K115: 0 | L115: 0 | M115: 0 | N115: 0 | O115: 0 | P115: 0 | Q115: 0 | R115: 0 | S115: 0 | T115: 0 | U115: 0 | V115: 0 | W115: 0 | X115: 0 | Z115: darkness
D116: fear casts: (c) | E116: 0 | F116: 0 | G116: 0 | H116: 0 | I116: 0 | J116: 0 | K116: 0 | L116: 0 | M116: 0 | N116: 0 | O116: 0 | P116: 0 | Q116: 0 | R116: 0 | S116: 0 | T116: 0 | U116: 0 | V116: 0 | W116: 0 | X116: 0 | Z116: shadowblade
D117: fireball casts: AE | E117: 0 | F117: 0 | G117: 0 | H117: 0 | I117: 0 | J117: 0 | K117: 0 | L117: 0 | M117: 0 | N117: 0 | O117: 0 | P117: 0 | Q117: 0 | R117: 0 | S117: 0 | T117: 0 | U117: 0 | V117: 0 | W117: 0 | X117: 0 | Z117: ss damage on eldritch blast
D118: haste casts: (c) | E118: 0 | F118: 0 | G118: 0 | H118: 0 | I118: 0 | J118: 0 | K118: 0 | L118: 0 | M118: 0 | N118: 0 | O118: 0 | P118: 0 | Q118: 0 | R118: 0 | S118: 0 | T118: 0 | U118: 0 | V118: 0 | W118: 0 | X118: 0 | Z118: Eldritch Blast with xbow master feat
D119: spirit guardians casts: (c) | E119: 0 | F119: 0 | G119: 0 | H119: 0 | I119: 0 | J119: 0 | K119: 1 | L119: 0 | M119: 0 | N119: 0 | O119: 2 | P119: 2 | Q119: 2 | R119: 2 | S119: 2 | T119: 2 | U119: 2 | V119: 2 | W119: 2 | X119: 2 | Z119: steel wind strike
D120: spirit shroud casts: (c) | E120: 0 | F120: 0 | G120: 0 | H120: 0 | I120: 0 | J120: 0 | K120: 0 | L120: 0 | M120: 0 | N120: 0 | O120: 0 | P120: 0 | Q120: 0 | R120: 0 | S120: 0 | T120: 0 | U120: 0 | V120: 0 | W120: 0 | X120: 0 | Z120: shadow blade advantage percentage : 0.1?
D121: summon fey casts: (c) | E121: 0 | F121: 0 | G121: 0 | H121: 0 | I121: 0 | J121: 0 | K121: 0 | L121: 0 | M121: 0 | N121: 0 | O121: 0 | P121: 0 | Q121: 0 | R121: 0 | S121: 0 | T121: 0 | U121: 0 | V121: 0 | W121: 0 | X121: 0 | Z121: blesss
D122: summon undead casts: (c) | E122: 0 | F122: 0 | G122: 0 | H122: 0 | I122: 0 | J122: 0 | K122: 0 | L122: 0 | M122: 0 | N122: 0 | O122: 0 | P122: 0 | Q122: 0 | R122: 0 | S122: 0 | T122: 0 | U122: 0 | V122: 0 | W122: 0 | X122: 0 | Z122: divine favor
D123: tiny servants casts: (non-combat) | E123: 0 | F123: 0 | G123: 0 | H123: 0 | I123: 0 | J123: 0 | K123: 0 | L123: 0 | M123: 0 | N123: 0 | O123: 0 | P123: 0 | Q123: 0 | R123: 0 | S123: 0 | T123: 0 | U123: 0 | V123: 0 | W123: 0 | X123: 0 | Z123: great weapon fighting style should affect base weapon damage (and crits)
D124: LEVEL 4 | Z124: shadow blade reduction of PAM and GWM bonus attacks
D125: greater invisibility casts: (c) | E125: 0 | F125: 0 | G125: 0 | H125: 0 | I125: 0 | J125: 0 | K125: 0 | L125: 0 | M125: 0 | N125: 0 | O125: 0 | P125: 0 | Q125: 0 | R125: 0 | S125: 0 | T125: 0 | U125: 0 | V125: 0 | W125: 0 | X125: 0 | Z125: faerie fire
D126: guardian of nature casts: (c) | E126: 0 | F126: 0 | G126: 0 | H126: 0 | I126: 0 | J126: 0 | K126: 0 | L126: 0 | M126: 0 | N126: 0 | O126: 0 | P126: 0 | Q126: 0 | R126: 0 | S126: 0 | T126: 0 | U126: 0 | V126: 0 | W126: 0 | X126: 0 | Z126: shadow blade L2 warlock dependence(?)
D127: shadow of moil casts: (c) | E127: 0 | F127: 0 | G127: 0 | H127: 0 | I127: 0 | J127: 0 | K127: 0 | L127: 0 | M127: 0 | N127: 0 | O127: 0 | P127: 0 | Q127: 0 | R127: 0 | S127: 0 | T127: 0 | U127: 0 | V127: 0 | W127: 0 | X127: 0 | Z127: sorc L20 capstone
D128: summon aberation casts: (c) | E128: 0 | F128: 0 | G128: 0 | H128: 0 | I128: 0 | J128: 0 | K128: 0 | L128: 0 | M128: 0 | N128: 0 | O128: 0 | P128: 0 | Q128: 0 | R128: 0 | S128: 0 | T128: 0 | U128: 0 | V128: 0 | W128: 0 | X128: 0 | Z128: spells
D129: summon construct casts: (c) | E129: 0 | F129: 0 | G129: 0 | H129: 0 | I129: 0 | J129: 0 | K129: 0 | L129: 0 | M129: 0 | N129: 0 | O129: 0 | P129: 0 | Q129: 0 | R129: 0 | S129: 0 | T129: 0 | U129: 0 | V129: 0 | W129: 0 | X129: 0 | Z129: haste
D130: summon greater demon casts: (L4, Barlgura) (c) | E130: 0 | F130: 0 | G130: 0 | H130: 0 | I130: 0 | J130: 0 | K130: 0 | L130: 0 | M130: 0 | N130: 0 | O130: 0 | P130: 0 | Q130: 0 | R130: 0 | S130: 0 | T130: 0 | U130: 0 | V130: 0 | W130: 0 | X130: 0 | Z130: guardian of nature
D131: LEVEL 5 | Z131: shadow blade incompatibilty with BB (?)
D132: animate objects casts: (c) | E132: 0 | F132: 0 | G132: 0 | H132: 0 | I132: 0 | J132: 0 | K132: 0 | L132: 0 | M132: 0 | N132: 0 | O132: 0 | P132: 0 | Q132: 0 | R132: 0 | S132: 0 | T132: 0 | U132: 0 | V132: 0 | W132: 0 | X132: 0 | Z132: add two weapon fighting to weapon choice
D133: bigby's hand casts: (c) | E133: 0 | F133: 0 | G133: 0 | H133: 0 | I133: 0 | J133: 0 | K133: 0 | L133: 0 | M133: 0 | N133: 0 | O133: 0 | P133: 0 | Q133: 0 | R133: 0 | S133: 0 | T133: 0 | U133: 0 | V133: 0 | W133: 0 | X133: 0 | Z133: hold perseon
D134: destructive wave casts: AE | E134: 0 | F134: 0 | G134: 0 | H134: 0 | I134: 0 | J134: 0 | K134: 0 | L134: 1 | M134: 2 | N134: 2 | O134: 2 | P134: 3 | Q134: 3 | R134: 3 | S134: 3 | T134: 3 | U134: 3 | V134: 3 | W134: 3 | X134: 3 | Z134: greater invis
D135: hold monster casts: (c) | E135: 0 | F135: 0 | G135: 0 | H135: 0 | I135: 0 | J135: 0 | K135: 0 | L135: 0 | M135: 0 | N135: 0 | O135: 0 | P135: 0 | Q135: 0 | R135: 0 | S135: 0 | T135: 0 | U135: 0 | V135: 0 | W135: 0 | X135: 0 | Z135: need to allow booming blade attacks with assassination
D136: holy weapon casts: (bonus action, c) | E136: 0 | F136: 0 | G136: 0 | H136: 0 | I136: 0 | J136: 0 | K136: 0 | L136: 0 | M136: 0 | N136: 0 | O136: 0 | P136: 0 | Q136: 0 | R136: 0 | S136: 0 | T136: 0 | U136: 0 | V136: 0 | W136: 0 | X136: 0 | Z136: Most of these will take effect on the Bonus Action, if available
D137: steel wind strike casts: AE | E137: 0 | F137: 0 | G137: 0 | H137: 0 | I137: 0 | J137: 0 | K137: 0 | L137: 0 | M137: 0 | N137: 0 | O137: 0 | P137: 0 | Q137: 0 | R137: 0 | S137: 0 | T137: 0 | U137: 0 | V137: 0 | W137: 0 | X137: 0 | Z137: can add +1 to their duration for bonus action Advantage, which is the point of most of them
D138: summon celestial casts: (c) | E138: 0 | F138: 0 | G138: 0 | H138: 0 | I138: 0 | J138: 0 | K138: 0 | L138: 0 | M138: 0 | N138: 0 | O138: 0 | P138: 0 | Q138: 0 | R138: 0 | S138: 0 | T138: 0 | U138: 0 | V138: 0 | W138: 0 | X138: 0 | Z138: fighters
D139: swift quiver casts: (bonus action, c) | E139: 0 | F139: 0 | G139: 0 | H139: 0 | I139: 0 | J139: 0 | K139: 0 | L139: 0 | M139: 0 | N139: 0 | O139: 0 | P139: 0 | Q139: 0 | R139: 0 | S139: 0 | T139: 0 | U139: 0 | V139: 0 | W139: 0 | X139: 0 | Z139: action surge
D140: LEVEL 6 | Z140: battlemaster has dice with minimal damage impact, although can prone
D141: tenser's transformation casts: (c) | E141: 0 | F141: 0 | G141: 0 | H141: 0 | I141: 0 | J141: 0 | K141: 0 | L141: 0 | M141: 0 | N141: 0 | O141: 0 | P141: 0 | Q141: 0 | R141: 0 | S141: 0 | T141: 0 | U141: 0 | V141: 0 | W141: 0 | X141: 0 | Z141: subclasses
D142: LEVEL 7 | Z142: psi-warrior
D143: crown of stars casts | E143: 0 | F143: 0 | G143: 0 | H143: 0 | I143: 0 | J143: 0 | K143: 0 | L143: 0 | M143: 0 | N143: 0 | O143: 0 | P143: 0 | Q143: 0 | R143: 0 | S143: 0 | T143: 0 | U143: 0 | V143: 0 | W143: 0 | X143: 0 | Z143: battlemaster can also turn miss into hit, and gain a reposte opp att
D144: SPELL-LIKE ACTIONS & OPTIONS | Z144: cavalier has extra opp attacks and prone stuff
D145: Favored Foe Ranger marking ability (c) (free action) | E145: 0 | F145: 0 | G145: 0 | H145: 0 | I145: 0 | J145: 0 | K145: 0 | L145: 0 | M145: 0 | N145: 0 | O145: 0 | P145: 0 | Q145: 0 | R145: 0 | S145: 0 | T145: 0 | U145: 0 | V145: 0 | W145: 0 | X145: 0 | Z145: champion has increased crit range
D146: Bonus Action to provide Advantage (Spell-like action: Rogue, Ranger) | E146: 0 | F146: 0 | G146: 0 | H146: 0 | I146: 0 | J146: 0 | K146: 0 | L146: 0 | M146: 0 | N146: 0 | O146: 0 | P146: 0 | Q146: 0 | R146: 0 | S146: 0 | T146: 0 | U146: 0 | V146: 0 | W146: 0 | X146: 0 | Z146: echo knight
D147: Use GWM only with Advantage (binary option) | E147: 0 | F147: 0 | G147: 0 | H147: 0 | I147: 0 | J147: 0 | K147: 0 | L147: 0 | M147: 0 | N147: 0 | O147: 0 | P147: 0 | Q147: 0 | R147: 0 | S147: 0 | T147: 0 | U147: 0 | V147: 0 | W147: 0 | X147: 0 | Z147: eldritch knight gives bonus actions if use a cantrip
D148: Cleric Blessed Strikes (Tasha's) instead of Divine Strikes/Potent Spellcasting | E148: 0 | F148: 0 | G148: 0 | H148: 0 | I148: 0 | J148: 0 | K148: 0 | L148: 0 | M148: 0 | N148: 0 | O148: 0 | P148: 0 | Q148: 0 | R148: 0 | S148: 0 | T148: 0 | U148: 0 | V148: 0 | W148: 0 | X148: 0 | Z148: Tasha's subclasses for:
Z149: rogue
D150: Find Familiar (adv on first attack of every round) | E150: =IF(IF(E13>=17,1,0)+IF(E15>=1,1,0)+IF(AND($B$25>=1,E6>=$B$25),1,0)+IF(AND(E10>=3,E59>=1),1,0)+IF(AND(E11>=3,E72>=1)+IF(OR(AND(E12>=3,E56>=1),AND($B$71>0,$B$71<=E6,E12>=3,E55>=1)),1,0),1,0)>=1,1,0)+IF(E19>=2,1,0) -> 0 | F150: =IF(IF(F13>=17,1,0)+IF(F15>=1,1,0)+IF(AND($B$25>=1,F6>=$B$25),1,0)+IF(AND(F10>=3,F59>=1),1,0)+IF(AND(F11>=3,F72>=1)+IF(OR(AND(F12>=3,F56>=1),AND($B$71>0,$B$71<=F6,F12>=3,F55>=1)),1,0),1,0)>=1,1,0)+IF(F19>=2,1,0) -> 0 | G150: 0 | H150: 0 | I150: 0 | J150: 0 | K150: 0 | L150: 0 | M150: 0 | N150: 0 | O150: 0 | P150: 0 | Q150: 0 | R150: 0 | S150: 0 | T150: 1 | U150: 1 | V150: 1 | W150: 1 | X150: 1 | Z150: phantom
D151: Has Booming Blade (based on cantrip-class availability, racial option) | E151: =IF(OR($B$54>=1,E12>=1,E13>=1,E15>=1,E19>=1,AND(E10>=3,E59),AND($B$25>=1,E6>=$B$25),AND(E11>=3,E72)),1,0) -> 1 | F151: 1 | G151: 1 | H151: 1 | I151: 1 | J151: 1 | K151: 1 | L151: 1 | M151: 1 | N151: 1 | O151: 1 | P151: 1 | Q151: 1 | R151: 1 | S151: 1 | T151: 1 | U151: 1 | V151: 1 | W151: 1 | X151: 1 | Z151: ranger
D152: Avg Opp AC | E152: ='Caster Tables'!C7+'Base Numbers'!$G$5 -> 13 | F152: ='Caster Tables'!D7+'Base Numbers'!$G$5 -> 13 | G152: ='Caster Tables'!E7+'Base Numbers'!$G$5 -> 14 | H152: ='Caster Tables'!F7+'Base Numbers'!$G$5 -> 14 | I152: ='Caster Tables'!G7+'Base Numbers'!$G$5 -> 14 | J152: ='Caster Tables'!H7+'Base Numbers'!$G$5 -> 15 | K152: ='Caster Tables'!I7+'Base Numbers'!$G$5 -> 15 | L152: ='Caster Tables'!J7+'Base Numbers'!$G$5 -> 15 | M152: ='Caster Tables'!K7+'Base Numbers'!$G$5 -> 16 | N152: ='Caster Tables'!L7+'Base Numbers'!$G$5 -> 16 | O152: ='Caster Tables'!M7+'Base Numbers'!$G$5 -> 16 | P152: ='Caster Tables'!N7+'Base Numbers'!$G$5 -> 17 | Q152: ='Caster Tables'!O7+'Base Numbers'!$G$5 -> 17 | R152: ='Caster Tables'!P7+'Base Numbers'!$G$5 -> 17 | S152: ='Caster Tables'!Q7+'Base Numbers'!$G$5 -> 18 | T152: ='Caster Tables'!R7+'Base Numbers'!$G$5 -> 18 | U152: ='Caster Tables'!S7+'Base Numbers'!$G$5 -> 18 | V152: ='Caster Tables'!T7+'Base Numbers'!$G$5 -> 19 | W152: ='Caster Tables'!U7+'Base Numbers'!$G$5 -> 19 | X152: ='Caster Tables'!V7+'Base Numbers'!$G$5 -> 19 | Z152: swarmkeeper
D153: Use WIS bonus (if Shillalegh) | E153: =IF($B$48>=1,1,0) -> 1 | F153: =IF($B$48>=1,1,0) -> 1 | G153: 1 | H153: 1 | I153: 1 | J153: 1 | K153: 1 | L153: 1 | M153: 1 | N153: 1 | O153: 1 | P153: 1 | Q153: 1 | R153: 1 | S153: 1 | T153: 1 | U153: 1 | V153: 1 | W153: 1 | X153: 1 | Z153: monk
D154: Use INT bonus (if Artificer Battle Smith) | E154: =IF(AND(E8<=1,E19>=3,E75>=1,E153=0),1,0) -> 0 | F154: 0 | G154: 0 | H154: 0 | I154: 0 | J154: 0 | K154: 0 | L154: 0 | M154: 0 | N154: 0 | O154: 0 | P154: 0 | Q154: 0 | R154: 0 | S154: 0 | T154: 0 | U154: 0 | V154: 0 | W154: 0 | X154: 0 | Z154: astral self
D155: Use CHA bonus (if Hexblade Warlock >0) | E155: =IF(AND(E154=0,E153=0,E8<=1,E50>0,OR(AND(E12>=1,AND(E36>=E35,E36>=E34),OR($B$32>=1,$B$33>=1,$B$34>=1)),AND(E12>=3,E54>=1,$B$38=0,E36>=E34))),1,0) -> 0 | F155: 0 | G155: 0 | H155: 0 | I155: 0 | J155: 0 | K155: 0 | L155: 0 | M155: 0 | N155: 0 | O155: 0 | P155: 0 | Q155: 0 | R155: 0 | S155: 0 | T155: 0 | U155: 0 | V155: 0 | W155: 0 | X155: 0 | Z155: mercy
D156: Use DEX bonus (if no GWM, PAM, and DEX > STR, no Barb 2, Or Monk1) | E156: =IF(AND(E154=0,E153=0,E8<=1),IF(AND(E155=0,OR(E18>=1,AND(E30=0,E28=0)),E35>E34),1,0),0) -> 0 | F156: 0 | G156: 0 | H156: 0 | I156: 0 | J156: 0 | K156: 0 | L156: 0 | M156: 0 | N156: 0 | O156: 0 | P156: 0 | Q156: 0 | R156: 0 | S156: 0 | T156: 0 | U156: 0 | V156: 0 | W156: 0 | X156: 0 | Z156: druid
D157: Use STR bonus (otherwise) | E157: =IF(E8>=2,1,IF(AND(E156=0,E155=0,E154=0,E153=0),1,0)) -> 0 | F157: 0 | G157: 0 | H157: 0 | I157: 0 | J157: 0 | K157: 0 | L157: 0 | M157: 0 | N157: 0 | O157: 0 | P157: 0 | Q157: 0 | R157: 0 | S157: 0 | T157: 0 | U157: 0 | V157: 0 | W157: 0 | X157: 0 | Z157: warlock
D158: Total hit and damage bonus (CHA discounted by shadowblade uptime) | E158: =IF(E157,E34,0)+IF(E154,E37,0)+IF(E156,E35,0)+IF(E153,E38,0)+IF(E155,E36*(1-E362)+E362*MAX(E34,E35),0) -> 3 | F158: 3 | G158: 3 | H158: 4 | I158: 4 | J158: 4 | K158: 4 | L158: 5 | M158: 5 | N158: 5 | O158: 5 | P158: 5 | Q158: 5 | R158: 5 | S158: 5 | T158: 5 | U158: 5 | V158: 5 | W158: 5 | X158: 5 | Z158: samurai has daily advantage, plus extra attacks instead of advantage
D159: Infer if Ranged: Best guess based on spec / weapon use | E159: =IF(AND(OR($B$38>=1,$B$39>=1,$B$40>=1,E32>=1),NOT(E30),NOT(E28)),1,0) -> 0 | F159: =IF(AND(OR($B$38>=1,$B$39>=1,$B$40>=1,F32>=1),NOT(F30),NOT(F28)),1,0) -> 0 | G159: 0 | H159: 0 | I159: 0 | J159: 0 | K159: 0 | L159: 0 | M159: 0 | N159: 0 | O159: 0 | P159: 0 | Q159: 0 | R159: 0 | S159: 0 | T159: 0 | U159: 0 | V159: 0 | W159: 0 | X159: 0 | Z159: fighter
D160: Force Ranged (turns off melee attacks, bonus attacks, smites, BB) | E160: =IF($B44>=1,1,0) -> 0 | F160: =IF($B44>=1,1,0) -> 0 | G160: 0 | H160: 0 | I160: 0 | J160: 0 | K160: 0 | L160: 0 | M160: 0 | N160: 0 | O160: 0 | P160: 0 | Q160: 0 | R160: 0 | S160: 0 | T160: 0 | U160: 0 | V160: 0 | W160: 0 | X160: 0 | Z160: Piercer Feat
D161: Force Melee (turns off ranged attacks) | E161: =IF($B45>=1,1,0) -> 0 | F161: =IF($B45>=1,1,0) -> 0 | G161: 0 | H161: 0 | I161: 0 | J161: 0 | K161: 0 | L161: 0 | M161: 0 | N161: 0 | O161: 0 | P161: 0 | Q161: 0 | R161: 0 | S161: 0 | T161: 0 | U161: 0 | V161: 0 | W161: 0 | X161: 0 | Z161: Halfling Lucky hit/crit chance mod
D162: Is Ranged | E162: =IF(OR(AND(E161=0,E159=1),E160=1),1,0) -> 0 | F162: =IF(OR(AND(F161=0,F159=1),F160=1),1,0) -> 0 | G162: 0 | H162: 0 | I162: 0 | J162: 0 | K162: 0 | L162: 0 | M162: 0 | N162: 0 | O162: 0 | P162: 0 | Q162: 0 | R162: 0 | S162: 0 | T162: 0 | U162: 0 | V162: 0 | W162: 0 | X162: 0 | Z162: different save probs for different ability save spells
D163: Exclude Eld Blast | E163: =IF($B46>=1,1,0) -> 0 | F163: 0 | G163: 0 | H163: 0 | I163: 0 | J163: 0 | K163: 0 | L163: 0 | M163: 0 | N163: 0 | O163: 0 | P163: 0 | Q163: 0 | R163: 0 | S163: 0 | T163: 0 | U163: 0 | V163: 0 | W163: 0 | X163: 0 | Z163: heavy xbow option
Z164: separate spell attack chances
Z165: rangers
D166: ALLOWED CASTS PER DAY (checks level/class requirements) | E166: 1 | F166: 2 | G166: 3 | H166: 4 | I166: 5 | J166: 6 | K166: 7 | L166: 8 | M166: 9 | N166: 10 | O166: 11 | P166: 12 | Q166: 13 | R166: 14 | S166: 15 | T166: 16 | U166: 17 | V166: 18 | W166: 19 | X166: 20 | Z166: feywild (tasha's)
D167: guiding bolt casts (cleric, druid of stars) | E167: =IF(OR('Base Numbers'!$C$21,AND(E17>=2,E77),AND(E13>=1,E44),E16>=1,E14>=10,AND(E14>=6,E67>=1)),E98,0) -> 1 | F167: =IF(OR('Base Numbers'!$C$21,AND(F17>=2,F77),AND(F13>=1,F44),F16>=1,F14>=10,AND(F14>=6,F67>=1)),F98,0) -> 2 | G167: =IF(OR('Base Numbers'!$C$21,AND(G17>=2,G77),AND(G13>=1,G44),G16>=1,G14>=10,AND(G14>=6,G67>=1)),G98,0) -> 2 | H167: =IF(OR('Base Numbers'!$C$21,AND(H17>=2,H77),AND(H13>=1,H44),H16>=1,H14>=10,AND(H14>=6,H67>=1)),H98,0) -> 2 | I167: =IF(OR('Base Numbers'!$C$21,AND(I17>=2,I77),AND(I13>=1,I44),I16>=1,I14>=10,AND(I14>=6,I67>=1)),I98,0) -> 2 | J167: =IF(OR('Base Numbers'!$C$21,AND(J17>=2,J77),AND(J13>=1,J44),J16>=1,J14>=10,AND(J14>=6,J67>=1)),J98,0) -> 2 | K167: =IF(OR('Base Numbers'!$C$21,AND(K17>=2,K77),AND(K13>=1,K44),K16>=1,K14>=10,AND(K14>=6,K67>=1)),K98,0) -> 2 | L167: =IF(OR('Base Numbers'!$C$21,AND(L17>=2,L77),AND(L13>=1,L44),L16>=1,L14>=10,AND(L14>=6,L67>=1)),L98,0) -> 2 | M167: =IF(OR('Base Numbers'!$C$21,AND(M17>=2,M77),AND(M13>=1,M44),M16>=1,M14>=10,AND(M14>=6,M67>=1)),M98,0) -> 2 | N167: =IF(OR('Base Numbers'!$C$21,AND(N17>=2,N77),AND(N13>=1,N44),N16>=1,N14>=10,AND(N14>=6,N67>=1)),N98,0) -> 2 | O167: =IF(OR('Base Numbers'!$C$21,AND(O17>=2,O77),AND(O13>=1,O44),O16>=1,O14>=10,AND(O14>=6,O67>=1)),O98,0) -> 2 | P167: =IF(OR('Base Numbers'!$C$21,AND(P17>=2,P77),AND(P13>=1,P44),P16>=1,P14>=10,AND(P14>=6,P67>=1)),P98,0) -> 2 | Q167: =IF(OR('Base Numbers'!$C$21,AND(Q17>=2,Q77),AND(Q13>=1,Q44),Q16>=1,Q14>=10,AND(Q14>=6,Q67>=1)),Q98,0) -> 2 | R167: =IF(OR('Base Numbers'!$C$21,AND(R17>=2,R77),AND(R13>=1,R44),R16>=1,R14>=10,AND(R14>=6,R67>=1)),R98,0) -> 2 | S167: =IF(OR('Base Numbers'!$C$21,AND(S17>=2,S77),AND(S13>=1,S44),S16>=1,S14>=10,AND(S14>=6,S67>=1)),S98,0) -> 2 | T167: =IF(OR('Base Numbers'!$C$21,AND(T17>=2,T77),AND(T13>=1,T44),T16>=1,T14>=10,AND(T14>=6,T67>=1)),T98,0) -> 2 | U167: =IF(OR('Base Numbers'!$C$21,AND(U17>=2,U77),AND(U13>=1,U44),U16>=1,U14>=10,AND(U14>=6,U67>=1)),U98,0) -> 2 | V167: =IF(OR('Base Numbers'!$C$21,AND(V17>=2,V77),AND(V13>=1,V44),V16>=1,V14>=10,AND(V14>=6,V67>=1)),V98,0) -> 2 | W167: =IF(OR('Base Numbers'!$C$21,AND(W17>=2,W77),AND(W13>=1,W44),W16>=1,W14>=10,AND(W14>=6,W67>=1)),W98,0) -> 2 | X167: =IF(OR('Base Numbers'!$C$21,AND(X17>=2,X77),AND(X13>=1,X44),X16>=1,X14>=10,AND(X14>=6,X67>=1)),X98,0) -> 2 | Z167: rogue
D168: magic missile: AE | E168: =IF(OR('Base Numbers'!$C$21,E15>=1,E13>=1,E14>=10,AND(E14>=6,E67>=1)),E100,0) -> 0 | F168: =IF(OR('Base Numbers'!$C$21,F15>=1,F13>=1,F14>=10,AND(F14>=6,F67>=1)),F100,0) -> 0 | G168: =IF(OR('Base Numbers'!$C$21,G15>=1,G13>=1,G14>=10,AND(G14>=6,G67>=1)),G100,0) -> 0 | H168: =IF(OR('Base Numbers'!$C$21,H15>=1,H13>=1,H14>=10,AND(H14>=6,H67>=1)),H100,0) -> 0 | I168: =IF(OR('Base Numbers'!$C$21,I15>=1,I13>=1,I14>=10,AND(I14>=6,I67>=1)),I100,0) -> 0 | J168: =IF(OR('Base Numbers'!$C$21,J15>=1,J13>=1,J14>=10,AND(J14>=6,J67>=1)),J100,0) -> 0 | K168: =IF(OR('Base Numbers'!$C$21,K15>=1,K13>=1,K14>=10,AND(K14>=6,K67>=1)),K100,0) -> 0 | L168: =IF(OR('Base Numbers'!$C$21,L15>=1,L13>=1,L14>=10,AND(L14>=6,L67>=1)),L100,0) -> 0 | M168: =IF(OR('Base Numbers'!$C$21,M15>=1,M13>=1,M14>=10,AND(M14>=6,M67>=1)),M100,0) -> 0 | N168: =IF(OR('Base Numbers'!$C$21,N15>=1,N13>=1,N14>=10,AND(N14>=6,N67>=1)),N100,0) -> 0 | O168: =IF(OR('Base Numbers'!$C$21,O15>=1,O13>=1,O14>=10,AND(O14>=6,O67>=1)),O100,0) -> 0 | P168: =IF(OR('Base Numbers'!$C$21,P15>=1,P13>=1,P14>=10,AND(P14>=6,P67>=1)),P100,0) -> 0 | Q168: =IF(OR('Base Numbers'!$C$21,Q15>=1,Q13>=1,Q14>=10,AND(Q14>=6,Q67>=1)),Q100,0) -> 0 | R168: =IF(OR('Base Numbers'!$C$21,R15>=1,R13>=1,R14>=10,AND(R14>=6,R67>=1)),R100,0) -> 0 | S168: =IF(OR('Base Numbers'!$C$21,S15>=1,S13>=1,S14>=10,AND(S14>=6,S67>=1)),S100,0) -> 0 | T168: =IF(OR('Base Numbers'!$C$21,T15>=1,T13>=1,T14>=10,AND(T14>=6,T67>=1)),T100,0) -> 0 | U168: =IF(OR('Base Numbers'!$C$21,U15>=1,U13>=1,U14>=10,AND(U14>=6,U67>=1)),U100,0) -> 0 | V168: =IF(OR('Base Numbers'!$C$21,V15>=1,V13>=1,V14>=10,AND(V14>=6,V67>=1)),V100,0) -> 0 | W168: =IF(OR('Base Numbers'!$C$21,W15>=1,W13>=1,W14>=10,AND(W14>=6,W67>=1)),W100,0) -> 0 | X168: =IF(OR('Base Numbers'!$C$21,X15>=1,X13>=1,X14>=10,AND(X14>=6,X67>=1)),X100,0) -> 0 | Z168: L3: sacrifice bonus action for advantage
D169: scorching ray : AE | E169: =IF(OR('Base Numbers'!$C$21,E15>=3,E13>=3,E14>=10,AND(E14>=6,E67>=1),AND(E19>=5,E76)),E108,0) -> 0 | F169: =IF(OR('Base Numbers'!$C$21,F15>=3,F13>=3,F14>=10,AND(F14>=6,F67>=1),AND(F19>=5,F76)),F108,0) -> 0 | G169: =IF(OR('Base Numbers'!$C$21,G15>=3,G13>=3,G14>=10,AND(G14>=6,G67>=1),AND(G19>=5,G76)),G108,0) -> 0 | H169: =IF(OR('Base Numbers'!$C$21,H15>=3,H13>=3,H14>=10,AND(H14>=6,H67>=1),AND(H19>=5,H76)),H108,0) -> 0 | I169: =IF(OR('Base Numbers'!$C$21,I15>=3,I13>=3,I14>=10,AND(I14>=6,I67>=1),AND(I19>=5,I76)),I108,0) -> 0 | J169: =IF(OR('Base Numbers'!$C$21,J15>=3,J13>=3,J14>=10,AND(J14>=6,J67>=1),AND(J19>=5,J76)),J108,0) -> 0 | K169: =IF(OR('Base Numbers'!$C$21,K15>=3,K13>=3,K14>=10,AND(K14>=6,K67>=1),AND(K19>=5,K76)),K108,0) -> 0 | L169: =IF(OR('Base Numbers'!$C$21,L15>=3,L13>=3,L14>=10,AND(L14>=6,L67>=1),AND(L19>=5,L76)),L108,0) -> 0 | M169: =IF(OR('Base Numbers'!$C$21,M15>=3,M13>=3,M14>=10,AND(M14>=6,M67>=1),AND(M19>=5,M76)),M108,0) -> 0 | N169: =IF(OR('Base Numbers'!$C$21,N15>=3,N13>=3,N14>=10,AND(N14>=6,N67>=1),AND(N19>=5,N76)),N108,0) -> 0 | O169: =IF(OR('Base Numbers'!$C$21,O15>=3,O13>=3,O14>=10,AND(O14>=6,O67>=1),AND(O19>=5,O76)),O108,0) -> 0 | P169: =IF(OR('Base Numbers'!$C$21,P15>=3,P13>=3,P14>=10,AND(P14>=6,P67>=1),AND(P19>=5,P76)),P108,0) -> 0 | Q169: =IF(OR('Base Numbers'!$C$21,Q15>=3,Q13>=3,Q14>=10,AND(Q14>=6,Q67>=1),AND(Q19>=5,Q76)),Q108,0) -> 0 | R169: =IF(OR('Base Numbers'!$C$21,R15>=3,R13>=3,R14>=10,AND(R14>=6,R67>=1),AND(R19>=5,R76)),R108,0) -> 0 | S169: =IF(OR('Base Numbers'!$C$21,S15>=3,S13>=3,S14>=10,AND(S14>=6,S67>=1),AND(S19>=5,S76)),S108,0) -> 0 | T169: =IF(OR('Base Numbers'!$C$21,T15>=3,T13>=3,T14>=10,AND(T14>=6,T67>=1),AND(T19>=5,T76)),T108,0) -> 0 | U169: =IF(OR('Base Numbers'!$C$21,U15>=3,U13>=3,U14>=10,AND(U14>=6,U67>=1),AND(U19>=5,U76)),U108,0) -> 0 | V169: =IF(OR('Base Numbers'!$C$21,V15>=3,V13>=3,V14>=10,AND(V14>=6,V67>=1),AND(V19>=5,V76)),V108,0) -> 0 | W169: =IF(OR('Base Numbers'!$C$21,W15>=3,W13>=3,W14>=10,AND(W14>=6,W67>=1),AND(W19>=5,W76)),W108,0) -> 0 | X169: =IF(OR('Base Numbers'!$C$21,X15>=3,X13>=3,X14>=10,AND(X14>=6,X67>=1),AND(X19>=5,X76)),X108,0) -> 0 | Z169: arcane trickster: gain FF, BB, and GFB at L3
D170: fog cloud casts: (c) | E170: =IF(OR('Base Numbers'!$C$21,E9>=2,E13>=1,E15>=1,E17>=1,AND(E10>=3,E59>=1),AND(E11>=3,E72>=1),E14>=10,AND(E14>=6,E67>=1),AND(E12>=1,E52>=1)),E97,0) -> 0 | F170: =IF(OR('Base Numbers'!$C$21,F9>=2,F13>=1,F15>=1,F17>=1,AND(F10>=3,F59>=1),AND(F11>=3,F72>=1),F14>=10,AND(F14>=6,F67>=1),AND(F12>=1,F52>=1)),F97,0) -> 0 | G170: =IF(OR('Base Numbers'!$C$21,G9>=2,G13>=1,G15>=1,G17>=1,AND(G10>=3,G59>=1),AND(G11>=3,G72>=1),G14>=10,AND(G14>=6,G67>=1),AND(G12>=1,G52>=1)),G97,0) -> 0 | H170: =IF(OR('Base Numbers'!$C$21,H9>=2,H13>=1,H15>=1,H17>=1,AND(H10>=3,H59>=1),AND(H11>=3,H72>=1),H14>=10,AND(H14>=6,H67>=1),AND(H12>=1,H52>=1)),H97,0) -> 0 | I170: =IF(OR('Base Numbers'!$C$21,I9>=2,I13>=1,I15>=1,I17>=1,AND(I10>=3,I59>=1),AND(I11>=3,I72>=1),I14>=10,AND(I14>=6,I67>=1),AND(I12>=1,I52>=1)),I97,0) -> 0 | J170: =IF(OR('Base Numbers'!$C$21,J9>=2,J13>=1,J15>=1,J17>=1,AND(J10>=3,J59>=1),AND(J11>=3,J72>=1),J14>=10,AND(J14>=6,J67>=1),AND(J12>=1,J52>=1)),J97,0) -> 0 | K170: =IF(OR('Base Numbers'!$C$21,K9>=2,K13>=1,K15>=1,K17>=1,AND(K10>=3,K59>=1),AND(K11>=3,K72>=1),K14>=10,AND(K14>=6,K67>=1),AND(K12>=1,K52>=1)),K97,0) -> 0 | L170: =IF(OR('Base Numbers'!$C$21,L9>=2,L13>=1,L15>=1,L17>=1,AND(L10>=3,L59>=1),AND(L11>=3,L72>=1),L14>=10,AND(L14>=6,L67>=1),AND(L12>=1,L52>=1)),L97,0) -> 0 | M170: =IF(OR('Base Numbers'!$C$21,M9>=2,M13>=1,M15>=1,M17>=1,AND(M10>=3,M59>=1),AND(M11>=3,M72>=1),M14>=10,AND(M14>=6,M67>=1),AND(M12>=1,M52>=1)),M97,0) -> 0 | N170: =IF(OR('Base Numbers'!$C$21,N9>=2,N13>=1,N15>=1,N17>=1,AND(N10>=3,N59>=1),AND(N11>=3,N72>=1),N14>=10,AND(N14>=6,N67>=1),AND(N12>=1,N52>=1)),N97,0) -> 0 | O170: =IF(OR('Base Numbers'!$C$21,O9>=2,O13>=1,O15>=1,O17>=1,AND(O10>=3,O59>=1),AND(O11>=3,O72>=1),O14>=10,AND(O14>=6,O67>=1),AND(O12>=1,O52>=1)),O97,0) -> 0 | P170: =IF(OR('Base Numbers'!$C$21,P9>=2,P13>=1,P15>=1,P17>=1,AND(P10>=3,P59>=1),AND(P11>=3,P72>=1),P14>=10,AND(P14>=6,P67>=1),AND(P12>=1,P52>=1)),P97,0) -> 0 | Q170: =IF(OR('Base Numbers'!$C$21,Q9>=2,Q13>=1,Q15>=1,Q17>=1,AND(Q10>=3,Q59>=1),AND(Q11>=3,Q72>=1),Q14>=10,AND(Q14>=6,Q67>=1),AND(Q12>=1,Q52>=1)),Q97,0) -> 0 | R170: =IF(OR('Base Numbers'!$C$21,R9>=2,R13>=1,R15>=1,R17>=1,AND(R10>=3,R59>=1),AND(R11>=3,R72>=1),R14>=10,AND(R14>=6,R67>=1),AND(R12>=1,R52>=1)),R97,0) -> 0 | S170: =IF(OR('Base Numbers'!$C$21,S9>=2,S13>=1,S15>=1,S17>=1,AND(S10>=3,S59>=1),AND(S11>=3,S72>=1),S14>=10,AND(S14>=6,S67>=1),AND(S12>=1,S52>=1)),S97,0) -> 0 | T170: =IF(OR('Base Numbers'!$C$21,T9>=2,T13>=1,T15>=1,T17>=1,AND(T10>=3,T59>=1),AND(T11>=3,T72>=1),T14>=10,AND(T14>=6,T67>=1),AND(T12>=1,T52>=1)),T97,0) -> 0 | U170: =IF(OR('Base Numbers'!$C$21,U9>=2,U13>=1,U15>=1,U17>=1,AND(U10>=3,U59>=1),AND(U11>=3,U72>=1),U14>=10,AND(U14>=6,U67>=1),AND(U12>=1,U52>=1)),U97,0) -> 0 | V170: =IF(OR('Base Numbers'!$C$21,V9>=2,V13>=1,V15>=1,V17>=1,AND(V10>=3,V59>=1),AND(V11>=3,V72>=1),V14>=10,AND(V14>=6,V67>=1),AND(V12>=1,V52>=1)),V97,0) -> 0 | W170: =IF(OR('Base Numbers'!$C$21,W9>=2,W13>=1,W15>=1,W17>=1,AND(W10>=3,W59>=1),AND(W11>=3,W72>=1),W14>=10,AND(W14>=6,W67>=1),AND(W12>=1,W52>=1)),W97,0) -> 0 | X170: =IF(OR('Base Numbers'!$C$21,X9>=2,X13>=1,X15>=1,X17>=1,AND(X10>=3,X59>=1),AND(X11>=3,X72>=1),X14>=10,AND(X14>=6,X67>=1),AND(X12>=1,X52>=1)),X97,0) -> 0 | Z170: artificer
D171: pyrotechnics casts: | E171: =IF(OR('Base Numbers'!$C$21,E13>=3,E15>=3,E19>=5,E14>=3,AND(E10>=7,E59>=1),AND(E11>=7,E72>=1)),E107,0) -> 0 | F171: =IF(OR('Base Numbers'!$C$21,F13>=3,F15>=3,F19>=5,F14>=3,AND(F10>=7,F59>=1),AND(F11>=7,F72>=1)),F107,0) -> 0 | G171: =IF(OR('Base Numbers'!$C$21,G13>=3,G15>=3,G19>=5,G14>=3,AND(G10>=7,G59>=1),AND(G11>=7,G72>=1)),G107,0) -> 0 | H171: =IF(OR('Base Numbers'!$C$21,H13>=3,H15>=3,H19>=5,H14>=3,AND(H10>=7,H59>=1),AND(H11>=7,H72>=1)),H107,0) -> 0 | I171: =IF(OR('Base Numbers'!$C$21,I13>=3,I15>=3,I19>=5,I14>=3,AND(I10>=7,I59>=1),AND(I11>=7,I72>=1)),I107,0) -> 0 | J171: =IF(OR('Base Numbers'!$C$21,J13>=3,J15>=3,J19>=5,J14>=3,AND(J10>=7,J59>=1),AND(J11>=7,J72>=1)),J107,0) -> 0 | K171: =IF(OR('Base Numbers'!$C$21,K13>=3,K15>=3,K19>=5,K14>=3,AND(K10>=7,K59>=1),AND(K11>=7,K72>=1)),K107,0) -> 0 | L171: =IF(OR('Base Numbers'!$C$21,L13>=3,L15>=3,L19>=5,L14>=3,AND(L10>=7,L59>=1),AND(L11>=7,L72>=1)),L107,0) -> 0 | M171: =IF(OR('Base Numbers'!$C$21,M13>=3,M15>=3,M19>=5,M14>=3,AND(M10>=7,M59>=1),AND(M11>=7,M72>=1)),M107,0) -> 0 | N171: =IF(OR('Base Numbers'!$C$21,N13>=3,N15>=3,N19>=5,N14>=3,AND(N10>=7,N59>=1),AND(N11>=7,N72>=1)),N107,0) -> 0 | O171: =IF(OR('Base Numbers'!$C$21,O13>=3,O15>=3,O19>=5,O14>=3,AND(O10>=7,O59>=1),AND(O11>=7,O72>=1)),O107,0) -> 0 | P171: =IF(OR('Base Numbers'!$C$21,P13>=3,P15>=3,P19>=5,P14>=3,AND(P10>=7,P59>=1),AND(P11>=7,P72>=1)),P107,0) -> 0 | Q171: =IF(OR('Base Numbers'!$C$21,Q13>=3,Q15>=3,Q19>=5,Q14>=3,AND(Q10>=7,Q59>=1),AND(Q11>=7,Q72>=1)),Q107,0) -> 0 | R171: =IF(OR('Base Numbers'!$C$21,R13>=3,R15>=3,R19>=5,R14>=3,AND(R10>=7,R59>=1),AND(R11>=7,R72>=1)),R107,0) -> 0 | S171: =IF(OR('Base Numbers'!$C$21,S13>=3,S15>=3,S19>=5,S14>=3,AND(S10>=7,S59>=1),AND(S11>=7,S72>=1)),S107,0) -> 0 | T171: =IF(OR('Base Numbers'!$C$21,T13>=3,T15>=3,T19>=5,T14>=3,AND(T10>=7,T59>=1),AND(T11>=7,T72>=1)),T107,0) -> 0 | U171: =IF(OR('Base Numbers'!$C$21,U13>=3,U15>=3,U19>=5,U14>=3,AND(U10>=7,U59>=1),AND(U11>=7,U72>=1)),U107,0) -> 0 | V171: =IF(OR('Base Numbers'!$C$21,V13>=3,V15>=3,V19>=5,V14>=3,AND(V10>=7,V59>=1),AND(V11>=7,V72>=1)),V107,0) -> 0 | W171: =IF(OR('Base Numbers'!$C$21,W13>=3,W15>=3,W19>=5,W14>=3,AND(W10>=7,W59>=1),AND(W11>=7,W72>=1)),W107,0) -> 0 | X171: =IF(OR('Base Numbers'!$C$21,X13>=3,X15>=3,X19>=5,X14>=3,AND(X10>=7,X59>=1),AND(X11>=7,X72>=1)),X107,0) -> 0 | Z171: battlesmith
D172: darkness casts: (c) (oathbreaker) | E172: =IF(OR('Base Numbers'!$C$21,E14>=6,E15>=3,E13>=3,E12>=3,AND(E7>=5,E41)),E103,0) -> 0 | F172: =IF(OR('Base Numbers'!$C$21,F14>=6,F15>=3,F13>=3,F12>=3,AND(F7>=5,F41)),F103,0) -> 0 | G172: =IF(OR('Base Numbers'!$C$21,G14>=6,G15>=3,G13>=3,G12>=3,AND(G7>=5,G41)),G103,0) -> 0 | H172: =IF(OR('Base Numbers'!$C$21,H14>=6,H15>=3,H13>=3,H12>=3,AND(H7>=5,H41)),H103,0) -> 0 | I172: =IF(OR('Base Numbers'!$C$21,I14>=6,I15>=3,I13>=3,I12>=3,AND(I7>=5,I41)),I103,0) -> 0 | J172: =IF(OR('Base Numbers'!$C$21,J14>=6,J15>=3,J13>=3,J12>=3,AND(J7>=5,J41)),J103,0) -> 0 | K172: =IF(OR('Base Numbers'!$C$21,K14>=6,K15>=3,K13>=3,K12>=3,AND(K7>=5,K41)),K103,0) -> 0 | L172: =IF(OR('Base Numbers'!$C$21,L14>=6,L15>=3,L13>=3,L12>=3,AND(L7>=5,L41)),L103,0) -> 0 | M172: =IF(OR('Base Numbers'!$C$21,M14>=6,M15>=3,M13>=3,M12>=3,AND(M7>=5,M41)),M103,0) -> 0 | N172: =IF(OR('Base Numbers'!$C$21,N14>=6,N15>=3,N13>=3,N12>=3,AND(N7>=5,N41)),N103,0) -> 0 | O172: =IF(OR('Base Numbers'!$C$21,O14>=6,O15>=3,O13>=3,O12>=3,AND(O7>=5,O41)),O103,0) -> 0 | P172: =IF(OR('Base Numbers'!$C$21,P14>=6,P15>=3,P13>=3,P12>=3,AND(P7>=5,P41)),P103,0) -> 0 | Q172: =IF(OR('Base Numbers'!$C$21,Q14>=6,Q15>=3,Q13>=3,Q12>=3,AND(Q7>=5,Q41)),Q103,0) -> 0 | R172: =IF(OR('Base Numbers'!$C$21,R14>=6,R15>=3,R13>=3,R12>=3,AND(R7>=5,R41)),R103,0) -> 0 | S172: =IF(OR('Base Numbers'!$C$21,S14>=6,S15>=3,S13>=3,S12>=3,AND(S7>=5,S41)),S103,0) -> 0 | T172: =IF(OR('Base Numbers'!$C$21,T14>=6,T15>=3,T13>=3,T12>=3,AND(T7>=5,T41)),T103,0) -> 0 | U172: =IF(OR('Base Numbers'!$C$21,U14>=6,U15>=3,U13>=3,U12>=3,AND(U7>=5,U41)),U103,0) -> 0 | V172: =IF(OR('Base Numbers'!$C$21,V14>=6,V15>=3,V13>=3,V12>=3,AND(V7>=5,V41)),V103,0) -> 0 | W172: =IF(OR('Base Numbers'!$C$21,W14>=6,W15>=3,W13>=3,W12>=3,AND(W7>=5,W41)),W103,0) -> 0 | X172: =IF(OR('Base Numbers'!$C$21,X14>=6,X15>=3,X13>=3,X12>=3,AND(X7>=5,X41)),X103,0) -> 0 | Z172: artillerist
D173: shadow blade (c) (bonus action) | E173: =IF(OR('Base Numbers'!$C$21,AND(E10>=7,E59>=1),AND(E11>=7, E72>=1),E15>=3,E14>=10,AND(E14>=6,E67>=1),E12>=3,E13>=3),E109,0) -> 0 | F173: =IF(OR('Base Numbers'!$C$21,AND(F10>=7,F59>=1),AND(F11>=7, F72>=1),F15>=3,F14>=10,AND(F14>=6,F67>=1),F12>=3,F13>=3),F109,0) -> 0 | G173: =IF(OR('Base Numbers'!$C$21,AND(G10>=7,G59>=1),AND(G11>=7, G72>=1),G15>=3,G14>=10,AND(G14>=6,G67>=1),G12>=3,G13>=3),G109,0) -> 0 | H173: =IF(OR('Base Numbers'!$C$21,AND(H10>=7,H59>=1),AND(H11>=7, H72>=1),H15>=3,H14>=10,AND(H14>=6,H67>=1),H12>=3,H13>=3),H109,0) -> 0 | I173: =IF(OR('Base Numbers'!$C$21,AND(I10>=7,I59>=1),AND(I11>=7, I72>=1),I15>=3,I14>=10,AND(I14>=6,I67>=1),I12>=3,I13>=3),I109,0) -> 0 | J173: =IF(OR('Base Numbers'!$C$21,AND(J10>=7,J59>=1),AND(J11>=7, J72>=1),J15>=3,J14>=10,AND(J14>=6,J67>=1),J12>=3,J13>=3),J109,0) -> 0 | K173: =IF(OR('Base Numbers'!$C$21,AND(K10>=7,K59>=1),AND(K11>=7, K72>=1),K15>=3,K14>=10,AND(K14>=6,K67>=1),K12>=3,K13>=3),K109,0) -> 0 | L173: =IF(OR('Base Numbers'!$C$21,AND(L10>=7,L59>=1),AND(L11>=7, L72>=1),L15>=3,L14>=10,AND(L14>=6,L67>=1),L12>=3,L13>=3),L109,0) -> 0 | M173: =IF(OR('Base Numbers'!$C$21,AND(M10>=7,M59>=1),AND(M11>=7, M72>=1),M15>=3,M14>=10,AND(M14>=6,M67>=1),M12>=3,M13>=3),M109,0) -> 0 | N173: =IF(OR('Base Numbers'!$C$21,AND(N10>=7,N59>=1),AND(N11>=7, N72>=1),N15>=3,N14>=10,AND(N14>=6,N67>=1),N12>=3,N13>=3),N109,0) -> 0 | O173: =IF(OR('Base Numbers'!$C$21,AND(O10>=7,O59>=1),AND(O11>=7, O72>=1),O15>=3,O14>=10,AND(O14>=6,O67>=1),O12>=3,O13>=3),O109,0) -> 0 | P173: =IF(OR('Base Numbers'!$C$21,AND(P10>=7,P59>=1),AND(P11>=7, P72>=1),P15>=3,P14>=10,AND(P14>=6,P67>=1),P12>=3,P13>=3),P109,0) -> 0 | Q173: =IF(OR('Base Numbers'!$C$21,AND(Q10>=7,Q59>=1),AND(Q11>=7, Q72>=1),Q15>=3,Q14>=10,AND(Q14>=6,Q67>=1),Q12>=3,Q13>=3),Q109,0) -> 0 | R173: =IF(OR('Base Numbers'!$C$21,AND(R10>=7,R59>=1),AND(R11>=7, R72>=1),R15>=3,R14>=10,AND(R14>=6,R67>=1),R12>=3,R13>=3),R109,0) -> 0 | S173: =IF(OR('Base Numbers'!$C$21,AND(S10>=7,S59>=1),AND(S11>=7, S72>=1),S15>=3,S14>=10,AND(S14>=6,S67>=1),S12>=3,S13>=3),S109,0) -> 0 | T173: =IF(OR('Base Numbers'!$C$21,AND(T10>=7,T59>=1),AND(T11>=7, T72>=1),T15>=3,T14>=10,AND(T14>=6,T67>=1),T12>=3,T13>=3),T109,0) -> 0 | U173: =IF(OR('Base Numbers'!$C$21,AND(U10>=7,U59>=1),AND(U11>=7, U72>=1),U15>=3,U14>=10,AND(U14>=6,U67>=1),U12>=3,U13>=3),U109,0) -> 0 | V173: =IF(OR('Base Numbers'!$C$21,AND(V10>=7,V59>=1),AND(V11>=7, V72>=1),V15>=3,V14>=10,AND(V14>=6,V67>=1),V12>=3,V13>=3),V109,0) -> 0 | W173: =IF(OR('Base Numbers'!$C$21,AND(W10>=7,W59>=1),AND(W11>=7, W72>=1),W15>=3,W14>=10,AND(W14>=6,W67>=1),W12>=3,W13>=3),W109,0) -> 0 | X173: =IF(OR('Base Numbers'!$C$21,AND(X10>=7,X59>=1),AND(X11>=7, X72>=1),X15>=3,X14>=10,AND(X14>=6,X67>=1),X12>=3,X13>=3),X109,0) -> 0 | Z173: generalized cantrip action value
D174: bless casts (c) | E174: =IF(OR('Base Numbers'!$C$21,E14>=6,E16>=1,E7>=2,AND(E44,E13>=1),E14>=10,AND(E14>=6,E67>=1)),E94,0) -> 1 | F174: =IF(OR('Base Numbers'!$C$21,F14>=6,F16>=1,F7>=2,AND(F44,F13>=1),F14>=10,AND(F14>=6,F67>=1)),F94,0) -> 1 | G174: =IF(OR('Base Numbers'!$C$21,G14>=6,G16>=1,G7>=2,AND(G44,G13>=1),G14>=10,AND(G14>=6,G67>=1)),G94,0) -> 0 | H174: =IF(OR('Base Numbers'!$C$21,H14>=6,H16>=1,H7>=2,AND(H44,H13>=1),H14>=10,AND(H14>=6,H67>=1)),H94,0) -> 0 | I174: =IF(OR('Base Numbers'!$C$21,I14>=6,I16>=1,I7>=2,AND(I44,I13>=1),I14>=10,AND(I14>=6,I67>=1)),I94,0) -> 0 | J174: =IF(OR('Base Numbers'!$C$21,J14>=6,J16>=1,J7>=2,AND(J44,J13>=1),J14>=10,AND(J14>=6,J67>=1)),J94,0) -> 0 | K174: =IF(OR('Base Numbers'!$C$21,K14>=6,K16>=1,K7>=2,AND(K44,K13>=1),K14>=10,AND(K14>=6,K67>=1)),K94,0) -> 0 | L174: =IF(OR('Base Numbers'!$C$21,L14>=6,L16>=1,L7>=2,AND(L44,L13>=1),L14>=10,AND(L14>=6,L67>=1)),L94,0) -> 0 | M174: =IF(OR('Base Numbers'!$C$21,M14>=6,M16>=1,M7>=2,AND(M44,M13>=1),M14>=10,AND(M14>=6,M67>=1)),M94,0) -> 0 | N174: =IF(OR('Base Numbers'!$C$21,N14>=6,N16>=1,N7>=2,AND(N44,N13>=1),N14>=10,AND(N14>=6,N67>=1)),N94,0) -> 0 | O174: =IF(OR('Base Numbers'!$C$21,O14>=6,O16>=1,O7>=2,AND(O44,O13>=1),O14>=10,AND(O14>=6,O67>=1)),O94,0) -> 0 | P174: =IF(OR('Base Numbers'!$C$21,P14>=6,P16>=1,P7>=2,AND(P44,P13>=1),P14>=10,AND(P14>=6,P67>=1)),P94,0) -> 0 | Q174: =IF(OR('Base Numbers'!$C$21,Q14>=6,Q16>=1,Q7>=2,AND(Q44,Q13>=1),Q14>=10,AND(Q14>=6,Q67>=1)),Q94,0) -> 0 | R174: =IF(OR('Base Numbers'!$C$21,R14>=6,R16>=1,R7>=2,AND(R44,R13>=1),R14>=10,AND(R14>=6,R67>=1)),R94,0) -> 0 | S174: =IF(OR('Base Numbers'!$C$21,S14>=6,S16>=1,S7>=2,AND(S44,S13>=1),S14>=10,AND(S14>=6,S67>=1)),S94,0) -> 0 | T174: =IF(OR('Base Numbers'!$C$21,T14>=6,T16>=1,T7>=2,AND(T44,T13>=1),T14>=10,AND(T14>=6,T67>=1)),T94,0) -> 0 | U174: =IF(OR('Base Numbers'!$C$21,U14>=6,U16>=1,U7>=2,AND(U44,U13>=1),U14>=10,AND(U14>=6,U67>=1)),U94,0) -> 0 | V174: =IF(OR('Base Numbers'!$C$21,V14>=6,V16>=1,V7>=2,AND(V44,V13>=1),V14>=10,AND(V14>=6,V67>=1)),V94,0) -> 0 | W174: =IF(OR('Base Numbers'!$C$21,W14>=6,W16>=1,W7>=2,AND(W44,W13>=1),W14>=10,AND(W14>=6,W67>=1)),W94,0) -> 0 | X174: =IF(OR('Base Numbers'!$C$21,X14>=6,X16>=1,X7>=2,AND(X44,X13>=1),X14>=10,AND(X14>=6,X67>=1)),X94,0) -> 0 | Z174: circle of stars
D175: divine favor casts (c) | E175: =IF(OR('Base Numbers'!$C$21,E14>=6,E7>=2,AND(E44,E13>=1),E14>=10,AND(E14>=6,E67>=1)),E95,0) -> 0 | F175: =IF(OR('Base Numbers'!$C$21,F14>=6,F7>=2,AND(F44,F13>=1),F14>=10,AND(F14>=6,F67>=1)),F95,0) -> 0 | G175: =IF(OR('Base Numbers'!$C$21,G14>=6,G7>=2,AND(G44,G13>=1),G14>=10,AND(G14>=6,G67>=1)),G95,0) -> 0 | H175: =IF(OR('Base Numbers'!$C$21,H14>=6,H7>=2,AND(H44,H13>=1),H14>=10,AND(H14>=6,H67>=1)),H95,0) -> 0 | I175: =IF(OR('Base Numbers'!$C$21,I14>=6,I7>=2,AND(I44,I13>=1),I14>=10,AND(I14>=6,I67>=1)),I95,0) -> 0 | J175: =IF(OR('Base Numbers'!$C$21,J14>=6,J7>=2,AND(J44,J13>=1),J14>=10,AND(J14>=6,J67>=1)),J95,0) -> 0 | K175: =IF(OR('Base Numbers'!$C$21,K14>=6,K7>=2,AND(K44,K13>=1),K14>=10,AND(K14>=6,K67>=1)),K95,0) -> 0 | L175: =IF(OR('Base Numbers'!$C$21,L14>=6,L7>=2,AND(L44,L13>=1),L14>=10,AND(L14>=6,L67>=1)),L95,0) -> 0 | M175: =IF(OR('Base Numbers'!$C$21,M14>=6,M7>=2,AND(M44,M13>=1),M14>=10,AND(M14>=6,M67>=1)),M95,0) -> 0 | N175: =IF(OR('Base Numbers'!$C$21,N14>=6,N7>=2,AND(N44,N13>=1),N14>=10,AND(N14>=6,N67>=1)),N95,0) -> 0 | O175: =IF(OR('Base Numbers'!$C$21,O14>=6,O7>=2,AND(O44,O13>=1),O14>=10,AND(O14>=6,O67>=1)),O95,0) -> 0 | P175: =IF(OR('Base Numbers'!$C$21,P14>=6,P7>=2,AND(P44,P13>=1),P14>=10,AND(P14>=6,P67>=1)),P95,0) -> 0 | Q175: =IF(OR('Base Numbers'!$C$21,Q14>=6,Q7>=2,AND(Q44,Q13>=1),Q14>=10,AND(Q14>=6,Q67>=1)),Q95,0) -> 0 | R175: =IF(OR('Base Numbers'!$C$21,R14>=6,R7>=2,AND(R44,R13>=1),R14>=10,AND(R14>=6,R67>=1)),R95,0) -> 0 | S175: =IF(OR('Base Numbers'!$C$21,S14>=6,S7>=2,AND(S44,S13>=1),S14>=10,AND(S14>=6,S67>=1)),S95,0) -> 0 | T175: =IF(OR('Base Numbers'!$C$21,T14>=6,T7>=2,AND(T44,T13>=1),T14>=10,AND(T14>=6,T67>=1)),T95,0) -> 0 | U175: =IF(OR('Base Numbers'!$C$21,U14>=6,U7>=2,AND(U44,U13>=1),U14>=10,AND(U14>=6,U67>=1)),U95,0) -> 0 | V175: =IF(OR('Base Numbers'!$C$21,V14>=6,V7>=2,AND(V44,V13>=1),V14>=10,AND(V14>=6,V67>=1)),V95,0) -> 0 | W175: =IF(OR('Base Numbers'!$C$21,W14>=6,W7>=2,AND(W44,W13>=1),W14>=10,AND(W14>=6,W67>=1)),W95,0) -> 0 | X175: =IF(OR('Base Numbers'!$C$21,X14>=6,X7>=2,AND(X44,X13>=1),X14>=10,AND(X14>=6,X67>=1)),X95,0) -> 0 | Z175: Druid circle of spores damage
D176: haste casts (c) (veng) | E176: =IF(OR('Base Numbers'!$C$21,E14>=6,E15>=5,E13>=5,E19>=9,AND(E40,E7>=9)),E118,0) -> 0 | F176: =IF(OR('Base Numbers'!$C$21,F14>=6,F15>=5,F13>=5,F19>=9,AND(F40,F7>=9)),F118,0) -> 0 | G176: =IF(OR('Base Numbers'!$C$21,G14>=6,G15>=5,G13>=5,G19>=9,AND(G40,G7>=9)),G118,0) -> 0 | H176: =IF(OR('Base Numbers'!$C$21,H14>=6,H15>=5,H13>=5,H19>=9,AND(H40,H7>=9)),H118,0) -> 0 | I176: =IF(OR('Base Numbers'!$C$21,I14>=6,I15>=5,I13>=5,I19>=9,AND(I40,I7>=9)),I118,0) -> 0 | J176: =IF(OR('Base Numbers'!$C$21,J14>=6,J15>=5,J13>=5,J19>=9,AND(J40,J7>=9)),J118,0) -> 0 | K176: =IF(OR('Base Numbers'!$C$21,K14>=6,K15>=5,K13>=5,K19>=9,AND(K40,K7>=9)),K118,0) -> 0 | L176: =IF(OR('Base Numbers'!$C$21,L14>=6,L15>=5,L13>=5,L19>=9,AND(L40,L7>=9)),L118,0) -> 0 | M176: =IF(OR('Base Numbers'!$C$21,M14>=6,M15>=5,M13>=5,M19>=9,AND(M40,M7>=9)),M118,0) -> 0 | N176: =IF(OR('Base Numbers'!$C$21,N14>=6,N15>=5,N13>=5,N19>=9,AND(N40,N7>=9)),N118,0) -> 0 | O176: =IF(OR('Base Numbers'!$C$21,O14>=6,O15>=5,O13>=5,O19>=9,AND(O40,O7>=9)),O118,0) -> 0 | P176: =IF(OR('Base Numbers'!$C$21,P14>=6,P15>=5,P13>=5,P19>=9,AND(P40,P7>=9)),P118,0) -> 0 | Q176: =IF(OR('Base Numbers'!$C$21,Q14>=6,Q15>=5,Q13>=5,Q19>=9,AND(Q40,Q7>=9)),Q118,0) -> 0 | R176: =IF(OR('Base Numbers'!$C$21,R14>=6,R15>=5,R13>=5,R19>=9,AND(R40,R7>=9)),R118,0) -> 0 | S176: =IF(OR('Base Numbers'!$C$21,S14>=6,S15>=5,S13>=5,S19>=9,AND(S40,S7>=9)),S118,0) -> 0 | T176: =IF(OR('Base Numbers'!$C$21,T14>=6,T15>=5,T13>=5,T19>=9,AND(T40,T7>=9)),T118,0) -> 0 | U176: =IF(OR('Base Numbers'!$C$21,U14>=6,U15>=5,U13>=5,U19>=9,AND(U40,U7>=9)),U118,0) -> 0 | V176: =IF(OR('Base Numbers'!$C$21,V14>=6,V15>=5,V13>=5,V19>=9,AND(V40,V7>=9)),V118,0) -> 0 | W176: =IF(OR('Base Numbers'!$C$21,W14>=6,W15>=5,W13>=5,W19>=9,AND(W40,W7>=9)),W118,0) -> 0 | X176: =IF(OR('Base Numbers'!$C$21,X14>=6,X15>=5,X13>=5,X19>=9,AND(X40,X7>=9)),X118,0) -> 0 | Z176: assassin advantage
D177: hunter's mark / hex casts (c) (veng) (bonus action) | E177: =IF(OR('Base Numbers'!$C$21,E14>=10,AND(E14>=6,E67>=1),E12>=1,E9>=2,AND(E40,E7>=3),AND($B$29>=1,E6>=$B$29)),E99,0) -> 0 | F177: =IF(OR('Base Numbers'!$C$21,F14>=10,AND(F14>=6,F67>=1),F12>=1,F9>=2,AND(F40,F7>=3),AND($B$29>=1,F6>=$B$29)),F99,0) -> 0 | G177: =IF(OR('Base Numbers'!$C$21,G14>=10,AND(G14>=6,G67>=1),G12>=1,G9>=2,AND(G40,G7>=3),AND($B$29>=1,G6>=$B$29)),G99,0) -> 0 | H177: =IF(OR('Base Numbers'!$C$21,H14>=10,AND(H14>=6,H67>=1),H12>=1,H9>=2,AND(H40,H7>=3),AND($B$29>=1,H6>=$B$29)),H99,0) -> 0 | I177: =IF(OR('Base Numbers'!$C$21,I14>=10,AND(I14>=6,I67>=1),I12>=1,I9>=2,AND(I40,I7>=3),AND($B$29>=1,I6>=$B$29)),I99,0) -> 0 | J177: =IF(OR('Base Numbers'!$C$21,J14>=10,AND(J14>=6,J67>=1),J12>=1,J9>=2,AND(J40,J7>=3),AND($B$29>=1,J6>=$B$29)),J99,0) -> 0 | K177: =IF(OR('Base Numbers'!$C$21,K14>=10,AND(K14>=6,K67>=1),K12>=1,K9>=2,AND(K40,K7>=3),AND($B$29>=1,K6>=$B$29)),K99,0) -> 0 | L177: =IF(OR('Base Numbers'!$C$21,L14>=10,AND(L14>=6,L67>=1),L12>=1,L9>=2,AND(L40,L7>=3),AND($B$29>=1,L6>=$B$29)),L99,0) -> 0 | M177: =IF(OR('Base Numbers'!$C$21,M14>=10,AND(M14>=6,M67>=1),M12>=1,M9>=2,AND(M40,M7>=3),AND($B$29>=1,M6>=$B$29)),M99,0) -> 0 | N177: =IF(OR('Base Numbers'!$C$21,N14>=10,AND(N14>=6,N67>=1),N12>=1,N9>=2,AND(N40,N7>=3),AND($B$29>=1,N6>=$B$29)),N99,0) -> 0 | O177: =IF(OR('Base Numbers'!$C$21,O14>=10,AND(O14>=6,O67>=1),O12>=1,O9>=2,AND(O40,O7>=3),AND($B$29>=1,O6>=$B$29)),O99,0) -> 0 | P177: =IF(OR('Base Numbers'!$C$21,P14>=10,AND(P14>=6,P67>=1),P12>=1,P9>=2,AND(P40,P7>=3),AND($B$29>=1,P6>=$B$29)),P99,0) -> 0 | Q177: =IF(OR('Base Numbers'!$C$21,Q14>=10,AND(Q14>=6,Q67>=1),Q12>=1,Q9>=2,AND(Q40,Q7>=3),AND($B$29>=1,Q6>=$B$29)),Q99,0) -> 0 | R177: =IF(OR('Base Numbers'!$C$21,R14>=10,AND(R14>=6,R67>=1),R12>=1,R9>=2,AND(R40,R7>=3),AND($B$29>=1,R6>=$B$29)),R99,0) -> 0 | S177: =IF(OR('Base Numbers'!$C$21,S14>=10,AND(S14>=6,S67>=1),S12>=1,S9>=2,AND(S40,S7>=3),AND($B$29>=1,S6>=$B$29)),S99,0) -> 0 | T177: =IF(OR('Base Numbers'!$C$21,T14>=10,AND(T14>=6,T67>=1),T12>=1,T9>=2,AND(T40,T7>=3),AND($B$29>=1,T6>=$B$29)),T99,0) -> 0 | U177: =IF(OR('Base Numbers'!$C$21,U14>=10,AND(U14>=6,U67>=1),U12>=1,U9>=2,AND(U40,U7>=3),AND($B$29>=1,U6>=$B$29)),U99,0) -> 0 | V177: =IF(OR('Base Numbers'!$C$21,V14>=10,AND(V14>=6,V67>=1),V12>=1,V9>=2,AND(V40,V7>=3),AND($B$29>=1,V6>=$B$29)),V99,0) -> 0 | W177: =IF(OR('Base Numbers'!$C$21,W14>=10,AND(W14>=6,W67>=1),W12>=1,W9>=2,AND(W40,W7>=3),AND($B$29>=1,W6>=$B$29)),W99,0) -> 0 | X177: =IF(OR('Base Numbers'!$C$21,X14>=10,AND(X14>=6,X67>=1),X12>=1,X9>=2,AND(X40,X7>=3),AND($B$29>=1,X6>=$B$29)),X99,0) -> 0 | Z177: assassin deathstrike (L17)
D178: spirit guardians casts (c) (req Divine Soul) | E178: =IF('Base Numbers'!$C$21,MIN(E119,'Base Numbers'!$G$21),MIN('Base Numbers'!$G$21,IF(OR('Base Numbers'!E14>=10,AND(E14>=6,E67>=1),E16>=5,AND(E44,E13>=5)),E119,0))) -> 0 | F178: =IF('Base Numbers'!$C$21,MIN(F119,'Base Numbers'!$G$21),MIN('Base Numbers'!$G$21,IF(OR('Base Numbers'!F14>=10,AND(F14>=6,F67>=1),F16>=5,AND(F44,F13>=5)),F119,0))) -> 0 | G178: =IF('Base Numbers'!$C$21,MIN(G119,'Base Numbers'!$G$21),MIN('Base Numbers'!$G$21,IF(OR('Base Numbers'!G14>=10,AND(G14>=6,G67>=1),G16>=5,AND(G44,G13>=5)),G119,0))) -> 0 | H178: =IF('Base Numbers'!$C$21,MIN(H119,'Base Numbers'!$G$21),MIN('Base Numbers'!$G$21,IF(OR('Base Numbers'!H14>=10,AND(H14>=6,H67>=1),H16>=5,AND(H44,H13>=5)),H119,0))) -> 0 | I178: =IF('Base Numbers'!$C$21,MIN(I119,'Base Numbers'!$G$21),MIN('Base Numbers'!$G$21,IF(OR('Base Numbers'!I14>=10,AND(I14>=6,I67>=1),I16>=5,AND(I44,I13>=5)),I119,0))) -> 0 | J178: =IF('Base Numbers'!$C$21,MIN(J119,'Base Numbers'!$G$21),MIN('Base Numbers'!$G$21,IF(OR('Base Numbers'!J14>=10,AND(J14>=6,J67>=1),J16>=5,AND(J44,J13>=5)),J119,0))) -> 0 | K178: =IF('Base Numbers'!$C$21,MIN(K119,'Base Numbers'!$G$21),MIN('Base Numbers'!$G$21,IF(OR('Base Numbers'!K14>=10,AND(K14>=6,K67>=1),K16>=5,AND(K44,K13>=5)),K119,0))) -> 1 | L178: =IF('Base Numbers'!$C$21,MIN(L119,'Base Numbers'!$G$21),MIN('Base Numbers'!$G$21,IF(OR('Base Numbers'!L14>=10,AND(L14>=6,L67>=1),L16>=5,AND(L44,L13>=5)),L119,0))) -> 0 | M178: =IF('Base Numbers'!$C$21,MIN(M119,'Base Numbers'!$G$21),MIN('Base Numbers'!$G$21,IF(OR('Base Numbers'!M14>=10,AND(M14>=6,M67>=1),M16>=5,AND(M44,M13>=5)),M119,0))) -> 0 | N178: =IF('Base Numbers'!$C$21,MIN(N119,'Base Numbers'!$G$21),MIN('Base Numbers'!$G$21,IF(OR('Base Numbers'!N14>=10,AND(N14>=6,N67>=1),N16>=5,AND(N44,N13>=5)),N119,0))) -> 0 | O178: =IF('Base Numbers'!$C$21,MIN(O119,'Base Numbers'!$G$21),MIN('Base Numbers'!$G$21,IF(OR('Base Numbers'!O14>=10,AND(O14>=6,O67>=1),O16>=5,AND(O44,O13>=5)),O119,0))) -> 2 | P178: =IF('Base Numbers'!$C$21,MIN(P119,'Base Numbers'!$G$21),MIN('Base Numbers'!$G$21,IF(OR('Base Numbers'!P14>=10,AND(P14>=6,P67>=1),P16>=5,AND(P44,P13>=5)),P119,0))) -> 2 | Q178: =IF('Base Numbers'!$C$21,MIN(Q119,'Base Numbers'!$G$21),MIN('Base Numbers'!$G$21,IF(OR('Base Numbers'!Q14>=10,AND(Q14>=6,Q67>=1),Q16>=5,AND(Q44,Q13>=5)),Q119,0))) -> 2 | R178: =IF('Base Numbers'!$C$21,MIN(R119,'Base Numbers'!$G$21),MIN('Base Numbers'!$G$21,IF(OR('Base Numbers'!R14>=10,AND(R14>=6,R67>=1),R16>=5,AND(R44,R13>=5)),R119,0))) -> 2 | S178: =IF('Base Numbers'!$C$21,MIN(S119,'Base Numbers'!$G$21),MIN('Base Numbers'!$G$21,IF(OR('Base Numbers'!S14>=10,AND(S14>=6,S67>=1),S16>=5,AND(S44,S13>=5)),S119,0))) -> 2 | T178: =IF('Base Numbers'!$C$21,MIN(T119,'Base Numbers'!$G$21),MIN('Base Numbers'!$G$21,IF(OR('Base Numbers'!T14>=10,AND(T14>=6,T67>=1),T16>=5,AND(T44,T13>=5)),T119,0))) -> 2 | U178: =IF('Base Numbers'!$C$21,MIN(U119,'Base Numbers'!$G$21),MIN('Base Numbers'!$G$21,IF(OR('Base Numbers'!U14>=10,AND(U14>=6,U67>=1),U16>=5,AND(U44,U13>=5)),U119,0))) -> 2 | V178: =IF('Base Numbers'!$C$21,MIN(V119,'Base Numbers'!$G$21),MIN('Base Numbers'!$G$21,IF(OR('Base Numbers'!V14>=10,AND(V14>=6,V67>=1),V16>=5,AND(V44,V13>=5)),V119,0))) -> 2 | W178: =IF('Base Numbers'!$C$21,MIN(W119,'Base Numbers'!$G$21),MIN('Base Numbers'!$G$21,IF(OR('Base Numbers'!W14>=10,AND(W14>=6,W67>=1),W16>=5,AND(W44,W13>=5)),W119,0))) -> 2 | X178: =IF('Base Numbers'!$C$21,MIN(X119,'Base Numbers'!$G$21),MIN('Base Numbers'!$G$21,IF(OR('Base Numbers'!X14>=10,AND(X14>=6,X67>=1),X16>=5,AND(X44,X13>=5)),X119,0))) -> 2 | Z178: Base Numbers option for DM allows BB with Shadowblade
D179: faerie fire casts (c) | E179: =IF(OR('Base Numbers'!$C$21,E17>=1,E19>=1,E14>=10,AND(E14>=6,E67>=1)),E96,0) -> 0 | F179: =IF(OR('Base Numbers'!$C$21,F17>=1,F19>=1,F14>=10,AND(F14>=6,F67>=1)),F96,0) -> 0 | G179: =IF(OR('Base Numbers'!$C$21,G17>=1,G19>=1,G14>=10,AND(G14>=6,G67>=1)),G96,0) -> 0 | H179: =IF(OR('Base Numbers'!$C$21,H17>=1,H19>=1,H14>=10,AND(H14>=6,H67>=1)),H96,0) -> 0 | I179: =IF(OR('Base Numbers'!$C$21,I17>=1,I19>=1,I14>=10,AND(I14>=6,I67>=1)),I96,0) -> 0 | J179: =IF(OR('Base Numbers'!$C$21,J17>=1,J19>=1,J14>=10,AND(J14>=6,J67>=1)),J96,0) -> 0 | K179: =IF(OR('Base Numbers'!$C$21,K17>=1,K19>=1,K14>=10,AND(K14>=6,K67>=1)),K96,0) -> 0 | L179: =IF(OR('Base Numbers'!$C$21,L17>=1,L19>=1,L14>=10,AND(L14>=6,L67>=1)),L96,0) -> 0 | M179: =IF(OR('Base Numbers'!$C$21,M17>=1,M19>=1,M14>=10,AND(M14>=6,M67>=1)),M96,0) -> 0 | N179: =IF(OR('Base Numbers'!$C$21,N17>=1,N19>=1,N14>=10,AND(N14>=6,N67>=1)),N96,0) -> 0 | O179: =IF(OR('Base Numbers'!$C$21,O17>=1,O19>=1,O14>=10,AND(O14>=6,O67>=1)),O96,0) -> 0 | P179: =IF(OR('Base Numbers'!$C$21,P17>=1,P19>=1,P14>=10,AND(P14>=6,P67>=1)),P96,0) -> 0 | Q179: =IF(OR('Base Numbers'!$C$21,Q17>=1,Q19>=1,Q14>=10,AND(Q14>=6,Q67>=1)),Q96,0) -> 0 | R179: =IF(OR('Base Numbers'!$C$21,R17>=1,R19>=1,R14>=10,AND(R14>=6,R67>=1)),R96,0) -> 0 | S179: =IF(OR('Base Numbers'!$C$21,S17>=1,S19>=1,S14>=10,AND(S14>=6,S67>=1)),S96,0) -> 0 | T179: =IF(OR('Base Numbers'!$C$21,T17>=1,T19>=1,T14>=10,AND(T14>=6,T67>=1)),T96,0) -> 0 | U179: =IF(OR('Base Numbers'!$C$21,U17>=1,U19>=1,U14>=10,AND(U14>=6,U67>=1)),U96,0) -> 0 | V179: =IF(OR('Base Numbers'!$C$21,V17>=1,V19>=1,V14>=10,AND(V14>=6,V67>=1)),V96,0) -> 0 | W179: =IF(OR('Base Numbers'!$C$21,W17>=1,W19>=1,W14>=10,AND(W14>=6,W67>=1)),W96,0) -> 0 | X179: =IF(OR('Base Numbers'!$C$21,X17>=1,X19>=1,X14>=10,AND(X14>=6,X67>=1)),X96,0) -> 0 | Z179: add ranged weapons to weapon choice
D180: spirit shroud casts (c) | E180: =IF(OR('Base Numbers'!$C$21,E12>=5,E15>=5,E16>=5,E7>=9,E14>=10,AND(E14>=6,E67>=1)),E120,0) -> 0 | F180: =IF(OR('Base Numbers'!$C$21,F12>=5,F15>=5,F16>=5,F7>=9,F14>=10,AND(F14>=6,F67>=1)),F120,0) -> 0 | G180: =IF(OR('Base Numbers'!$C$21,G12>=5,G15>=5,G16>=5,G7>=9,G14>=10,AND(G14>=6,G67>=1)),G120,0) -> 0 | H180: =IF(OR('Base Numbers'!$C$21,H12>=5,H15>=5,H16>=5,H7>=9,H14>=10,AND(H14>=6,H67>=1)),H120,0) -> 0 | I180: =IF(OR('Base Numbers'!$C$21,I12>=5,I15>=5,I16>=5,I7>=9,I14>=10,AND(I14>=6,I67>=1)),I120,0) -> 0 | J180: =IF(OR('Base Numbers'!$C$21,J12>=5,J15>=5,J16>=5,J7>=9,J14>=10,AND(J14>=6,J67>=1)),J120,0) -> 0 | K180: =IF(OR('Base Numbers'!$C$21,K12>=5,K15>=5,K16>=5,K7>=9,K14>=10,AND(K14>=6,K67>=1)),K120,0) -> 0 | L180: =IF(OR('Base Numbers'!$C$21,L12>=5,L15>=5,L16>=5,L7>=9,L14>=10,AND(L14>=6,L67>=1)),L120,0) -> 0 | M180: =IF(OR('Base Numbers'!$C$21,M12>=5,M15>=5,M16>=5,M7>=9,M14>=10,AND(M14>=6,M67>=1)),M120,0) -> 0 | N180: =IF(OR('Base Numbers'!$C$21,N12>=5,N15>=5,N16>=5,N7>=9,N14>=10,AND(N14>=6,N67>=1)),N120,0) -> 0 | O180: =IF(OR('Base Numbers'!$C$21,O12>=5,O15>=5,O16>=5,O7>=9,O14>=10,AND(O14>=6,O67>=1)),O120,0) -> 0 | P180: =IF(OR('Base Numbers'!$C$21,P12>=5,P15>=5,P16>=5,P7>=9,P14>=10,AND(P14>=6,P67>=1)),P120,0) -> 0 | Q180: =IF(OR('Base Numbers'!$C$21,Q12>=5,Q15>=5,Q16>=5,Q7>=9,Q14>=10,AND(Q14>=6,Q67>=1)),Q120,0) -> 0 | R180: =IF(OR('Base Numbers'!$C$21,R12>=5,R15>=5,R16>=5,R7>=9,R14>=10,AND(R14>=6,R67>=1)),R120,0) -> 0 | S180: =IF(OR('Base Numbers'!$C$21,S12>=5,S15>=5,S16>=5,S7>=9,S14>=10,AND(S14>=6,S67>=1)),S120,0) -> 0 | T180: =IF(OR('Base Numbers'!$C$21,T12>=5,T15>=5,T16>=5,T7>=9,T14>=10,AND(T14>=6,T67>=1)),T120,0) -> 0 | U180: =IF(OR('Base Numbers'!$C$21,U12>=5,U15>=5,U16>=5,U7>=9,U14>=10,AND(U14>=6,U67>=1)),U120,0) -> 0 | V180: =IF(OR('Base Numbers'!$C$21,V12>=5,V15>=5,V16>=5,V7>=9,V14>=10,AND(V14>=6,V67>=1)),V120,0) -> 0 | W180: =IF(OR('Base Numbers'!$C$21,W12>=5,W15>=5,W16>=5,W7>=9,W14>=10,AND(W14>=6,W67>=1)),W120,0) -> 0 | X180: =IF(OR('Base Numbers'!$C$21,X12>=5,X15>=5,X16>=5,X7>=9,X14>=10,AND(X14>=6,X67>=1)),X120,0) -> 0 | Z180: Summons?
D181: steel wind strike | E181: =MIN('Base Numbers'!$G$21,IF(OR('Base Numbers'!$C$21,E15>=9,OR(E9>=17,E14>=10)),E137,0)) -> 0 | F181: =MIN('Base Numbers'!$G$21,IF(OR('Base Numbers'!$C$21,F15>=9,OR(F9>=17,F14>=10)),F137,0)) -> 0 | G181: =MIN('Base Numbers'!$G$21,IF(OR('Base Numbers'!$C$21,G15>=9,OR(G9>=17,G14>=10)),G137,0)) -> 0 | H181: =MIN('Base Numbers'!$G$21,IF(OR('Base Numbers'!$C$21,H15>=9,OR(H9>=17,H14>=10)),H137,0)) -> 0 | I181: =MIN('Base Numbers'!$G$21,IF(OR('Base Numbers'!$C$21,I15>=9,OR(I9>=17,I14>=10)),I137,0)) -> 0 | J181: =MIN('Base Numbers'!$G$21,IF(OR('Base Numbers'!$C$21,J15>=9,OR(J9>=17,J14>=10)),J137,0)) -> 0 | K181: =MIN('Base Numbers'!$G$21,IF(OR('Base Numbers'!$C$21,K15>=9,OR(K9>=17,K14>=10)),K137,0)) -> 0 | L181: =MIN('Base Numbers'!$G$21,IF(OR('Base Numbers'!$C$21,L15>=9,OR(L9>=17,L14>=10)),L137,0)) -> 0 | M181: =MIN('Base Numbers'!$G$21,IF(OR('Base Numbers'!$C$21,M15>=9,OR(M9>=17,M14>=10)),M137,0)) -> 0 | N181: =MIN('Base Numbers'!$G$21,IF(OR('Base Numbers'!$C$21,N15>=9,OR(N9>=17,N14>=10)),N137,0)) -> 0 | O181: =MIN('Base Numbers'!$G$21,IF(OR('Base Numbers'!$C$21,O15>=9,OR(O9>=17,O14>=10)),O137,0)) -> 0 | P181: =MIN('Base Numbers'!$G$21,IF(OR('Base Numbers'!$C$21,P15>=9,OR(P9>=17,P14>=10)),P137,0)) -> 0 | Q181: =MIN('Base Numbers'!$G$21,IF(OR('Base Numbers'!$C$21,Q15>=9,OR(Q9>=17,Q14>=10)),Q137,0)) -> 0 | R181: =MIN('Base Numbers'!$G$21,IF(OR('Base Numbers'!$C$21,R15>=9,OR(R9>=17,R14>=10)),R137,0)) -> 0 | S181: =MIN('Base Numbers'!$G$21,IF(OR('Base Numbers'!$C$21,S15>=9,OR(S9>=17,S14>=10)),S137,0)) -> 0 | T181: =MIN('Base Numbers'!$G$21,IF(OR('Base Numbers'!$C$21,T15>=9,OR(T9>=17,T14>=10)),T137,0)) -> 0 | U181: =MIN('Base Numbers'!$G$21,IF(OR('Base Numbers'!$C$21,U15>=9,OR(U9>=17,U14>=10)),U137,0)) -> 0 | V181: =MIN('Base Numbers'!$G$21,IF(OR('Base Numbers'!$C$21,V15>=9,OR(V9>=17,V14>=10)),V137,0)) -> 0 | W181: =MIN('Base Numbers'!$G$21,IF(OR('Base Numbers'!$C$21,W15>=9,OR(W9>=17,W14>=10)),W137,0)) -> 0 | X181: =MIN('Base Numbers'!$G$21,IF(OR('Base Numbers'!$C$21,X15>=9,OR(X9>=17,X14>=10)),X137,0)) -> 0 | Z181: monk unarmed fighting style (d8)
D182: destructive wave : AE | E182: =IF(OR('Base Numbers'!$C$21,E7>=17,E14>=10,AND(E16>=9,E88>=1)),E134,0) -> 0 | F182: =IF(OR('Base Numbers'!$C$21,F7>=17,F14>=10,AND(F16>=9,F88>=1)),F134,0) -> 0 | G182: =IF(OR('Base Numbers'!$C$21,G7>=17,G14>=10,AND(G16>=9,G88>=1)),G134,0) -> 0 | H182: =IF(OR('Base Numbers'!$C$21,H7>=17,H14>=10,AND(H16>=9,H88>=1)),H134,0) -> 0 | I182: =IF(OR('Base Numbers'!$C$21,I7>=17,I14>=10,AND(I16>=9,I88>=1)),I134,0) -> 0 | J182: =IF(OR('Base Numbers'!$C$21,J7>=17,J14>=10,AND(J16>=9,J88>=1)),J134,0) -> 0 | K182: =IF(OR('Base Numbers'!$C$21,K7>=17,K14>=10,AND(K16>=9,K88>=1)),K134,0) -> 0 | L182: =IF(OR('Base Numbers'!$C$21,L7>=17,L14>=10,AND(L16>=9,L88>=1)),L134,0) -> 0 | M182: =IF(OR('Base Numbers'!$C$21,M7>=17,M14>=10,AND(M16>=9,M88>=1)),M134,0) -> 2 | N182: =IF(OR('Base Numbers'!$C$21,N7>=17,N14>=10,AND(N16>=9,N88>=1)),N134,0) -> 2 | O182: =IF(OR('Base Numbers'!$C$21,O7>=17,O14>=10,AND(O16>=9,O88>=1)),O134,0) -> 2 | P182: =IF(OR('Base Numbers'!$C$21,P7>=17,P14>=10,AND(P16>=9,P88>=1)),P134,0) -> 3 | Q182: =IF(OR('Base Numbers'!$C$21,Q7>=17,Q14>=10,AND(Q16>=9,Q88>=1)),Q134,0) -> 3 | R182: =IF(OR('Base Numbers'!$C$21,R7>=17,R14>=10,AND(R16>=9,R88>=1)),R134,0) -> 3 | S182: =IF(OR('Base Numbers'!$C$21,S7>=17,S14>=10,AND(S16>=9,S88>=1)),S134,0) -> 3 | T182: =IF(OR('Base Numbers'!$C$21,T7>=17,T14>=10,AND(T16>=9,T88>=1)),T134,0) -> 3 | U182: =IF(OR('Base Numbers'!$C$21,U7>=17,U14>=10,AND(U16>=9,U88>=1)),U134,0) -> 3 | V182: =IF(OR('Base Numbers'!$C$21,V7>=17,V14>=10,AND(V16>=9,V88>=1)),V134,0) -> 3 | W182: =IF(OR('Base Numbers'!$C$21,W7>=17,W14>=10,AND(W16>=9,W88>=1)),W134,0) -> 3 | X182: =IF(OR('Base Numbers'!$C$21,X7>=17,X14>=10,AND(X16>=9,X88>=1)),X134,0) -> 3 | Z182: assassination round with cantrips / EB
D183: guardian of nature (bonus action) (c) | E183: =IF(OR('Base Numbers'!$C$21,E17>=7,OR(E9>=13,E14>=10)),E126,0) -> 0 | F183: =IF(OR('Base Numbers'!$C$21,F17>=7,OR(F9>=13,F14>=10)),F126,0) -> 0 | G183: =IF(OR('Base Numbers'!$C$21,G17>=7,OR(G9>=13,G14>=10)),G126,0) -> 0 | H183: =IF(OR('Base Numbers'!$C$21,H17>=7,OR(H9>=13,H14>=10)),H126,0) -> 0 | I183: =IF(OR('Base Numbers'!$C$21,I17>=7,OR(I9>=13,I14>=10)),I126,0) -> 0 | J183: =IF(OR('Base Numbers'!$C$21,J17>=7,OR(J9>=13,J14>=10)),J126,0) -> 0 | K183: =IF(OR('Base Numbers'!$C$21,K17>=7,OR(K9>=13,K14>=10)),K126,0) -> 0 | L183: =IF(OR('Base Numbers'!$C$21,L17>=7,OR(L9>=13,L14>=10)),L126,0) -> 0 | M183: =IF(OR('Base Numbers'!$C$21,M17>=7,OR(M9>=13,M14>=10)),M126,0) -> 0 | N183: =IF(OR('Base Numbers'!$C$21,N17>=7,OR(N9>=13,N14>=10)),N126,0) -> 0 | O183: =IF(OR('Base Numbers'!$C$21,O17>=7,OR(O9>=13,O14>=10)),O126,0) -> 0 | P183: =IF(OR('Base Numbers'!$C$21,P17>=7,OR(P9>=13,P14>=10)),P126,0) -> 0 | Q183: =IF(OR('Base Numbers'!$C$21,Q17>=7,OR(Q9>=13,Q14>=10)),Q126,0) -> 0 | R183: =IF(OR('Base Numbers'!$C$21,R17>=7,OR(R9>=13,R14>=10)),R126,0) -> 0 | S183: =IF(OR('Base Numbers'!$C$21,S17>=7,OR(S9>=13,S14>=10)),S126,0) -> 0 | T183: =IF(OR('Base Numbers'!$C$21,T17>=7,OR(T9>=13,T14>=10)),T126,0) -> 0 | U183: =IF(OR('Base Numbers'!$C$21,U17>=7,OR(U9>=13,U14>=10)),U126,0) -> 0 | V183: =IF(OR('Base Numbers'!$C$21,V17>=7,OR(V9>=13,V14>=10)),V126,0) -> 0 | W183: =IF(OR('Base Numbers'!$C$21,W17>=7,OR(W9>=13,W14>=10)),W126,0) -> 0 | X183: =IF(OR('Base Numbers'!$C$21,X17>=7,OR(X9>=13,X14>=10)),X126,0) -> 0 | Z183: warlock CHA bonus on two handed weapons on at L3
D184: swift quiver (bonus action, c) | E184: =IF(OR('Base Numbers'!$C$21,E9>=17,E14>=10),E139,0) -> 0 | F184: =IF(OR('Base Numbers'!$C$21,F9>=17,F14>=10),F139,0) -> 0 | G184: =IF(OR('Base Numbers'!$C$21,G9>=17,G14>=10),G139,0) -> 0 | H184: =IF(OR('Base Numbers'!$C$21,H9>=17,H14>=10),H139,0) -> 0 | I184: =IF(OR('Base Numbers'!$C$21,I9>=17,I14>=10),I139,0) -> 0 | J184: =IF(OR('Base Numbers'!$C$21,J9>=17,J14>=10),J139,0) -> 0 | K184: =IF(OR('Base Numbers'!$C$21,K9>=17,K14>=10),K139,0) -> 0 | L184: =IF(OR('Base Numbers'!$C$21,L9>=17,L14>=10),L139,0) -> 0 | M184: =IF(OR('Base Numbers'!$C$21,M9>=17,M14>=10),M139,0) -> 0 | N184: =IF(OR('Base Numbers'!$C$21,N9>=17,N14>=10),N139,0) -> 0 | O184: =IF(OR('Base Numbers'!$C$21,O9>=17,O14>=10),O139,0) -> 0 | P184: =IF(OR('Base Numbers'!$C$21,P9>=17,P14>=10),P139,0) -> 0 | Q184: =IF(OR('Base Numbers'!$C$21,Q9>=17,Q14>=10),Q139,0) -> 0 | R184: =IF(OR('Base Numbers'!$C$21,R9>=17,R14>=10),R139,0) -> 0 | S184: =IF(OR('Base Numbers'!$C$21,S9>=17,S14>=10),S139,0) -> 0 | T184: =IF(OR('Base Numbers'!$C$21,T9>=17,T14>=10),T139,0) -> 0 | U184: =IF(OR('Base Numbers'!$C$21,U9>=17,U14>=10),U139,0) -> 0 | V184: =IF(OR('Base Numbers'!$C$21,V9>=17,V14>=10),V139,0) -> 0 | W184: =IF(OR('Base Numbers'!$C$21,W9>=17,W14>=10),W139,0) -> 0 | X184: =IF(OR('Base Numbers'!$C$21,X9>=17,X14>=10),X139,0) -> 0 | Z184: kobold pack tactics
D185: call lightning (c, AE) | E185: =MIN('Base Numbers'!$G$21,IF(OR('Base Numbers'!$C$21,E17>=5,E14>=10,AND(E14>=6,E67>=1),AND(E16>=5,E88>=1)),E114,0)) -> 0 | F185: =MIN('Base Numbers'!$G$21,IF(OR('Base Numbers'!$C$21,F17>=5,F14>=10,AND(F14>=6,F67>=1),AND(F16>=5,F88>=1)),F114,0)) -> 0 | G185: =MIN('Base Numbers'!$G$21,IF(OR('Base Numbers'!$C$21,G17>=5,G14>=10,AND(G14>=6,G67>=1),AND(G16>=5,G88>=1)),G114,0)) -> 0 | H185: =MIN('Base Numbers'!$G$21,IF(OR('Base Numbers'!$C$21,H17>=5,H14>=10,AND(H14>=6,H67>=1),AND(H16>=5,H88>=1)),H114,0)) -> 0 | I185: =MIN('Base Numbers'!$G$21,IF(OR('Base Numbers'!$C$21,I17>=5,I14>=10,AND(I14>=6,I67>=1),AND(I16>=5,I88>=1)),I114,0)) -> 2 | J185: =MIN('Base Numbers'!$G$21,IF(OR('Base Numbers'!$C$21,J17>=5,J14>=10,AND(J14>=6,J67>=1),AND(J16>=5,J88>=1)),J114,0)) -> 2 | K185: =MIN('Base Numbers'!$G$21,IF(OR('Base Numbers'!$C$21,K17>=5,K14>=10,AND(K14>=6,K67>=1),AND(K16>=5,K88>=1)),K114,0)) -> 2 | L185: =MIN('Base Numbers'!$G$21,IF(OR('Base Numbers'!$C$21,L17>=5,L14>=10,AND(L14>=6,L67>=1),AND(L16>=5,L88>=1)),L114,0)) -> 2 | M185: =MIN('Base Numbers'!$G$21,IF(OR('Base Numbers'!$C$21,M17>=5,M14>=10,AND(M14>=6,M67>=1),AND(M16>=5,M88>=1)),M114,0)) -> 2 | N185: =MIN('Base Numbers'!$G$21,IF(OR('Base Numbers'!$C$21,N17>=5,N14>=10,AND(N14>=6,N67>=1),AND(N16>=5,N88>=1)),N114,0)) -> 2 | O185: =MIN('Base Numbers'!$G$21,IF(OR('Base Numbers'!$C$21,O17>=5,O14>=10,AND(O14>=6,O67>=1),AND(O16>=5,O88>=1)),O114,0)) -> 2 | P185: =MIN('Base Numbers'!$G$21,IF(OR('Base Numbers'!$C$21,P17>=5,P14>=10,AND(P14>=6,P67>=1),AND(P16>=5,P88>=1)),P114,0)) -> 2 | Q185: =MIN('Base Numbers'!$G$21,IF(OR('Base Numbers'!$C$21,Q17>=5,Q14>=10,AND(Q14>=6,Q67>=1),AND(Q16>=5,Q88>=1)),Q114,0)) -> 2 | R185: =MIN('Base Numbers'!$G$21,IF(OR('Base Numbers'!$C$21,R17>=5,R14>=10,AND(R14>=6,R67>=1),AND(R16>=5,R88>=1)),R114,0)) -> 2 | S185: =MIN('Base Numbers'!$G$21,IF(OR('Base Numbers'!$C$21,S17>=5,S14>=10,AND(S14>=6,S67>=1),AND(S16>=5,S88>=1)),S114,0)) -> 2 | T185: =MIN('Base Numbers'!$G$21,IF(OR('Base Numbers'!$C$21,T17>=5,T14>=10,AND(T14>=6,T67>=1),AND(T16>=5,T88>=1)),T114,0)) -> 2 | U185: =MIN('Base Numbers'!$G$21,IF(OR('Base Numbers'!$C$21,U17>=5,U14>=10,AND(U14>=6,U67>=1),AND(U16>=5,U88>=1)),U114,0)) -> 2 | V185: =MIN('Base Numbers'!$G$21,IF(OR('Base Numbers'!$C$21,V17>=5,V14>=10,AND(V14>=6,V67>=1),AND(V16>=5,V88>=1)),V114,0)) -> 2 | W185: =MIN('Base Numbers'!$G$21,IF(OR('Base Numbers'!$C$21,W17>=5,W14>=10,AND(W14>=6,W67>=1),AND(W16>=5,W88>=1)),W114,0)) -> 2 | X185: =MIN('Base Numbers'!$G$21,IF(OR('Base Numbers'!$C$21,X17>=5,X14>=10,AND(X14>=6,X67>=1),AND(X16>=5,X88>=1)),X114,0)) -> 2 | Z185: Crusher feat
D186: moonbeam (c, AE) | E186: =IF(OR('Base Numbers'!$C$21,E17>=3,E14>=10,AND(E14>=6,E67>=1)),E106,0) -> 0 | F186: =IF(OR('Base Numbers'!$C$21,F17>=3,F14>=10,AND(F14>=6,F67>=1)),F106,0) -> 0 | G186: =IF(OR('Base Numbers'!$C$21,G17>=3,G14>=10,AND(G14>=6,G67>=1)),G106,0) -> 0 | H186: =IF(OR('Base Numbers'!$C$21,H17>=3,H14>=10,AND(H14>=6,H67>=1)),H106,0) -> 0 | I186: =IF(OR('Base Numbers'!$C$21,I17>=3,I14>=10,AND(I14>=6,I67>=1)),I106,0) -> 0 | J186: =IF(OR('Base Numbers'!$C$21,J17>=3,J14>=10,AND(J14>=6,J67>=1)),J106,0) -> 0 | K186: =IF(OR('Base Numbers'!$C$21,K17>=3,K14>=10,AND(K14>=6,K67>=1)),K106,0) -> 0 | L186: =IF(OR('Base Numbers'!$C$21,L17>=3,L14>=10,AND(L14>=6,L67>=1)),L106,0) -> 0 | M186: =IF(OR('Base Numbers'!$C$21,M17>=3,M14>=10,AND(M14>=6,M67>=1)),M106,0) -> 0 | N186: =IF(OR('Base Numbers'!$C$21,N17>=3,N14>=10,AND(N14>=6,N67>=1)),N106,0) -> 0 | O186: =IF(OR('Base Numbers'!$C$21,O17>=3,O14>=10,AND(O14>=6,O67>=1)),O106,0) -> 0 | P186: =IF(OR('Base Numbers'!$C$21,P17>=3,P14>=10,AND(P14>=6,P67>=1)),P106,0) -> 0 | Q186: =IF(OR('Base Numbers'!$C$21,Q17>=3,Q14>=10,AND(Q14>=6,Q67>=1)),Q106,0) -> 0 | R186: =IF(OR('Base Numbers'!$C$21,R17>=3,R14>=10,AND(R14>=6,R67>=1)),R106,0) -> 0 | S186: =IF(OR('Base Numbers'!$C$21,S17>=3,S14>=10,AND(S14>=6,S67>=1)),S106,0) -> 0 | T186: =IF(OR('Base Numbers'!$C$21,T17>=3,T14>=10,AND(T14>=6,T67>=1)),T106,0) -> 0 | U186: =IF(OR('Base Numbers'!$C$21,U17>=3,U14>=10,AND(U14>=6,U67>=1)),U106,0) -> 0 | V186: =IF(OR('Base Numbers'!$C$21,V17>=3,V14>=10,AND(V14>=6,V67>=1)),V106,0) -> 0 | W186: =IF(OR('Base Numbers'!$C$21,W17>=3,W14>=10,AND(W14>=6,W67>=1)),W106,0) -> 0 | X186: =IF(OR('Base Numbers'!$C$21,X17>=3,X14>=10,AND(X14>=6,X67>=1)),X106,0) -> 0 | Z186: fog cloud and pyrotecnics
D187: crown of stars | E187: =IF(OR('Base Numbers'!$C$21,E15>=13,OR(E13>=13,OR(E12>=13,E14>=14))),E143,0) -> 0 | F187: =IF(OR('Base Numbers'!$C$21,F15>=13,OR(F13>=13,OR(F12>=13,F14>=14))),F143,0) -> 0 | G187: =IF(OR('Base Numbers'!$C$21,G15>=13,OR(G13>=13,OR(G12>=13,G14>=14))),G143,0) -> 0 | H187: =IF(OR('Base Numbers'!$C$21,H15>=13,OR(H13>=13,OR(H12>=13,H14>=14))),H143,0) -> 0 | I187: =IF(OR('Base Numbers'!$C$21,I15>=13,OR(I13>=13,OR(I12>=13,I14>=14))),I143,0) -> 0 | J187: =IF(OR('Base Numbers'!$C$21,J15>=13,OR(J13>=13,OR(J12>=13,J14>=14))),J143,0) -> 0 | K187: =IF(OR('Base Numbers'!$C$21,K15>=13,OR(K13>=13,OR(K12>=13,K14>=14))),K143,0) -> 0 | L187: =IF(OR('Base Numbers'!$C$21,L15>=13,OR(L13>=13,OR(L12>=13,L14>=14))),L143,0) -> 0 | M187: =IF(OR('Base Numbers'!$C$21,M15>=13,OR(M13>=13,OR(M12>=13,M14>=14))),M143,0) -> 0 | N187: =IF(OR('Base Numbers'!$C$21,N15>=13,OR(N13>=13,OR(N12>=13,N14>=14))),N143,0) -> 0 | O187: =IF(OR('Base Numbers'!$C$21,O15>=13,OR(O13>=13,OR(O12>=13,O14>=14))),O143,0) -> 0 | P187: =IF(OR('Base Numbers'!$C$21,P15>=13,OR(P13>=13,OR(P12>=13,P14>=14))),P143,0) -> 0 | Q187: =IF(OR('Base Numbers'!$C$21,Q15>=13,OR(Q13>=13,OR(Q12>=13,Q14>=14))),Q143,0) -> 0 | R187: =IF(OR('Base Numbers'!$C$21,R15>=13,OR(R13>=13,OR(R12>=13,R14>=14))),R143,0) -> 0 | S187: =IF(OR('Base Numbers'!$C$21,S15>=13,OR(S13>=13,OR(S12>=13,S14>=14))),S143,0) -> 0 | T187: =IF(OR('Base Numbers'!$C$21,T15>=13,OR(T13>=13,OR(T12>=13,T14>=14))),T143,0) -> 0 | U187: =IF(OR('Base Numbers'!$C$21,U15>=13,OR(U13>=13,OR(U12>=13,U14>=14))),U143,0) -> 0 | V187: =IF(OR('Base Numbers'!$C$21,V15>=13,OR(V13>=13,OR(V12>=13,V14>=14))),V143,0) -> 0 | W187: =IF(OR('Base Numbers'!$C$21,W15>=13,OR(W13>=13,OR(W12>=13,W14>=14))),W143,0) -> 0 | X187: =IF(OR('Base Numbers'!$C$21,X15>=13,OR(X13>=13,OR(X12>=13,X14>=14))),X143,0) -> 0 | Z187: bard whipsers damage
D188: holy weapon casts (bonus action) (c) | E188: =IF(OR('Base Numbers'!$C$21,E14>=9,E16>=9,E7>=17,AND(E44,E13>=9)),E136,0) -> 0 | F188: =IF(OR('Base Numbers'!$C$21,F14>=9,F16>=9,F7>=17,AND(F44,F13>=9)),F136,0) -> 0 | G188: =IF(OR('Base Numbers'!$C$21,G14>=9,G16>=9,G7>=17,AND(G44,G13>=9)),G136,0) -> 0 | H188: =IF(OR('Base Numbers'!$C$21,H14>=9,H16>=9,H7>=17,AND(H44,H13>=9)),H136,0) -> 0 | I188: =IF(OR('Base Numbers'!$C$21,I14>=9,I16>=9,I7>=17,AND(I44,I13>=9)),I136,0) -> 0 | J188: =IF(OR('Base Numbers'!$C$21,J14>=9,J16>=9,J7>=17,AND(J44,J13>=9)),J136,0) -> 0 | K188: =IF(OR('Base Numbers'!$C$21,K14>=9,K16>=9,K7>=17,AND(K44,K13>=9)),K136,0) -> 0 | L188: =IF(OR('Base Numbers'!$C$21,L14>=9,L16>=9,L7>=17,AND(L44,L13>=9)),L136,0) -> 0 | M188: =IF(OR('Base Numbers'!$C$21,M14>=9,M16>=9,M7>=17,AND(M44,M13>=9)),M136,0) -> 0 | N188: =IF(OR('Base Numbers'!$C$21,N14>=9,N16>=9,N7>=17,AND(N44,N13>=9)),N136,0) -> 0 | O188: =IF(OR('Base Numbers'!$C$21,O14>=9,O16>=9,O7>=17,AND(O44,O13>=9)),O136,0) -> 0 | P188: =IF(OR('Base Numbers'!$C$21,P14>=9,P16>=9,P7>=17,AND(P44,P13>=9)),P136,0) -> 0 | Q188: =IF(OR('Base Numbers'!$C$21,Q14>=9,Q16>=9,Q7>=17,AND(Q44,Q13>=9)),Q136,0) -> 0 | R188: =IF(OR('Base Numbers'!$C$21,R14>=9,R16>=9,R7>=17,AND(R44,R13>=9)),R136,0) -> 0 | S188: =IF(OR('Base Numbers'!$C$21,S14>=9,S16>=9,S7>=17,AND(S44,S13>=9)),S136,0) -> 0 | T188: =IF(OR('Base Numbers'!$C$21,T14>=9,T16>=9,T7>=17,AND(T44,T13>=9)),T136,0) -> 0 | U188: =IF(OR('Base Numbers'!$C$21,U14>=9,U16>=9,U7>=17,AND(U44,U13>=9)),U136,0) -> 0 | V188: =IF(OR('Base Numbers'!$C$21,V14>=9,V16>=9,V7>=17,AND(V44,V13>=9)),V136,0) -> 0 | W188: =IF(OR('Base Numbers'!$C$21,W14>=9,W16>=9,W7>=17,AND(W44,W13>=9)),W136,0) -> 0 | X188: =IF(OR('Base Numbers'!$C$21,X14>=9,X16>=9,X7>=17,AND(X44,X13>=9)),X136,0) -> 0 | Z188: fog cloud and pyrotecnics
D189: thunderous smit (bonus action, c) | E189: =IF(OR('Base Numbers'!$C$21,E7>=17,E14>=10,AND(E16>=1,E88>=1),AND(E14>=6,E67>=1)),E101,0) -> 0 | F189: =IF(OR('Base Numbers'!$C$21,F7>=17,F14>=10,AND(F16>=1,F88>=1),AND(F14>=6,F67>=1)),F101,0) -> 0 | G189: =IF(OR('Base Numbers'!$C$21,G7>=17,G14>=10,AND(G16>=1,G88>=1),AND(G14>=6,G67>=1)),G101,0) -> 0 | H189: =IF(OR('Base Numbers'!$C$21,H7>=17,H14>=10,AND(H16>=1,H88>=1),AND(H14>=6,H67>=1)),H101,0) -> 0 | I189: =IF(OR('Base Numbers'!$C$21,I7>=17,I14>=10,AND(I16>=1,I88>=1),AND(I14>=6,I67>=1)),I101,0) -> 0 | J189: =IF(OR('Base Numbers'!$C$21,J7>=17,J14>=10,AND(J16>=1,J88>=1),AND(J14>=6,J67>=1)),J101,0) -> 0 | K189: =IF(OR('Base Numbers'!$C$21,K7>=17,K14>=10,AND(K16>=1,K88>=1),AND(K14>=6,K67>=1)),K101,0) -> 0 | L189: =IF(OR('Base Numbers'!$C$21,L7>=17,L14>=10,AND(L16>=1,L88>=1),AND(L14>=6,L67>=1)),L101,0) -> 0 | M189: =IF(OR('Base Numbers'!$C$21,M7>=17,M14>=10,AND(M16>=1,M88>=1),AND(M14>=6,M67>=1)),M101,0) -> 0 | N189: =IF(OR('Base Numbers'!$C$21,N7>=17,N14>=10,AND(N16>=1,N88>=1),AND(N14>=6,N67>=1)),N101,0) -> 0 | O189: =IF(OR('Base Numbers'!$C$21,O7>=17,O14>=10,AND(O16>=1,O88>=1),AND(O14>=6,O67>=1)),O101,0) -> 0 | P189: =IF(OR('Base Numbers'!$C$21,P7>=17,P14>=10,AND(P16>=1,P88>=1),AND(P14>=6,P67>=1)),P101,0) -> 0 | Q189: =IF(OR('Base Numbers'!$C$21,Q7>=17,Q14>=10,AND(Q16>=1,Q88>=1),AND(Q14>=6,Q67>=1)),Q101,0) -> 0 | R189: =IF(OR('Base Numbers'!$C$21,R7>=17,R14>=10,AND(R16>=1,R88>=1),AND(R14>=6,R67>=1)),R101,0) -> 0 | S189: =IF(OR('Base Numbers'!$C$21,S7>=17,S14>=10,AND(S16>=1,S88>=1),AND(S14>=6,S67>=1)),S101,0) -> 0 | T189: =IF(OR('Base Numbers'!$C$21,T7>=17,T14>=10,AND(T16>=1,T88>=1),AND(T14>=6,T67>=1)),T101,0) -> 0 | U189: =IF(OR('Base Numbers'!$C$21,U7>=17,U14>=10,AND(U16>=1,U88>=1),AND(U14>=6,U67>=1)),U101,0) -> 0 | V189: =IF(OR('Base Numbers'!$C$21,V7>=17,V14>=10,AND(V16>=1,V88>=1),AND(V14>=6,V67>=1)),V101,0) -> 0 | W189: =IF(OR('Base Numbers'!$C$21,W7>=17,W14>=10,AND(W16>=1,W88>=1),AND(W14>=6,W67>=1)),W101,0) -> 0 | X189: =IF(OR('Base Numbers'!$C$21,X7>=17,X14>=10,AND(X16>=1,X88>=1),AND(X14>=6,X67>=1)),X101,0) -> 0 | Z189: variable monster saves vs. abilities
D190: hold person casts (conq, veng) (c) | E190: =IF(OR('Base Numbers'!$C$21,E14>=3,E17>=3,E15>=3,E16>=3,E13>=3,AND(E7>=5,OR(E40,E42))),E105,0) -> 0 | F190: =IF(OR('Base Numbers'!$C$21,F14>=3,F17>=3,F15>=3,F16>=3,F13>=3,AND(F7>=5,OR(F40,F42))),F105,0) -> 0 | G190: =IF(OR('Base Numbers'!$C$21,G14>=3,G17>=3,G15>=3,G16>=3,G13>=3,AND(G7>=5,OR(G40,G42))),G105,0) -> 0 | H190: =IF(OR('Base Numbers'!$C$21,H14>=3,H17>=3,H15>=3,H16>=3,H13>=3,AND(H7>=5,OR(H40,H42))),H105,0) -> 0 | I190: =IF(OR('Base Numbers'!$C$21,I14>=3,I17>=3,I15>=3,I16>=3,I13>=3,AND(I7>=5,OR(I40,I42))),I105,0) -> 0 | J190: =IF(OR('Base Numbers'!$C$21,J14>=3,J17>=3,J15>=3,J16>=3,J13>=3,AND(J7>=5,OR(J40,J42))),J105,0) -> 0 | K190: =IF(OR('Base Numbers'!$C$21,K14>=3,K17>=3,K15>=3,K16>=3,K13>=3,AND(K7>=5,OR(K40,K42))),K105,0) -> 0 | L190: =IF(OR('Base Numbers'!$C$21,L14>=3,L17>=3,L15>=3,L16>=3,L13>=3,AND(L7>=5,OR(L40,L42))),L105,0) -> 0 | M190: =IF(OR('Base Numbers'!$C$21,M14>=3,M17>=3,M15>=3,M16>=3,M13>=3,AND(M7>=5,OR(M40,M42))),M105,0) -> 0 | N190: =IF(OR('Base Numbers'!$C$21,N14>=3,N17>=3,N15>=3,N16>=3,N13>=3,AND(N7>=5,OR(N40,N42))),N105,0) -> 0 | O190: =IF(OR('Base Numbers'!$C$21,O14>=3,O17>=3,O15>=3,O16>=3,O13>=3,AND(O7>=5,OR(O40,O42))),O105,0) -> 0 | P190: =IF(OR('Base Numbers'!$C$21,P14>=3,P17>=3,P15>=3,P16>=3,P13>=3,AND(P7>=5,OR(P40,P42))),P105,0) -> 0 | Q190: =IF(OR('Base Numbers'!$C$21,Q14>=3,Q17>=3,Q15>=3,Q16>=3,Q13>=3,AND(Q7>=5,OR(Q40,Q42))),Q105,0) -> 0 | R190: =IF(OR('Base Numbers'!$C$21,R14>=3,R17>=3,R15>=3,R16>=3,R13>=3,AND(R7>=5,OR(R40,R42))),R105,0) -> 0 | S190: =IF(OR('Base Numbers'!$C$21,S14>=3,S17>=3,S15>=3,S16>=3,S13>=3,AND(S7>=5,OR(S40,S42))),S105,0) -> 0 | T190: =IF(OR('Base Numbers'!$C$21,T14>=3,T17>=3,T15>=3,T16>=3,T13>=3,AND(T7>=5,OR(T40,T42))),T105,0) -> 0 | U190: =IF(OR('Base Numbers'!$C$21,U14>=3,U17>=3,U15>=3,U16>=3,U13>=3,AND(U7>=5,OR(U40,U42))),U105,0) -> 0 | V190: =IF(OR('Base Numbers'!$C$21,V14>=3,V17>=3,V15>=3,V16>=3,V13>=3,AND(V7>=5,OR(V40,V42))),V105,0) -> 0 | W190: =IF(OR('Base Numbers'!$C$21,W14>=3,W17>=3,W15>=3,W16>=3,W13>=3,AND(W7>=5,OR(W40,W42))),W105,0) -> 0 | X190: =IF(OR('Base Numbers'!$C$21,X14>=3,X17>=3,X15>=3,X16>=3,X13>=3,AND(X7>=5,OR(X40,X42))),X105,0) -> 0 | Z190: wizard bladesinger doesn't actually require one-handed weapon for extra attack
D191: hold monster casts (veng) (c) | E191: =IF(OR('Base Numbers'!$C$21,E15>=9,E14>=9,E12>=9,E13>=9,AND(E7>=5,E40)),E135,0) -> 0 | F191: =IF(OR('Base Numbers'!$C$21,F15>=9,F14>=9,F12>=9,F13>=9,AND(F7>=5,F40)),F135,0) -> 0 | G191: =IF(OR('Base Numbers'!$C$21,G15>=9,G14>=9,G12>=9,G13>=9,AND(G7>=5,G40)),G135,0) -> 0 | H191: =IF(OR('Base Numbers'!$C$21,H15>=9,H14>=9,H12>=9,H13>=9,AND(H7>=5,H40)),H135,0) -> 0 | I191: =IF(OR('Base Numbers'!$C$21,I15>=9,I14>=9,I12>=9,I13>=9,AND(I7>=5,I40)),I135,0) -> 0 | J191: =IF(OR('Base Numbers'!$C$21,J15>=9,J14>=9,J12>=9,J13>=9,AND(J7>=5,J40)),J135,0) -> 0 | K191: =IF(OR('Base Numbers'!$C$21,K15>=9,K14>=9,K12>=9,K13>=9,AND(K7>=5,K40)),K135,0) -> 0 | L191: =IF(OR('Base Numbers'!$C$21,L15>=9,L14>=9,L12>=9,L13>=9,AND(L7>=5,L40)),L135,0) -> 0 | M191: =IF(OR('Base Numbers'!$C$21,M15>=9,M14>=9,M12>=9,M13>=9,AND(M7>=5,M40)),M135,0) -> 0 | N191: =IF(OR('Base Numbers'!$C$21,N15>=9,N14>=9,N12>=9,N13>=9,AND(N7>=5,N40)),N135,0) -> 0 | O191: =IF(OR('Base Numbers'!$C$21,O15>=9,O14>=9,O12>=9,O13>=9,AND(O7>=5,O40)),O135,0) -> 0 | P191: =IF(OR('Base Numbers'!$C$21,P15>=9,P14>=9,P12>=9,P13>=9,AND(P7>=5,P40)),P135,0) -> 0 | Q191: =IF(OR('Base Numbers'!$C$21,Q15>=9,Q14>=9,Q12>=9,Q13>=9,AND(Q7>=5,Q40)),Q135,0) -> 0 | R191: =IF(OR('Base Numbers'!$C$21,R15>=9,R14>=9,R12>=9,R13>=9,AND(R7>=5,R40)),R135,0) -> 0 | S191: =IF(OR('Base Numbers'!$C$21,S15>=9,S14>=9,S12>=9,S13>=9,AND(S7>=5,S40)),S135,0) -> 0 | T191: =IF(OR('Base Numbers'!$C$21,T15>=9,T14>=9,T12>=9,T13>=9,AND(T7>=5,T40)),T135,0) -> 0 | U191: =IF(OR('Base Numbers'!$C$21,U15>=9,U14>=9,U12>=9,U13>=9,AND(U7>=5,U40)),U135,0) -> 0 | V191: =IF(OR('Base Numbers'!$C$21,V15>=9,V14>=9,V12>=9,V13>=9,AND(V7>=5,V40)),V135,0) -> 0 | W191: =IF(OR('Base Numbers'!$C$21,W15>=9,W14>=9,W12>=9,W13>=9,AND(W7>=5,W40)),W135,0) -> 0 | X191: =IF(OR('Base Numbers'!$C$21,X15>=9,X14>=9,X12>=9,X13>=9,AND(X7>=5,X40)),X135,0) -> 0 | Z191: wizard bladesong 14th level dmg bonus only applies to one-handed weapons
D192: shadow of moil (c) | E192: =IF(OR('Base Numbers'!$C$21,E14>=10,E12>=7),E127,0) -> 0 | F192: =IF(OR('Base Numbers'!$C$21,F14>=10,F12>=7),F127,0) -> 0 | G192: =IF(OR('Base Numbers'!$C$21,G14>=10,G12>=7),G127,0) -> 0 | H192: =IF(OR('Base Numbers'!$C$21,H14>=10,H12>=7),H127,0) -> 0 | I192: =IF(OR('Base Numbers'!$C$21,I14>=10,I12>=7),I127,0) -> 0 | J192: =IF(OR('Base Numbers'!$C$21,J14>=10,J12>=7),J127,0) -> 0 | K192: =IF(OR('Base Numbers'!$C$21,K14>=10,K12>=7),K127,0) -> 0 | L192: =IF(OR('Base Numbers'!$C$21,L14>=10,L12>=7),L127,0) -> 0 | M192: =IF(OR('Base Numbers'!$C$21,M14>=10,M12>=7),M127,0) -> 0 | N192: =IF(OR('Base Numbers'!$C$21,N14>=10,N12>=7),N127,0) -> 0 | O192: =IF(OR('Base Numbers'!$C$21,O14>=10,O12>=7),O127,0) -> 0 | P192: =IF(OR('Base Numbers'!$C$21,P14>=10,P12>=7),P127,0) -> 0 | Q192: =IF(OR('Base Numbers'!$C$21,Q14>=10,Q12>=7),Q127,0) -> 0 | R192: =IF(OR('Base Numbers'!$C$21,R14>=10,R12>=7),R127,0) -> 0 | S192: =IF(OR('Base Numbers'!$C$21,S14>=10,S12>=7),S127,0) -> 0 | T192: =IF(OR('Base Numbers'!$C$21,T14>=10,T12>=7),T127,0) -> 0 | U192: =IF(OR('Base Numbers'!$C$21,U14>=10,U12>=7),U127,0) -> 0 | V192: =IF(OR('Base Numbers'!$C$21,V14>=10,V12>=7),V127,0) -> 0 | W192: =IF(OR('Base Numbers'!$C$21,W14>=10,W12>=7),W127,0) -> 0 | X192: =IF(OR('Base Numbers'!$C$21,X14>=10,X12>=7),X127,0) -> 0 | Z192: hunters mark hex
D193: greater invisibility (c) | E193: =IF(OR('Base Numbers'!$C$21,E14>=7,E13>=7,E15>=7,AND(E9>=13,E82>=1),AND(E11>=19,E72>=1),AND(E12>=7,E53)),E125,0) -> 0 | F193: =IF(OR('Base Numbers'!$C$21,F14>=7,F13>=7,F15>=7,AND(F9>=13,F82>=1),AND(F11>=19,F72>=1),AND(F12>=7,F53)),F125,0) -> 0 | G193: =IF(OR('Base Numbers'!$C$21,G14>=7,G13>=7,G15>=7,AND(G9>=13,G82>=1),AND(G11>=19,G72>=1),AND(G12>=7,G53)),G125,0) -> 0 | H193: =IF(OR('Base Numbers'!$C$21,H14>=7,H13>=7,H15>=7,AND(H9>=13,H82>=1),AND(H11>=19,H72>=1),AND(H12>=7,H53)),H125,0) -> 0 | I193: =IF(OR('Base Numbers'!$C$21,I14>=7,I13>=7,I15>=7,AND(I9>=13,I82>=1),AND(I11>=19,I72>=1),AND(I12>=7,I53)),I125,0) -> 0 | J193: =IF(OR('Base Numbers'!$C$21,J14>=7,J13>=7,J15>=7,AND(J9>=13,J82>=1),AND(J11>=19,J72>=1),AND(J12>=7,J53)),J125,0) -> 0 | K193: =IF(OR('Base Numbers'!$C$21,K14>=7,K13>=7,K15>=7,AND(K9>=13,K82>=1),AND(K11>=19,K72>=1),AND(K12>=7,K53)),K125,0) -> 0 | L193: =IF(OR('Base Numbers'!$C$21,L14>=7,L13>=7,L15>=7,AND(L9>=13,L82>=1),AND(L11>=19,L72>=1),AND(L12>=7,L53)),L125,0) -> 0 | M193: =IF(OR('Base Numbers'!$C$21,M14>=7,M13>=7,M15>=7,AND(M9>=13,M82>=1),AND(M11>=19,M72>=1),AND(M12>=7,M53)),M125,0) -> 0 | N193: =IF(OR('Base Numbers'!$C$21,N14>=7,N13>=7,N15>=7,AND(N9>=13,N82>=1),AND(N11>=19,N72>=1),AND(N12>=7,N53)),N125,0) -> 0 | O193: =IF(OR('Base Numbers'!$C$21,O14>=7,O13>=7,O15>=7,AND(O9>=13,O82>=1),AND(O11>=19,O72>=1),AND(O12>=7,O53)),O125,0) -> 0 | P193: =IF(OR('Base Numbers'!$C$21,P14>=7,P13>=7,P15>=7,AND(P9>=13,P82>=1),AND(P11>=19,P72>=1),AND(P12>=7,P53)),P125,0) -> 0 | Q193: =IF(OR('Base Numbers'!$C$21,Q14>=7,Q13>=7,Q15>=7,AND(Q9>=13,Q82>=1),AND(Q11>=19,Q72>=1),AND(Q12>=7,Q53)),Q125,0) -> 0 | R193: =IF(OR('Base Numbers'!$C$21,R14>=7,R13>=7,R15>=7,AND(R9>=13,R82>=1),AND(R11>=19,R72>=1),AND(R12>=7,R53)),R125,0) -> 0 | S193: =IF(OR('Base Numbers'!$C$21,S14>=7,S13>=7,S15>=7,AND(S9>=13,S82>=1),AND(S11>=19,S72>=1),AND(S12>=7,S53)),S125,0) -> 0 | T193: =IF(OR('Base Numbers'!$C$21,T14>=7,T13>=7,T15>=7,AND(T9>=13,T82>=1),AND(T11>=19,T72>=1),AND(T12>=7,T53)),T125,0) -> 0 | U193: =IF(OR('Base Numbers'!$C$21,U14>=7,U13>=7,U15>=7,AND(U9>=13,U82>=1),AND(U11>=19,U72>=1),AND(U12>=7,U53)),U125,0) -> 0 | V193: =IF(OR('Base Numbers'!$C$21,V14>=7,V13>=7,V15>=7,AND(V9>=13,V82>=1),AND(V11>=19,V72>=1),AND(V12>=7,V53)),V125,0) -> 0 | W193: =IF(OR('Base Numbers'!$C$21,W14>=7,W13>=7,W15>=7,AND(W9>=13,W82>=1),AND(W11>=19,W72>=1),AND(W12>=7,W53)),W125,0) -> 0 | X193: =IF(OR('Base Numbers'!$C$21,X14>=7,X13>=7,X15>=7,AND(X9>=13,X82>=1),AND(X11>=19,X72>=1),AND(X12>=7,X53)),X125,0) -> 0 | Z193: spirit guardians
D194: fear casts (conq) (c) | E194: =IF(OR('Base Numbers'!$C$21,E15>=5,E14>=5,E12>=5,E13>=5,E12>=5,AND(E7>=9,E42)),E116,0) -> 0 | F194: =IF(OR('Base Numbers'!$C$21,F15>=5,F14>=5,F12>=5,F13>=5,F12>=5,AND(F7>=9,F42)),F116,0) -> 0 | G194: =IF(OR('Base Numbers'!$C$21,G15>=5,G14>=5,G12>=5,G13>=5,G12>=5,AND(G7>=9,G42)),G116,0) -> 0 | H194: =IF(OR('Base Numbers'!$C$21,H15>=5,H14>=5,H12>=5,H13>=5,H12>=5,AND(H7>=9,H42)),H116,0) -> 0 | I194: =IF(OR('Base Numbers'!$C$21,I15>=5,I14>=5,I12>=5,I13>=5,I12>=5,AND(I7>=9,I42)),I116,0) -> 0 | J194: =IF(OR('Base Numbers'!$C$21,J15>=5,J14>=5,J12>=5,J13>=5,J12>=5,AND(J7>=9,J42)),J116,0) -> 0 | K194: =IF(OR('Base Numbers'!$C$21,K15>=5,K14>=5,K12>=5,K13>=5,K12>=5,AND(K7>=9,K42)),K116,0) -> 0 | L194: =IF(OR('Base Numbers'!$C$21,L15>=5,L14>=5,L12>=5,L13>=5,L12>=5,AND(L7>=9,L42)),L116,0) -> 0 | M194: =IF(OR('Base Numbers'!$C$21,M15>=5,M14>=5,M12>=5,M13>=5,M12>=5,AND(M7>=9,M42)),M116,0) -> 0 | N194: =IF(OR('Base Numbers'!$C$21,N15>=5,N14>=5,N12>=5,N13>=5,N12>=5,AND(N7>=9,N42)),N116,0) -> 0 | O194: =IF(OR('Base Numbers'!$C$21,O15>=5,O14>=5,O12>=5,O13>=5,O12>=5,AND(O7>=9,O42)),O116,0) -> 0 | P194: =IF(OR('Base Numbers'!$C$21,P15>=5,P14>=5,P12>=5,P13>=5,P12>=5,AND(P7>=9,P42)),P116,0) -> 0 | Q194: =IF(OR('Base Numbers'!$C$21,Q15>=5,Q14>=5,Q12>=5,Q13>=5,Q12>=5,AND(Q7>=9,Q42)),Q116,0) -> 0 | R194: =IF(OR('Base Numbers'!$C$21,R15>=5,R14>=5,R12>=5,R13>=5,R12>=5,AND(R7>=9,R42)),R116,0) -> 0 | S194: =IF(OR('Base Numbers'!$C$21,S15>=5,S14>=5,S12>=5,S13>=5,S12>=5,AND(S7>=9,S42)),S116,0) -> 0 | T194: =IF(OR('Base Numbers'!$C$21,T15>=5,T14>=5,T12>=5,T13>=5,T12>=5,AND(T7>=9,T42)),T116,0) -> 0 | U194: =IF(OR('Base Numbers'!$C$21,U15>=5,U14>=5,U12>=5,U13>=5,U12>=5,AND(U7>=9,U42)),U116,0) -> 0 | V194: =IF(OR('Base Numbers'!$C$21,V15>=5,V14>=5,V12>=5,V13>=5,V12>=5,AND(V7>=9,V42)),V116,0) -> 0 | W194: =IF(OR('Base Numbers'!$C$21,W15>=5,W14>=5,W12>=5,W13>=5,W12>=5,AND(W7>=9,W42)),W116,0) -> 0 | X194: =IF(OR('Base Numbers'!$C$21,X15>=5,X14>=5,X12>=5,X13>=5,X12>=5,AND(X7>=9,X42)),X116,0) -> 0 | Z194: holy weapono
D195: tenser's transformation (c) | E195: =IF(OR('Base Numbers'!$C$21,E15>=11,E14>=14),E141,0) -> 0 | F195: =IF(OR('Base Numbers'!$C$21,F15>=11,F14>=14),F141,0) -> 0 | G195: =IF(OR('Base Numbers'!$C$21,G15>=11,G14>=14),G141,0) -> 0 | H195: =IF(OR('Base Numbers'!$C$21,H15>=11,H14>=14),H141,0) -> 0 | I195: =IF(OR('Base Numbers'!$C$21,I15>=11,I14>=14),I141,0) -> 0 | J195: =IF(OR('Base Numbers'!$C$21,J15>=11,J14>=14),J141,0) -> 0 | K195: =IF(OR('Base Numbers'!$C$21,K15>=11,K14>=14),K141,0) -> 0 | L195: =IF(OR('Base Numbers'!$C$21,L15>=11,L14>=14),L141,0) -> 0 | M195: =IF(OR('Base Numbers'!$C$21,M15>=11,M14>=14),M141,0) -> 0 | N195: =IF(OR('Base Numbers'!$C$21,N15>=11,N14>=14),N141,0) -> 0 | O195: =IF(OR('Base Numbers'!$C$21,O15>=11,O14>=14),O141,0) -> 0 | P195: =IF(OR('Base Numbers'!$C$21,P15>=11,P14>=14),P141,0) -> 0 | Q195: =IF(OR('Base Numbers'!$C$21,Q15>=11,Q14>=14),Q141,0) -> 0 | R195: =IF(OR('Base Numbers'!$C$21,R15>=11,R14>=14),R141,0) -> 0 | S195: =IF(OR('Base Numbers'!$C$21,S15>=11,S14>=14),S141,0) -> 0 | T195: =IF(OR('Base Numbers'!$C$21,T15>=11,T14>=14),T141,0) -> 0 | U195: =IF(OR('Base Numbers'!$C$21,U15>=11,U14>=14),U141,0) -> 0 | V195: =IF(OR('Base Numbers'!$C$21,V15>=11,V14>=14),V141,0) -> 0 | W195: =IF(OR('Base Numbers'!$C$21,W15>=11,W14>=14),W141,0) -> 0 | X195: =IF(OR('Base Numbers'!$C$21,X15>=11,X14>=14),X141,0) -> 0 | Z195: concentration based on Con Resilience and Ranged attacks
D196: flaming sphere casts (c) | E196: =IF(OR('Base Numbers'!$C$21,E17>=3,E15>=3,E14>=10,AND(E14>=6,E67>=1),E13>=3),E104,0) -> 0 | F196: =IF(OR('Base Numbers'!$C$21,F17>=3,F15>=3,F14>=10,AND(F14>=6,F67>=1),F13>=3),F104,0) -> 0 | G196: =IF(OR('Base Numbers'!$C$21,G17>=3,G15>=3,G14>=10,AND(G14>=6,G67>=1),G13>=3),G104,0) -> 0 | H196: =IF(OR('Base Numbers'!$C$21,H17>=3,H15>=3,H14>=10,AND(H14>=6,H67>=1),H13>=3),H104,0) -> 0 | I196: =IF(OR('Base Numbers'!$C$21,I17>=3,I15>=3,I14>=10,AND(I14>=6,I67>=1),I13>=3),I104,0) -> 0 | J196: =IF(OR('Base Numbers'!$C$21,J17>=3,J15>=3,J14>=10,AND(J14>=6,J67>=1),J13>=3),J104,0) -> 0 | K196: =IF(OR('Base Numbers'!$C$21,K17>=3,K15>=3,K14>=10,AND(K14>=6,K67>=1),K13>=3),K104,0) -> 0 | L196: =IF(OR('Base Numbers'!$C$21,L17>=3,L15>=3,L14>=10,AND(L14>=6,L67>=1),L13>=3),L104,0) -> 0 | M196: =IF(OR('Base Numbers'!$C$21,M17>=3,M15>=3,M14>=10,AND(M14>=6,M67>=1),M13>=3),M104,0) -> 0 | N196: =IF(OR('Base Numbers'!$C$21,N17>=3,N15>=3,N14>=10,AND(N14>=6,N67>=1),N13>=3),N104,0) -> 0 | O196: =IF(OR('Base Numbers'!$C$21,O17>=3,O15>=3,O14>=10,AND(O14>=6,O67>=1),O13>=3),O104,0) -> 0 | P196: =IF(OR('Base Numbers'!$C$21,P17>=3,P15>=3,P14>=10,AND(P14>=6,P67>=1),P13>=3),P104,0) -> 0 | Q196: =IF(OR('Base Numbers'!$C$21,Q17>=3,Q15>=3,Q14>=10,AND(Q14>=6,Q67>=1),Q13>=3),Q104,0) -> 0 | R196: =IF(OR('Base Numbers'!$C$21,R17>=3,R15>=3,R14>=10,AND(R14>=6,R67>=1),R13>=3),R104,0) -> 0 | S196: =IF(OR('Base Numbers'!$C$21,S17>=3,S15>=3,S14>=10,AND(S14>=6,S67>=1),S13>=3),S104,0) -> 0 | T196: =IF(OR('Base Numbers'!$C$21,T17>=3,T15>=3,T14>=10,AND(T14>=6,T67>=1),T13>=3),T104,0) -> 0 | U196: =IF(OR('Base Numbers'!$C$21,U17>=3,U15>=3,U14>=10,AND(U14>=6,U67>=1),U13>=3),U104,0) -> 0 | V196: =IF(OR('Base Numbers'!$C$21,V17>=3,V15>=3,V14>=10,AND(V14>=6,V67>=1),V13>=3),V104,0) -> 0 | W196: =IF(OR('Base Numbers'!$C$21,W17>=3,W15>=3,W14>=10,AND(W14>=6,W67>=1),W13>=3),W104,0) -> 0 | X196: =IF(OR('Base Numbers'!$C$21,X17>=3,X15>=3,X14>=10,AND(X14>=6,X67>=1),X13>=3),X104,0) -> 0 | Z196: concentration easier to maintain on ranged casters/spells
D197: bigby's hand casts (c) | E197: =IF(OR('Base Numbers'!$C$21,E15>=9,E14>=10,E12>=9,E13>=9,E19>=17),E133,0) -> 0 | F197: =IF(OR('Base Numbers'!$C$21,F15>=9,F14>=10,F12>=9,F13>=9,F19>=17),F133,0) -> 0 | G197: =IF(OR('Base Numbers'!$C$21,G15>=9,G14>=10,G12>=9,G13>=9,G19>=17),G133,0) -> 0 | H197: =IF(OR('Base Numbers'!$C$21,H15>=9,H14>=10,H12>=9,H13>=9,H19>=17),H133,0) -> 0 | I197: =IF(OR('Base Numbers'!$C$21,I15>=9,I14>=10,I12>=9,I13>=9,I19>=17),I133,0) -> 0 | J197: =IF(OR('Base Numbers'!$C$21,J15>=9,J14>=10,J12>=9,J13>=9,J19>=17),J133,0) -> 0 | K197: =IF(OR('Base Numbers'!$C$21,K15>=9,K14>=10,K12>=9,K13>=9,K19>=17),K133,0) -> 0 | L197: =IF(OR('Base Numbers'!$C$21,L15>=9,L14>=10,L12>=9,L13>=9,L19>=17),L133,0) -> 0 | M197: =IF(OR('Base Numbers'!$C$21,M15>=9,M14>=10,M12>=9,M13>=9,M19>=17),M133,0) -> 0 | N197: =IF(OR('Base Numbers'!$C$21,N15>=9,N14>=10,N12>=9,N13>=9,N19>=17),N133,0) -> 0 | O197: =IF(OR('Base Numbers'!$C$21,O15>=9,O14>=10,O12>=9,O13>=9,O19>=17),O133,0) -> 0 | P197: =IF(OR('Base Numbers'!$C$21,P15>=9,P14>=10,P12>=9,P13>=9,P19>=17),P133,0) -> 0 | Q197: =IF(OR('Base Numbers'!$C$21,Q15>=9,Q14>=10,Q12>=9,Q13>=9,Q19>=17),Q133,0) -> 0 | R197: =IF(OR('Base Numbers'!$C$21,R15>=9,R14>=10,R12>=9,R13>=9,R19>=17),R133,0) -> 0 | S197: =IF(OR('Base Numbers'!$C$21,S15>=9,S14>=10,S12>=9,S13>=9,S19>=17),S133,0) -> 0 | T197: =IF(OR('Base Numbers'!$C$21,T15>=9,T14>=10,T12>=9,T13>=9,T19>=17),T133,0) -> 0 | U197: =IF(OR('Base Numbers'!$C$21,U15>=9,U14>=10,U12>=9,U13>=9,U19>=17),U133,0) -> 0 | V197: =IF(OR('Base Numbers'!$C$21,V15>=9,V14>=10,V12>=9,V13>=9,V19>=17),V133,0) -> 0 | W197: =IF(OR('Base Numbers'!$C$21,W15>=9,W14>=10,W12>=9,W13>=9,W19>=17),W133,0) -> 0 | X197: =IF(OR('Base Numbers'!$C$21,X15>=9,X14>=10,X12>=9,X13>=9,X19>=17),X133,0) -> 0 | Z197: variable monster saves vs. abilities
D198: animate objects casts (c) | E198: =IF(OR('Base Numbers'!$C$21,E15>=9,E14>=9,E12>=9,E13>=9,E19>=17),E132,0) -> 0 | F198: =IF(OR('Base Numbers'!$C$21,F15>=9,F14>=9,F12>=9,F13>=9,F19>=17),F132,0) -> 0 | G198: =IF(OR('Base Numbers'!$C$21,G15>=9,G14>=9,G12>=9,G13>=9,G19>=17),G132,0) -> 0 | H198: =IF(OR('Base Numbers'!$C$21,H15>=9,H14>=9,H12>=9,H13>=9,H19>=17),H132,0) -> 0 | I198: =IF(OR('Base Numbers'!$C$21,I15>=9,I14>=9,I12>=9,I13>=9,I19>=17),I132,0) -> 0 | J198: =IF(OR('Base Numbers'!$C$21,J15>=9,J14>=9,J12>=9,J13>=9,J19>=17),J132,0) -> 0 | K198: =IF(OR('Base Numbers'!$C$21,K15>=9,K14>=9,K12>=9,K13>=9,K19>=17),K132,0) -> 0 | L198: =IF(OR('Base Numbers'!$C$21,L15>=9,L14>=9,L12>=9,L13>=9,L19>=17),L132,0) -> 0 | M198: =IF(OR('Base Numbers'!$C$21,M15>=9,M14>=9,M12>=9,M13>=9,M19>=17),M132,0) -> 0 | N198: =IF(OR('Base Numbers'!$C$21,N15>=9,N14>=9,N12>=9,N13>=9,N19>=17),N132,0) -> 0 | O198: =IF(OR('Base Numbers'!$C$21,O15>=9,O14>=9,O12>=9,O13>=9,O19>=17),O132,0) -> 0 | P198: =IF(OR('Base Numbers'!$C$21,P15>=9,P14>=9,P12>=9,P13>=9,P19>=17),P132,0) -> 0 | Q198: =IF(OR('Base Numbers'!$C$21,Q15>=9,Q14>=9,Q12>=9,Q13>=9,Q19>=17),Q132,0) -> 0 | R198: =IF(OR('Base Numbers'!$C$21,R15>=9,R14>=9,R12>=9,R13>=9,R19>=17),R132,0) -> 0 | S198: =IF(OR('Base Numbers'!$C$21,S15>=9,S14>=9,S12>=9,S13>=9,S19>=17),S132,0) -> 0 | T198: =IF(OR('Base Numbers'!$C$21,T15>=9,T14>=9,T12>=9,T13>=9,T19>=17),T132,0) -> 0 | U198: =IF(OR('Base Numbers'!$C$21,U15>=9,U14>=9,U12>=9,U13>=9,U19>=17),U132,0) -> 0 | V198: =IF(OR('Base Numbers'!$C$21,V15>=9,V14>=9,V12>=9,V13>=9,V19>=17),V132,0) -> 0 | W198: =IF(OR('Base Numbers'!$C$21,W15>=9,W14>=9,W12>=9,W13>=9,W19>=17),W132,0) -> 0 | X198: =IF(OR('Base Numbers'!$C$21,X15>=9,X14>=9,X12>=9,X13>=9,X19>=17),X132,0) -> 0 | Z198: wizard invoker and magic missile
D199: spirtual weapon casts (free) req Conq or Divine S | E199: =IF(OR('Base Numbers'!$C$21,E14>=10,AND(E14>=6,E67>=1),E16>=3,AND(E44,E13>=3),AND(E42,E7>=5)),E110,0) -> 0 | F199: =IF(OR('Base Numbers'!$C$21,F14>=10,AND(F14>=6,F67>=1),F16>=3,AND(F44,F13>=3),AND(F42,F7>=5)),F110,0) -> 0 | G199: =IF(OR('Base Numbers'!$C$21,G14>=10,AND(G14>=6,G67>=1),G16>=3,AND(G44,G13>=3),AND(G42,G7>=5)),G110,0) -> 2 | H199: =IF(OR('Base Numbers'!$C$21,H14>=10,AND(H14>=6,H67>=1),H16>=3,AND(H44,H13>=3),AND(H42,H7>=5)),H110,0) -> 3 | I199: =IF(OR('Base Numbers'!$C$21,I14>=10,AND(I14>=6,I67>=1),I16>=3,AND(I44,I13>=3),AND(I42,I7>=5)),I110,0) -> 3 | J199: =IF(OR('Base Numbers'!$C$21,J14>=10,AND(J14>=6,J67>=1),J16>=3,AND(J44,J13>=3),AND(J42,J7>=5)),J110,0) -> 3 | K199: =IF(OR('Base Numbers'!$C$21,K14>=10,AND(K14>=6,K67>=1),K16>=3,AND(K44,K13>=3),AND(K42,K7>=5)),K110,0) -> 3 | L199: =IF(OR('Base Numbers'!$C$21,L14>=10,AND(L14>=6,L67>=1),L16>=3,AND(L44,L13>=3),AND(L42,L7>=5)),L110,0) -> 3 | M199: =IF(OR('Base Numbers'!$C$21,M14>=10,AND(M14>=6,M67>=1),M16>=3,AND(M44,M13>=3),AND(M42,M7>=5)),M110,0) -> 3 | N199: =IF(OR('Base Numbers'!$C$21,N14>=10,AND(N14>=6,N67>=1),N16>=3,AND(N44,N13>=3),AND(N42,N7>=5)),N110,0) -> 3 | O199: =IF(OR('Base Numbers'!$C$21,O14>=10,AND(O14>=6,O67>=1),O16>=3,AND(O44,O13>=3),AND(O42,O7>=5)),O110,0) -> 3 | P199: =IF(OR('Base Numbers'!$C$21,P14>=10,AND(P14>=6,P67>=1),P16>=3,AND(P44,P13>=3),AND(P42,P7>=5)),P110,0) -> 3 | Q199: =IF(OR('Base Numbers'!$C$21,Q14>=10,AND(Q14>=6,Q67>=1),Q16>=3,AND(Q44,Q13>=3),AND(Q42,Q7>=5)),Q110,0) -> 3 | R199: =IF(OR('Base Numbers'!$C$21,R14>=10,AND(R14>=6,R67>=1),R16>=3,AND(R44,R13>=3),AND(R42,R7>=5)),R110,0) -> 3 | S199: =IF(OR('Base Numbers'!$C$21,S14>=10,AND(S14>=6,S67>=1),S16>=3,AND(S44,S13>=3),AND(S42,S7>=5)),S110,0) -> 3 | T199: =IF(OR('Base Numbers'!$C$21,T14>=10,AND(T14>=6,T67>=1),T16>=3,AND(T44,T13>=3),AND(T42,T7>=5)),T110,0) -> 3 | U199: =IF(OR('Base Numbers'!$C$21,U14>=10,AND(U14>=6,U67>=1),U16>=3,AND(U44,U13>=3),AND(U42,U7>=5)),U110,0) -> 3 | V199: =IF(OR('Base Numbers'!$C$21,V14>=10,AND(V14>=6,V67>=1),V16>=3,AND(V44,V13>=3),AND(V42,V7>=5)),V110,0) -> 3 | W199: =IF(OR('Base Numbers'!$C$21,W14>=10,AND(W14>=6,W67>=1),W16>=3,AND(W44,W13>=3),AND(W42,W7>=5)),W110,0) -> 3 | X199: =IF(OR('Base Numbers'!$C$21,X14>=10,AND(X14>=6,X67>=1),X16>=3,AND(X44,X13>=3),AND(X42,X7>=5)),X110,0) -> 3 | Z199: spellcasting limits barbarian rage uptime
D200: fireball casts | E200: =MIN('Base Numbers'!$G$21,IF(OR('Base Numbers'!$C$21,E15>=5,E14>=10,AND(E14>=6,E67>=1),AND(E12>=5,OR(E52>=1,E51>=1)),E13>=5,AND(E19>=9,E76)),E117,0)) -> 0 | F200: =MIN('Base Numbers'!$G$21,IF(OR('Base Numbers'!$C$21,F15>=5,F14>=10,AND(F14>=6,F67>=1),AND(F12>=5,OR(F52>=1,F51>=1)),F13>=5,AND(F19>=9,F76)),F117,0)) -> 0 | G200: =MIN('Base Numbers'!$G$21,IF(OR('Base Numbers'!$C$21,G15>=5,G14>=10,AND(G14>=6,G67>=1),AND(G12>=5,OR(G52>=1,G51>=1)),G13>=5,AND(G19>=9,G76)),G117,0)) -> 0 | H200: =MIN('Base Numbers'!$G$21,IF(OR('Base Numbers'!$C$21,H15>=5,H14>=10,AND(H14>=6,H67>=1),AND(H12>=5,OR(H52>=1,H51>=1)),H13>=5,AND(H19>=9,H76)),H117,0)) -> 0 | I200: =MIN('Base Numbers'!$G$21,IF(OR('Base Numbers'!$C$21,I15>=5,I14>=10,AND(I14>=6,I67>=1),AND(I12>=5,OR(I52>=1,I51>=1)),I13>=5,AND(I19>=9,I76)),I117,0)) -> 0 | J200: =MIN('Base Numbers'!$G$21,IF(OR('Base Numbers'!$C$21,J15>=5,J14>=10,AND(J14>=6,J67>=1),AND(J12>=5,OR(J52>=1,J51>=1)),J13>=5,AND(J19>=9,J76)),J117,0)) -> 0 | K200: =MIN('Base Numbers'!$G$21,IF(OR('Base Numbers'!$C$21,K15>=5,K14>=10,AND(K14>=6,K67>=1),AND(K12>=5,OR(K52>=1,K51>=1)),K13>=5,AND(K19>=9,K76)),K117,0)) -> 0 | L200: =MIN('Base Numbers'!$G$21,IF(OR('Base Numbers'!$C$21,L15>=5,L14>=10,AND(L14>=6,L67>=1),AND(L12>=5,OR(L52>=1,L51>=1)),L13>=5,AND(L19>=9,L76)),L117,0)) -> 0 | M200: =MIN('Base Numbers'!$G$21,IF(OR('Base Numbers'!$C$21,M15>=5,M14>=10,AND(M14>=6,M67>=1),AND(M12>=5,OR(M52>=1,M51>=1)),M13>=5,AND(M19>=9,M76)),M117,0)) -> 0 | N200: =MIN('Base Numbers'!$G$21,IF(OR('Base Numbers'!$C$21,N15>=5,N14>=10,AND(N14>=6,N67>=1),AND(N12>=5,OR(N52>=1,N51>=1)),N13>=5,AND(N19>=9,N76)),N117,0)) -> 0 | O200: =MIN('Base Numbers'!$G$21,IF(OR('Base Numbers'!$C$21,O15>=5,O14>=10,AND(O14>=6,O67>=1),AND(O12>=5,OR(O52>=1,O51>=1)),O13>=5,AND(O19>=9,O76)),O117,0)) -> 0 | P200: =MIN('Base Numbers'!$G$21,IF(OR('Base Numbers'!$C$21,P15>=5,P14>=10,AND(P14>=6,P67>=1),AND(P12>=5,OR(P52>=1,P51>=1)),P13>=5,AND(P19>=9,P76)),P117,0)) -> 0 | Q200: =MIN('Base Numbers'!$G$21,IF(OR('Base Numbers'!$C$21,Q15>=5,Q14>=10,AND(Q14>=6,Q67>=1),AND(Q12>=5,OR(Q52>=1,Q51>=1)),Q13>=5,AND(Q19>=9,Q76)),Q117,0)) -> 0 | R200: =MIN('Base Numbers'!$G$21,IF(OR('Base Numbers'!$C$21,R15>=5,R14>=10,AND(R14>=6,R67>=1),AND(R12>=5,OR(R52>=1,R51>=1)),R13>=5,AND(R19>=9,R76)),R117,0)) -> 0 | S200: =MIN('Base Numbers'!$G$21,IF(OR('Base Numbers'!$C$21,S15>=5,S14>=10,AND(S14>=6,S67>=1),AND(S12>=5,OR(S52>=1,S51>=1)),S13>=5,AND(S19>=9,S76)),S117,0)) -> 0 | T200: =MIN('Base Numbers'!$G$21,IF(OR('Base Numbers'!$C$21,T15>=5,T14>=10,AND(T14>=6,T67>=1),AND(T12>=5,OR(T52>=1,T51>=1)),T13>=5,AND(T19>=9,T76)),T117,0)) -> 0 | U200: =MIN('Base Numbers'!$G$21,IF(OR('Base Numbers'!$C$21,U15>=5,U14>=10,AND(U14>=6,U67>=1),AND(U12>=5,OR(U52>=1,U51>=1)),U13>=5,AND(U19>=9,U76)),U117,0)) -> 0 | V200: =MIN('Base Numbers'!$G$21,IF(OR('Base Numbers'!$C$21,V15>=5,V14>=10,AND(V14>=6,V67>=1),AND(V12>=5,OR(V52>=1,V51>=1)),V13>=5,AND(V19>=9,V76)),V117,0)) -> 0 | W200: =MIN('Base Numbers'!$G$21,IF(OR('Base Numbers'!$C$21,W15>=5,W14>=10,AND(W14>=6,W67>=1),AND(W12>=5,OR(W52>=1,W51>=1)),W13>=5,AND(W19>=9,W76)),W117,0)) -> 0 | X200: =MIN('Base Numbers'!$G$21,IF(OR('Base Numbers'!$C$21,X15>=5,X14>=10,AND(X14>=6,X67>=1),AND(X12>=5,OR(X52>=1,X51>=1)),X13>=5,AND(X19>=9,X76)),X117,0)) -> 0 | Z200: piercer feat used with polearm doesn't apply to the bonus attack unless GWM procs
D201: animate dead (non-combat) | E201: =IF(OR('Base Numbers'!$C$21,E15>=5,E16>=5,E14>=10,AND(E14>=6,E67>=1)),E113,0) -> 0 | F201: =IF(OR('Base Numbers'!$C$21,F15>=5,F16>=5,F14>=10,AND(F14>=6,F67>=1)),F113,0) -> 0 | G201: =IF(OR('Base Numbers'!$C$21,G15>=5,G16>=5,G14>=10,AND(G14>=6,G67>=1)),G113,0) -> 0 | H201: =IF(OR('Base Numbers'!$C$21,H15>=5,H16>=5,H14>=10,AND(H14>=6,H67>=1)),H113,0) -> 0 | I201: =IF(OR('Base Numbers'!$C$21,I15>=5,I16>=5,I14>=10,AND(I14>=6,I67>=1)),I113,0) -> 0 | J201: =IF(OR('Base Numbers'!$C$21,J15>=5,J16>=5,J14>=10,AND(J14>=6,J67>=1)),J113,0) -> 0 | K201: =IF(OR('Base Numbers'!$C$21,K15>=5,K16>=5,K14>=10,AND(K14>=6,K67>=1)),K113,0) -> 0 | L201: =IF(OR('Base Numbers'!$C$21,L15>=5,L16>=5,L14>=10,AND(L14>=6,L67>=1)),L113,0) -> 0 | M201: =IF(OR('Base Numbers'!$C$21,M15>=5,M16>=5,M14>=10,AND(M14>=6,M67>=1)),M113,0) -> 0 | N201: =IF(OR('Base Numbers'!$C$21,N15>=5,N16>=5,N14>=10,AND(N14>=6,N67>=1)),N113,0) -> 0 | O201: =IF(OR('Base Numbers'!$C$21,O15>=5,O16>=5,O14>=10,AND(O14>=6,O67>=1)),O113,0) -> 0 | P201: =IF(OR('Base Numbers'!$C$21,P15>=5,P16>=5,P14>=10,AND(P14>=6,P67>=1)),P113,0) -> 0 | Q201: =IF(OR('Base Numbers'!$C$21,Q15>=5,Q16>=5,Q14>=10,AND(Q14>=6,Q67>=1)),Q113,0) -> 0 | R201: =IF(OR('Base Numbers'!$C$21,R15>=5,R16>=5,R14>=10,AND(R14>=6,R67>=1)),R113,0) -> 0 | S201: =IF(OR('Base Numbers'!$C$21,S15>=5,S16>=5,S14>=10,AND(S14>=6,S67>=1)),S113,0) -> 0 | T201: =IF(OR('Base Numbers'!$C$21,T15>=5,T16>=5,T14>=10,AND(T14>=6,T67>=1)),T113,0) -> 0 | U201: =IF(OR('Base Numbers'!$C$21,U15>=5,U16>=5,U14>=10,AND(U14>=6,U67>=1)),U113,0) -> 0 | V201: =IF(OR('Base Numbers'!$C$21,V15>=5,V16>=5,V14>=10,AND(V14>=6,V67>=1)),V113,0) -> 0 | W201: =IF(OR('Base Numbers'!$C$21,W15>=5,W16>=5,W14>=10,AND(W14>=6,W67>=1)),W113,0) -> 0 | X201: =IF(OR('Base Numbers'!$C$21,X15>=5,X16>=5,X14>=10,AND(X14>=6,X67>=1)),X113,0) -> 0 | Z201: magic missile
D202: tiny servant (non-combat) | E202: =IF(OR('Base Numbers'!$C$21,E15>=5,E19>=9,E14>=10,AND(E14>=6,E67>=1)),E123,0) -> 0 | F202: =IF(OR('Base Numbers'!$C$21,F15>=5,F19>=9,F14>=10,AND(F14>=6,F67>=1)),F123,0) -> 0 | G202: =IF(OR('Base Numbers'!$C$21,G15>=5,G19>=9,G14>=10,AND(G14>=6,G67>=1)),G123,0) -> 0 | H202: =IF(OR('Base Numbers'!$C$21,H15>=5,H19>=9,H14>=10,AND(H14>=6,H67>=1)),H123,0) -> 0 | I202: =IF(OR('Base Numbers'!$C$21,I15>=5,I19>=9,I14>=10,AND(I14>=6,I67>=1)),I123,0) -> 0 | J202: =IF(OR('Base Numbers'!$C$21,J15>=5,J19>=9,J14>=10,AND(J14>=6,J67>=1)),J123,0) -> 0 | K202: =IF(OR('Base Numbers'!$C$21,K15>=5,K19>=9,K14>=10,AND(K14>=6,K67>=1)),K123,0) -> 0 | L202: =IF(OR('Base Numbers'!$C$21,L15>=5,L19>=9,L14>=10,AND(L14>=6,L67>=1)),L123,0) -> 0 | M202: =IF(OR('Base Numbers'!$C$21,M15>=5,M19>=9,M14>=10,AND(M14>=6,M67>=1)),M123,0) -> 0 | N202: =IF(OR('Base Numbers'!$C$21,N15>=5,N19>=9,N14>=10,AND(N14>=6,N67>=1)),N123,0) -> 0 | O202: =IF(OR('Base Numbers'!$C$21,O15>=5,O19>=9,O14>=10,AND(O14>=6,O67>=1)),O123,0) -> 0 | P202: =IF(OR('Base Numbers'!$C$21,P15>=5,P19>=9,P14>=10,AND(P14>=6,P67>=1)),P123,0) -> 0 | Q202: =IF(OR('Base Numbers'!$C$21,Q15>=5,Q19>=9,Q14>=10,AND(Q14>=6,Q67>=1)),Q123,0) -> 0 | R202: =IF(OR('Base Numbers'!$C$21,R15>=5,R19>=9,R14>=10,AND(R14>=6,R67>=1)),R123,0) -> 0 | S202: =IF(OR('Base Numbers'!$C$21,S15>=5,S19>=9,S14>=10,AND(S14>=6,S67>=1)),S123,0) -> 0 | T202: =IF(OR('Base Numbers'!$C$21,T15>=5,T19>=9,T14>=10,AND(T14>=6,T67>=1)),T123,0) -> 0 | U202: =IF(OR('Base Numbers'!$C$21,U15>=5,U19>=9,U14>=10,AND(U14>=6,U67>=1)),U123,0) -> 0 | V202: =IF(OR('Base Numbers'!$C$21,V15>=5,V19>=9,V14>=10,AND(V14>=6,V67>=1)),V123,0) -> 0 | W202: =IF(OR('Base Numbers'!$C$21,W15>=5,W19>=9,W14>=10,AND(W14>=6,W67>=1)),W123,0) -> 0 | X202: =IF(OR('Base Numbers'!$C$21,X15>=5,X19>=9,X14>=10,AND(X14>=6,X67>=1)),X123,0) -> 0 | Z202: animate dead
... 1326 more rows

Sheet Base Numbers
F1: LEVEL | G1: 1 | H1: 2 | I1: 3 | J1: 4 | K1: 5 | L1: 6 | M1: 7 | N1: 8 | O1: 9 | P1: 10 | Q1: 11 | R1: 12 | S1: 13 | T1: 14 | U1: 15 | V1: 16 | W1: 17 | X1: 18 | Y1: 19 | Z1: 20
F2: TOTAL DPR OUTPUT | G2: =Sorcadins!E1618 -> 8.52 | H2: =Sorcadins!F1618 -> 9.45 | I2: =Sorcadins!G1618 -> 11.47 | J2: =Sorcadins!H1618 -> 14.86 | K2: =Sorcadins!I1618 -> 24.00 | L2: =Sorcadins!J1618 -> 26.38 | M2: =Sorcadins!K1618 -> 29.47 | N2: =Sorcadins!L1618 -> 37.42 | O2: =Sorcadins!M1618 -> 47.03 | P2: =Sorcadins!N1618 -> 49.74 | Q2: =Sorcadins!O1618 -> 59.24 | R2: =Sorcadins!P1618 -> 62.12 | S2: =Sorcadins!Q1618 -> 72.31 | T2: =Sorcadins!R1618 -> 73.91 | U2: =Sorcadins!S1618 -> 76.88 | V2: =Sorcadins!T1618 -> 77.77 | W2: =Sorcadins!U1618 -> 89.07 | X2: =Sorcadins!V1618 -> 92.36 | Y2: =Sorcadins!W1618 -> 91.75 | Z2: =Sorcadins!X1618 -> 93.73
B4: CAMPAIGN AVERAGES | F4: MODIFIERS:
B5: fights per day | C5: 4 | F5: Enemy Armor Class modifier: | G5: 0
B6: rounds per fight | C6: 4
B7: short rests | C7: 1
B8: pct fights with a buff round | C8: 0.3
F10: Booming Blade + GFB secondary damage percent
B11: Opportunity attacks per round | G11: 0.35
B12: base | C12: 0.25
B13: polearm master | C13: 0.2
B14: sentinel | C14: 0.4 | F14: prob of qualifying for sneak damage | G14: 0.8
B15: soul of vengeance / retaliation | C15: 0.65 | F15: percent fights with surprise | G15: 0.33
F16: DM allows Booming Blade with Shadow Blade | G16: 0
B19: Find Familiar adv pct | C19: 0.9 | F19: Area Of Effect effects
B20: Disable Simulacrum damage | C20: 0 | F20: Avg number of targets to AOE | G20: 2.5
B21: Disable spell class/level-based selection checking | C21: 0 | F21: Avg number of AOE opportunities per day | G21: 2

Sheet Caster Tables
B3: Progresion:
B4: Level | C4: 1 | D4: 2 | E4: 3 | F4: 4 | G4: 5 | H4: 6 | I4: 7 | J4: 8 | K4: 9 | L4: 10 | M4: 11 | N4: 12 | O4: 13 | P4: 14 | Q4: 15 | R4: 16 | S4: 17 | T4: 18 | U4: 19 | V4: 20 | Y4: Piercer Feat damage gains
B5: chance of killing blow per attack (GWM) | C5: 0.1 | D5: 0.1 | E5: 0.1 | F5: 0.09 | G5: 0.09 | H5: 0.08 | I5: 0.08 | J5: 0.07 | K5: 0.07 | L5: 0.06 | M5: 0.06 | N5: 0.05 | O5: 0.05 | P5: 0.05 | Q5: 0.05 | R5: 0.05 | S5: 0.05 | T5: 0.05 | U5: 0.05 | V5: 0.05 | Y5: weapon die | Z5: base avg | AA5: piercer avg | AB5: gain
B6: avg save bonus | C6: -1 | D6: -1 | E6: 0 | F6: 0 | G6: 0 | H6: 0 | I6: 1 | J6: 1 | K6: 2 | L6: 2 | M6: 2 | N6: 3 | O6: 3 | P6: 4 | Q6: 4 | R6: 5 | S6: 5 | T6: 6 | U6: 6 | V6: 7 | Y6: d4 | Z6: 2.5 | AA6: 3 | AB6: =AA6-Z6 -> 0.5
B7: AC | C7: 13 | D7: 13 | E7: 14 | F7: 14 | G7: 14 | H7: 15 | I7: 15 | J7: 15 | K7: 16 | L7: 16 | M7: 16 | N7: 17 | O7: 17 | P7: 17 | Q7: 18 | R7: 18 | S7: 18 | T7: 19 | U7: 19 | V7: 19 | Y7: d6 | Z7: 3.5 | AA7: 4.25 | AB7: =AA7-Z7 -> 0.75
B8: Cantrip Power | C8: 0 | D8: 0 | E8: 0 | F8: 0 | G8: 1 | H8: 1 | I8: 1 | J8: 1 | K8: 1 | L8: 1 | M8: 2 | N8: 2 | O8: 2 | P8: 2 | Q8: 2 | R8: 2 | S8: 3 | T8: 3 | U8: 3 | V8: 3 | Y8: d8 | Z8: 4.5 | AA8: 5.5 | AB8: =AA8-Z8 -> 1
B9: fights with pronable target | C9: 1 | D9: 0.95 | E9: 0.92 | F9: 0.9 | G9: 0.85 | H9: 0.8 | I9: 0.75 | J9: 0.7 | K9: 0.65 | L9: 0.6 | M9: 0.55 | N9: 0.5 | O9: 0.4 | P9: 0.35 | Q9: 0.3 | R9: 0.3 | S9: 0.25 | T9: 0.25 | U9: 0.2 | V9: 0.2 | Y9: d10 | Z9: 5.5 | AA9: 6.75 | AB9: =AA9-Z9 -> 1.25
C10: Multiclass Casters | G10: Half Casters (Paladin, Ranger) | I10: Warlocks (per day; adj for short rests) | M10: One-Third Casters (Eldritch Knight, Arcane Trickster) | O10: Warlocks (per short rest)
B11: Caster Level | C11: Total Spell Levels | D11: total smite (d8s) | E11: ratio: | F11: max slot | G11: Total Spell Levels | H11: total smite (d8s) | I11: Total Spell Levels | J11: total smite (d8s) | K11: ratio | L11: max slot | M11: Total Spell Levels | N11: total smite (d8s) | O11: Total Spell Levels | P11: total smite (d8s)
B12: 0 | C12: 0 | D12: 0 | E12: 0 | F12: 0 | G12: 0 | H12: 0 | I12: =O12*(1+'Base Numbers'!$C$7) -> 0 | J12: =P12*(1+'Base Numbers'!$C$7) -> 0 | K12: 0 | L12: 0 | M12: 0 | N12: 0 | O12: =0*(1+'Base Numbers'!$C$7) -> 0 | P12: 0
B13: 1 | C13: 2 | D13: 4 | E13: =D13/C13 -> 2 | F13: 1 | G13: 0 | H13: 0 | I13: =O13*(1+'Base Numbers'!$C$7) -> 2 | J13: =P13*(1+'Base Numbers'!$C$7) -> 4 | K13: =J13/I13 -> 2 | L13: 1 | M13: 0 | N13: 0 | O13: 1 | P13: 2
B14: =B13+1 -> 2 | C14: 3 | D14: 6 | E14: =D14/C14 -> 2 | F14: 1 | G14: 2 | H14: 4 | I14: =O14*(1+'Base Numbers'!$C$7) -> 4 | J14: =P14*(1+'Base Numbers'!$C$7) -> 8 | K14: =J14/I14 -> 2 | L14: 1 | M14: 0 | N14: 0 | O14: 2 | P14: 4
B15: 3 | C15: 8 | D15: 14 | E15: 1.75 | F15: 2 | G15: 3 | H15: 6 | I15: =O15*(1+'Base Numbers'!$C$7) -> 8 | J15: =P15*(1+'Base Numbers'!$C$7) -> 12 | K15: 1.5 | L15: 2 | M15: 2 | N15: 4 | O15: 4 | P15: 6
B16: 4 | C16: 10 | D16: 17 | E16: 1.7 | F16: 2 | G16: 3 | H16: 6 | I16: =O16*(1+'Base Numbers'!$C$7) -> 8 | J16: =P16*(1+'Base Numbers'!$C$7) -> 12 | K16: 1.5 | L16: 2 | M16: 3 | N16: 6 | O16: 4 | P16: 6
B17: 5 | C17: 16 | D17: 25 | E17: 1.5625 | F17: 3 | G17: 8 | H17: 14 | I17: =O17*(1+'Base Numbers'!$C$7) -> 12 | J17: =P17*(1+'Base Numbers'!$C$7) -> 16 | K17: 1.333333333 | L17: 3 | M17: 3 | N17: 6 | O17: 6 | P17: 8
B18: 6 | C18: 19 | D18: 29 | E18: 1.526315789 | F18: 3 | G18: 8 | H18: 14 | I18: =O18*(1+'Base Numbers'!$C$7) -> 12 | J18: =P18*(1+'Base Numbers'!$C$7) -> 16 | K18: 1.333333333 | L18: 3 | M18: 3 | N18: 6 | O18: 6 | P18: 8
B19: 7 | C19: 23 | D19: 34 | E19: 1.47826087 | F19: 4 | G19: 10 | H19: 17 | I19: =O19*(1+'Base Numbers'!$C$7) -> 16 | J19: =P19*(1+'Base Numbers'!$C$7) -> 20 | K19: 1.25 | L19: 4 | M19: 8 | N19: 14 | O19: 8 | P19: 10
B20: 8 | C20: 27 | D20: 39 | E20: 1.444444444 | F20: 4 | G20: 10 | H20: 17 | I20: =O20*(1+'Base Numbers'!$C$7) -> 16 | J20: =P20*(1+'Base Numbers'!$C$7) -> 20 | K20: 1.25 | L20: 4 | M20: 8 | N20: 14 | O20: 8 | P20: 10
B21: 9 | C21: 36 | D21: 50 | E21: 1.388888889 | F21: 5 | G21: 16 | H21: 25 | I21: =O21*(1+'Base Numbers'!$C$7) -> 20 | J21: =P21*(1+'Base Numbers'!$C$7) -> 24 | K21: 1.2 | L21: 5 | M21: 8 | N21: 14 | O21: 10 | P21: 12
B22: 10 | C22: 41 | D22: 56 | E22: 1.365853659 | F22: 5 | G22: 16 | H22: 25 | I22: =O22*(1+'Base Numbers'!$C$7) -> 20 | J22: =P22*(1+'Base Numbers'!$C$7) -> 24 | K22: 1.2 | L22: 5 | M22: 10 | N22: 17 | O22: 10 | P22: 12
B23: 11 | C23: 47 | D23: 63 | E23: 1.340425532 | F23: 6 | G23: 19 | H23: 29 | I23: =O23*(1+'Base Numbers'!$C$7) -> 30 | J23: =P23*(1+'Base Numbers'!$C$7) -> 36 | K23: 1.2 | L23: 5 | M23: 10 | N23: 17 | O23: 15 | P23: 18
B24: 12 | C24: 47 | D24: 63 | E24: 1.340425532 | F24: 6 | G24: 19 | H24: 29 | I24: =O24*(1+'Base Numbers'!$C$7) -> 30 | J24: =P24*(1+'Base Numbers'!$C$7) -> 36 | K24: 1.2 | L24: 5 | M24: 10 | N24: 17 | O24: 15 | P24: 18
B25: 13 | C25: 54 | D25: 71 | E25: 1.314814815 | F25: 7 | G25: 23 | H25: 34 | I25: =O25*(1+'Base Numbers'!$C$7) -> 30 | J25: =P25*(1+'Base Numbers'!$C$7) -> 36 | K25: 1.2 | L25: 5 | M25: 16 | N25: 25 | O25: 15 | P25: 18
B26: 14 | C26: 54 | D26: 71 | E26: 1.314814815 | F26: 7 | G26: 23 | H26: 34 | I26: =O26*(1+'Base Numbers'!$C$7) -> 30 | J26: =P26*(1+'Base Numbers'!$C$7) -> 36 | K26: 1.2 | L26: 5 | M26: 16 | N26: 25 | O26: 15 | P26: 18
B27: 15 | C27: 62 | D27: 80 | E27: 1.290322581 | F27: 8 | G27: 27 | H27: 39 | I27: =O27*(1+'Base Numbers'!$C$7) -> 30 | J27: =P27*(1+'Base Numbers'!$C$7) -> 36 | K27: 1.2 | L27: 5 | M27: 16 | N27: 25 | O27: 15 | P27: 18
B28: 16 | C28: 62 | D28: 80 | E28: 1.290322581 | F28: 8 | G28: 27 | H28: 39 | I28: =O28*(1+'Base Numbers'!$C$7) -> 30 | J28: =P28*(1+'Base Numbers'!$C$7) -> 36 | K28: 1.2 | L28: 5 | M28: 19 | N28: 29 | O28: 15 | P28: 18
B29: 17 | C29: 71 | D29: 90 | E29: 1.267605634 | F29: 9 | G29: 36 | H29: 50 | I29: =O29*(1+'Base Numbers'!$C$7) -> 40 | J29: =P29*(1+'Base Numbers'!$C$7) -> 48 | K29: 1.2 | L29: 5 | M29: 19 | N29: 29 | O29: 20 | P29: 24
B30: 18 | C30: 76 | D30: 96 | E30: 1.263157895 | F30: 9 | G30: 36 | H30: 50 | I30: =O30*(1+'Base Numbers'!$C$7) -> 40 | J30: =P30*(1+'Base Numbers'!$C$7) -> 48 | K30: 1.2 | L30: 5 | M30: 19 | N30: 29 | O30: 20 | P30: 24
B31: 19 | C31: 82 | D31: 103 | E31: 1.256097561 | F31: 9 | G31: 41 | H31: 56 | I31: =O31*(1+'Base Numbers'!$C$7) -> 40 | J31: =P31*(1+'Base Numbers'!$C$7) -> 48 | K31: 1.2 | L31: 5 | M31: 23 | N31: 34 | O31: 20 | P31: 24
B32: 20 | C32: 89 | D32: 111 | E32: 1.247191011 | F32: 9 | G32: 41 | H32: 56 | I32: =O32*(2+'Base Numbers'!$C$7) -> 60 | J32: =P32*(2+'Base Numbers'!$C$7) -> 72 | K32: 1.2 | L32: 5 | M32: 23 | N32: 34 | O32: 20 | P32: 24
B35: notes
B36: Count spell slots as smites +1
B37: Count spell slots above 6th level as 5th level for smites
B38: L20 warlock ability returns all spell slots 1/day
F41: average slot level for number of max-level slots requested:
B42: Multiclass Caster Level | C42: Total Spell Levels | D42: max slot | E42: 0 | F42: 1 | G42: 2 | H42: 3 | I42: 4 | J42: 5 | K42: 6 | L42: 7 | M42: 8 | N42: 9 | O42: 10 | P42: 11 | Q42: 12 | R42: 13 | S42: 14 | T42: 15 | U42: 16 | V42: 17 | W42: 18 | X42: 19 | Y42: 20
B43: 0 | C43: 0 | D43: 0 | E43: 0 | F43: 0 | G43: 0 | H43: 0 | I43: 0 | J43: 0 | K43: 0 | L43: 0 | M43: 0 | N43: 0 | O43: 0 | P43: 0 | Q43: 0 | R43: 0 | S43: 0 | T43: 0 | U43: 0 | V43: 0 | W43: 0 | X43: 0 | Y43: 0
B44: 1 | C44: 2 | D44: 1 | E44: 0 | F44: =MIN($D$44,$C$44/F42) -> 1 | G44: =MIN($D$44,$C$44/G42) -> 1 | H44: 0.6666666667 | I44: 0.5 | J44: 0.4 | K44: 0.3333333333 | L44: 0.2857142857 | M44: 0.25 | N44: 0.2222222222 | O44: =MIN($D$44,$C$44/O42) -> 0.2 | P44: =MIN($D$44,$C$44/P42) -> 0.1818181818 | Q44: 0.1666666667 | R44: 0.1538461538 | S44: 0.1428571429 | T44: 0.1333333333 | U44: 0.125 | V44: 0.1176470588 | W44: 0.1111111111 | X44: 0.1052631579 | Y44: 0.1
B45: =B44+1 -> 2 | C45: 3 | D45: 1 | E45: 0 | F45: =MIN($D45,$C45/F42) -> 1 | G45: =MIN($D45,$C45/G42) -> 1 | H45: 1 | I45: 0.75 | J45: 0.6 | K45: 0.5 | L45: 0.4285714286 | M45: 0.375 | N45: 0.3333333333 | O45: 0.3 | P45: =MIN($D45,$C45/P42) -> 0.2727272727 | Q45: 0.25 | R45: 0.2307692308 | S45: 0.2142857143 | T45: 0.2 | U45: 0.1875 | V45: 0.1764705882 | W45: 0.1666666667 | X45: 0.1578947368 | Y45: 0.15
B46: 3 | C46: 8 | D46: 2 | E46: 0 | F46: 2 | G46: 2 | H46: =5/H42 -> 1.666666667 | I46: =6/I42 -> 1.5 | J46: =7/J42 -> 1.4 | K46: =8/K42 -> 1.333333333 | L46: =8/L42 -> 1.142857143 | M46: =8/M42 -> 1 | N46: =8/N42 -> 0.8888888889 | O46: =8/O42 -> 0.8 | P46: =8/P42 -> 0.7272727273 | Q46: 0.6666666667 | R46: 0.6153846154 | S46: 0.5714285714 | T46: 0.5333333333 | U46: 0.5 | V46: 0.4705882353 | W46: 0.4444444444 | X46: 0.4210526316 | Y46: 0.4
B47: 4 | C47: 10 | D47: 2 | E47: 0 | F47: 2 | G47: 2 | H47: 2 | I47: =7/I42 -> 1.75 | J47: =8/J42 -> 1.6 | K47: =9/K42 -> 1.5 | L47: =10/L42 -> 1.428571429 | M47: =10/M42 -> 1.25 | N47: =10/N42 -> 1.111111111 | O47: =10/O42 -> 1 | P47: =10/P42 -> 0.9090909091 | Q47: 0.8333333333 | R47: 0.7692307692 | S47: 0.7142857143 | T47: 0.6666666667 | U47: 0.625 | V47: 0.5882352941 | W47: 0.5555555556 | X47: 0.5263157895 | Y47: 0.5
B48: 5 | C48: 16 | D48: 3 | E48: 0 | F48: 3 | G48: 3 | H48: =8/3 -> 2.666666667 | I48: =10/4 -> 2.5 | J48: =12/5 -> 2.4 | K48: =13/6 -> 2.166666667 | L48: =14/7 -> 2 | M48: =15/8 -> 1.875 | N48: =16/9 -> 1.777777778 | O48: =16/O42 -> 1.6 | P48: =16/P42 -> 1.454545455 | Q48: 1.333333333 | R48: 1.230769231 | S48: 1.142857143 | T48: 1.066666667 | U48: 1 | V48: 0.9411764706 | W48: 0.8888888889 | X48: 0.8421052632 | Y48: 0.8
B49: 6 | C49: 19 | D49: 3 | E49: 0 | F49: 3 | G49: 3 | H49: 3 | I49: =11/4 -> 2.75 | J49: =13/5 -> 2.6 | K49: =15/6 -> 2.5 | L49: =16/7 -> 2.285714286 | M49: =18/8 -> 2.25 | N49: =19/9 -> 2.111111111 | O49: =19/O42 -> 1.9 | P49: =19/P42 -> 1.727272727 | Q49: 1.583333333 | R49: 1.461538462 | S49: 1.357142857 | T49: 1.266666667 | U49: 1.1875 | V49: 1.117647059 | W49: 1.055555556 | X49: 1 | Y49: 0.95
B50: 7 | C50: 23 | D50: 4 | E50: 0 | F50: 4 | G50: =7/2 -> 3.5 | H50: =10/3 -> 3.333333333 | I50: =13/4 -> 3.25 | J50: =15/5 -> 3 | K50: =17/6 -> 2.833333333 | L50: =19/7 -> 2.714285714 | M50: =20/8 -> 2.5 | N50: =21/9 -> 2.333333333 | O50: =22/10 -> 2.2 | P50: =22/P42 -> 2 | Q50: =22/Q42 -> 1.833333333 | R50: 1.692307692 | S50: 1.571428571 | T50: 1.466666667 | U50: 1.375 | V50: 1.294117647 | W50: 1.222222222 | X50: 1.157894737 | Y50: 1.1
B51: 8 | C51: 27 | D51: 4 | E51: 0 | F51: 4 | G51: 4 | H51: =11/3 -> 3.666666667 | I51: =14/4 -> 3.5 | J51: =17/5 -> 3.4 | K51: =19/6 -> 3.166666667 | L51: =21/7 -> 3 | M51: =23/8 -> 2.875 | N51: =24/9 -> 2.666666667 | O51: =25/10 -> 2.5 | P51: =26/11 -> 2.363636364 | Q51: =27/Q42 -> 2.25 | R51: =27/R42 -> 2.076923077 | S51: 1.928571429 | T51: 1.8 | U51: 1.6875 | V51: 1.588235294 | W51: 1.5 | X51: 1.421052632 | Y51: 1.35
B52: 9 | C52: 36 | D52: 5 | E52: 0 | F52: 5 | G52: =9/2 -> 4.5 | H52: =13/3 -> 4.333333333 | I52: =17/4 -> 4.25 | J52: =20/5 -> 4 | K52: =23/6 -> 3.833333333 | L52: =26/7 -> 3.714285714 | M52: =28/8 -> 3.5 | N52: =30/9 -> 3.333333333 | O52: =32/10 -> 3.2 | P52: =33/11 -> 3 | Q52: =34/12 -> 2.833333333 | R52: =35/13 -> 2.692307692 | S52: =36/S42 -> 2.571428571 | T52: =36/T42 -> 2.4 | U52: 2.25 | V52: 2.117647059 | W52: 2 | X52: 1.894736842 | Y52: 1.8
B53: 10 | C53: 41 | D53: 5 | E53: 0 | F53: 5 | G53: 5 | H53: =14/3 -> 4.666666667 | I53: =18/4 -> 4.5 | J53: =22/5 -> 4.4 | K53: =25/6 -> 4.166666667 | L53: =28/7 -> 4 | M53: =31/8 -> 3.875 | N53: =33/9 -> 3.666666667 | O53: =35/10 -> 3.5 | P53: =37/11 -> 3.363636364 | Q53: =38/12 -> 3.166666667 | R53: =39/13 -> 3 | S53: =40/14 -> 2.857142857 | T53: =41/T42 -> 2.733333333 | U53: 2.5625 | V53: 2.411764706 | W53: 2.277777778 | X53: 2.157894737 | Y53: 2.05
B54: 11 | C54: 47 | D54: 6 | E54: 0 | F54: 6 | G54: =11/2 -> 5.5 | H54: =16/3 -> 5.333333333 | I54: =20/4 -> 5 | J54: =24/5 -> 4.8 | K54: =28/6 -> 4.666666667 | L54: =31/7 -> 4.428571429 | M54: =34/8 -> 4.25 | N54: =37/9 -> 4.111111111 | O54: =39/10 -> 3.9 | P54: =41/11 -> 3.727272727 | Q54: =43/12 -> 3.583333333 | R54: =44/13 -> 3.384615385 | S54: =45/14 -> 3.214285714 | T54: =46/15 -> 3.066666667 | U54: =47/U42 -> 2.9375 | V54: =47/V42 -> 2.764705882 | W54: =47/W42 -> 2.611111111 | X54: =47/X42 -> 2.473684211 | Y54: =47/Y42 -> 2.35
B55: 12 | C55: 47 | D55: 6 | E55: 0 | F55: 6 | G55: =11/2 -> 5.5 | H55: =16/3 -> 5.333333333 | I55: =20/4 -> 5 | J55: =24/5 -> 4.8 | K55: =28/6 -> 4.666666667 | L55: =31/7 -> 4.428571429 | M55: =34/8 -> 4.25 | N55: =37/9 -> 4.111111111 | O55: =39/10 -> 3.9 | P55: 3.727272727 | Q55: 3.583333333 | R55: 3.384615385 | S55: 3.214285714 | T55: 3.066666667 | U55: 2.9375 | V55: 2.764705882 | W55: 2.611111111 | X55: 2.473684211 | Y55: 2.35
B56: 13 | C56: 54 | D56: 7 | E56: 0 | F56: 7 | G56: =13/2 -> 6.5 | H56: =18/3 -> 6 | I56: =23/4 -> 5.75 | J56: =27/5 -> 5.4 | K56: =31/6 -> 5.166666667 | L56: =35/7 -> 5 | M56: =38/8 -> 4.75 | N56: =41/9 -> 4.555555556 | O56: =44/10 -> 4.4 | P56: =46/11 -> 4.181818182 | Q56: =48/12 -> 4 | R56: =50/13 -> 3.846153846 | S56: =51/14 -> 3.642857143 | T56: =52/15 -> 3.466666667 | U56: =53/16 -> 3.3125 | V56: =54/V42 -> 3.176470588 | W56: =54/W42 -> 3 | X56: =54/X42 -> 2.842105263 | Y56: =54/Y42 -> 2.7
B57: 14 | C57: 54 | D57: 7 | E57: 0 | F57: 7 | G57: =13/2 -> 6.5 | H57: =18/3 -> 6 | I57: =23/4 -> 5.75 | J57: =27/5 -> 5.4 | K57: =31/6 -> 5.166666667 | L57: =35/7 -> 5 | M57: =38/8 -> 4.75 | N57: =41/9 -> 4.555555556 | O57: 4.4 | P57: 4.181818182 | Q57: 4 | R57: 3.846153846 | S57: 3.642857143 | T57: 3.466666667 | U57: 3.3125 | V57: 3.176470588 | W57: 3 | X57: 2.842105263 | Y57: 2.7
B58: 15 | C58: 62 | D58: 8 | E58: 0 | F58: 8 | G58: =15/2 -> 7.5 | H58: =21/3 -> 7 | I58: =26/4 -> 6.5 | J58: =31/5 -> 6.2 | K58: =35/6 -> 5.833333333 | L58: =39/7 -> 5.571428571 | M58: =43/8 -> 5.375 | N58: =46/9 -> 5.111111111 | O58: =49/10 -> 4.9 | P58: =52/11 -> 4.727272727 | Q58: =54/12 -> 4.5 | R58: =56/13 -> 4.307692308 | S58: =58/14 -> 4.142857143 | T58: =59/15 -> 3.933333333 | U58: =60/16 -> 3.75 | V58: =61/17 -> 3.588235294 | W58: =62/W42 -> 3.444444444 | X58: =62/X42 -> 3.263157895 | Y58: =62/Y42 -> 3.1
B59: 16 | C59: 62 | D59: 8 | E59: 0 | F59: 8 | G59: =15/2 -> 7.5 | H59: =21/3 -> 7 | I59: =26/4 -> 6.5 | J59: =31/5 -> 6.2 | K59: =35/6 -> 5.833333333 | L59: =39/7 -> 5.571428571 | M59: =43/8 -> 5.375 | N59: =46/9 -> 5.111111111 | O59: =49/10 -> 4.9 | P59: 4.727272727 | Q59: 4.5 | R59: 4.307692308 | S59: 4.142857143 | T59: =59/15 -> 3.933333333 | U59: 3.75 | V59: 3.588235294 | W59: 3.444444444 | X59: 3.263157895 | Y59: 3.1
B60: 17 | C60: 71 | D60: 9 | E60: 0 | F60: 9 | G60: =17/2 -> 8.5 | H60: =24/3 -> 8 | I60: =30/4 -> 7.5 | J60: =35/5 -> 7 | K60: =40/6 -> 6.666666667 | L60: =44/7 -> 6.285714286 | M60: =48/8 -> 6 | N60: =52/9 -> 5.777777778 | O60: =55/10 -> 5.5 | P60: =58/11 -> 5.272727273 | Q60: =61/12 -> 5.083333333 | R60: =63/13 -> 4.846153846 | S60: =65/14 -> 4.642857143 | T60: =67/15 -> 4.466666667 | U60: =68/16 -> 4.25 | V60: =69/17 -> 4.058823529 | W60: =70/18 -> 3.888888889 | X60: =71/19 -> 3.736842105 | Y60: =71/20 -> 3.55
B61: 18 | C61: 76 | D61: 9 | E61: 0 | F61: 9 | G61: =17/2 -> 8.5 | H61: =24/3 -> 8 | I61: =30/4 -> 7.5 | J61: =35/5 -> 7 | K61: =40/6 -> 6.666666667 | L61: =45/7 -> 6.428571429 | M61: =49/8 -> 6.125 | N61: =53/9 -> 5.888888889 | O61: =57/10 -> 5.7 | P61: =60/11 -> 5.454545455 | Q61: =63/12 -> 5.25 | R61: =66/13 -> 5.076923077 | S61: =68/14 -> 4.857142857 | T61: =70/15 -> 4.666666667 | U61: =72/16 -> 4.5 | V61: =73/17 -> 4.294117647 | W61: =74/18 -> 4.111111111 | X61: =75/19 -> 3.947368421 | Y61: =76/20 -> 3.8
B62: 19 | C62: 82 | D62: 9 | E62: 0 | F62: 9 | G62: =17/2 -> 8.5 | H62: =24/3 -> 8 | I62: =30/4 -> 7.5 | J62: =36/5 -> 7.2 | K62: =41/6 -> 6.833333333 | L62: =46/7 -> 6.571428571 | M62: =51/8 -> 6.375 | N62: =55/9 -> 6.111111111 | O62: =59/10 -> 5.9 | P62: =63/11 -> 5.727272727 | Q62: =66/12 -> 5.5 | R62: =69/13 -> 5.307692308 | S62: =72/14 -> 5.142857143 | T62: =74/15 -> 4.933333333 | U62: =76/16 -> 4.75 | V62: =78/17 -> 4.588235294 | W62: =79/18 -> 4.388888889 | X62: =80/19 -> 4.210526316 | Y62: =81/20 -> 4.05
B63: 20 | C63: 89 | D63: 9 | E63: 0 | F63: 9 | G63: =17/2 -> 8.5 | H63: =24/3 -> 8 | I63: =31/4 -> 7.75 | J63: =37/5 -> 7.4 | K63: =43/6 -> 7.166666667 | L63: =48/7 -> 6.857142857 | M63: =53/8 -> 6.625 | N63: =58/9 -> 6.444444444 | O63: =62/10 -> 6.2 | P63: =66/11 -> 6 | Q63: =70/12 -> 5.833333333 | R63: =73/13 -> 5.615384615 | S63: =76/14 -> 5.428571429 | T63: =79/15 -> 5.266666667 | U63: =81/16 -> 5.0625 | V63: =83/17 -> 4.882352941 | W63: =85/18 -> 4.722222222 | X63: =86/19 -> 4.526315789 | Y63: =87/20 -> 4.35
B69: Progresion:
B70: Level | C70: 1 | D70: 2 | E70: 3 | F70: 4 | G70: 5 | H70: 6 | I70: 7 | J70: 8 | K70: 9 | L70: 10 | M70: 11 | N70: 12 | O70: 13 | P70: 14 | Q70: 15 | R70: 16 | S70: 17 | T70: 18 | U70: 19 | V70: 20
B71: pct of fights without creatures with blindsight, truesight, tremorsense | C71: 0.85 | D71: 0.85 | E71: 0.85 | F71: 0.85 | G71: 0.85 | H71: 0.83 | I71: 0.81 | J71: 0.79 | K71: 0.77 | L71: 0.74 | M71: 0.72 | N71: 0.69 | O71: 0.65 | P71: 0.61 | Q71: 0.57 | R71: 0.52 | S71: 0.48 | T71: 0.42 | U71: 0.37 | V71: 0.32
B72: Monster Saves
B73: avg monster str save | C73: 0.2 | D73: 0.7 | E73: 1.5 | F73: 2.2 | G73: 2.5 | H73: 3 | I73: 3 | J73: 3.3 | K73: 3.6 | L73: 4 | M73: 4.3 | N73: 4.6 | O73: 5 | P73: 5.2 | Q73: 5.4 | R73: 5.6 | S73: 5.8 | T73: 6 | U73: 7 | V73: 8
B74: avg monster dex save | C74: 1 | D74: 1.3 | E74: 1.5 | F74: 1.7 | G74: 1.85 | H74: 2 | I74: 2.2 | J74: 2.5 | K74: 2.75 | L74: 3 | M74: 3.25 | N74: 3.5 | O74: 3.75 | P74: 4 | Q74: 5 | R74: 6 | S74: 6.5 | T74: 7 | U74: 7.5 | V74: 8
B75: avg monster con save | C75: 1 | D75: 1.5 | E75: 2 | F75: 2.5 | G75: 3 | H75: 3.5 | I75: 4 | J75: 4.5 | K75: 5 | L75: 5.5 | M75: 6 | N75: 6.5 | O75: 7 | P75: 8 | Q75: 9 | R75: 10 | S75: 11 | T75: 12 | U75: 13 | V75: 13
B76: avg monster int save | C76: -2 | D76: -1.3 | E76: -1 | F76: -0.5 | G76: -0.25 | H76: 0 | I76: 0.5 | J76: 1 | K76: 1.5 | L76: 2 | M76: 2.5 | N76: 3 | O76: 3 | P76: 3.25 | Q76: 3.5 | R76: 4 | S76: 4 | T76: 5 | U76: 6 | V76: 7
B77: avg monster wis save | C77: -0.5 | D77: 0 | E77: 0.5 | F77: 1 | G77: 1.50 | H77: 2 | I77: 2.5 | J77: 3 | K77: 3.5 | L77: 4 | M77: 4.5 | N77: 5 | O77: 5.5 | P77: 6 | Q77: 6.5 | R77: 7 | S77: 7.5 | T77: 8 | U77: 8.5 | V77: 9
B78: avg monster cha save | C78: -2 | D78: -1 | E78: 0 | F78: 0.25 | G78: 0.5 | H78: 0.75 | I78: 1 | J78: 2 | K78: 2.5 | L78: 3 | M78: 3.5 | N78: 4 | O78: 4.5 | P78: 5 | Q78: 6 | R78: 6.5 | S78: 7 | T78: 8 | U78: 9 | V78: 9
B79: Avg Monster DPR | C79: 2.5 | D79: 4.5 | E79: 7 | F79: 11.5 | G79: 17.5 | H79: 23.5 | I79: 29.5 | J79: 35.5 | K79: 41.5 | L79: 47.5 | M79: 53.5 | N79: 59.5 | O79: 65.5 | P79: 71.5 | Q79: 77.5 | R79: 83.5 | S79: 89.5 | T79: 95.5 | U79: 101.5 | V79: 107.5
B80: Monster NonMagic Weapon Immunity/Resistance
B81: pct of monsters w/o non-magic weapon immunity | C81: 0.95 | D81: 0.9 | E81: 0.87 | F81: 0.83 | G81: 0.8 | H81: 0.78 | I81: 0.75 | J81: 0.73 | K81: 0.71 | L81: 0.69 | M81: 0.67 | N81: 0.64 | O81: 0.62 | P81: 0.59 | Q81: 0.56 | R81: 0.54 | S81: 0.52 | T81: 0.5 | U81: 0.5 | V81: 0.5
B83: pct of mosters w/o blindsight, tremorsense | C83: 0.85 | D83: 0.85 | E83: 0.85 | F83: 0.85 | G83: 0.85 | H83: 0.85 | I83: 0.85 | J83: 0.85 | K83: 0.84 | L83: 0.83 | M83: 0.81 | N83: 0.79 | O83: 0.77 | P83: 0.75 | Q83: 0.73 | R83: 0.71 | S83: 0.7 | T83: 0.69 | U83: 0.68 | V83: 0.67
B84: pct of monsters reliant on darkvision | C84: 0.45 | D84: 0.48 | E84: 0.49 | F84: 0.51 | G84: 0.53 | H84: 0.53 | I84: 0.53 | J84: 0.53 | K84: 0.52 | L84: 0.5 | M84: 0.48 | N84: 0.45 | O84: 0.44 | P84: 0.42 | Q84: 0.4 | R84: 0.38 | S84: 0.37 | T84: 0.35 | U84: 0.32 | V84: 0.27
B85: pct monsters immune to fear | C85: 0.13 | D85: 0.14 | E85: 0.15 | F85: 0.16 | G85: 0.17 | H85: 0.19 | I85: 0.21 | J85: 0.23 | K85: 0.25 | L85: 0.28 | M85: 0.3 | N85: 0.34 | O85: 0.36 | P85: 0.39 | Q85: 0.42 | R85: 0.46 | S85: 0.49 | T85: 0.51 | U85: 0.53 | V85: 0.56
B86: pct of mosters immune to darkness | C86: 0.1778407943 | D86: 0.1693495471 | E86: 0.1615978853 | F86: 0.154212058 | G86: 0.1541072847 | H86: 0.1684518052 | I86: 0.1868823903 | J86: 0.2071889064 | K86: 0.2311060227 | L86: 0.2568811547 | M86: 0.2822225037 | N86: 0.3095671989 | O86: 0.3437865985 | P86: 0.3832105789 | Q86: 0.426634354 | R86: 0.4720991439 | S86: 0.5207158028 | T86: 0.5754498278 | U86: 0.630639067 | V86: 0.6774099328
B87: pct of mosters H or G or prone immune | C87: 0.07971370995 | D87: 0.1002782462 | E87: 0.1211388553 | F87: 0.1420169352 | G87: 0.1638265804 | H87: 0.1801668745 | I87: 0.2013013503 | J87: 0.2246516115 | K87: 0.2484938287 | L87: 0.2748833914 | M87: 0.3044831773 | N87: 0.3373235243 | O87: 0.3728708714 | P87: 0.4075877223 | Q87: 0.4407896003 | R87: 0.474530058 | S87: 0.5075957545 | T87: 0.5346004477 | U87: 0.5565151039 | V87: 0.5799165348
B88: pct of mosters G or prone immune | C88: 0.0703962058 | D88: 0.07667158736 | E88: 0.08272659218 | F88: 0.08823035938 | G88: 0.08955563342 | H88: 0.086897363 | I88: 0.09063816699 | J88: 0.09432726716 | K88: 0.09688357174 | L88: 0.1001333183 | M88: 0.1051848586 | N88: 0.1124928227 | O88: 0.1242299623 | P88: 0.1408251171 | Q88: 0.1628166349 | R88: 0.1926152222 | S88: 0.2283156782 | T88: 0.266934349 | U88: 0.3092063673 | V88: 0.3532972928
C94: Smoothed average immunities and resistances by CR for 1522 published monsters with CR > 0
B95: CR | C95: darkness defeaters | D95: obscurement defeaters | E95: darkvision reliant | F95: blindsense | G95: darkvision | H95: truesight | I95: tremorsense | K95: nonmagic weapon immunity | L95: nonmagic weapon resist | M95: nonmagic / nonsilver weapon resistance | O95: combined nonmagic resistance / immunity | Q95: blinded | R95: charmed | S95: deafened | T95: frightened | U95: grappled | V95: incapacitated | W95: invisible | X95: paralyzed | Y95: petrified | Z95: poisoned | AA95: prone | AB95: restrained | AC95: stunned | AD95: unconscious | AE95: exhaustion | AG95: size H, G or prone immune | AH95: size G or prone immune
B96: 0.125 | C96: 0.1859979285 | D96: 0.1728301836 | E96: 0.4409700132 | F96: 0.1618827051 | G96: 0.4664772344 | H96: 0.01258397015 | I96: 0.01234264338 | K96: 0.006676686489 | L96: 0.01726686655 | M96: 0.004483596968 | O96: =K96+L96 -> 0.02394355304 | Q96: 0.08547292532 | R96: 0.1186640844 | S96: 0.06326471362 | T96: 0.1156142516 | U96: 0.04004750275 | V96: 0 | W96: 0 | X96: 0.09476731293 | Y96: 0.07876801459 | Z96: 0.1513437932 | AA96: 0.0640651476 | AB96: 0.03990111679 | AC96: 0.02858558138 | AD96: 0.004094245607 | AE96: 0.09031833772 | AG96: 0.06200332747 | AH96: 0.06488447813
B97: 0.25 | C97: 0.1847805302 | D97: 0.1714390397 | E97: 0.4434076915 | F97: 0.1602046295 | G97: 0.4697753898 | H97: 0.01277536074 | I97: 0.0126659191 | K97: 0.007604183832 | L97: 0.02122244616 | M97: 0.005080209098 | O97: 0.02882662999 | Q97: 0.08457835192 | R97: 0.1204989114 | S97: 0.06248164932 | T97: 0.1171641874 | U97: 0.04064218173 | V97: 0 | W97: 0 | X97: 0.09624552989 | Y97: 0.07978205029 | Z97: 0.1548199364 | AA97: 0.06479674463 | AB97: 0.04036555571 | AC97: 0.02835673004 | AD97: 0.004610248123 | AE97: 0.09293732942 | AG97: 0.06451896817 | AH97: 0.0656731315
B98: 0.5 | C98: 0.1823995429 | D98: 0.168707728 | E98: 0.4482628196 | F98: 0.1568991901 | G98: 0.4763478381 | H98: 0.01316159867 | I98: 0.01331176974 | K98: 0.009436256858 | L98: 0.02911048669 | M98: 0.006256194746 | O98: 0.03854674355 | Q98: 0.08282333952 | R98: 0.1241508805 | S98: 0.06093735042 | T98: 0.1202704975 | U98: 0.04181766064 | V98: 0 | W98: 0 | X98: 0.09921001229 | Y98: 0.08181094508 | Z98: 0.1617606256 | AA98: 0.06625349956 | AB98: 0.04127750679 | AC98: 0.02791103181 | AD98: 0.005629545292 | AE98: 0.0981390137 | AG98: 0.06956185478 | AH98: 0.06724652111
B99: 1 | C99: 0.1778407943 | D99: 0.1634349288 | E99: 0.4579174864 | F99: 0.1504837355 | G99: 0.4894266188 | H99: 0.01394958191 | I99: 0.01459904758 | K99: 0.01300229741 | L99: 0.04480609153 | M99: 0.008539296287 | O99: 0.05780838894 | Q99: 0.0794539136 | R99: 0.1314077809 | S99: 0.05794568991 | T99: 0.1265380271 | U99: 0.04412042801 | V99: 0 | W99: 0 | X99: 0.1051912833 | Y99: 0.08589282531 | Z99: 0.1756297588 | AA99: 0.06916133247 | AB99: 0.04303975405 | AC99: 0.02707241788 | AD99: 0.00762074739 | AE99: 0.1084251674 | AG99: 0.07971370995 | AH99: 0.0703962058
B100: 2 | C100: 0.1693495471 | D100: 0.1534354657 | E100: 0.4771436998 | F100: 0.1382690919 | G100: 0.5154955396 | H100: 0.01561387314 | I100: 0.0171531346 | K100: 0.01964449333 | L100: 0.07591548504 | M100: 0.01283582184 | O100: 0.09555997837 | Q100: 0.0732157774 | R100: 0.1457075594 | S100: 0.05234232922 | T100: 0.1392421587 | U100: 0.04845671334 | V100: 0 | W100: 0 | X100: 0.1172763153 | Y100: 0.0941101867 | Z100: 0.2033873292 | AA100: 0.07491352232 | AB100: 0.04624655086 | AC100: 0.02556352475 | AD100: 0.01144199693 | AE100: 0.1285221147 | AG100: 0.1002782462 | AH100: 0.07667158736
B101: 3 | C101: 0.1615978853 | D101: 0.1440678623 | E101: 0.496157452 | F101: 0.1268208224 | G101: 0.5413448412 | H101: 0.01740887564 | I101: 0.01965174898 | K101: 0.0253963797 | L101: 0.106578788 | M101: 0.01685973392 | O101: 0.1319751677 | Q101: 0.06741552103 | R101: 0.1591744978 | S101: 0.04710536724 | T101: 0.1515911508 | U101: 0.05215741657 | V101: 0 | W101: 0 | X101: 0.1289142779 | Y101: 0.1018943869 | Z101: 0.2306605984 | AA101: 0.08037148616 | AB101: 0.04882017716 | AC101: 0.0241713216 | AD101: 0.0150372586 | AE101: 0.1473625386 | AG101: 0.1211388553 | AH101: 0.08272659218
B102: 4 | C102: 0.154212058 | D102: 0.1351984124 | E102: 0.5146141709 | F102: 0.1159721994 | G102: 0.5661114423 | H102: 0.01910880131 | I102: 0.02197991354 | K102: 0.03033881873 | L102: 0.1368823121 | M102: 0.02109256548 | O102: 0.1672211308 | Q102: 0.06140334103 | R102: 0.1711858151 | S102: 0.04171217506 | T102: 0.1625525445 | U102: 0.05521462468 | V102: 0 | W102: 0 | X102: 0.1391727842 | Y102: 0.1082588214 | Z102: 0.2567526591 | AA102: 0.08522804446 | AB102: 0.05083490958 | AC102: 0.02251332027 | AD102: 0.01849125153 | AE102: 0.1641463767 | AG102: 0.1420169352 | AH102: 0.08823035938
B103: 5 | C103: 0.1541072847 | D103: 0.1317873737 | E103: 0.531034001 | F103: 0.1116650008 | G103: 0.5883056378 | H103: 0.02280389251 | I103: 0.02257255394 | K103: 0.03311529826 | L103: 0.1626157525 | M103: 0.0245611934 | O103: 0.1957310507 | Q103: 0.05712088806 | R103: 0.1819215559 | S103: 0.03810066927 | T103: 0.1729883476 | U103: 0.0553906967 | V103: 0 | W103: 0 | X103: 0.1453338666 | Y103: 0.1099710381 | Z103: 0.2779347469 | AA103: 0.08518917197 | AB103: 0.05013340462 | AC103: 0.02059561413 | AD103: 0.02043643701 | AE103: 0.1707900951 | AG103: 0.1638265804 | AH103: 0.08955563342
B104: 6 | C104: 0.1684518052 | D104: 0.1340470367 | E104: 0.5343630114 | F104: 0.1147540213 | G104: 0.6043318332 | H104: 0.03520137299 | I104: 0.02156759271 | K104: 0.03610253309 | L104: 0.1839167177 | M104: 0.02501882189 | O104: 0.2200192508 | Q104: 0.05482095793 | R104: 0.1966468557 | S104: 0.03745154973 | T104: 0.1898581232 | U104: 0.05091296494 | V104: 0 | W104: 0 | X104: 0.1495927454 | Y104: 0.1111779268 | Z104: 0.2954069909 | AA104: 0.08003542218 | AB104: 0.04582323984 | AC104: 0.02157940816 | AD104: 0.01919837633 | AE104: 0.1748763643 | AG104: 0.1801668745 | AH104: 0.086897363
B105: 7 | C105: 0.1868823903 | D105: 0.140220847 | E105: 0.5347594598 | F105: 0.12190745 | G105: 0.6143054148 | H105: 0.04916172678 | I105: 0.0207919466 | K105: 0.03900988921 | L105: 0.2042125893 | M105: 0.02621554761 | O105: 0.2432224785 | Q105: 0.05430881472 | R105: 0.2142787619 | S105: 0.03830719223 | T105: 0.2108197877 | U105: 0.04540293607 | V105: 0 | W105: 0 | X105: 0.1548687724 | Y105: 0.1173428334 | Z105: 0.3114461019 | AA105: 0.07896283648 | AB105: 0.04094552336 | AC105: 0.02353679699 | AD105: 0.01808156082 | AE105: 0.1851540627 | AG105: 0.2013013503 | AH105: 0.09063816699
B106: 8 | C106: 0.2071889064 | D106: 0.1469794829 | E106: 0.5306749577 | F106: 0.1299223654 | G106: 0.6197887133 | H106: 0.06439790647 | I106: 0.02015509462 | K106: 0.03980758699 | L106: 0.2242838137 | M106: 0.02804130245 | O106: 0.2640914007 | Q106: 0.05375964041 | R106: 0.2305719088 | S106: 0.03881317418 | T106: 0.229195743 | U106: 0.04105101017 | V106: 0 | W106: 0 | X106: 0.1586758931 | Y106: 0.1210428911 | Z106: 0.3269569343 | AA106: 0.07744687326 | AB106: 0.03729133777 | AC106: 0.02384175594 | AD106: 0.01787590715 | AE106: 0.194513047 | AG106: 0.2246516115 | AH106: 0.09432726716
B107: 9 | C107: 0.2311060227 | D107: 0.1565597984 | E107: 0.5199942049 | F107: 0.1410561647 | G107: 0.6189541418 | H107: 0.08194110276 | I107: 0.01975386807 | K107: 0.04040971613 | L107: 0.2442094973 | M107: 0.03054520982 | O107: 0.2846192134 | Q107: 0.05281323893 | R107: 0.2489110562 | S107: 0.03880312367 | T107: 0.2494936827 | U107: 0.03628149901 | V107: 0 | W107: 0 | X107: 0.160892385 | Y107: 0.1198325158 | Z107: 0.3380254642 | AA107: 0.0721493417 | AB107: 0.03354378239 | AC107: 0.02221651073 | AD107: 0.01722341684 | AE107: 0.199122393 | AG107: 0.2484938287 | AH107: 0.09688357174
B108: 10 | C108: 0.2568811547 | D108: 0.1710546594 | E108: 0.5021061753 | F108: 0.1553804346 | G108: 0.6111863 | H108: 0.103429538 | I108: 0.02056454522 | K108: 0.04320940798 | L108: 0.2653617802 | M108: 0.03389995703 | O108: 0.3085711882 | Q108: 0.05172896634 | R108: 0.2718778955 | S108: 0.03919814471 | T108: 0.2756918065 | U108: 0.03115454304 | V108: 0 | W108: 0 | X108: 0.1664070248 | Y108: 0.115279209 | Z108: 0.3445922385 | AA108: 0.06340938213 | AB108: 0.02947128167 | AC108: 0.02008541836 | AD108: 0.0157667669 | AE108: 0.2023887473 | AG108: 0.2748833914 | AH108: 0.1001333183
B109: 11 | C109: 0.2822225037 | D109: 0.1904291336 | E109: 0.4767120972 | F109: 0.1736085033 | G109: 0.5950498408 | H109: 0.1278574133 | I109: 0.02310755149 | K109: 0.04625177701 | L109: 0.2870772654 | M109: 0.03897256147 | O109: 0.3333290424 | Q109: 0.05100724075 | R109: 0.2977708393 | S109: 0.04046189358 | T109: 0.3050696592 | U109: 0.02650495949 | V109: 0 | W109: 0 | X109: 0.1768717668 | Y109: 0.1111311849 | Z109: 0.3483420946 | AA109: 0.05429907115 | AB109: 0.02592101119 | AC109: 0.02073671657 | AD109: 0.01468548071 | AE109: 0.2058546054 | AG109: 0.3044831773 | AH109: 0.1051848586
B110: 12 | C110: 0.3095671989 | D110: 0.2107224929 | E110: 0.4562019527 | F110: 0.1930154619 | G110: 0.5767732387 | H110: 0.1499120623 | I110: 0.02764290062 | K110: 0.04999989467 | L110: 0.3086892511 | M110: 0.04641367076 | O110: 0.3586891458 | Q110: 0.05106635766 | R110: 0.3229651387 | S110: 0.04229141352 | T110: 0.3352357342 | U110: 0.02473446572 | V110: 0 | W110: 0 | X110: 0.1912403747 | Y110: 0.1106983567 | Z110: 0.3579568819 | AA110: 0.04816816811 | AB110: 0.02550891765 | AC110: 0.02550865834 | AD110: 0.01476955538 | AE110: 0.2095615787 | AG110: 0.3373235243 | AH110: 0.1124928227
B111: 13 | C111: 0.3437865985 | D111: 0.2306338202 | E111: 0.4430867048 | F111: 0.2115003194 | G111: 0.5614374799 | H111: 0.16822238 | I111: 0.03102812308 | K111: 0.05519046259 | L111: 0.3286989595 | M111: 0.0549055556 | O111: 0.3838894221 | Q111: 0.05125473007 | R111: 0.3440357457 | S111: 0.04248621224 | T111: 0.363333183 | U111: 0.02585702334 | V111: 0 | W111: 0 | X111: 0.2067921404 | Y111: 0.1126111747 | Z111: 0.3788239249 | AA111: 0.04543055584 | AB111: 0.02733505725 | AC111: 0.03296698135 | AD111: 0.01471893109 | AE111: 0.2123626558 | AG111: 0.3728708714 | AH111: 0.1242299623
B112: 14 | C112: 0.3832105789 | D112: 0.2490324547 | E112: 0.4254057252 | F112: 0.2255470378 | G112: 0.5356516585 | H112: 0.1874898939 | I112: 0.03161950048 | K112: 0.06077759258 | L112: 0.3468522487 | M112: 0.06320812133 | O112: 0.4076298413 | Q112: 0.0507063712 | R112: 0.3647711334 | S112: 0.03914953922 | T112: 0.3936341019 | U112: 0.03037468116 | V112: 0 | W112: 0 | X112: 0.2259312747 | Y112: 0.1218628452 | Z112: 0.4052256174 | AA112: 0.04615892233 | AB112: 0.03187993823 | AC112: 0.04556630272 | AD112: 0.01361712248 | AE112: 0.2163769541 | AG112: 0.4075877223 | AH112: 0.1408251171
B113: 15 | C113: 0.426634354 | D113: 0.2674817414 | E113: 0.4031954746 | F113: 0.2364480419 | G113: 0.5082813835 | H113: 0.2086959143 | I113: 0.02626770689 | K113: 0.07066844604 | L113: 0.364084428 | M113: 0.07233080019 | O113: 0.4347528741 | Q113: 0.05221374232 | R113: 0.3904343611 | S113: 0.03356774242 | T113: 0.4259974774 | U113: 0.03823800592 | V113: 0 | W113: 0 | X113: 0.2475690348 | Y113: 0.1399561038 | Z113: 0.4345452318 | AA113: 0.05321019867 | AB113: 0.03510301629 | AC113: 0.06480910425 | AD113: 0.01138535019 | AE113: 0.2209322627 | AG113: 0.4407896003 | AH113: 0.1628166349
B114: 16 | C114: 0.4720991439 | D114: 0.2861901373 | E114: 0.384190512 | F114: 0.2452233878 | G114: 0.489248993 | H114: 0.2322257459 | I114: 0.02356882752 | K114: 0.08523107546 | L114: 0.3684324351 | M114: 0.08189410397 | O114: 0.4536635105 | Q114: 0.05897344971 | R114: 0.420048924 | S114: 0.02870326103 | T114: 0.4580417106 | U114: 0.04764654447 | V114: 0 | W114: 0 | X114: 0.2734852211 | Y114: 0.1613967322 | Z114: 0.4700691724 | AA114: 0.06968394803 | AB114: 0.03643894472 | AC114: 0.08464042189 | AD114: 0.008478366897 | AE114: 0.2297607906 | AG114: 0.474530058 | AH114: 0.1926152222
B115: 17 | C115: 0.5207158028 | D115: 0.3011773043 | E115: 0.3682058398 | F115: 0.2533383486 | G115: 0.4759981105 | H115: 0.2577606821 | I115: 0.02106310051 | K115: 0.1075558558 | L115: 0.3424934274 | M115: 0.08901160666 | O115: 0.4500492833 | Q115: 0.06743996028 | R115: 0.4536166306 | S115: 0.02581713481 | T115: 0.4880561484 | U115: 0.054950464 | V115: 0 | W115: 0 | X115: 0.3017594598 | Y115: 0.1756423492 | Z115: 0.511600537 | AA115: 0.08427331415 | AB115: 0.04057239931 | AC115: 0.1045818121 | AD115: 0.006400937211 | AE115: 0.2489792474 | AG115: 0.5075957545 | AH115: 0.2283156782
B116: 18 | C116: 0.5754498278 | D116: 0.3130951355 | E116: 0.348155426 | F116: 0.2615507792 | G116: 0.4630887739 | H116: 0.2866453314 | I116: 0.01887012374 | K116: 0.1305602651 | L116: 0.3141608525 | M116: 0.09576327484 | O116: 0.4447211176 | Q116: 0.074637235 | R116: 0.481951429 | S116: 0.02481870005 | T116: 0.5126096559 | U116: 0.06136589649 | V116: 0 | W116: 0 | X116: 0.333894199 | Y116: 0.1879591772 | Z116: 0.5595068861 | AA116: 0.09446900193 | AB116: 0.04695467944 | AC116: 0.126095949 | AD116: 0.005196223256 | AE116: 0.2816771663 | AG116: 0.5346004477 | AH116: 0.266934349
B117: 19 | C117: 0.630639067 | D117: 0.3208111219 | E117: 0.3170033902 | F117: 0.2662126984 | G117: 0.4426112363 | H117: 0.3172360212 | I117: 0.01570301691 | K117: 0.153276716 | L117: 0.2856083427 | M117: 0.09721738131 | O117: 0.4388850587 | Q117: 0.08548024843 | R117: 0.5067204672 | S117: 0.02656016691 | T117: 0.5347428112 | U117: 0.06654417721 | V117: 0 | W117: 0 | X117: 0.3683810987 | Y117: 0.200649337 | Z117: 0.6015726643 | AA117: 0.1090893777 | AB117: 0.05178907832 | AC117: 0.1496914714 | AD117: 0.003058125278 | AE117: 0.3246374691 | AG117: 0.5565151039 | AH117: 0.3092063673
B118: 20 | C118: 0.6774099328 | D118: 0.3288171396 | E118: 0.2764682681 | F118: 0.2716351686 | G118: 0.4197749436 | H118: 0.3496385265 | I118: 0.01213334913 | K118: 0.1761383048 | L118: 0.2631362105 | M118: 0.09887645345 | O118: 0.4392745152 | Q118: 0.09692033518 | R118: 0.5368932692 | S118: 0.0293389768 | T118: 0.5590223453 | U118: 0.0582359494 | V118: 0 | W118: 0 | X118: 0.4062625148 | Y118: 0.2006263003 | Z118: 0.630641046 | AA118: 0.1172233458 | AB118: 0.05118033523 | AC118: 0.1674372731 | AD118: 0.002456652673 | AE118: 0.3841626493 | AG118: 0.5799165348 | AH118: 0.3532972928
B119: 21 | C119: 0.7221332139 | D119: 0.3428476751 | E119: 0.2374793785 | F119: 0.284861369 | G119: 0.3969940415 | H119: 0.3807665466 | I119: 0.008415229665 | K119: 0.1993836591 | L119: 0.2413373818 | M119: 0.1010405023 | O119: 0.4407210408 | Q119: 0.1082984024 | R119: 0.5748235248 | S119: 0.03100356469 | T119: 0.5891714165 | U119: 0.04988689628 | V119: 0 | W119: 0 | X119: 0.4471823596 | Y119: 0.178359515 | Z119: 0.6535517632 | AA119: 0.1207353225 | AB119: 0.05102917372 | AC119: 0.1825138089 | AD119: 0.003502695501 | AE119: 0.4447572572 | AG119: 0.6069361911 | AH119: 0.3978542977
B120: 22 | C120: 0.766410086 | D120: 0.3585489682 | E120: 0.1999073693 | F120: 0.3001203438 | G120: 0.3744712773 | H120: 0.4119020867 | I120: 0.004684640568 | K120: 0.2231326347 | L120: 0.2192948782 | M120: 0.1033291099 | O120: 0.442427513 | Q120: 0.119700837 | R120: 0.6158409941 | S120: 0.03489165513 | T120: 0.6214160646 | U120: 0.04188412317 | V120: 0 | W120: 0 | X120: 0.4888867271 | Y120: 0.1555816947 | Z120: 0.6785689354 | AA120: 0.1224140506 | AB120: 0.0509856622 | AC120: 0.1967268702 | AD120: 0.004968944382 | AE120: 0.5067861301 | AG120: 0.6338978402 | AH120: 0.4419966652
B121: 23 | C121: 0.8100344744 | D121: 0.3742004767 | E121: 0.1627496915 | F121: 0.3165465477 | G121: 0.352077676 | H121: 0.4432140459 | I121: 0.001025635871 | K121: 0.2474920445 | L121: 0.1968080672 | M121: 0.1055384544 | O121: 0.4443001116 | Q121: 0.1312631551 | R121: 0.6565771933 | S121: 0.03959906895 | T121: 0.653454076 | U121: 0.03362817948 | V121: 0 | W121: 0 | X121: 0.5307324243 | Y121: 0.1320772927 | Z121: 0.7030937893 | AA121: 0.1230295374 | AB121: 0.05101323925 | AC121: 0.2106650989 | AD121: 0.006616475233 | AE121: 0.5701356247 | AG121: 0.659902331 | AH121: 0.4857947835
B122: 24 | C122: 0.8528974143 | D122: 0.3894311943 | E122: 0.1256133595 | F122: 0.3336175627 | G122: 0.329633619 | H122: 0.4748807912 | I122: -0.002512101153 | K122: 0.2725464369 | L122: 0.1738044083 | M122: 0.1075311662 | O122: 0.4463508452 | Q122: 0.1431443431 | R122: 0.6968877498 | S122: 0.0443133442 | T122: 0.6854657347 | U122: 0.0247977969 | V122: 0 | W122: 0 | X122: 0.5723207744 | Y122: 0.1075614856 | Z122: 0.7264042613 | AA122: 0.1229135347 | AB122: 0.05088375589 | AC122: 0.2242945278 | AD122: 0.008438755743 | AE122: 0.6342982892 | AG122: 0.6854459627 | AH122: 0.5293763268
B123: 25 | C123: 0.8951423374 | D123: 0.4047208829 | E123: 0.08835356762 | F123: 0.3514517292 | G123: 0.3069195208 | H123: 0.5065836468 | I123: -0.005900733389 | K123: 0.298327149 | L123: 0.1502912579 | M123: 0.1092173211 | O123: 0.4486184069 | Q123: 0.1554654433 | R123: 0.7379398773 | S123: 0.04855865277 | T123: 0.7184793202 | U123: 0.015198122 | V123: 0 | W123: 0 | X123: 0.61385511 | Y123: 0.08174768054 | Z123: 0.7489795069 | AA123: 0.1218642419 | AB123: 0.05033346663 | AC123: 0.2372559174 | AD123: 0.01048770457 | AE123: 0.6991782255 | AG123: 0.7111760284 | AH123: 0.5728319209
C126: Smoothed Damage Resistances | Q126: Smoothed Damage Immunities
B127: CR | C127: acid | D127: cold | E127: fire | F127: force | G127: lightning | H127: necrotic | I127: poison | J127: psychic | K127: radiant | L127: thunder | M127: bludge | N127: pierce | O127: slash | Q127: acid | R127: cold | S127: fire | T127: force | U127: lightning | V127: necrotic | W127: poison | X127: psychic | Y127: radiant | Z127: thunder | AA127: bludge | AB127: pierce | AC127: slash
B128: 0.125 | C128: 0.01403097638 | D128: 0.0408391859 | E128: 0.0362851697 | F128: 0 | G128: 0.03324130345 | H128: 0.006085255192 | I128: 0.03607140508 | J128: 0.001685953703 | K128: 0.001922871503 | L128: 0.00779356496 | M128: 0.02316899286 | N128: 0.04551923792 | O128: 0 | Q128: 0.001557214907 | R128: 0.0126168722 | S128: 0.03028689365 | T128: 0 | U128: 0.001891131113 | V128: 0.007516047412 | W128: 0.147262279 | X128: 0.03437871937 | Y128: 0 | Z128: 0 | AA128: 0 | AB128: 0 | AC128: 0
B129: 0.25 | C129: 0.01478637863 | D129: 0.04189700413 | E129: 0.0378868769 | F129: 0 | G129: 0.03441727559 | H129: 0.007672329545 | I129: 0.03602286899 | J129: 0.002070603651 | K129: 0.002016613056 | L129: 0.008488865704 | M129: 0.02291490962 | N129: 0.04500972378 | O129: 0 | Q129: 0.002181419213 | R129: 0.01388105117 | S129: 0.03081677344 | T129: 0 | U129: 0.002931675715 | V129: 0.008456770189 | W129: 0.1506925488 | X129: 0.03384510083 | Y129: 0 | Z129: 0 | AA129: 0 | AB129: 0 | AC129: 0
B130: 0.5 | C130: 0.01628491456 | D130: 0.04403217844 | E130: 0.04109768182 | F130: 0 | G130: 0.03677502162 | H130: 0.01081751356 | I130: 0.03591760243 | J130: 0.002853306689 | K130: 0.002198219351 | L130: 0.009876571681 | M130: 0.02240773958 | N130: 0.04399287947 | O130: 0 | Q130: 0.003419511389 | R130: 0.01637411086 | S130: 0.03187058514 | T130: 0 | U130: 0.005015020338 | V130: 0.01033310795 | W130: 0.1575399694 | X130: 0.03279064546 | Y130: 0 | Z130: 0 | AA130: 0 | AB130: 0 | AC130: 0
B131: 1 | C131: 0.01923176306 | D131: 0.04838803471 | E131: 0.04753603757 | F131: 0 | G131: 0.04151207826 | H131: 0.0169784198 | I131: 0.03568449368 | J131: 0.004475130868 | K131: 0.002538953363 | L131: 0.01263488687 | M131: 0.02139783013 | N131: 0.04196778093 | O131: 0 | Q131: 0.005855226786 | R131: 0.02120740123 | S131: 0.03397392316 | T131: 0 | U131: 0.0091919752 | V131: 0.01406319884 | W131: 0.1712114297 | X131: 0.03074082247 | Y131: 0 | Z131: 0 | AA131: 0 | AB131: 0 | AC131: 0
B132: 2 | C132: 0.02489425692 | D132: 0.05745030773 | E132: 0.06039347517 | F132: 0 | G132: 0.05103857739 | H132: 0.02867246348 | I132: 0.03518073585 | J132: 0.007962926838 | K132: 0.003138288633 | L132: 0.01802907219 | M132: 0.01939811751 | N132: 0.0379499256 | O132: 0 | Q132: 0.01059023674 | R132: 0.03019939922 | S132: 0.03820912569 | T132: 0 | U132: 0.01755883769 | V132: 0.02137287239 | W132: 0.198520473 | X132: 0.02693611807 | Y132: 0 | Z132: 0 | AA132: 0 | AB132: 0 | AC132: 0
B133: 3 | C133: 0.03023371484 | D133: 0.06694018306 | E133: 0.07310030562 | F133: 0 | G133: 0.06041898184 | H133: 0.039391551 | I133: 0.03463832747 | J133: 0.0117413903 | K133: 0.003608544109 | L133: 0.02313170951 | M133: 0.0174245004 | N133: 0.0339690713 | O133: 0 | Q133: 0.01522072733 | R133: 0.03834284781 | S133: 0.04226389579 | T133: 0 | U133: 0.02577274013 | V133: 0.02830467311 | W133: 0.2253302074 | X133: 0.02344115496 | Y133: 0 | Z133: 0 | AA133: 0 | AB133: 0 | AC133: 0
B134: 4 | C134: 0.03553016972 | D134: 0.07669698259 | E134: 0.08568305355 | F134: 0 | G134: 0.0695498361 | H134: 0.04977787859 | I134: 0.03382796366 | J134: 0.01546069814 | K134: 0.003944073797 | L134: 0.0280121178 | M134: 0.01547224399 | N134: 0.03001242441 | O134: 0 | Q134: 0.01994453636 | R134: 0.04634697011 | S134: 0.04561308688 | T134: 0 | U134: 0.03346361865 | V134: 0.03475225292 | W134: 0.2510657941 | X134: 0.01977631359 | Y134: 0 | Z134: 0 | AA134: 0 | AB134: 0 | AC134: 0
B135: 5 | C135: 0.04074165234 | D135: 0.09114579995 | E135: 0.1000465723 | F135: 0 | G135: 0.08053146435 | H135: 0.0586049735 | I135: 0.03204102421 | J135: 0.0189380142 | K135: 0.003553439204 | L135: 0.03247553547 | M135: 0.01353017604 | N135: 0.02605726876 | O135: 0 | Q135: 0.02462176511 | R135: 0.05134869817 | S135: 0.04569890224 | T135: 0 | U135: 0.03855920479 | V135: 0.03899772436 | W135: 0.2714726241 | X135: 0.01726178884 | Y135: 0 | Z135: 0 | AA135: 0 | AB135: 0 | AC135: 0
B136: 6 | C136: 0.04278353972 | D136: 0.1115729842 | E136: 0.1102861491 | F136: 0 | G136: 0.09381574588 | H136: 0.06210813712 | I136: 0.03088679507 | J136: 0.02126363159 | K136: 0.00423622531 | L136: 0.03433469766 | M136: 0.01157391915 | N136: 0.02206380642 | O136: 0 | Q136: 0.02824230045 | R136: 0.05454337291 | S136: 0.04992717811 | T136: 0 | U136: 0.04022969845 | V136: 0.04460372661 | W136: 0.2870611135 | X136: 0.02049771389 | Y136: 0 | Z136: 0 | AA136: 0 | AB136: 0 | AC136: 0
B137: 7 | C137: 0.04531603139 | D137: 0.1318656833 | E137: 0.1149974008 | F137: 0 | G137: 0.1049696272 | H137: 0.06158462526 | I137: 0.0273299313 | J137: 0.02050554873 | K137: 0.008689156767 | L137: 0.0345608894 | M137: 0.009546851969 | N137: 0.01795479865 | O137: 0 | Q137: 0.0301206777 | R137: 0.05821922733 | S137: 0.05773922289 | T137: 0 | U137: 0.04343048388 | V137: 0.04981878199 | W137: 0.3016628382 | X137: 0.02979335141 | Y137: 0 | Z137: 0 | AA137: 0 | AB137: 0 | AC137: 0
B138: 8 | C138: 0.0484321114 | D138: 0.1522489985 | E138: 0.1184387515 | F138: 0 | G138: 0.1156422764 | H138: 0.05978656987 | I138: 0.02324578205 | J138: 0.01947834155 | K138: 0.01333439845 | L138: 0.03487694157 | M138: 0.007297417663 | N138: 0.01369199663 | O138: 0 | Q138: 0.03304818473 | R138: 0.06080402903 | S138: 0.06329421417 | T138: 0 | U138: 0.04677854384 | V138: 0.05374711823 | W138: 0.3152872944 | X138: 0.03822446349 | Y138: 0 | Z138: 0 | AA138: 0 | AB138: 0 | AC138: 0
B139: 9 | C139: 0.05019923101 | D139: 0.1745623877 | E139: 0.1188504366 | F139: 0 | G139: 0.1245446063 | H139: 0.06030140461 | I139: 0.0194811188 | J139: 0.01678291201 | K139: 0.01728418973 | L139: 0.03448127559 | M139: 0.004369266412 | N139: 0.01023355575 | O139: 0 | Q139: 0.03617730352 | R139: 0.06311464155 | S139: 0.06851527223 | T139: 0 | U139: 0.05007116144 | V139: 0.05642209947 | W139: 0.3236806748 | X139: 0.04829624865 | Y139: 0 | Z139: 0 | AA139: 0 | AB139: 0 | AC139: 0
B140: 10 | C140: 0.0491523555 | D140: 0.1969625982 | E140: 0.1155285229 | F140: 0 | G140: 0.1293086487 | H140: 0.06564515685 | I140: 0.01582184621 | J140: 0.01277466723 | K140: 0.02083066834 | L140: 0.03286988245 | M140: 0.000537686161 | N140: 0.006254223255 | O140: 0 | Q140: 0.03929346978 | R140: 0.06531432886 | S140: 0.07480217047 | T140: 0 | U140: 0.05409809423 | V140: 0.06058641368 | W140: 0.3279574705 | X140: 0.06021344589 | Y140: 0 | Z140: 0 | AA140: 0 | AB140: 0 | AC140: 0
B141: 11 | C141: 0.04467909153 | D141: 0.2146206631 | E141: 0.1084388737 | F141: 0 | G141: 0.1272641303 | H141: 0.07539106433 | I141: 0.01271861614 | J141: 0.008972980199 | K141: 0.02370670555 | L141: 0.02979334946 | M141: 0 | N141: 0.002307669578 | O141: 0 | Q141: 0.04082200279 | R141: 0.0669208398 | S141: 0.0840021268 | T141: 0 | U141: 0.05963128842 | V141: 0.06681065004 | W141: 0.3316223118 | X141: 0.07203432748 | Y141: 0 | Z141: 0 | AA141: 0 | AB141: 0 | AC141: 0
B142: 12 | C142: 0.03815193576 | D142: 0.2343348392 | E142: 0.0998954484 | F142: 0 | G142: 0.120213611 | H142: 0.08776275832 | I142: 0.01082391731 | J142: 0.007692091182 | K142: 0.02528964292 | L142: 0.02656538351 | M142: 0 | N142: 0.0002375791242 | O142: 0 | Q142: 0.039716739 | R142: 0.06819941018 | S142: 0.0975498078 | T142: 0 | U142: 0.06774028531 | V142: 0.07345049152 | W142: 0.3425435288 | X142: 0.0831409741 | Y142: 0 | Z142: 0 | AA142: 0 | AB142: 0 | AC142: 0
B143: 13 | C143: 0.03147127928 | D143: 0.2554419643 | E143: 0.09472465672 | F143: 0 | G143: 0.1128907455 | H143: 0.1041817447 | I143: 0.008405094241 | J143: 0.01055125081 | K143: 0.02382186084 | L143: 0.02376033866 | M143: 0 | N143: 0 | O143: 0 | Q143: 0.03849695572 | R143: 0.06828084601 | S143: 0.113033821 | T143: 0 | U143: 0.07731522677 | V143: 0.07707710449 | W143: 0.3640403935 | X143: 0.09010849678 | Y143: 0 | Z143: 0 | AA143: 0 | AB143: 0 | AC143: 0
B144: 14 | C144: 0.02422721983 | D144: 0.2761812264 | E144: 0.09746878726 | F144: 0 | G144: 0.1083158219 | H144: 0.1239084398 | I144: 0.006470585133 | J144: 0.01739283666 | K144: 0.02000316751 | L144: 0.02057451851 | M144: 0 | N144: 0 | O144: 0 | Q144: 0.04008979153 | R144: 0.06705578178 | S144: 0.1288929579 | T144: 0 | U144: 0.08386141553 | V144: 0.07758496158 | W144: 0.3915772679 | X144: 0.09269047306 | Y144: 0 | Z144: 0 | AA144: 0 | AB144: 0 | AC144: 0
B145: 15 | C145: 0.0178074795 | D145: 0.2902322143 | E145: 0.1053600313 | F145: 0 | G145: 0.1069422322 | H145: 0.1470469631 | I145: 0.004920893544 | J145: 0.02732802184 | K145: 0.0148608668 | L145: 0.01631758108 | M145: 0 | N145: 0 | O145: 0 | Q145: 0.04432269757 | R145: 0.06532970895 | S145: 0.1545654118 | T145: 0 | U145: 0.0811343289 | V145: 0.07767013639 | W145: 0.4206790893 | X145: 0.08969312261 | Y145: 0 | Z145: 0 | AA145: 0 | AB145: 0 | AC145: 0
B146: 16 | C146: 0.01855584603 | D146: 0.3002729669 | E146: 0.1166887685 | F146: 0 | G146: 0.108049176 | H146: 0.1646225851 | I146: 0.003665429374 | J146: 0.0361253724 | K146: 0.009658835439 | L146: 0.01110644032 | M146: 0 | N146: 0 | O146: 0 | Q146: 0.05024956988 | R146: 0.06338986154 | S146: 0.1878158536 | T146: 0 | U146: 0.0725611324 | V146: 0.08073560227 | W146: 0.4486264914 | X146: 0.08326075542 | Y146: 0 | Z146: 0 | AA146: 0 | AB146: 0 | AC146: 0
B147: 17 | C147: 0.02891343137 | D147: 0.3096242166 | E147: 0.1329673603 | F147: 0 | G147: 0.1131307142 | H147: 0.1764806487 | I147: 0.002996953083 | J147: 0.04193136999 | K147: 0.005601220684 | L147: 0.008779451588 | M147: 0 | N147: 0 | O147: 0 | Q147: 0.05582314078 | R147: 0.06243416949 | S147: 0.2241557237 | T147: 0 | U147: 0.05828227424 | V147: 0.08522765347 | W147: 0.4770404106 | X147: 0.0747148442 | Y147: 0 | Z147: 0 | AA147: 0 | AB147: 0 | AC147: 0
B148: 18 | C148: 0.04185887692 | D148: 0.3190786324 | E148: 0.1599763389 | F148: 0 | G148: 0.1266086107 | H148: 0.1769298467 | I148: 0.002818244652 | J148: 0.03850668355 | K148: 0.00368014186 | L148: 0.01420570266 | M148: 0 | N148: 0 | O148: 0 | Q148: 0.04966807017 | R148: 0.06207899165 | S148: 0.266365947 | T148: 0 | U148: 0.04824647735 | V148: 0.08907617677 | W148: 0.5068056349 | X148: 0.06398268667 | Y148: 0 | Z148: 0 | AA148: 0 | AB148: 0 | AC148: 0
B149: 19 | C149: 0.05156302636 | D149: 0.323428362 | E149: 0.1921192525 | F149: 0 | G149: 0.1516590863 | H149: 0.1715941357 | I149: 0.002317410141 | J149: 0.03879312005 | K149: 0.005643685573 | L149: 0.023227692 | M149: 0 | N149: 0 | O149: 0 | Q149: 0.04112053864 | R149: 0.06257167916 | S149: 0.3104900069 | T149: 0 | U149: 0.03825204629 | V149: 0.09228175749 | W149: 0.5280655793 | X149: 0.0542093093 | Y149: 0 | Z149: 0 | AA149: 0 | AB149: 0 | AC149: 0
B150: 20 | C150: 0.05748725681 | D150: 0.3278254584 | E150: 0.2192361091 | F150: 0 | G150: 0.1833031207 | H150: 0.1540314387 | I150: 0.001785069413 | J150: 0.03754216422 | K150: 0.01498552946 | L150: 0.03757010833 | M150: 0 | N150: 0 | O150: 0 | Q150: 0.03429408154 | R150: 0.06621041027 | S150: 0.353733919 | T150: 0 | U150: 0.03460810374 | V150: 0.09953114791 | W150: 0.5395961608 | X150: 0.04495151754 | Y150: 0 | Z150: 0 | AA150: 0 | AB150: 0 | AC150: 0
B151: 21 | C151: 0.05389739516 | D151: 0.3318318105 | E151: 0.2426122463 | F151: 0 | G151: 0.2106132702 | H151: 0.137393593 | I151: 0.001204715945 | J151: 0.03699025428 | K151: 0.02585659964 | L151: 0.05301105158 | M151: 0 | N151: 0 | O151: 0 | Q151: 0.03044696516 | R151: 0.06864892115 | S151: 0.3970075962 | T151: 0 | U151: 0.03129547734 | V151: 0.1070467864 | W151: 0.5527509233 | X151: 0.03616100909 | Y151: 0 | Z151: 0 | AA151: 0 | AB151: 0 | AC151: 0
B152: 22 | C152: 0.05100032314 | D152: 0.3354708762 | E152: 0.2656407246 | F152: 0 | G152: 0.2373825683 | H152: 0.1204508118 | I152: 0.0005892891524 | J152: 0.03609718773 | K152: 0.03679514636 | L152: 0.06837930296 | M152: 0 | N152: 0 | O152: 0 | Q152: 0.02606833343 | R152: 0.07055771374 | S152: 0.440439408 | T152: 0 | U152: 0.02786023396 | V152: 0.1148713312 | W152: 0.5677259121 | X152: 0.0277100518 | Y152: 0 | Z152: 0 | AA152: 0 | AB152: 0 | AC152: 0
B153: 23 | C153: 0.04703925704 | D153: 0.3387574706 | E153: 0.2887638161 | F153: 0 | G153: 0.2645720781 | H153: 0.1026737138 | I153: -4.37E-05 | J153: 0.03473959995 | K153: 0.04791881382 | L153: 0.0841018844 | M153: 0 | N153: 0 | O153: 0 | Q153: 0.02092738916 | R153: 0.07230572701 | S153: 0.483979877 | T153: 0 | U153: 0.02485967986 | V153: 0.1229690912 | W153: 0.5830796417 | X153: 0.01974240204 | Y153: 0 | Z153: 0 | AA153: 0 | AB153: 0 | AC153: 0
B154: 24 | C154: 0.04119316599 | D154: 0.34176098 | E154: 0.3118212588 | F154: 0 | G154: 0.292385845 | H154: 0.08393520994 | I154: -0.0006789947201 | J154: 0.03305917485 | K154: 0.05940097417 | L154: 0.1002347292 | M154: 0 | N154: 0 | O154: 0 | Q154: 0.01528878387 | R154: 0.07406974668 | S154: 0.5275651659 | T154: 0 | U154: 0.02265472152 | V154: 0.1312166017 | W154: 0.5988275138 | X154: 0.01217183237 | Y154: 0 | Z154: 0 | AA154: 0 | AB154: 0 | AC154: 0
B155: 25 | C155: 0.03312503685 | D155: 0.3446263757 | E155: 0.3344304973 | F155: 0 | G155: 0.3205691376 | H155: 0.06431298468 | I155: -0.001305097028 | J155: 0.03130074592 | K155: 0.07130757439 | L155: 0.1168682081 | M155: 0 | N155: 0 | O155: 0 | Q155: 0.009556345859 | R155: 0.07600502496 | S155: 0.5711643951 | T155: 0 | U155: 0.02149592636 | V155: 0.1394988488 | W155: 0.6155294082 | X155: 0.004727825485 | Y155: 0 | Z155: 0 | AA155: 0 | AB155: 0 | AC155: 0

Sheet Smites
D4: SMITES - Gereral Info | E4: 1 | F4: 2 | G4: 3 | H4: 4 | I4: 5 | J4: 6 | K4: 7 | L4: 8 | M4: 9 | N4: 10 | O4: 11 | P4: 12 | Q4: 13 | R4: 14 | S4: 15 | T4: 16 | U4: 17 | V4: 18 | W4: 19 | X4: 20
D5: use all smite dice? (pal, warlock, wiz, sorc, priest, etc) | E5: =IF(AND(Sorcadins!E7>=2,Sorcadins!E162=0),1,0) -> 0 | F5: =IF(AND(Sorcadins!F7>=2,Sorcadins!F162=0),1,0) -> 0 | G5: =IF(AND(Sorcadins!G7>=2,Sorcadins!G162=0),1,0) -> 0 | H5: =IF(AND(Sorcadins!H7>=2,Sorcadins!H162=0),1,0) -> 0 | I5: =IF(AND(Sorcadins!I7>=2,Sorcadins!I162=0),1,0) -> 0 | J5: =IF(AND(Sorcadins!J7>=2,Sorcadins!J162=0),1,0) -> 0 | K5: =IF(AND(Sorcadins!K7>=2,Sorcadins!K162=0),1,0) -> 0 | L5: =IF(AND(Sorcadins!L7>=2,Sorcadins!L162=0),1,0) -> 0 | M5: =IF(AND(Sorcadins!M7>=2,Sorcadins!M162=0),1,0) -> 0 | N5: =IF(AND(Sorcadins!N7>=2,Sorcadins!N162=0),1,0) -> 0 | O5: =IF(AND(Sorcadins!O7>=2,Sorcadins!O162=0),1,0) -> 0 | P5: =IF(AND(Sorcadins!P7>=2,Sorcadins!P162=0),1,0) -> 0 | Q5: =IF(AND(Sorcadins!Q7>=2,Sorcadins!Q162=0),1,0) -> 0 | R5: =IF(AND(Sorcadins!R7>=2,Sorcadins!R162=0),1,0) -> 0 | S5: =IF(AND(Sorcadins!S7>=2,Sorcadins!S162=0),1,0) -> 0 | T5: =IF(AND(Sorcadins!T7>=2,Sorcadins!T162=0),1,0) -> 0 | U5: =IF(AND(Sorcadins!U7>=2,Sorcadins!U162=0),1,0) -> 0 | V5: =IF(AND(Sorcadins!V7>=2,Sorcadins!V162=0),1,0) -> 0 | W5: =IF(AND(Sorcadins!W7>=2,1),1,0) -> 0 | X5: =IF(AND(Sorcadins!X7>=2,Sorcadins!X162=0),1,0) -> 0
D6: use only warlock smite dice? | E6: =IF(AND(Sorcadins!$B$73>0,Sorcadins!$B$73<=Sorcadins!E6,Sorcadins!E12>=5,Sorcadins!E54>=1,OR(Sorcadins!E7<=1,Sorcadins!E162>=1)),1,0) -> 0 | F6: =IF(AND(Sorcadins!$B$73>0,Sorcadins!$B$73<=Sorcadins!F6,Sorcadins!F12>=5,Sorcadins!F54>=1,OR(Sorcadins!F7<=1,Sorcadins!F162>=1)),1,0) -> 0 | G6: =IF(AND(Sorcadins!$B$73>0,Sorcadins!$B$73<=Sorcadins!G6,Sorcadins!G12>=5,Sorcadins!G54>=1,OR(Sorcadins!G7<=1,Sorcadins!G162>=1)),1,0) -> 0 | H6: =IF(AND(Sorcadins!$B$73>0,Sorcadins!$B$73<=Sorcadins!H6,Sorcadins!H12>=5,Sorcadins!H54>=1,OR(Sorcadins!H7<=1,Sorcadins!H162>=1)),1,0) -> 0 | I6: =IF(AND(Sorcadins!$B$73>0,Sorcadins!$B$73<=Sorcadins!I6,Sorcadins!I12>=5,Sorcadins!I54>=1,OR(Sorcadins!I7<=1,Sorcadins!I162>=1)),1,0) -> 0 | J6: =IF(AND(Sorcadins!$B$73>0,Sorcadins!$B$73<=Sorcadins!J6,Sorcadins!J12>=5,Sorcadins!J54>=1,OR(Sorcadins!J7<=1,Sorcadins!J162>=1)),1,0) -> 0 | K6: =IF(AND(Sorcadins!$B$73>0,Sorcadins!$B$73<=Sorcadins!K6,Sorcadins!K12>=5,Sorcadins!K54>=1,OR(Sorcadins!K7<=1,Sorcadins!K162>=1)),1,0) -> 0 | L6: =IF(AND(Sorcadins!$B$73>0,Sorcadins!$B$73<=Sorcadins!L6,Sorcadins!L12>=5,Sorcadins!L54>=1,OR(Sorcadins!L7<=1,Sorcadins!L162>=1)),1,0) -> 0 | M6: =IF(AND(Sorcadins!$B$73>0,Sorcadins!$B$73<=Sorcadins!M6,Sorcadins!M12>=5,Sorcadins!M54>=1,OR(Sorcadins!M7<=1,Sorcadins!M162>=1)),1,0) -> 0 | N6: =IF(AND(Sorcadins!$B$73>0,Sorcadins!$B$73<=Sorcadins!N6,Sorcadins!N12>=5,Sorcadins!N54>=1,OR(Sorcadins!N7<=1,Sorcadins!N162>=1)),1,0) -> 0 | O6: =IF(AND(Sorcadins!$B$73>0,Sorcadins!$B$73<=Sorcadins!O6,Sorcadins!O12>=5,Sorcadins!O54>=1,OR(Sorcadins!O7<=1,Sorcadins!O162>=1)),1,0) -> 0 | P6: =IF(AND(Sorcadins!$B$73>0,Sorcadins!$B$73<=Sorcadins!P6,Sorcadins!P12>=5,Sorcadins!P54>=1,OR(Sorcadins!P7<=1,Sorcadins!P162>=1)),1,0) -> 0 | Q6: =IF(AND(Sorcadins!$B$73>0,Sorcadins!$B$73<=Sorcadins!Q6,Sorcadins!Q12>=5,Sorcadins!Q54>=1,OR(Sorcadins!Q7<=1,Sorcadins!Q162>=1)),1,0) -> 0 | R6: =IF(AND(Sorcadins!$B$73>0,Sorcadins!$B$73<=Sorcadins!R6,Sorcadins!R12>=5,Sorcadins!R54>=1,OR(Sorcadins!R7<=1,Sorcadins!R162>=1)),1,0) -> 0 | S6: =IF(AND(Sorcadins!$B$73>0,Sorcadins!$B$73<=Sorcadins!S6,Sorcadins!S12>=5,Sorcadins!S54>=1,OR(Sorcadins!S7<=1,Sorcadins!S162>=1)),1,0) -> 0 | T6: =IF(AND(Sorcadins!$B$73>0,Sorcadins!$B$73<=Sorcadins!T6,Sorcadins!T12>=5,Sorcadins!T54>=1,OR(Sorcadins!T7<=1,Sorcadins!T162>=1)),1,0) -> 0 | U6: =IF(AND(Sorcadins!$B$73>0,Sorcadins!$B$73<=Sorcadins!U6,Sorcadins!U12>=5,Sorcadins!U54>=1,OR(Sorcadins!U7<=1,Sorcadins!U162>=1)),1,0) -> 0 | V6: =IF(AND(Sorcadins!$B$73>0,Sorcadins!$B$73<=Sorcadins!V6,Sorcadins!V12>=5,Sorcadins!V54>=1,OR(Sorcadins!V7<=1,Sorcadins!V162>=1)),1,0) -> 0 | W6: =IF(AND(Sorcadins!$B$73>0,Sorcadins!$B$73<=Sorcadins!W6,Sorcadins!W12>=5,Sorcadins!W54>=1,OR(Sorcadins!W7<=1,Sorcadins!W162>=1)),1,0) -> 0 | X6: =IF(AND(Sorcadins!$B$73>0,Sorcadins!$B$73<=Sorcadins!X6,Sorcadins!X12>=5,Sorcadins!X54>=1,OR(Sorcadins!X7<=1,Sorcadins!X162>=1)),1,0) -> 0
D7: max smite dice per smite | E7: =IF(OR(Sorcadins!E12>=5,Sorcadins!E7>=2),MIN(IF(E6,6,5),Sorcadins!E320+1),0) -> 0 | F7: =IF(OR(Sorcadins!F12>=5,Sorcadins!F7>=2),MIN(IF(F6,6,5),Sorcadins!F320+1),0) -> 0 | G7: =IF(OR(Sorcadins!G12>=5,Sorcadins!G7>=2),MIN(IF(G6,6,5),Sorcadins!G320+1),0) -> 0 | H7: =IF(OR(Sorcadins!H12>=5,Sorcadins!H7>=2),MIN(IF(H6,6,5),Sorcadins!H320+1),0) -> 0 | I7: =IF(OR(Sorcadins!I12>=5,Sorcadins!I7>=2),MIN(IF(I6,6,5),Sorcadins!I320+1),0) -> 0 | J7: =IF(OR(Sorcadins!J12>=5,Sorcadins!J7>=2),MIN(IF(J6,6,5),Sorcadins!J320+1),0) -> 0 | K7: =IF(OR(Sorcadins!K12>=5,Sorcadins!K7>=2),MIN(IF(K6,6,5),Sorcadins!K320+1),0) -> 0 | L7: =IF(OR(Sorcadins!L12>=5,Sorcadins!L7>=2),MIN(IF(L6,6,5),Sorcadins!L320+1),0) -> 0 | M7: =IF(OR(Sorcadins!M12>=5,Sorcadins!M7>=2),MIN(IF(M6,6,5),Sorcadins!M320+1),0) -> 0 | N7: =IF(OR(Sorcadins!N12>=5,Sorcadins!N7>=2),MIN(IF(N6,6,5),Sorcadins!N320+1),0) -> 0 | O7: =IF(OR(Sorcadins!O12>=5,Sorcadins!O7>=2),MIN(IF(O6,6,5),Sorcadins!O320+1),0) -> 0 | P7: =IF(OR(Sorcadins!P12>=5,Sorcadins!P7>=2),MIN(IF(P6,6,5),Sorcadins!P320+1),0) -> 0 | Q7: =IF(OR(Sorcadins!Q12>=5,Sorcadins!Q7>=2),MIN(IF(Q6,6,5),Sorcadins!Q320+1),0) -> 0 | R7: =IF(OR(Sorcadins!R12>=5,Sorcadins!R7>=2),MIN(IF(R6,6,5),Sorcadins!R320+1),0) -> 0 | S7: =IF(OR(Sorcadins!S12>=5,Sorcadins!S7>=2),MIN(IF(S6,6,5),Sorcadins!S320+1),0) -> 0 | T7: =IF(OR(Sorcadins!T12>=5,Sorcadins!T7>=2),MIN(IF(T6,6,5),Sorcadins!T320+1),0) -> 0 | U7: =IF(OR(Sorcadins!U12>=5,Sorcadins!U7>=2),MIN(IF(U6,6,5),Sorcadins!U320+1),0) -> 0 | V7: =IF(OR(Sorcadins!V12>=5,Sorcadins!V7>=2),MIN(IF(V6,6,5),Sorcadins!V320+1),0) -> 0 | W7: =IF(OR(Sorcadins!W12>=5,Sorcadins!W7>=2),MIN(IF(W6,6,5),Sorcadins!W320+1),0) -> 0 | X7: =IF(OR(Sorcadins!X12>=5,Sorcadins!X7>=2),MIN(IF(X6,6,5),Sorcadins!X320+1),0) -> 0
D9: SMITES - M1, B1, O1/O2 | E9: 1 | F9: 2 | G9: 3 | H9: 4 | I9: 5 | J9: 6 | K9: 7 | L9: 8 | M9: 9 | N9: 10 | O9: 11 | P9: 12 | Q9: 13 | R9: 14 | S9: 15 | T9: 16 | U9: 17 | V9: 18 | W9: 19 | X9: 20
D10: remaining sorcery points (based on Damage Scenario) | E10: =MAX(0,Sorcadins!E$616-Sorcadins!E$1473) -> 0 | F10: =MAX(0,Sorcadins!F$616-Sorcadins!F$1473) -> 0 | G10: =MAX(0,Sorcadins!G$616-Sorcadins!G$1473) -> 0 | H10: =MAX(0,Sorcadins!H$616-Sorcadins!H$1473) -> 0 | I10: =MAX(0,Sorcadins!I$616-Sorcadins!I$1473) -> 0 | J10: =MAX(0,Sorcadins!J$616-Sorcadins!J$1473) -> 0 | K10: =MAX(0,Sorcadins!K$616-Sorcadins!K$1473) -> 0 | L10: =MAX(0,Sorcadins!L$616-Sorcadins!L$1473) -> 0 | M10: =MAX(0,Sorcadins!M$616-Sorcadins!M$1473) -> 0 | N10: =MAX(0,Sorcadins!N$616-Sorcadins!N$1473) -> 0 | O10: =MAX(0,Sorcadins!O$616-Sorcadins!O$1473) -> 0 | P10: =MAX(0,Sorcadins!P$616-Sorcadins!P$1473) -> 0 | Q10: =MAX(0,Sorcadins!Q$616-Sorcadins!Q$1473) -> 0 | R10: =MAX(0,Sorcadins!R$616-Sorcadins!R$1473) -> 0 | S10: =MAX(0,Sorcadins!S$616-Sorcadins!S$1473) -> 0 | T10: =MAX(0,Sorcadins!T$616-Sorcadins!T$1473) -> 0 | U10: =MAX(0,Sorcadins!U$616-Sorcadins!U$1473) -> 0 | V10: =MAX(0,Sorcadins!V$616-Sorcadins!V$1473) -> 0 | W10: =MAX(0,Sorcadins!W$616-Sorcadins!W$1473) -> 0 | X10: =MAX(0,Sorcadins!X$616-Sorcadins!X$1473) -> 0 | Z10: *Sorc points directly convertible to Smite Dice
D11: remaining spell slot levels (based on Damage Scenario) | E11: =MAX(0,Sorcadins!E$327-MAX(0,Sorcadins!E$1473-Sorcadins!E$616)) -> 0 | F11: =MAX(0,Sorcadins!F$327-MAX(0,Sorcadins!F$1473-Sorcadins!F$616)) -> 0 | G11: =MAX(0,Sorcadins!G$327-MAX(0,Sorcadins!G$1473-Sorcadins!G$616)) -> 0 | H11: =MAX(0,Sorcadins!H$327-MAX(0,Sorcadins!H$1473-Sorcadins!H$616)) -> 0 | I11: =MAX(0,Sorcadins!I$327-MAX(0,Sorcadins!I$1473-Sorcadins!I$616)) -> 0 | J11: =MAX(0,Sorcadins!J$327-MAX(0,Sorcadins!J$1473-Sorcadins!J$616)) -> 1 | K11: =MAX(0,Sorcadins!K$327-MAX(0,Sorcadins!K$1473-Sorcadins!K$616)) -> 1 | L11: =MAX(0,Sorcadins!L$327-MAX(0,Sorcadins!L$1473-Sorcadins!L$616)) -> 4 | M11: =MAX(0,Sorcadins!M$327-MAX(0,Sorcadins!M$1473-Sorcadins!M$616)) -> 0 | N11: =MAX(0,Sorcadins!N$327-MAX(0,Sorcadins!N$1473-Sorcadins!N$616)) -> 1 | O11: =MAX(0,Sorcadins!O$327-MAX(0,Sorcadins!O$1473-Sorcadins!O$616)) -> 7.105427358e-15 | P11: =MAX(0,Sorcadins!P$327-MAX(0,Sorcadins!P$1473-Sorcadins!P$616)) -> 0 | Q11: =MAX(0,Sorcadins!Q$327-MAX(0,Sorcadins!Q$1473-Sorcadins!Q$616)) -> 7.105427358e-15 | R11: =MAX(0,Sorcadins!R$327-MAX(0,Sorcadins!R$1473-Sorcadins!R$616)) -> 7.105427358e-15 | S11: =MAX(0,Sorcadins!S$327-MAX(0,Sorcadins!S$1473-Sorcadins!S$616)) -> 1.421085472e-14 | T11: =MAX(0,Sorcadins!T$327-MAX(0,Sorcadins!T$1473-Sorcadins!T$616)) -> 1.421085472e-14 | U11: =MAX(0,Sorcadins!U$327-MAX(0,Sorcadins!U$1473-Sorcadins!U$616)) -> 2 | V11: =MAX(0,Sorcadins!V$327-MAX(0,Sorcadins!V$1473-Sorcadins!V$616)) -> 6 | W11: =MAX(0,Sorcadins!W$327-MAX(0,Sorcadins!W$1473-Sorcadins!W$616)) -> 10 | X11: =MAX(0,Sorcadins!X$327-MAX(0,Sorcadins!X$1473-Sorcadins!X$616)) -> 14
D12: total warlock smite levels remaining | E12: =MIN(Sorcadins!E$319*E11,Sorcadins!E$310) -> 0 | F12: =MIN(Sorcadins!F$319*F11,Sorcadins!F$310) -> 0 | G12: =MIN(Sorcadins!G$319*G11,Sorcadins!G$310) -> 0 | H12: =MIN(Sorcadins!H$319*H11,Sorcadins!H$310) -> 0 | I12: =MIN(Sorcadins!I$319*I11,Sorcadins!I$310) -> 0 | J12: =MIN(Sorcadins!J$319*J11,Sorcadins!J$310) -> 0 | K12: =MIN(Sorcadins!K$319*K11,Sorcadins!K$310) -> 0 | L12: =MIN(Sorcadins!L$319*L11,Sorcadins!L$310) -> 0 | M12: =MIN(Sorcadins!M$319*M11,Sorcadins!M$310) -> 0 | N12: =MIN(Sorcadins!N$319*N11,Sorcadins!N$310) -> 0 | O12: =MIN(Sorcadins!O$319*O11,Sorcadins!O$310) -> 0 | P12: =MIN(Sorcadins!P$319*P11,Sorcadins!P$310) -> 0 | Q12: =MIN(Sorcadins!Q$319*Q11,Sorcadins!Q$310) -> 0 | R12: =MIN(Sorcadins!R$319*R11,Sorcadins!R$310) -> 0 | S12: =MIN(Sorcadins!S$319*S11,Sorcadins!S$310) -> 0 | T12: =MIN(Sorcadins!T$319*T11,Sorcadins!T$310) -> 0 | U12: =MIN(Sorcadins!U$319*U11,Sorcadins!U$310) -> 0 | V12: =MIN(Sorcadins!V$319*V11,Sorcadins!V$310) -> 0 | W12: =MIN(Sorcadins!W$319*W11,Sorcadins!W$310) -> 0 | X12: =MIN(Sorcadins!X$319*X11,Sorcadins!X$310) -> 0
D13: total smite levels remaining | E13: =IF(E$5>=1,Sorcadins!E$319*E11+E10,IF(E$6,E12,0)) -> 0 | F13: =IF(F$5>=1,Sorcadins!F$319*F11+F10,IF(F$6,F12,0)) -> 0 | G13: =IF(G$5>=1,Sorcadins!G$319*G11+G10,IF(G$6,G12,0)) -> 0 | H13: =IF(H$5>=1,Sorcadins!H$319*H11+H10,IF(H$6,H12,0)) -> 0 | I13: =IF(I$5>=1,Sorcadins!I$319*I11+I10,IF(I$6,I12,0)) -> 0 | J13: =IF(J$5>=1,Sorcadins!J$319*J11+J10,IF(J$6,J12,0)) -> 0 | K13: =IF(K$5>=1,Sorcadins!K$319*K11+K10,IF(K$6,K12,0)) -> 0 | L13: =IF(L$5>=1,Sorcadins!L$319*L11+L10,IF(L$6,L12,0)) -> 0 | M13: =IF(M$5>=1,Sorcadins!M$319*M11+M10,IF(M$6,M12,0)) -> 0 | N13: =IF(N$5>=1,Sorcadins!N$319*N11+N10,IF(N$6,N12,0)) -> 0 | O13: =IF(O$5>=1,Sorcadins!O$319*O11+O10,IF(O$6,O12,0)) -> 0 | P13: =IF(P$5>=1,Sorcadins!P$319*P11+P10,IF(P$6,P12,0)) -> 0 | Q13: =IF(Q$5>=1,Sorcadins!Q$319*Q11+Q10,IF(Q$6,Q12,0)) -> 0 | R13: =IF(R$5>=1,Sorcadins!R$319*R11+R10,IF(R$6,R12,0)) -> 0 | S13: =IF(S$5>=1,Sorcadins!S$319*S11+S10,IF(S$6,S12,0)) -> 0 | T13: =IF(T$5>=1,Sorcadins!T$319*T11+T10,IF(T$6,T12,0)) -> 0 | U13: =IF(U$5>=1,Sorcadins!U$319*U11+U10,IF(U$6,U12,0)) -> 0 | V13: =IF(V$5>=1,Sorcadins!V$319*V11+V10,IF(V$6,V12,0)) -> 0 | W13: =IF(W$5>=1,Sorcadins!W$319*W11+W10,IF(W$6,W12,0)) -> 0 | X13: =IF(X$5>=1,Sorcadins!X$319*X11+X10,IF(X$6,X12,0)) -> 0
D14: max number of daily smites (total no of spells left after casts) | E14: =IF(E$6,Sorcadins!E$1347,IF(E$5,Sorcadins!E$328+E10/2,0)) -> 0 | F14: =IF(F$6,Sorcadins!F$1347,IF(F$5,Sorcadins!F$328+F10/2,0)) -> 0 | G14: =IF(G$6,Sorcadins!G$1347,IF(G$5,Sorcadins!G$328+G10/2,0)) -> 0 | H14: =IF(H$6,Sorcadins!H$1347,IF(H$5,Sorcadins!H$328+H10/2,0)) -> 0 | I14: =IF(I$6,Sorcadins!I$1347,IF(I$5,Sorcadins!I$328+I10/2,0)) -> 0 | J14: =IF(J$6,Sorcadins!J$1347,IF(J$5,Sorcadins!J$328+J10/2,0)) -> 0 | K14: =IF(K$6,Sorcadins!K$1347,IF(K$5,Sorcadins!K$328+K10/2,0)) -> 0 | L14: =IF(L$6,Sorcadins!L$1347,IF(L$5,Sorcadins!L$328+L10/2,0)) -> 0 | M14: =IF(M$6,Sorcadins!M$1347,IF(M$5,Sorcadins!M$328+M10/2,0)) -> 0 | N14: =IF(N$6,Sorcadins!N$1347,IF(N$5,Sorcadins!N$328+N10/2,0)) -> 0 | O14: =IF(O$6,Sorcadins!O$1347,IF(O$5,Sorcadins!O$328+O10/2,0)) -> 0 | P14: =IF(P$6,Sorcadins!P$1347,IF(P$5,Sorcadins!P$328+P10/2,0)) -> 0 | Q14: =IF(Q$6,Sorcadins!Q$1347,IF(Q$5,Sorcadins!Q$328+Q10/2,0)) -> 0 | R14: =IF(R$6,Sorcadins!R$1347,IF(R$5,Sorcadins!R$328+R10/2,0)) -> 0 | S14: =IF(S$6,Sorcadins!S$1347,IF(S$5,Sorcadins!S$328+S10/2,0)) -> 0 | T14: =IF(T$6,Sorcadins!T$1347,IF(T$5,Sorcadins!T$328+T10/2,0)) -> 0 | U14: =IF(U$6,Sorcadins!U$1347,IF(U$5,Sorcadins!U$328+U10/2,0)) -> 0 | V14: =IF(V$6,Sorcadins!V$1347,IF(V$5,Sorcadins!V$328+V10/2,0)) -> 0 | W14: =IF(W$6,Sorcadins!W$1347,IF(W$5,Sorcadins!W$328+W10/2,0)) -> 0 | X14: =IF(X$6,Sorcadins!X$1347,IF(X$5,Sorcadins!X$328+X10/2,0)) -> 0
D15: avg crits per day for smite purposes (based on Damage Scenario) | E15: ='Base Numbers'!$C$5*'Base Numbers'!$C$6*Sorcadins!E$1505 -> 0.9933333333 | F15: ='Base Numbers'!$C$5*'Base Numbers'!$C$6*Sorcadins!F$1505 -> 0.97 | G15: ='Base Numbers'!$C$5*'Base Numbers'!$C$6*Sorcadins!G$1505 -> 0.96 | H15: ='Base Numbers'!$C$5*'Base Numbers'!$C$6*Sorcadins!H$1505 -> 0.96 | I15: ='Base Numbers'!$C$5*'Base Numbers'!$C$6*Sorcadins!I$1505 -> 0.96 | J15: ='Base Numbers'!$C$5*'Base Numbers'!$C$6*Sorcadins!J$1505 -> 0.96 | K15: ='Base Numbers'!$C$5*'Base Numbers'!$C$6*Sorcadins!K$1505 -> 0.91 | L15: ='Base Numbers'!$C$5*'Base Numbers'!$C$6*Sorcadins!L$1505 -> 0.68269 | M15: ='Base Numbers'!$C$5*'Base Numbers'!$C$6*Sorcadins!M$1505 -> 0.6078115789 | N15: ='Base Numbers'!$C$5*'Base Numbers'!$C$6*Sorcadins!N$1505 -> 0.58269 | O15: ='Base Numbers'!$C$5*'Base Numbers'!$C$6*Sorcadins!O$1505 -> 0.5062536735 | P15: ='Base Numbers'!$C$5*'Base Numbers'!$C$6*Sorcadins!P$1505 -> 0.4510984839 | Q15: ='Base Numbers'!$C$5*'Base Numbers'!$C$6*Sorcadins!Q$1505 -> 0.4086585396 | R15: ='Base Numbers'!$C$5*'Base Numbers'!$C$6*Sorcadins!R$1505 -> 0.4086585396 | S15: ='Base Numbers'!$C$5*'Base Numbers'!$C$6*Sorcadins!S$1505 -> 0.3715156109 | T15: ='Base Numbers'!$C$5*'Base Numbers'!$C$6*Sorcadins!T$1505 -> 0.5181614583 | U15: ='Base Numbers'!$C$5*'Base Numbers'!$C$6*Sorcadins!U$1505 -> 0.4975624495 | V15: ='Base Numbers'!$C$5*'Base Numbers'!$C$6*Sorcadins!V$1505 -> 0.4975624495 | W15: ='Base Numbers'!$C$5*'Base Numbers'!$C$6*Sorcadins!W$1505 -> 0.4975624495 | X15: ='Base Numbers'!$C$5*'Base Numbers'!$C$6*Sorcadins!X$1505 -> 0.4975624495
D16: number of smites used on crits | E16: =MIN(E14,E15) -> 0 | F16: =MIN(F14,F15) -> 0 | G16: 0 | H16: 0 | I16: 0 | J16: 0 | K16: 0 | L16: 0 | M16: 0 | N16: 0 | O16: 0 | P16: 0 | Q16: 0 | R16: 0 | S16: 0 | T16: 0 | U16: 0 | V16: 0 | W16: 0 | X16: 0
D17: avg smite dice per crit | E17: =IF(E16>0,MIN(E$7,(E13/MIN(E16,E15))),0) -> 0 | F17: 0 | G17: 0 | H17: 0 | I17: =IF(I16>0,MIN(I$7,(I13/MIN(I16,I15))),0) -> 0 | J17: 0 | K17: 0 | L17: 0 | M17: =IF(M16>0,MIN(M$7,(M13/MIN(M16,M15))),0) -> 0 | N17: 0 | O17: 0 | P17: 0 | Q17: 0 | R17: 0 | S17: 0 | T17: 0 | U17: 0 | V17: 0 | W17: 0 | X17: 0
D18: smites left for non-crits | E18: =E14-E16 -> 0 | F18: 0 | G18: 0 | H18: 0 | I18: =I14-I16 -> 0 | J18: 0 | K18: 0 | L18: 0 | M18: 0 | N18: 0 | O18: 0 | P18: 0 | Q18: 0 | R18: 0 | S18: 0 | T18: 0 | U18: 0 | V18: 0 | W18: 0 | X18: 0
D19: total non-crit smite-qualifying attacks available | E19: =Sorcadins!E$1480*('Base Numbers'!$C$5*'Base Numbers'!$C$6)-E15 -> 18.87333333 | F19: =Sorcadins!F$1480*('Base Numbers'!$C$5*'Base Numbers'!$C$6)-F15 -> 18.43 | G19: =Sorcadins!G$1480*('Base Numbers'!$C$5*'Base Numbers'!$C$6)-G15 -> 18.24 | H19: =Sorcadins!H$1480*('Base Numbers'!$C$5*'Base Numbers'!$C$6)-H15 -> 18.24 | I19: =Sorcadins!I$1480*('Base Numbers'!$C$5*'Base Numbers'!$C$6)-I15 -> 18.24 | J19: =Sorcadins!J$1480*('Base Numbers'!$C$5*'Base Numbers'!$C$6)-J15 -> 18.24 | K19: =Sorcadins!K$1480*('Base Numbers'!$C$5*'Base Numbers'!$C$6)-K15 -> 17.29 | L19: =Sorcadins!L$1480*('Base Numbers'!$C$5*'Base Numbers'!$C$6)-L15 -> 12.97111 | M19: =Sorcadins!M$1480*('Base Numbers'!$C$5*'Base Numbers'!$C$6)-M15 -> 11.54842 | N19: =Sorcadins!N$1480*('Base Numbers'!$C$5*'Base Numbers'!$C$6)-N15 -> 11.07111 | O19: =Sorcadins!O$1480*('Base Numbers'!$C$5*'Base Numbers'!$C$6)-O15 -> 9.618819796 | P19: =Sorcadins!P$1480*('Base Numbers'!$C$5*'Base Numbers'!$C$6)-P15 -> 8.570871193 | Q19: =Sorcadins!Q$1480*('Base Numbers'!$C$5*'Base Numbers'!$C$6)-Q15 -> 7.764512252 | R19: =Sorcadins!R$1480*('Base Numbers'!$C$5*'Base Numbers'!$C$6)-R15 -> 7.764512252 | S19: =Sorcadins!S$1480*('Base Numbers'!$C$5*'Base Numbers'!$C$6)-S15 -> 7.058796607 | T19: =Sorcadins!T$1480*('Base Numbers'!$C$5*'Base Numbers'!$C$6)-T15 -> 6.91215076 | U19: =Sorcadins!U$1480*('Base Numbers'!$C$5*'Base Numbers'!$C$6)-U15 -> 6.71065803 | V19: =Sorcadins!V$1480*('Base Numbers'!$C$5*'Base Numbers'!$C$6)-V15 -> 6.71065803 | W19: =Sorcadins!W$1480*('Base Numbers'!$C$5*'Base Numbers'!$C$6)-W15 -> 6.71065803 | X19: =Sorcadins!X$1480*('Base Numbers'!$C$5*'Base Numbers'!$C$6)-X15 -> 6.71065803
D20: smite dice left for non-crits | E20: =ROUND(MAX(0,E13-E15*E17),4) -> 0 | F20: 0 | G20: 0 | H20: 0 | I20: 0 | J20: 0 | K20: 0 | L20: 0 | M20: 0 | N20: 0 | O20: 0 | P20: 0 | Q20: 0 | R20: 0 | S20: 0 | T20: 0 | U20: 0 | V20: 0 | W20: 0 | X20: 0
D21: total smite dice used on crits | E21: =E16*E17 -> 0 | F21: =F16*F17 -> 0 | G21: 0 | H21: 0 | I21: 0 | J21: 0 | K21: 0 | L21: 0 | M21: 0 | N21: 0 | O21: 0 | P21: 0 | Q21: 0 | R21: 0 | S21: 0 | T21: 0 | U21: 0 | V21: 0 | W21: 0 | X21: 0
D22: total crit smite damage per day | E22: =9*E21 -> 0 | F22: =9*F21 -> 0 | G22: 0 | H22: 0 | I22: 0 | J22: 0 | K22: 0 | L22: 0 | M22: 0 | N22: 0 | O22: 0 | P22: 0 | Q22: 0 | R22: 0 | S22: 0 | T22: 0 | U22: 0 | V22: 0 | W22: 0 | X22: 0
D23: total non-crit smite damage per day | E23: =4.5*MIN(MIN(E19,E18)*E$7,E20) -> 0 | F23: =4.5*MIN(MIN(F19,F18)*F$7,F20) -> 0 | G23: 0 | H23: 0 | I23: 0 | J23: 0 | K23: 0 | L23: 0 | M23: 0 | N23: 0 | O23: 0 | P23: 0 | Q23: 0 | R23: 0 | S23: 0 | T23: 0 | U23: 0 | V23: 0 | W23: 0 | X23: 0
D24: leftover sorc points + spell levels | E24: =IF(E13>0,IF(Sorcadins!E$319>0,(Sorcadins!E$319*E11+E10-E16*E17-E23/4.5)/Sorcadins!E$319,0),E11+E10) -> 0 | F24: =IF(F13>0,IF(Sorcadins!F$319>0,(Sorcadins!F$319*F11+F10-F16*F17-F23/4.5)/Sorcadins!F$319,0),F11+F10) -> 0 | G24: =IF(G13>0,IF(Sorcadins!G$319>0,(Sorcadins!G$319*G11+G10-G16*G17-G23/4.5)/Sorcadins!G$319,0),G11+G10) -> 0 | H24: =IF(H13>0,IF(Sorcadins!H$319>0,(Sorcadins!H$319*H11+H10-H16*H17-H23/4.5)/Sorcadins!H$319,0),H11+H10) -> 0 | I24: =IF(I13>0,IF(Sorcadins!I$319>0,(Sorcadins!I$319*I11+I10-I16*I17-I23/4.5)/Sorcadins!I$319,0),I11+I10) -> 0 | J24: =IF(J13>0,IF(Sorcadins!J$319>0,(Sorcadins!J$319*J11+J10-J16*J17-J23/4.5)/Sorcadins!J$319,0),J11+J10) -> 1 | K24: =IF(K13>0,IF(Sorcadins!K$319>0,(Sorcadins!K$319*K11+K10-K16*K17-K23/4.5)/Sorcadins!K$319,0),K11+K10) -> 1 | L24: =IF(L13>0,IF(Sorcadins!L$319>0,(Sorcadins!L$319*L11+L10-L16*L17-L23/4.5)/Sorcadins!L$319,0),L11+L10) -> 4 | M24: =IF(M13>0,IF(Sorcadins!M$319>0,(Sorcadins!M$319*M11+M10-M16*M17-M23/4.5)/Sorcadins!M$319,0),M11+M10) -> 0 | N24: =IF(N13>0,IF(Sorcadins!N$319>0,(Sorcadins!N$319*N11+N10-N16*N17-N23/4.5)/Sorcadins!N$319,0),N11+N10) -> 1 | O24: =IF(O13>0,IF(Sorcadins!O$319>0,(Sorcadins!O$319*O11+O10-O16*O17-O23/4.5)/Sorcadins!O$319,0),O11+O10) -> 7.105427358e-15 | P24: =IF(P13>0,IF(Sorcadins!P$319>0,(Sorcadins!P$319*P11+P10-P16*P17-P23/4.5)/Sorcadins!P$319,0),P11+P10) -> 0 | Q24: =IF(Q13>0,IF(Sorcadins!Q$319>0,(Sorcadins!Q$319*Q11+Q10-Q16*Q17-Q23/4.5)/Sorcadins!Q$319,0),Q11+Q10) -> 7.105427358e-15 | R24: =IF(R13>0,IF(Sorcadins!R$319>0,(Sorcadins!R$319*R11+R10-R16*R17-R23/4.5)/Sorcadins!R$319,0),R11+R10) -> 7.105427358e-15 | S24: =IF(S13>0,IF(Sorcadins!S$319>0,(Sorcadins!S$319*S11+S10-S16*S17-S23/4.5)/Sorcadins!S$319,0),S11+S10) -> 1.421085472e-14 | T24: =IF(T13>0,IF(Sorcadins!T$319>0,(Sorcadins!T$319*T11+T10-T16*T17-T23/4.5)/Sorcadins!T$319,0),T11+T10) -> 1.421085472e-14 | U24: =IF(U13>0,IF(Sorcadins!U$319>0,(Sorcadins!U$319*U11+U10-U16*U17-U23/4.5)/Sorcadins!U$319,0),U11+U10) -> 2 | V24: =IF(V13>0,IF(Sorcadins!V$319>0,(Sorcadins!V$319*V11+V10-V16*V17-V23/4.5)/Sorcadins!V$319,0),V11+V10) -> 6 | W24: =IF(W13>0,IF(Sorcadins!W$319>0,(Sorcadins!W$319*W11+W10-W16*W17-W23/4.5)/Sorcadins!W$319,0),W11+W10) -> 10 | X24: =IF(X13>0,IF(Sorcadins!X$319>0,(Sorcadins!X$319*X11+X10-X16*X17-X23/4.5)/Sorcadins!X$319,0),X11+X10) -> 14
D25: actual smites performed | E25: =E16+IF(E$7>0,MIN(E18,E19,E20/E$7),0) -> 0 | F25: =F16+IF(F$7>0,MIN(F18,F19,F20/F$7),0) -> 0 | G25: 0 | H25: 0 | I25: 0 | J25: 0 | K25: 0 | L25: 0 | M25: 0 | N25: 0 | O25: 0 | P25: 0 | Q25: 0 | R25: 0 | S25: 0 | T25: 0 | U25: 0 | V25: 0 | W25: 0 | X25: 0
D26: total daily smite damage: M1, B1, O1/O2 | E26: =E22+E23 -> 0 | F26: 0 | G26: 0 | H26: 0 | I26: 0 | J26: 0 | K26: 0 | L26: 0 | M26: 0 | N26: 0 | O26: 0 | P26: 0 | Q26: 0 | R26: 0 | S26: 0 | T26: 0 | U26: 0 | V26: 0 | W26: 0 | X26: 0
D28: SMITES - M1, B1, O3 | E28: 1 | F28: 2 | G28: 3 | H28: 4 | I28: 5 | J28: 6 | K28: 7 | L28: 8 | M28: 9 | N28: 10 | O28: 11 | P28: 12 | Q28: 13 | R28: 14 | S28: 15 | T28: 16 | U28: 17 | V28: 18 | W28: 19 | X28: 20
D29: remaining sorcery points (based on Damage Scenario) | E29: =MAX(0,Sorcadins!E$616-Sorcadins!E$1473) -> 0 | F29: =MAX(0,Sorcadins!F$616-Sorcadins!F$1473) -> 0 | G29: =MAX(0,Sorcadins!G$616-Sorcadins!G$1473) -> 0 | H29: =MAX(0,Sorcadins!H$616-Sorcadins!H$1473) -> 0 | I29: =MAX(0,Sorcadins!I$616-Sorcadins!I$1473) -> 0 | J29: =MAX(0,Sorcadins!J$616-Sorcadins!J$1473) -> 0 | K29: =MAX(0,Sorcadins!K$616-Sorcadins!K$1473) -> 0 | L29: =MAX(0,Sorcadins!L$616-Sorcadins!L$1473) -> 0 | M29: =MAX(0,Sorcadins!M$616-Sorcadins!M$1473) -> 0 | N29: =MAX(0,Sorcadins!N$616-Sorcadins!N$1473) -> 0 | O29: =MAX(0,Sorcadins!O$616-Sorcadins!O$1473) -> 0 | P29: =MAX(0,Sorcadins!P$616-Sorcadins!P$1473) -> 0 | Q29: =MAX(0,Sorcadins!Q$616-Sorcadins!Q$1473) -> 0 | R29: =MAX(0,Sorcadins!R$616-Sorcadins!R$1473) -> 0 | S29: =MAX(0,Sorcadins!S$616-Sorcadins!S$1473) -> 0 | T29: =MAX(0,Sorcadins!T$616-Sorcadins!T$1473) -> 0 | U29: =MAX(0,Sorcadins!U$616-Sorcadins!U$1473) -> 0 | V29: =MAX(0,Sorcadins!V$616-Sorcadins!V$1473) -> 0 | W29: =MAX(0,Sorcadins!W$616-Sorcadins!W$1473) -> 0 | X29: =MAX(0,Sorcadins!X$616-Sorcadins!X$1473) -> 0 | Z29: *Sorc points directly convertible to Smite Dice
D30: remaining spell slot levels (based on Damage Scenario) | E30: =MAX(0,Sorcadins!E$327-MAX(0,Sorcadins!E$1473-Sorcadins!E$616)) -> 0 | F30: =MAX(0,Sorcadins!F$327-MAX(0,Sorcadins!F$1473-Sorcadins!F$616)) -> 0 | G30: =MAX(0,Sorcadins!G$327-MAX(0,Sorcadins!G$1473-Sorcadins!G$616)) -> 0 | H30: =MAX(0,Sorcadins!H$327-MAX(0,Sorcadins!H$1473-Sorcadins!H$616)) -> 0 | I30: =MAX(0,Sorcadins!I$327-MAX(0,Sorcadins!I$1473-Sorcadins!I$616)) -> 0 | J30: =MAX(0,Sorcadins!J$327-MAX(0,Sorcadins!J$1473-Sorcadins!J$616)) -> 1 | K30: =MAX(0,Sorcadins!K$327-MAX(0,Sorcadins!K$1473-Sorcadins!K$616)) -> 1 | L30: =MAX(0,Sorcadins!L$327-MAX(0,Sorcadins!L$1473-Sorcadins!L$616)) -> 4 | M30: =MAX(0,Sorcadins!M$327-MAX(0,Sorcadins!M$1473-Sorcadins!M$616)) -> 0 | N30: =MAX(0,Sorcadins!N$327-MAX(0,Sorcadins!N$1473-Sorcadins!N$616)) -> 1 | O30: =MAX(0,Sorcadins!O$327-MAX(0,Sorcadins!O$1473-Sorcadins!O$616)) -> 7.105427358e-15 | P30: =MAX(0,Sorcadins!P$327-MAX(0,Sorcadins!P$1473-Sorcadins!P$616)) -> 0 | Q30: =MAX(0,Sorcadins!Q$327-MAX(0,Sorcadins!Q$1473-Sorcadins!Q$616)) -> 7.105427358e-15 | R30: =MAX(0,Sorcadins!R$327-MAX(0,Sorcadins!R$1473-Sorcadins!R$616)) -> 7.105427358e-15 | S30: =MAX(0,Sorcadins!S$327-MAX(0,Sorcadins!S$1473-Sorcadins!S$616)) -> 1.421085472e-14 | T30: =MAX(0,Sorcadins!T$327-MAX(0,Sorcadins!T$1473-Sorcadins!T$616)) -> 1.421085472e-14 | U30: =MAX(0,Sorcadins!U$327-MAX(0,Sorcadins!U$1473-Sorcadins!U$616)) -> 2 | V30: =MAX(0,Sorcadins!V$327-MAX(0,Sorcadins!V$1473-Sorcadins!V$616)) -> 6 | W30: =MAX(0,Sorcadins!W$327-MAX(0,Sorcadins!W$1473-Sorcadins!W$616)) -> 10 | X30: =MAX(0,Sorcadins!X$327-MAX(0,Sorcadins!X$1473-Sorcadins!X$616)) -> 14
D31: total warlock smite levels remaining | E31: =MIN(Sorcadins!E$319*E30,Sorcadins!E$310) -> 0 | F31: =MIN(Sorcadins!F$319*F30,Sorcadins!F$310) -> 0 | G31: =MIN(Sorcadins!G$319*G30,Sorcadins!G$310) -> 0 | H31: =MIN(Sorcadins!H$319*H30,Sorcadins!H$310) -> 0 | I31: =MIN(Sorcadins!I$319*I30,Sorcadins!I$310) -> 0 | J31: =MIN(Sorcadins!J$319*J30,Sorcadins!J$310) -> 0 | K31: =MIN(Sorcadins!K$319*K30,Sorcadins!K$310) -> 0 | L31: =MIN(Sorcadins!L$319*L30,Sorcadins!L$310) -> 0 | M31: =MIN(Sorcadins!M$319*M30,Sorcadins!M$310) -> 0 | N31: =MIN(Sorcadins!N$319*N30,Sorcadins!N$310) -> 0 | O31: =MIN(Sorcadins!O$319*O30,Sorcadins!O$310) -> 0 | P31: =MIN(Sorcadins!P$319*P30,Sorcadins!P$310) -> 0 | Q31: =MIN(Sorcadins!Q$319*Q30,Sorcadins!Q$310) -> 0 | R31: =MIN(Sorcadins!R$319*R30,Sorcadins!R$310) -> 0 | S31: =MIN(Sorcadins!S$319*S30,Sorcadins!S$310) -> 0 | T31: =MIN(Sorcadins!T$319*T30,Sorcadins!T$310) -> 0 | U31: =MIN(Sorcadins!U$319*U30,Sorcadins!U$310) -> 0 | V31: =MIN(Sorcadins!V$319*V30,Sorcadins!V$310) -> 0 | W31: =MIN(Sorcadins!W$319*W30,Sorcadins!W$310) -> 0 | X31: =MIN(Sorcadins!X$319*X30,Sorcadins!X$310) -> 0
D32: total smite levels remaining | E32: =IF(E$5>=1,Sorcadins!E$319*E30+E29,IF(E$6,E31,0)) -> 0 | F32: =IF(F$5>=1,Sorcadins!F$319*F30+F29,IF(F$6,F31,0)) -> 0 | G32: =IF(G$5>=1,Sorcadins!G$319*G30+G29,IF(G$6,G31,0)) -> 0 | H32: =IF(H$5>=1,Sorcadins!H$319*H30+H29,IF(H$6,H31,0)) -> 0 | I32: =IF(I$5>=1,Sorcadins!I$319*I30+I29,IF(I$6,I31,0)) -> 0 | J32: =IF(J$5>=1,Sorcadins!J$319*J30+J29,IF(J$6,J31,0)) -> 0 | K32: =IF(K$5>=1,Sorcadins!K$319*K30+K29,IF(K$6,K31,0)) -> 0 | L32: =IF(L$5>=1,Sorcadins!L$319*L30+L29,IF(L$6,L31,0)) -> 0 | M32: =IF(M$5>=1,Sorcadins!M$319*M30+M29,IF(M$6,M31,0)) -> 0 | N32: =IF(N$5>=1,Sorcadins!N$319*N30+N29,IF(N$6,N31,0)) -> 0 | O32: =IF(O$5>=1,Sorcadins!O$319*O30+O29,IF(O$6,O31,0)) -> 0 | P32: =IF(P$5>=1,Sorcadins!P$319*P30+P29,IF(P$6,P31,0)) -> 0 | Q32: =IF(Q$5>=1,Sorcadins!Q$319*Q30+Q29,IF(Q$6,Q31,0)) -> 0 | R32: =IF(R$5>=1,Sorcadins!R$319*R30+R29,IF(R$6,R31,0)) -> 0 | S32: =IF(S$5>=1,Sorcadins!S$319*S30+S29,IF(S$6,S31,0)) -> 0 | T32: =IF(T$5>=1,Sorcadins!T$319*T30+T29,IF(T$6,T31,0)) -> 0 | U32: =IF(U$5>=1,Sorcadins!U$319*U30+U29,IF(U$6,U31,0)) -> 0 | V32: =IF(V$5>=1,Sorcadins!V$319*V30+V29,IF(V$6,V31,0)) -> 0 | W32: =IF(W$5>=1,Sorcadins!W$319*W30+W29,IF(W$6,W31,0)) -> 0 | X32: =IF(X$5>=1,Sorcadins!X$319*X30+X29,IF(X$6,X31,0)) -> 0
D33: max number of daily smites (after spells) | E33: =IF(E$6,Sorcadins!E$1347,IF(E$5,Sorcadins!E$328+E29/2,0)) -> 0 | F33: =IF(F$6,Sorcadins!F$1347,IF(F$5,Sorcadins!F$328+F29/2,0)) -> 0 | G33: =IF(G$6,Sorcadins!G$1347,IF(G$5,Sorcadins!G$328+G29/2,0)) -> 0 | H33: =IF(H$6,Sorcadins!H$1347,IF(H$5,Sorcadins!H$328+H29/2,0)) -> 0 | I33: =IF(I$6,Sorcadins!I$1347,IF(I$5,Sorcadins!I$328+I29/2,0)) -> 0 | J33: =IF(J$6,Sorcadins!J$1347,IF(J$5,Sorcadins!J$328+J29/2,0)) -> 0 | K33: =IF(K$6,Sorcadins!K$1347,IF(K$5,Sorcadins!K$328+K29/2,0)) -> 0 | L33: =IF(L$6,Sorcadins!L$1347,IF(L$5,Sorcadins!L$328+L29/2,0)) -> 0 | M33: =IF(M$6,Sorcadins!M$1347,IF(M$5,Sorcadins!M$328+M29/2,0)) -> 0 | N33: =IF(N$6,Sorcadins!N$1347,IF(N$5,Sorcadins!N$328+N29/2,0)) -> 0 | O33: =IF(O$6,Sorcadins!O$1347,IF(O$5,Sorcadins!O$328+O29/2,0)) -> 0 | P33: =IF(P$6,Sorcadins!P$1347,IF(P$5,Sorcadins!P$328+P29/2,0)) -> 0 | Q33: =IF(Q$6,Sorcadins!Q$1347,IF(Q$5,Sorcadins!Q$328+Q29/2,0)) -> 0 | R33: =IF(R$6,Sorcadins!R$1347,IF(R$5,Sorcadins!R$328+R29/2,0)) -> 0 | S33: =IF(S$6,Sorcadins!S$1347,IF(S$5,Sorcadins!S$328+S29/2,0)) -> 0 | T33: =IF(T$6,Sorcadins!T$1347,IF(T$5,Sorcadins!T$328+T29/2,0)) -> 0 | U33: =IF(U$6,Sorcadins!U$1347,IF(U$5,Sorcadins!U$328+U29/2,0)) -> 0 | V33: =IF(V$6,Sorcadins!V$1347,IF(V$5,Sorcadins!V$328+V29/2,0)) -> 0 | W33: =IF(W$6,Sorcadins!W$1347,IF(W$5,Sorcadins!W$328+W29/2,0)) -> 0 | X33: =IF(X$6,Sorcadins!X$1347,IF(X$5,Sorcadins!X$328+X29/2,0)) -> 0
D34: avg crits per day for smite purposes (based on Damage Scenario) | E34: ='Base Numbers'!$C$5*'Base Numbers'!$C$6*Sorcadins!E$1506 -> 0.7933333333 | F34: ='Base Numbers'!$C$5*'Base Numbers'!$C$6*Sorcadins!F$1506 -> 0.77 | G34: ='Base Numbers'!$C$5*'Base Numbers'!$C$6*Sorcadins!G$1506 -> 0.76 | H34: ='Base Numbers'!$C$5*'Base Numbers'!$C$6*Sorcadins!H$1506 -> 0.76 | I34: ='Base Numbers'!$C$5*'Base Numbers'!$C$6*Sorcadins!I$1506 -> 0.76 | J34: ='Base Numbers'!$C$5*'Base Numbers'!$C$6*Sorcadins!J$1506 -> 0.76 | K34: ='Base Numbers'!$C$5*'Base Numbers'!$C$6*Sorcadins!K$1506 -> 0.71 | L34: ='Base Numbers'!$C$5*'Base Numbers'!$C$6*Sorcadins!L$1506 -> 0.48269 | M34: ='Base Numbers'!$C$5*'Base Numbers'!$C$6*Sorcadins!M$1506 -> 0.4078115789 | N34: ='Base Numbers'!$C$5*'Base Numbers'!$C$6*Sorcadins!N$1506 -> 0.38269 | O34: ='Base Numbers'!$C$5*'Base Numbers'!$C$6*Sorcadins!O$1506 -> 0.3062536735 | P34: ='Base Numbers'!$C$5*'Base Numbers'!$C$6*Sorcadins!P$1506 -> 0.2510984839 | Q34: ='Base Numbers'!$C$5*'Base Numbers'!$C$6*Sorcadins!Q$1506 -> 0.2086585396 | R34: ='Base Numbers'!$C$5*'Base Numbers'!$C$6*Sorcadins!R$1506 -> 0.2086585396 | S34: ='Base Numbers'!$C$5*'Base Numbers'!$C$6*Sorcadins!S$1506 -> 0.1715156109 | T34: ='Base Numbers'!$C$5*'Base Numbers'!$C$6*Sorcadins!T$1506 -> 0.3181614583 | U34: ='Base Numbers'!$C$5*'Base Numbers'!$C$6*Sorcadins!U$1506 -> 0.2975624495 | V34: ='Base Numbers'!$C$5*'Base Numbers'!$C$6*Sorcadins!V$1506 -> 0.2975624495 | W34: ='Base Numbers'!$C$5*'Base Numbers'!$C$6*Sorcadins!W$1506 -> 0.2975624495 | X34: ='Base Numbers'!$C$5*'Base Numbers'!$C$6*Sorcadins!X$1506 -> 0.2975624495
D35: number of smites used on crits | E35: =MIN(E33,E34) -> 0 | F35: 0 | G35: 0 | H35: 0 | I35: 0 | J35: 0 | K35: 0 | L35: 0 | M35: 0 | N35: 0 | O35: 0 | P35: 0 | Q35: 0 | R35: 0 | S35: 0 | T35: 0 | U35: 0 | V35: 0 | W35: 0 | X35: 0
D36: avg smite dice per crit | E36: =IF(E35>0,MIN(E$7,(E32/MIN(E35,E34))),0) -> 0 | F36: 0 | G36: 0 | H36: 0 | I36: 0 | J36: 0 | K36: 0 | L36: 0 | M36: 0 | N36: 0 | O36: 0 | P36: 0 | Q36: 0 | R36: 0 | S36: 0 | T36: 0 | U36: 0 | V36: 0 | W36: 0 | X36: 0
D37: smites left for non-crits | E37: =E33-E35 -> 0 | F37: =F33-F35 -> 0 | G37: 0 | H37: 0 | I37: 0 | J37: 0 | K37: 0 | L37: 0 | M37: 0 | N37: 0 | O37: 0 | P37: 0 | Q37: 0 | R37: 0 | S37: 0 | T37: 0 | U37: 0 | V37: 0 | W37: 0 | X37: 0
D38: total non-crit smite-qualifying attacks available | E38: =Sorcadins!E$1481*('Base Numbers'!$C$5*'Base Numbers'!$C$6)-E34 -> 15.07333333 | F38: =Sorcadins!F$1481*('Base Numbers'!$C$5*'Base Numbers'!$C$6)-F34 -> 14.63 | G38: =Sorcadins!G$1481*('Base Numbers'!$C$5*'Base Numbers'!$C$6)-G34 -> 14.44 | H38: =Sorcadins!H$1481*('Base Numbers'!$C$5*'Base Numbers'!$C$6)-H34 -> 14.44 | I38: =Sorcadins!I$1481*('Base Numbers'!$C$5*'Base Numbers'!$C$6)-I34 -> 14.44 | J38: =Sorcadins!J$1481*('Base Numbers'!$C$5*'Base Numbers'!$C$6)-J34 -> 14.44 | K38: =Sorcadins!K$1481*('Base Numbers'!$C$5*'Base Numbers'!$C$6)-K34 -> 13.49 | L38: =Sorcadins!L$1481*('Base Numbers'!$C$5*'Base Numbers'!$C$6)-L34 -> 9.17111 | M38: =Sorcadins!M$1481*('Base Numbers'!$C$5*'Base Numbers'!$C$6)-M34 -> 7.74842 | N38: =Sorcadins!N$1481*('Base Numbers'!$C$5*'Base Numbers'!$C$6)-N34 -> 7.27111 | O38: =Sorcadins!O$1481*('Base Numbers'!$C$5*'Base Numbers'!$C$6)-O34 -> 5.818819796 | P38: =Sorcadins!P$1481*('Base Numbers'!$C$5*'Base Numbers'!$C$6)-P34 -> 4.770871193 | Q38: =Sorcadins!Q$1481*('Base Numbers'!$C$5*'Base Numbers'!$C$6)-Q34 -> 3.964512252 | R38: =Sorcadins!R$1481*('Base Numbers'!$C$5*'Base Numbers'!$C$6)-R34 -> 3.964512252 | S38: =Sorcadins!S$1481*('Base Numbers'!$C$5*'Base Numbers'!$C$6)-S34 -> 3.258796607 | T38: =Sorcadins!T$1481*('Base Numbers'!$C$5*'Base Numbers'!$C$6)-T34 -> 3.11215076 | U38: =Sorcadins!U$1481*('Base Numbers'!$C$5*'Base Numbers'!$C$6)-U34 -> 2.91065803 | V38: =Sorcadins!V$1481*('Base Numbers'!$C$5*'Base Numbers'!$C$6)-V34 -> 2.91065803 | W38: =Sorcadins!W$1481*('Base Numbers'!$C$5*'Base Numbers'!$C$6)-W34 -> 2.91065803 | X38: =Sorcadins!X$1481*('Base Numbers'!$C$5*'Base Numbers'!$C$6)-X34 -> 2.91065803
D39: smite dice left for non-crits | E39: =ROUND(MAX(0,E32-E34*E36),4) -> 0 | F39: 0 | G39: 0 | H39: 0 | I39: 0 | J39: 0 | K39: 0 | L39: 0 | M39: 0 | N39: 0 | O39: 0 | P39: 0 | Q39: 0 | R39: 0 | S39: 0 | T39: 0 | U39: 0 | V39: 0 | W39: 0 | X39: 0
D40: total smite dice used on crits | E40: =E35*E36 -> 0 | F40: =F35*F36 -> 0 | G40: 0 | H40: 0 | I40: 0 | J40: 0 | K40: 0 | L40: 0 | M40: 0 | N40: 0 | O40: 0 | P40: 0 | Q40: 0 | R40: 0 | S40: 0 | T40: 0 | U40: 0 | V40: 0 | W40: 0 | X40: 0
D41: total crit smite damage per day | E41: =9*E40 -> 0 | F41: 0 | G41: 0 | H41: 0 | I41: 0 | J41: 0 | K41: 0 | L41: 0 | M41: 0 | N41: 0 | O41: 0 | P41: 0 | Q41: 0 | R41: 0 | S41: 0 | T41: 0 | U41: 0 | V41: 0 | W41: 0 | X41: 0
D42: total non-crit smite damage per day | E42: =4.5*MIN(MIN(E38,E37)*E$7,E39) -> 0 | F42: =4.5*MIN(MIN(F38,F37)*F$7,F39) -> 0 | G42: 0 | H42: 0 | I42: 0 | J42: 0 | K42: 0 | L42: 0 | M42: 0 | N42: 0 | O42: 0 | P42: 0 | Q42: 0 | R42: 0 | S42: 0 | T42: 0 | U42: 0 | V42: 0 | W42: 0 | X42: =4.5*MIN(MIN(X38,X37)*X$7,X39) -> 0
D43: leftover sorc points + spell levels | E43: =IF(E32>0,IF(Sorcadins!E$319>0,(Sorcadins!E$319*E30+E29-E35*E36-E42/4.5)/Sorcadins!E$319,0),E30+E29) -> 0 | F43: =IF(F32>0,IF(Sorcadins!F$319>0,(Sorcadins!F$319*F30+F29-F35*F36-F42/4.5)/Sorcadins!F$319,0),F30+F29) -> 0 | G43: =IF(G32>0,IF(Sorcadins!G$319>0,(Sorcadins!G$319*G30+G29-G35*G36-G42/4.5)/Sorcadins!G$319,0),G30+G29) -> 0 | H43: =IF(H32>0,IF(Sorcadins!H$319>0,(Sorcadins!H$319*H30+H29-H35*H36-H42/4.5)/Sorcadins!H$319,0),H30+H29) -> 0 | I43: =IF(I32>0,IF(Sorcadins!I$319>0,(Sorcadins!I$319*I30+I29-I35*I36-I42/4.5)/Sorcadins!I$319,0),I30+I29) -> 0 | J43: =IF(J32>0,IF(Sorcadins!J$319>0,(Sorcadins!J$319*J30+J29-J35*J36-J42/4.5)/Sorcadins!J$319,0),J30+J29) -> 1 | K43: =IF(K32>0,IF(Sorcadins!K$319>0,(Sorcadins!K$319*K30+K29-K35*K36-K42/4.5)/Sorcadins!K$319,0),K30+K29) -> 1 | L43: =IF(L32>0,IF(Sorcadins!L$319>0,(Sorcadins!L$319*L30+L29-L35*L36-L42/4.5)/Sorcadins!L$319,0),L30+L29) -> 4 | M43: =IF(M32>0,IF(Sorcadins!M$319>0,(Sorcadins!M$319*M30+M29-M35*M36-M42/4.5)/Sorcadins!M$319,0),M30+M29) -> 0 | N43: =IF(N32>0,IF(Sorcadins!N$319>0,(Sorcadins!N$319*N30+N29-N35*N36-N42/4.5)/Sorcadins!N$319,0),N30+N29) -> 1 | O43: =IF(O32>0,IF(Sorcadins!O$319>0,(Sorcadins!O$319*O30+O29-O35*O36-O42/4.5)/Sorcadins!O$319,0),O30+O29) -> 7.105427358e-15 | P43: =IF(P32>0,IF(Sorcadins!P$319>0,(Sorcadins!P$319*P30+P29-P35*P36-P42/4.5)/Sorcadins!P$319,0),P30+P29) -> 0 | Q43: =IF(Q32>0,IF(Sorcadins!Q$319>0,(Sorcadins!Q$319*Q30+Q29-Q35*Q36-Q42/4.5)/Sorcadins!Q$319,0),Q30+Q29) -> 7.105427358e-15 | R43: =IF(R32>0,IF(Sorcadins!R$319>0,(Sorcadins!R$319*R30+R29-R35*R36-R42/4.5)/Sorcadins!R$319,0),R30+R29) -> 7.105427358e-15 | S43: =IF(S32>0,IF(Sorcadins!S$319>0,(Sorcadins!S$319*S30+S29-S35*S36-S42/4.5)/Sorcadins!S$319,0),S30+S29) -> 1.421085472e-14 | T43: =IF(T32>0,IF(Sorcadins!T$319>0,(Sorcadins!T$319*T30+T29-T35*T36-T42/4.5)/Sorcadins!T$319,0),T30+T29) -> 1.421085472e-14 | U43: =IF(U32>0,IF(Sorcadins!U$319>0,(Sorcadins!U$319*U30+U29-U35*U36-U42/4.5)/Sorcadins!U$319,0),U30+U29) -> 2 | V43: =IF(V32>0,IF(Sorcadins!V$319>0,(Sorcadins!V$319*V30+V29-V35*V36-V42/4.5)/Sorcadins!V$319,0),V30+V29) -> 6 | W43: =IF(W32>0,IF(Sorcadins!W$319>0,(Sorcadins!W$319*W30+W29-W35*W36-W42/4.5)/Sorcadins!W$319,0),W30+W29) -> 10 | X43: =IF(X32>0,IF(Sorcadins!X$319>0,(Sorcadins!X$319*X30+X29-X35*X36-X42/4.5)/Sorcadins!X$319,0),X30+X29) -> 14
D44: actual smites performed | E44: =E35+IF(E$7>0,MIN(E37,E38,E39/E$7),0) -> 0 | F44: =F35+IF(F$7>0,MIN(F37,F38,F39/F$7),0) -> 0 | G44: 0 | H44: 0 | I44: 0 | J44: 0 | K44: 0 | L44: 0 | M44: 0 | N44: 0 | O44: 0 | P44: 0 | Q44: 0 | R44: 0 | S44: 0 | T44: 0 | U44: 0 | V44: 0 | W44: 0 | X44: 0
D45: total daily smite damage: M1, B1, O3 | E45: =E41+E42 -> 0 | F45: 0 | G45: 0 | H45: 0 | I45: 0 | J45: 0 | K45: 0 | L45: 0 | M45: 0 | N45: 0 | O45: 0 | P45: 0 | Q45: 0 | R45: 0 | S45: 0 | T45: 0 | U45: 0 | V45: 0 | W45: 0 | X45: 0
D47: SMITES - M1, B2, O1/O2 | E47: 1 | F47: 2 | G47: 3 | H47: 4 | I47: 5 | J47: 6 | K47: 7 | L47: 8 | M47: 9 | N47: 10 | O47: 11 | P47: 12 | Q47: 13 | R47: 14 | S47: 15 | T47: 16 | U47: 17 | V47: 18 | W47: 19 | X47: 20
D48: remaining sorcery points (based on Damage Scenario) | E48: =MAX(0,Sorcadins!E$616-Sorcadins!E$1474) -> 0 | F48: =MAX(0,Sorcadins!F$616-Sorcadins!F$1474) -> 0 | G48: =MAX(0,Sorcadins!G$616-Sorcadins!G$1474) -> 0 | H48: =MAX(0,Sorcadins!H$616-Sorcadins!H$1474) -> 0 | I48: =MAX(0,Sorcadins!I$616-Sorcadins!I$1474) -> 0 | J48: =MAX(0,Sorcadins!J$616-Sorcadins!J$1474) -> 0 | K48: =MAX(0,Sorcadins!K$616-Sorcadins!K$1474) -> 0 | L48: =MAX(0,Sorcadins!L$616-Sorcadins!L$1474) -> 0 | M48: =MAX(0,Sorcadins!M$616-Sorcadins!M$1474) -> 0 | N48: =MAX(0,Sorcadins!N$616-Sorcadins!N$1474) -> 0 | O48: =MAX(0,Sorcadins!O$616-Sorcadins!O$1474) -> 0 | P48: =MAX(0,Sorcadins!P$616-Sorcadins!P$1474) -> 0 | Q48: =MAX(0,Sorcadins!Q$616-Sorcadins!Q$1474) -> 0 | R48: =MAX(0,Sorcadins!R$616-Sorcadins!R$1474) -> 0 | S48: =MAX(0,Sorcadins!S$616-Sorcadins!S$1474) -> 0 | T48: =MAX(0,Sorcadins!T$616-Sorcadins!T$1474) -> 0 | U48: =MAX(0,Sorcadins!U$616-Sorcadins!U$1474) -> 0 | V48: =MAX(0,Sorcadins!V$616-Sorcadins!V$1474) -> 0 | W48: =MAX(0,Sorcadins!W$616-Sorcadins!W$1474) -> 0 | X48: =MAX(0,Sorcadins!X$616-Sorcadins!X$1474) -> 0 | Z48: *Sorc points directly convertible to Smite Dice
D49: remaining spell slot levels (based on Damage Scenario) | E49: =MAX(0,Sorcadins!E$327-MAX(0,Sorcadins!E$1474-Sorcadins!E$616)) -> 0 | F49: =MAX(0,Sorcadins!F$327-MAX(0,Sorcadins!F$1474-Sorcadins!F$616)) -> 0 | G49: =MAX(0,Sorcadins!G$327-MAX(0,Sorcadins!G$1474-Sorcadins!G$616)) -> 0 | H49: =MAX(0,Sorcadins!H$327-MAX(0,Sorcadins!H$1474-Sorcadins!H$616)) -> 0 | I49: =MAX(0,Sorcadins!I$327-MAX(0,Sorcadins!I$1474-Sorcadins!I$616)) -> 0 | J49: =MAX(0,Sorcadins!J$327-MAX(0,Sorcadins!J$1474-Sorcadins!J$616)) -> 1 | K49: =MAX(0,Sorcadins!K$327-MAX(0,Sorcadins!K$1474-Sorcadins!K$616)) -> 1 | L49: =MAX(0,Sorcadins!L$327-MAX(0,Sorcadins!L$1474-Sorcadins!L$616)) -> 4 | M49: =MAX(0,Sorcadins!M$327-MAX(0,Sorcadins!M$1474-Sorcadins!M$616)) -> 0 | N49: =MAX(0,Sorcadins!N$327-MAX(0,Sorcadins!N$1474-Sorcadins!N$616)) -> 1 | O49: =MAX(0,Sorcadins!O$327-MAX(0,Sorcadins!O$1474-Sorcadins!O$616)) -> 7.105427358e-15 | P49: =MAX(0,Sorcadins!P$327-MAX(0,Sorcadins!P$1474-Sorcadins!P$616)) -> 0 | Q49: =MAX(0,Sorcadins!Q$327-MAX(0,Sorcadins!Q$1474-Sorcadins!Q$616)) -> 7.105427358e-15 | R49: =MAX(0,Sorcadins!R$327-MAX(0,Sorcadins!R$1474-Sorcadins!R$616)) -> 7.105427358e-15 | S49: =MAX(0,Sorcadins!S$327-MAX(0,Sorcadins!S$1474-Sorcadins!S$616)) -> 1.421085472e-14 | T49: =MAX(0,Sorcadins!T$327-MAX(0,Sorcadins!T$1474-Sorcadins!T$616)) -> 1.421085472e-14 | U49: =MAX(0,Sorcadins!U$327-MAX(0,Sorcadins!U$1474-Sorcadins!U$616)) -> 2 | V49: =MAX(0,Sorcadins!V$327-MAX(0,Sorcadins!V$1474-Sorcadins!V$616)) -> 6 | W49: =MAX(0,Sorcadins!W$327-MAX(0,Sorcadins!W$1474-Sorcadins!W$616)) -> 10 | X49: =MAX(0,Sorcadins!X$327-MAX(0,Sorcadins!X$1474-Sorcadins!X$616)) -> 14
D50: total warlock smite levels remaining | E50: =MIN(Sorcadins!E$319*E49,Sorcadins!E$310) -> 0 | F50: =MIN(Sorcadins!F$319*F49,Sorcadins!F$310) -> 0 | G50: =MIN(Sorcadins!G$319*G49,Sorcadins!G$310) -> 0 | H50: =MIN(Sorcadins!H$319*H49,Sorcadins!H$310) -> 0 | I50: =MIN(Sorcadins!I$319*I49,Sorcadins!I$310) -> 0 | J50: =MIN(Sorcadins!J$319*J49,Sorcadins!J$310) -> 0 | K50: =MIN(Sorcadins!K$319*K49,Sorcadins!K$310) -> 0 | L50: =MIN(Sorcadins!L$319*L49,Sorcadins!L$310) -> 0 | M50: =MIN(Sorcadins!M$319*M49,Sorcadins!M$310) -> 0 | N50: =MIN(Sorcadins!N$319*N49,Sorcadins!N$310) -> 0 | O50: =MIN(Sorcadins!O$319*O49,Sorcadins!O$310) -> 0 | P50: =MIN(Sorcadins!P$319*P49,Sorcadins!P$310) -> 0 | Q50: =MIN(Sorcadins!Q$319*Q49,Sorcadins!Q$310) -> 0 | R50: =MIN(Sorcadins!R$319*R49,Sorcadins!R$310) -> 0 | S50: =MIN(Sorcadins!S$319*S49,Sorcadins!S$310) -> 0 | T50: =MIN(Sorcadins!T$319*T49,Sorcadins!T$310) -> 0 | U50: =MIN(Sorcadins!U$319*U49,Sorcadins!U$310) -> 0 | V50: =MIN(Sorcadins!V$319*V49,Sorcadins!V$310) -> 0 | W50: =MIN(Sorcadins!W$319*W49,Sorcadins!W$310) -> 0 | X50: =MIN(Sorcadins!X$319*X49,Sorcadins!X$310) -> 0
D51: total smite levels remaining | E51: =IF(E$5>=1,Sorcadins!E$319*E49+E48,IF(E$6,E50,0)) -> 0 | F51: =IF(F$5>=1,Sorcadins!F$319*F49+F48,IF(F$6,F50,0)) -> 0 | G51: =IF(G$5>=1,Sorcadins!G$319*G49+G48,IF(G$6,G50,0)) -> 0 | H51: =IF(H$5>=1,Sorcadins!H$319*H49+H48,IF(H$6,H50,0)) -> 0 | I51: =IF(I$5>=1,Sorcadins!I$319*I49+I48,IF(I$6,I50,0)) -> 0 | J51: =IF(J$5>=1,Sorcadins!J$319*J49+J48,IF(J$6,J50,0)) -> 0 | K51: =IF(K$5>=1,Sorcadins!K$319*K49+K48,IF(K$6,K50,0)) -> 0 | L51: =IF(L$5>=1,Sorcadins!L$319*L49+L48,IF(L$6,L50,0)) -> 0 | M51: =IF(M$5>=1,Sorcadins!M$319*M49+M48,IF(M$6,M50,0)) -> 0 | N51: =IF(N$5>=1,Sorcadins!N$319*N49+N48,IF(N$6,N50,0)) -> 0 | O51: =IF(O$5>=1,Sorcadins!O$319*O49+O48,IF(O$6,O50,0)) -> 0 | P51: =IF(P$5>=1,Sorcadins!P$319*P49+P48,IF(P$6,P50,0)) -> 0 | Q51: =IF(Q$5>=1,Sorcadins!Q$319*Q49+Q48,IF(Q$6,Q50,0)) -> 0 | R51: =IF(R$5>=1,Sorcadins!R$319*R49+R48,IF(R$6,R50,0)) -> 0 | S51: =IF(S$5>=1,Sorcadins!S$319*S49+S48,IF(S$6,S50,0)) -> 0 | T51: =IF(T$5>=1,Sorcadins!T$319*T49+T48,IF(T$6,T50,0)) -> 0 | U51: =IF(U$5>=1,Sorcadins!U$319*U49+U48,IF(U$6,U50,0)) -> 0 | V51: =IF(V$5>=1,Sorcadins!V$319*V49+V48,IF(V$6,V50,0)) -> 0 | W51: =IF(W$5>=1,Sorcadins!W$319*W49+W48,IF(W$6,W50,0)) -> 0 | X51: =IF(X$5>=1,Sorcadins!X$319*X49+X48,IF(X$6,X50,0)) -> 0
D52: max number of daily smites (after spells) | E52: =IF(E$6,Sorcadins!E$1347,IF(E$5,Sorcadins!E$328+E48/2,0)) -> 0 | F52: =IF(F$6,Sorcadins!F$1347,IF(F$5,Sorcadins!F$328+F48/2,0)) -> 0 | G52: =IF(G$6,Sorcadins!G$1347,IF(G$5,Sorcadins!G$328+G48/2,0)) -> 0 | H52: =IF(H$6,Sorcadins!H$1347,IF(H$5,Sorcadins!H$328+H48/2,0)) -> 0 | I52: =IF(I$6,Sorcadins!I$1347,IF(I$5,Sorcadins!I$328+I48/2,0)) -> 0 | J52: =IF(J$6,Sorcadins!J$1347,IF(J$5,Sorcadins!J$328+J48/2,0)) -> 0 | K52: =IF(K$6,Sorcadins!K$1347,IF(K$5,Sorcadins!K$328+K48/2,0)) -> 0 | L52: =IF(L$6,Sorcadins!L$1347,IF(L$5,Sorcadins!L$328+L48/2,0)) -> 0 | M52: =IF(M$6,Sorcadins!M$1347,IF(M$5,Sorcadins!M$328+M48/2,0)) -> 0 | N52: =IF(N$6,Sorcadins!N$1347,IF(N$5,Sorcadins!N$328+N48/2,0)) -> 0 | O52: =IF(O$6,Sorcadins!O$1347,IF(O$5,Sorcadins!O$328+O48/2,0)) -> 0 | P52: =IF(P$6,Sorcadins!P$1347,IF(P$5,Sorcadins!P$328+P48/2,0)) -> 0 | Q52: =IF(Q$6,Sorcadins!Q$1347,IF(Q$5,Sorcadins!Q$328+Q48/2,0)) -> 0 | R52: =IF(R$6,Sorcadins!R$1347,IF(R$5,Sorcadins!R$328+R48/2,0)) -> 0 | S52: =IF(S$6,Sorcadins!S$1347,IF(S$5,Sorcadins!S$328+S48/2,0)) -> 0 | T52: =IF(T$6,Sorcadins!T$1347,IF(T$5,Sorcadins!T$328+T48/2,0)) -> 0 | U52: =IF(U$6,Sorcadins!U$1347,IF(U$5,Sorcadins!U$328+U48/2,0)) -> 0 | V52: =IF(V$6,Sorcadins!V$1347,IF(V$5,Sorcadins!V$328+V48/2,0)) -> 0 | W52: =IF(W$6,Sorcadins!W$1347,IF(W$5,Sorcadins!W$328+W48/2,0)) -> 0 | X52: =IF(X$6,Sorcadins!X$1347,IF(X$5,Sorcadins!X$328+X48/2,0)) -> 0
D53: avg crits per day for smite purposes (based on Damage Scenario) | E53: ='Base Numbers'!$C$5*'Base Numbers'!$C$6*Sorcadins!E$1507 -> 0.9933333333 | F53: ='Base Numbers'!$C$5*'Base Numbers'!$C$6*Sorcadins!F$1507 -> 0.97 | G53: ='Base Numbers'!$C$5*'Base Numbers'!$C$6*Sorcadins!G$1507 -> 0.96 | H53: ='Base Numbers'!$C$5*'Base Numbers'!$C$6*Sorcadins!H$1507 -> 0.96 | I53: ='Base Numbers'!$C$5*'Base Numbers'!$C$6*Sorcadins!I$1507 -> 0.96 | J53: ='Base Numbers'!$C$5*'Base Numbers'!$C$6*Sorcadins!J$1507 -> 0.96 | K53: ='Base Numbers'!$C$5*'Base Numbers'!$C$6*Sorcadins!K$1507 -> 0.91 | L53: ='Base Numbers'!$C$5*'Base Numbers'!$C$6*Sorcadins!L$1507 -> 0.68269 | M53: ='Base Numbers'!$C$5*'Base Numbers'!$C$6*Sorcadins!M$1507 -> 0.6078115789 | N53: ='Base Numbers'!$C$5*'Base Numbers'!$C$6*Sorcadins!N$1507 -> 0.58269 | O53: ='Base Numbers'!$C$5*'Base Numbers'!$C$6*Sorcadins!O$1507 -> 0.5062536735 | P53: ='Base Numbers'!$C$5*'Base Numbers'!$C$6*Sorcadins!P$1507 -> 0.4510984839 | Q53: ='Base Numbers'!$C$5*'Base Numbers'!$C$6*Sorcadins!Q$1507 -> 0.4086585396 | R53: ='Base Numbers'!$C$5*'Base Numbers'!$C$6*Sorcadins!R$1507 -> 0.4086585396 | S53: ='Base Numbers'!$C$5*'Base Numbers'!$C$6*Sorcadins!S$1507 -> 0.3715156109 | T53: ='Base Numbers'!$C$5*'Base Numbers'!$C$6*Sorcadins!T$1507 -> 0.5181614583 | U53: ='Base Numbers'!$C$5*'Base Numbers'!$C$6*Sorcadins!U$1507 -> 0.4975624495 | V53: ='Base Numbers'!$C$5*'Base Numbers'!$C$6*Sorcadins!V$1507 -> 0.4975624495 | W53: ='Base Numbers'!$C$5*'Base Numbers'!$C$6*Sorcadins!W$1507 -> 0.4975624495 | X53: ='Base Numbers'!$C$5*'Base Numbers'!$C$6*Sorcadins!X$1507 -> 0.4975624495
D54: number of smites used on crits | E54: =MIN(E52,E53) -> 0 | F54: =MIN(F52,F53) -> 0 | G54: 0 | H54: 0 | I54: 0 | J54: 0 | K54: 0 | L54: 0 | M54: 0 | N54: 0 | O54: 0 | P54: 0 | Q54: 0 | R54: 0 | S54: 0 | T54: 0 | U54: 0 | V54: 0 | W54: 0 | X54: 0
D55: avg smite dice per crit | E55: =IF(E54>0,MIN(E$7,(E51/MIN(E54,E53))),0) -> 0 | F55: 0 | G55: 0 | H55: 0 | I55: 0 | J55: 0 | K55: 0 | L55: 0 | M55: 0 | N55: 0 | O55: 0 | P55: 0 | Q55: 0 | R55: 0 | S55: 0 | T55: 0 | U55: 0 | V55: 0 | W55: 0 | X55: 0
D56: smites left for non-crits | E56: =E52-E54 -> 0 | F56: =F52-F54 -> 0 | G56: 0 | H56: 0 | I56: 0 | J56: 0 | K56: 0 | L56: 0 | M56: 0 | N56: 0 | O56: 0 | P56: 0 | Q56: 0 | R56: 0 | S56: 0 | T56: 0 | U56: 0 | V56: 0 | W56: 0 | X56: 0
D57: total non-crit smite-qualifying attacks available | E57: =Sorcadins!E$1482*('Base Numbers'!$C$5*'Base Numbers'!$C$6)-E53 -> 18.87333333 | F57: =Sorcadins!F$1482*('Base Numbers'!$C$5*'Base Numbers'!$C$6)-F53 -> 18.43 | G57: =Sorcadins!G$1482*('Base Numbers'!$C$5*'Base Numbers'!$C$6)-G53 -> 18.24 | H57: =Sorcadins!H$1482*('Base Numbers'!$C$5*'Base Numbers'!$C$6)-H53 -> 18.24 | I57: =Sorcadins!I$1482*('Base Numbers'!$C$5*'Base Numbers'!$C$6)-I53 -> 18.24 | J57: =Sorcadins!J$1482*('Base Numbers'!$C$5*'Base Numbers'!$C$6)-J53 -> 18.24 | K57: =Sorcadins!K$1482*('Base Numbers'!$C$5*'Base Numbers'!$C$6)-K53 -> 17.29 | L57: =Sorcadins!L$1482*('Base Numbers'!$C$5*'Base Numbers'!$C$6)-L53 -> 12.97111 | M57: =Sorcadins!M$1482*('Base Numbers'!$C$5*'Base Numbers'!$C$6)-M53 -> 11.54842 | N57: =Sorcadins!N$1482*('Base Numbers'!$C$5*'Base Numbers'!$C$6)-N53 -> 11.07111 | O57: =Sorcadins!O$1482*('Base Numbers'!$C$5*'Base Numbers'!$C$6)-O53 -> 9.618819796 | P57: =Sorcadins!P$1482*('Base Numbers'!$C$5*'Base Numbers'!$C$6)-P53 -> 8.570871193 | Q57: =Sorcadins!Q$1482*('Base Numbers'!$C$5*'Base Numbers'!$C$6)-Q53 -> 7.764512252 | R57: =Sorcadins!R$1482*('Base Numbers'!$C$5*'Base Numbers'!$C$6)-R53 -> 7.764512252 | S57: =Sorcadins!S$1482*('Base Numbers'!$C$5*'Base Numbers'!$C$6)-S53 -> 7.058796607 | T57: =Sorcadins!T$1482*('Base Numbers'!$C$5*'Base Numbers'!$C$6)-T53 -> 6.91215076 | U57: =Sorcadins!U$1482*('Base Numbers'!$C$5*'Base Numbers'!$C$6)-U53 -> 6.71065803 | V57: =Sorcadins!V$1482*('Base Numbers'!$C$5*'Base Numbers'!$C$6)-V53 -> 6.71065803 | W57: =Sorcadins!W$1482*('Base Numbers'!$C$5*'Base Numbers'!$C$6)-W53 -> 6.71065803 | X57: =Sorcadins!X$1482*('Base Numbers'!$C$5*'Base Numbers'!$C$6)-X53 -> 6.71065803
D58: smite dice left for non-crits | E58: =ROUND(MAX(0,E51-E53*E55),4) -> 0 | F58: 0 | G58: 0 | H58: 0 | I58: 0 | J58: 0 | K58: 0 | L58: 0 | M58: 0 | N58: 0 | O58: 0 | P58: 0 | Q58: 0 | R58: 0 | S58: 0 | T58: 0 | U58: 0 | V58: 0 | W58: 0 | X58: 0
D59: total smite dice used on crits | E59: =E54*E55 -> 0 | F59: 0 | G59: 0 | H59: 0 | I59: 0 | J59: 0 | K59: 0 | L59: 0 | M59: 0 | N59: 0 | O59: 0 | P59: 0 | Q59: 0 | R59: 0 | S59: 0 | T59: 0 | U59: 0 | V59: 0 | W59: 0 | X59: 0
D60: total crit smite damage per day | E60: =9*E59 -> 0 | F60: =9*F59 -> 0 | G60: 0 | H60: 0 | I60: 0 | J60: 0 | K60: 0 | L60: 0 | M60: 0 | N60: 0 | O60: 0 | P60: 0 | Q60: 0 | R60: 0 | S60: 0 | T60: 0 | U60: 0 | V60: 0 | W60: 0 | X60: 0
D61: total non-crit smite damage per day | E61: =4.5*MIN(MIN(E57,E56)*E$7,E58) -> 0 | F61: =4.5*MIN(MIN(F57,F56)*F$7,F58) -> 0 | G61: 0 | H61: 0 | I61: 0 | J61: 0 | K61: 0 | L61: 0 | M61: 0 | N61: 0 | O61: 0 | P61: 0 | Q61: 0 | R61: 0 | S61: 0 | T61: 0 | U61: 0 | V61: 0 | W61: 0 | X61: 0
D62: leftover sorc points + spell levels | E62: =IF(E51>0,IF(Sorcadins!E$319>0,(Sorcadins!E$319*E49+E48-E54*E55-E61/4.5)/Sorcadins!E$319,0),E49+E48) -> 0 | F62: =IF(F51>0,IF(Sorcadins!F$319>0,(Sorcadins!F$319*F49+F48-F54*F55-F61/4.5)/Sorcadins!F$319,0),F49+F48) -> 0 | G62: =IF(G51>0,IF(Sorcadins!G$319>0,(Sorcadins!G$319*G49+G48-G54*G55-G61/4.5)/Sorcadins!G$319,0),G49+G48) -> 0 | H62: =IF(H51>0,IF(Sorcadins!H$319>0,(Sorcadins!H$319*H49+H48-H54*H55-H61/4.5)/Sorcadins!H$319,0),H49+H48) -> 0 | I62: =IF(I51>0,IF(Sorcadins!I$319>0,(Sorcadins!I$319*I49+I48-I54*I55-I61/4.5)/Sorcadins!I$319,0),I49+I48) -> 0 | J62: =IF(J51>0,IF(Sorcadins!J$319>0,(Sorcadins!J$319*J49+J48-J54*J55-J61/4.5)/Sorcadins!J$319,0),J49+J48) -> 1 | K62: =IF(K51>0,IF(Sorcadins!K$319>0,(Sorcadins!K$319*K49+K48-K54*K55-K61/4.5)/Sorcadins!K$319,0),K49+K48) -> 1 | L62: =IF(L51>0,IF(Sorcadins!L$319>0,(Sorcadins!L$319*L49+L48-L54*L55-L61/4.5)/Sorcadins!L$319,0),L49+L48) -> 4 | M62: =IF(M51>0,IF(Sorcadins!M$319>0,(Sorcadins!M$319*M49+M48-M54*M55-M61/4.5)/Sorcadins!M$319,0),M49+M48) -> 0 | N62: =IF(N51>0,IF(Sorcadins!N$319>0,(Sorcadins!N$319*N49+N48-N54*N55-N61/4.5)/Sorcadins!N$319,0),N49+N48) -> 1 | O62: =IF(O51>0,IF(Sorcadins!O$319>0,(Sorcadins!O$319*O49+O48-O54*O55-O61/4.5)/Sorcadins!O$319,0),O49+O48) -> 7.105427358e-15 | P62: =IF(P51>0,IF(Sorcadins!P$319>0,(Sorcadins!P$319*P49+P48-P54*P55-P61/4.5)/Sorcadins!P$319,0),P49+P48) -> 0 | Q62: =IF(Q51>0,IF(Sorcadins!Q$319>0,(Sorcadins!Q$319*Q49+Q48-Q54*Q55-Q61/4.5)/Sorcadins!Q$319,0),Q49+Q48) -> 7.105427358e-15 | R62: =IF(R51>0,IF(Sorcadins!R$319>0,(Sorcadins!R$319*R49+R48-R54*R55-R61/4.5)/Sorcadins!R$319,0),R49+R48) -> 7.105427358e-15 | S62: =IF(S51>0,IF(Sorcadins!S$319>0,(Sorcadins!S$319*S49+S48-S54*S55-S61/4.5)/Sorcadins!S$319,0),S49+S48) -> 1.421085472e-14 | T62: =IF(T51>0,IF(Sorcadins!T$319>0,(Sorcadins!T$319*T49+T48-T54*T55-T61/4.5)/Sorcadins!T$319,0),T49+T48) -> 1.421085472e-14 | U62: =IF(U51>0,IF(Sorcadins!U$319>0,(Sorcadins!U$319*U49+U48-U54*U55-U61/4.5)/Sorcadins!U$319,0),U49+U48) -> 2 | V62: =IF(V51>0,IF(Sorcadins!V$319>0,(Sorcadins!V$319*V49+V48-V54*V55-V61/4.5)/Sorcadins!V$319,0),V49+V48) -> 6 | W62: =IF(W51>0,IF(Sorcadins!W$319>0,(Sorcadins!W$319*W49+W48-W54*W55-W61/4.5)/Sorcadins!W$319,0),W49+W48) -> 10 | X62: =IF(X51>0,IF(Sorcadins!X$319>0,(Sorcadins!X$319*X49+X48-X54*X55-X61/4.5)/Sorcadins!X$319,0),X49+X48) -> 14
D63: actual smites performed | E63: =E54+IF(E$7>0,MIN(E56,E57,E58/E$7),0) -> 0 | F63: =F54+IF(F$7>0,MIN(F56,F57,F58/F$7),0) -> 0 | G63: 0 | H63: 0 | I63: 0 | J63: 0 | K63: 0 | L63: 0 | M63: 0 | N63: 0 | O63: 0 | P63: 0 | Q63: 0 | R63: 0 | S63: 0 | T63: 0 | U63: 0 | V63: 0 | W63: 0 | X63: 0
D64: total daily smite damage: M1, B2, O1/O2 | E64: =E60+E61 -> 0 | F64: =F60+F61 -> 0 | G64: 0 | H64: 0 | I64: 0 | J64: 0 | K64: 0 | L64: 0 | M64: 0 | N64: 0 | O64: 0 | P64: 0 | Q64: 0 | R64: 0 | S64: 0 | T64: 0 | U64: 0 | V64: 0 | W64: 0 | X64: 0
D66: SMITES - M1, B2, O3 | E66: 1 | F66: 2 | G66: 3 | H66: 4 | I66: 5 | J66: 6 | K66: 7 | L66: 8 | M66: 9 | N66: 10 | O66: 11 | P66: 12 | Q66: 13 | R66: 14 | S66: 15 | T66: 16 | U66: 17 | V66: 18 | W66: 19 | X66: 20
D67: remaining sorcery points (based on Damage Scenario) | E67: =MAX(0,Sorcadins!E$616-Sorcadins!E$1474) -> 0 | F67: =MAX(0,Sorcadins!F$616-Sorcadins!F$1474) -> 0 | G67: =MAX(0,Sorcadins!G$616-Sorcadins!G$1474) -> 0 | H67: =MAX(0,Sorcadins!H$616-Sorcadins!H$1474) -> 0 | I67: =MAX(0,Sorcadins!I$616-Sorcadins!I$1474) -> 0 | J67: =MAX(0,Sorcadins!J$616-Sorcadins!J$1474) -> 0 | K67: =MAX(0,Sorcadins!K$616-Sorcadins!K$1474) -> 0 | L67: =MAX(0,Sorcadins!L$616-Sorcadins!L$1474) -> 0 | M67: =MAX(0,Sorcadins!M$616-Sorcadins!M$1474) -> 0 | N67: =MAX(0,Sorcadins!N$616-Sorcadins!N$1474) -> 0 | O67: =MAX(0,Sorcadins!O$616-Sorcadins!O$1474) -> 0 | P67: =MAX(0,Sorcadins!P$616-Sorcadins!P$1474) -> 0 | Q67: =MAX(0,Sorcadins!Q$616-Sorcadins!Q$1474) -> 0 | R67: =MAX(0,Sorcadins!R$616-Sorcadins!R$1474) -> 0 | S67: =MAX(0,Sorcadins!S$616-Sorcadins!S$1474) -> 0 | T67: =MAX(0,Sorcadins!T$616-Sorcadins!T$1474) -> 0 | U67: =MAX(0,Sorcadins!U$616-Sorcadins!U$1474) -> 0 | V67: =MAX(0,Sorcadins!V$616-Sorcadins!V$1474) -> 0 | W67: =MAX(0,Sorcadins!W$616-Sorcadins!W$1474) -> 0 | X67: =MAX(0,Sorcadins!X$616-Sorcadins!X$1474) -> 0 | Z67: *Sorc points directly convertible to Smite Dice
D68: remaining spell slot levels (based on Damage Scenario) | E68: =MAX(0,Sorcadins!E$327-MAX(0,Sorcadins!E$1474-Sorcadins!E$616)) -> 0 | F68: =MAX(0,Sorcadins!F$327-MAX(0,Sorcadins!F$1474-Sorcadins!F$616)) -> 0 | G68: =MAX(0,Sorcadins!G$327-MAX(0,Sorcadins!G$1474-Sorcadins!G$616)) -> 0 | H68: =MAX(0,Sorcadins!H$327-MAX(0,Sorcadins!H$1474-Sorcadins!H$616)) -> 0 | I68: =MAX(0,Sorcadins!I$327-MAX(0,Sorcadins!I$1474-Sorcadins!I$616)) -> 0 | J68: =MAX(0,Sorcadins!J$327-MAX(0,Sorcadins!J$1474-Sorcadins!J$616)) -> 1 | K68: =MAX(0,Sorcadins!K$327-MAX(0,Sorcadins!K$1474-Sorcadins!K$616)) -> 1 | L68: =MAX(0,Sorcadins!L$327-MAX(0,Sorcadins!L$1474-Sorcadins!L$616)) -> 4 | M68: =MAX(0,Sorcadins!M$327-MAX(0,Sorcadins!M$1474-Sorcadins!M$616)) -> 0 | N68: =MAX(0,Sorcadins!N$327-MAX(0,Sorcadins!N$1474-Sorcadins!N$616)) -> 1 | O68: =MAX(0,Sorcadins!O$327-MAX(0,Sorcadins!O$1474-Sorcadins!O$616)) -> 7.105427358e-15 | P68: =MAX(0,Sorcadins!P$327-MAX(0,Sorcadins!P$1474-Sorcadins!P$616)) -> 0 | Q68: =MAX(0,Sorcadins!Q$327-MAX(0,Sorcadins!Q$1474-Sorcadins!Q$616)) -> 7.105427358e-15 | R68: =MAX(0,Sorcadins!R$327-MAX(0,Sorcadins!R$1474-Sorcadins!R$616)) -> 7.105427358e-15 | S68: =MAX(0,Sorcadins!S$327-MAX(0,Sorcadins!S$1474-Sorcadins!S$616)) -> 1.421085472e-14 | T68: =MAX(0,Sorcadins!T$327-MAX(0,Sorcadins!T$1474-Sorcadins!T$616)) -> 1.421085472e-14 | U68: =MAX(0,Sorcadins!U$327-MAX(0,Sorcadins!U$1474-Sorcadins!U$616)) -> 2 | V68: =MAX(0,Sorcadins!V$327-MAX(0,Sorcadins!V$1474-Sorcadins!V$616)) -> 6 | W68: =MAX(0,Sorcadins!W$327-MAX(0,Sorcadins!W$1474-Sorcadins!W$616)) -> 10 | X68: =MAX(0,Sorcadins!X$327-MAX(0,Sorcadins!X$1474-Sorcadins!X$616)) -> 14
D69: total warlock smite levels remaining | E69: =MIN(Sorcadins!E$319*E68,Sorcadins!E$310) -> 0 | F69: =MIN(Sorcadins!F$319*F68,Sorcadins!F$310) -> 0 | G69: =MIN(Sorcadins!G$319*G68,Sorcadins!G$310) -> 0 | H69: =MIN(Sorcadins!H$319*H68,Sorcadins!H$310) -> 0 | I69: =MIN(Sorcadins!I$319*I68,Sorcadins!I$310) -> 0 | J69: =MIN(Sorcadins!J$319*J68,Sorcadins!J$310) -> 0 | K69: =MIN(Sorcadins!K$319*K68,Sorcadins!K$310) -> 0 | L69: =MIN(Sorcadins!L$319*L68,Sorcadins!L$310) -> 0 | M69: =MIN(Sorcadins!M$319*M68,Sorcadins!M$310) -> 0 | N69: =MIN(Sorcadins!N$319*N68,Sorcadins!N$310) -> 0 | O69: =MIN(Sorcadins!O$319*O68,Sorcadins!O$310) -> 0 | P69: =MIN(Sorcadins!P$319*P68,Sorcadins!P$310) -> 0 | Q69: =MIN(Sorcadins!Q$319*Q68,Sorcadins!Q$310) -> 0 | R69: =MIN(Sorcadins!R$319*R68,Sorcadins!R$310) -> 0 | S69: =MIN(Sorcadins!S$319*S68,Sorcadins!S$310) -> 0 | T69: =MIN(Sorcadins!T$319*T68,Sorcadins!T$310) -> 0 | U69: =MIN(Sorcadins!U$319*U68,Sorcadins!U$310) -> 0 | V69: =MIN(Sorcadins!V$319*V68,Sorcadins!V$310) -> 0 | W69: =MIN(Sorcadins!W$319*W68,Sorcadins!W$310) -> 0 | X69: =MIN(Sorcadins!X$319*X68,Sorcadins!X$310) -> 0
D70: total smite levels remaining | E70: =IF(E$5>=1,Sorcadins!E$319*E68+E67,IF(E$6,E69,0)) -> 0 | F70: =IF(F$5>=1,Sorcadins!F$319*F68+F67,IF(F$6,F69,0)) -> 0 | G70: =IF(G$5>=1,Sorcadins!G$319*G68+G67,IF(G$6,G69,0)) -> 0 | H70: =IF(H$5>=1,Sorcadins!H$319*H68+H67,IF(H$6,H69,0)) -> 0 | I70: =IF(I$5>=1,Sorcadins!I$319*I68+I67,IF(I$6,I69,0)) -> 0 | J70: =IF(J$5>=1,Sorcadins!J$319*J68+J67,IF(J$6,J69,0)) -> 0 | K70: =IF(K$5>=1,Sorcadins!K$319*K68+K67,IF(K$6,K69,0)) -> 0 | L70: =IF(L$5>=1,Sorcadins!L$319*L68+L67,IF(L$6,L69,0)) -> 0 | M70: =IF(M$5>=1,Sorcadins!M$319*M68+M67,IF(M$6,M69,0)) -> 0 | N70: =IF(N$5>=1,Sorcadins!N$319*N68+N67,IF(N$6,N69,0)) -> 0 | O70: =IF(O$5>=1,Sorcadins!O$319*O68+O67,IF(O$6,O69,0)) -> 0 | P70: =IF(P$5>=1,Sorcadins!P$319*P68+P67,IF(P$6,P69,0)) -> 0 | Q70: =IF(Q$5>=1,Sorcadins!Q$319*Q68+Q67,IF(Q$6,Q69,0)) -> 0 | R70: =IF(R$5>=1,Sorcadins!R$319*R68+R67,IF(R$6,R69,0)) -> 0 | S70: =IF(S$5>=1,Sorcadins!S$319*S68+S67,IF(S$6,S69,0)) -> 0 | T70: =IF(T$5>=1,Sorcadins!T$319*T68+T67,IF(T$6,T69,0)) -> 0 | U70: =IF(U$5>=1,Sorcadins!U$319*U68+U67,IF(U$6,U69,0)) -> 0 | V70: =IF(V$5>=1,Sorcadins!V$319*V68+V67,IF(V$6,V69,0)) -> 0 | W70: =IF(W$5>=1,Sorcadins!W$319*W68+W67,IF(W$6,W69,0)) -> 0 | X70: =IF(X$5>=1,Sorcadins!X$319*X68+X67,IF(X$6,X69,0)) -> 0
D71: max number of daily smites (after spells) | E71: =IF(E$6,Sorcadins!E$1347,IF(E$5,Sorcadins!E$328+E67/2,0)) -> 0 | F71: =IF(F$6,Sorcadins!F$1347,IF(F$5,Sorcadins!F$328+F67/2,0)) -> 0 | G71: =IF(G$6,Sorcadins!G$1347,IF(G$5,Sorcadins!G$328+G67/2,0)) -> 0 | H71: =IF(H$6,Sorcadins!H$1347,IF(H$5,Sorcadins!H$328+H67/2,0)) -> 0 | I71: =IF(I$6,Sorcadins!I$1347,IF(I$5,Sorcadins!I$328+I67/2,0)) -> 0 | J71: =IF(J$6,Sorcadins!J$1347,IF(J$5,Sorcadins!J$328+J67/2,0)) -> 0 | K71: =IF(K$6,Sorcadins!K$1347,IF(K$5,Sorcadins!K$328+K67/2,0)) -> 0 | L71: =IF(L$6,Sorcadins!L$1347,IF(L$5,Sorcadins!L$328+L67/2,0)) -> 0 | M71: =IF(M$6,Sorcadins!M$1347,IF(M$5,Sorcadins!M$328+M67/2,0)) -> 0 | N71: =IF(N$6,Sorcadins!N$1347,IF(N$5,Sorcadins!N$328+N67/2,0)) -> 0 | O71: =IF(O$6,Sorcadins!O$1347,IF(O$5,Sorcadins!O$328+O67/2,0)) -> 0 | P71: =IF(P$6,Sorcadins!P$1347,IF(P$5,Sorcadins!P$328+P67/2,0)) -> 0 | Q71: =IF(Q$6,Sorcadins!Q$1347,IF(Q$5,Sorcadins!Q$328+Q67/2,0)) -> 0 | R71: =IF(R$6,Sorcadins!R$1347,IF(R$5,Sorcadins!R$328+R67/2,0)) -> 0 | S71: =IF(S$6,Sorcadins!S$1347,IF(S$5,Sorcadins!S$328+S67/2,0)) -> 0 | T71: =IF(T$6,Sorcadins!T$1347,IF(T$5,Sorcadins!T$328+T67/2,0)) -> 0 | U71: =IF(U$6,Sorcadins!U$1347,IF(U$5,Sorcadins!U$328+U67/2,0)) -> 0 | V71: =IF(V$6,Sorcadins!V$1347,IF(V$5,Sorcadins!V$328+V67/2,0)) -> 0 | W71: =IF(W$6,Sorcadins!W$1347,IF(W$5,Sorcadins!W$328+W67/2,0)) -> 0 | X71: =IF(X$6,Sorcadins!X$1347,IF(X$5,Sorcadins!X$328+X67/2,0)) -> 0
D72: avg crits per day for smite purposes (based on Damage Scenario) | E72: ='Base Numbers'!$C$5*'Base Numbers'!$C$6*Sorcadins!E$1508 -> 0.7933333333 | F72: ='Base Numbers'!$C$5*'Base Numbers'!$C$6*Sorcadins!F$1508 -> 0.77 | G72: ='Base Numbers'!$C$5*'Base Numbers'!$C$6*Sorcadins!G$1508 -> 0.76 | H72: ='Base Numbers'!$C$5*'Base Numbers'!$C$6*Sorcadins!H$1508 -> 0.76 | I72: ='Base Numbers'!$C$5*'Base Numbers'!$C$6*Sorcadins!I$1508 -> 0.76 | J72: ='Base Numbers'!$C$5*'Base Numbers'!$C$6*Sorcadins!J$1508 -> 0.76 | K72: ='Base Numbers'!$C$5*'Base Numbers'!$C$6*Sorcadins!K$1508 -> 0.71 | L72: ='Base Numbers'!$C$5*'Base Numbers'!$C$6*Sorcadins!L$1508 -> 0.48269 | M72: ='Base Numbers'!$C$5*'Base Numbers'!$C$6*Sorcadins!M$1508 -> 0.4078115789 | N72: ='Base Numbers'!$C$5*'Base Numbers'!$C$6*Sorcadins!N$1508 -> 0.38269 | O72: ='Base Numbers'!$C$5*'Base Numbers'!$C$6*Sorcadins!O$1508 -> 0.3062536735 | P72: ='Base Numbers'!$C$5*'Base Numbers'!$C$6*Sorcadins!P$1508 -> 0.2510984839 | Q72: ='Base Numbers'!$C$5*'Base Numbers'!$C$6*Sorcadins!Q$1508 -> 0.2086585396 | R72: ='Base Numbers'!$C$5*'Base Numbers'!$C$6*Sorcadins!R$1508 -> 0.2086585396 | S72: ='Base Numbers'!$C$5*'Base Numbers'!$C$6*Sorcadins!S$1508 -> 0.1715156109 | T72: ='Base Numbers'!$C$5*'Base Numbers'!$C$6*Sorcadins!T$1508 -> 0.3181614583 | U72: ='Base Numbers'!$C$5*'Base Numbers'!$C$6*Sorcadins!U$1508 -> 0.2975624495 | V72: ='Base Numbers'!$C$5*'Base Numbers'!$C$6*Sorcadins!V$1508 -> 0.2975624495 | W72: ='Base Numbers'!$C$5*'Base Numbers'!$C$6*Sorcadins!W$1508 -> 0.2975624495 | X72: ='Base Numbers'!$C$5*'Base Numbers'!$C$6*Sorcadins!X$1508 -> 0.2975624495
D73: number of smites used on crits | E73: =MIN(E71,E72) -> 0 | F73: =MIN(F71,F72) -> 0 | G73: 0 | H73: 0 | I73: 0 | J73: 0 | K73: 0 | L73: 0 | M73: 0 | N73: 0 | O73: 0 | P73: 0 | Q73: 0 | R73: 0 | S73: 0 | T73: 0 | U73: 0 | V73: 0 | W73: 0 | X73: 0
D74: avg smite dice per crit | E74: =IF(E73>0,MIN(E$7,(E70/MIN(E73,E72))),0) -> 0 | F74: 0 | G74: 0 | H74: 0 | I74: 0 | J74: 0 | K74: 0 | L74: 0 | M74: 0 | N74: 0 | O74: 0 | P74: 0 | Q74: 0 | R74: 0 | S74: 0 | T74: 0 | U74: 0 | V74: 0 | W74: 0 | X74: 0
D75: smites left for non-crits | E75: =E71-E73 -> 0 | F75: =F71-F73 -> 0 | G75: 0 | H75: 0 | I75: 0 | J75: 0 | K75: 0 | L75: 0 | M75: 0 | N75: 0 | O75: 0 | P75: 0 | Q75: 0 | R75: 0 | S75: 0 | T75: 0 | U75: 0 | V75: 0 | W75: 0 | X75: 0
D76: total non-crit smite-qualifying attacks available | E76: =Sorcadins!E$1483*('Base Numbers'!$C$5*'Base Numbers'!$C$6)-E72 -> 15.07333333 | F76: =Sorcadins!F$1483*('Base Numbers'!$C$5*'Base Numbers'!$C$6)-F72 -> 14.63 | G76: =Sorcadins!G$1483*('Base Numbers'!$C$5*'Base Numbers'!$C$6)-G72 -> 14.44 | H76: =Sorcadins!H$1483*('Base Numbers'!$C$5*'Base Numbers'!$C$6)-H72 -> 14.44 | I76: =Sorcadins!I$1483*('Base Numbers'!$C$5*'Base Numbers'!$C$6)-I72 -> 14.44 | J76: =Sorcadins!J$1483*('Base Numbers'!$C$5*'Base Numbers'!$C$6)-J72 -> 14.44 | K76: =Sorcadins!K$1483*('Base Numbers'!$C$5*'Base Numbers'!$C$6)-K72 -> 13.49 | L76: =Sorcadins!L$1483*('Base Numbers'!$C$5*'Base Numbers'!$C$6)-L72 -> 9.17111 | M76: =Sorcadins!M$1483*('Base Numbers'!$C$5*'Base Numbers'!$C$6)-M72 -> 7.74842 | N76: =Sorcadins!N$1483*('Base Numbers'!$C$5*'Base Numbers'!$C$6)-N72 -> 7.27111 | O76: =Sorcadins!O$1483*('Base Numbers'!$C$5*'Base Numbers'!$C$6)-O72 -> 5.818819796 | P76: =Sorcadins!P$1483*('Base Numbers'!$C$5*'Base Numbers'!$C$6)-P72 -> 4.770871193 | Q76: =Sorcadins!Q$1483*('Base Numbers'!$C$5*'Base Numbers'!$C$6)-Q72 -> 3.964512252 | R76: =Sorcadins!R$1483*('Base Numbers'!$C$5*'Base Numbers'!$C$6)-R72 -> 3.964512252 | S76: =Sorcadins!S$1483*('Base Numbers'!$C$5*'Base Numbers'!$C$6)-S72 -> 3.258796607 | T76: =Sorcadins!T$1483*('Base Numbers'!$C$5*'Base Numbers'!$C$6)-T72 -> 3.11215076 | U76: =Sorcadins!U$1483*('Base Numbers'!$C$5*'Base Numbers'!$C$6)-U72 -> 2.91065803 | V76: =Sorcadins!V$1483*('Base Numbers'!$C$5*'Base Numbers'!$C$6)-V72 -> 2.91065803 | W76: =Sorcadins!W$1483*('Base Numbers'!$C$5*'Base Numbers'!$C$6)-W72 -> 2.91065803 | X76: =Sorcadins!X$1483*('Base Numbers'!$C$5*'Base Numbers'!$C$6)-X72 -> 2.91065803
D77: smite dice left for non-crits | E77: =ROUND(MAX(0,E70-E72*E74),4) -> 0 | F77: 0 | G77: 0 | H77: 0 | I77: 0 | J77: 0 | K77: 0 | L77: 0 | M77: 0 | N77: 0 | O77: 0 | P77: 0 | Q77: 0 | R77: 0 | S77: 0 | T77: 0 | U77: 0 | V77: 0 | W77: 0 | X77: 0
D78: total smite dice used on crits | E78: =E73*E74 -> 0 | F78: =F73*F74 -> 0 | G78: 0 | H78: 0 | I78: 0 | J78: 0 | K78: 0 | L78: 0 | M78: 0 | N78: 0 | O78: 0 | P78: 0 | Q78: 0 | R78: 0 | S78: 0 | T78: 0 | U78: 0 | V78: 0 | W78: 0 | X78: 0
D79: total crit smite damage per day | E79: =9*E78 -> 0 | F79: =9*F78 -> 0 | G79: 0 | H79: 0 | I79: 0 | J79: 0 | K79: 0 | L79: 0 | M79: 0 | N79: 0 | O79: 0 | P79: 0 | Q79: 0 | R79: 0 | S79: 0 | T79: 0 | U79: 0 | V79: 0 | W79: 0 | X79: 0
D80: total non-crit smite damage per day | E80: =4.5*MIN(MIN(E76,E75)*E$7,E77) -> 0 | F80: =4.5*MIN(MIN(F76,F75)*F$7,F77) -> 0 | G80: 0 | H80: 0 | I80: 0 | J80: 0 | K80: 0 | L80: 0 | M80: 0 | N80: 0 | O80: 0 | P80: 0 | Q80: 0 | R80: 0 | S80: 0 | T80: 0 | U80: 0 | V80: 0 | W80: 0 | X80: 0
D81: leftover sorc points + spell levels | E81: =IF(E70>0,IF(Sorcadins!E$319>0,(Sorcadins!E$319*E68+E67-E73*E74-E80/4.5)/Sorcadins!E$319,0),E68+E67) -> 0 | F81: =IF(F70>0,IF(Sorcadins!F$319>0,(Sorcadins!F$319*F68+F67-F73*F74-F80/4.5)/Sorcadins!F$319,0),F68+F67) -> 0 | G81: =IF(G70>0,IF(Sorcadins!G$319>0,(Sorcadins!G$319*G68+G67-G73*G74-G80/4.5)/Sorcadins!G$319,0),G68+G67) -> 0 | H81: =IF(H70>0,IF(Sorcadins!H$319>0,(Sorcadins!H$319*H68+H67-H73*H74-H80/4.5)/Sorcadins!H$319,0),H68+H67) -> 0 | I81: =IF(I70>0,IF(Sorcadins!I$319>0,(Sorcadins!I$319*I68+I67-I73*I74-I80/4.5)/Sorcadins!I$319,0),I68+I67) -> 0 | J81: =IF(J70>0,IF(Sorcadins!J$319>0,(Sorcadins!J$319*J68+J67-J73*J74-J80/4.5)/Sorcadins!J$319,0),J68+J67) -> 1 | K81: =IF(K70>0,IF(Sorcadins!K$319>0,(Sorcadins!K$319*K68+K67-K73*K74-K80/4.5)/Sorcadins!K$319,0),K68+K67) -> 1 | L81: =IF(L70>0,IF(Sorcadins!L$319>0,(Sorcadins!L$319*L68+L67-L73*L74-L80/4.5)/Sorcadins!L$319,0),L68+L67) -> 4 | M81: =IF(M70>0,IF(Sorcadins!M$319>0,(Sorcadins!M$319*M68+M67-M73*M74-M80/4.5)/Sorcadins!M$319,0),M68+M67) -> 0 | N81: =IF(N70>0,IF(Sorcadins!N$319>0,(Sorcadins!N$319*N68+N67-N73*N74-N80/4.5)/Sorcadins!N$319,0),N68+N67) -> 1 | O81: =IF(O70>0,IF(Sorcadins!O$319>0,(Sorcadins!O$319*O68+O67-O73*O74-O80/4.5)/Sorcadins!O$319,0),O68+O67) -> 7.105427358e-15 | P81: =IF(P70>0,IF(Sorcadins!P$319>0,(Sorcadins!P$319*P68+P67-P73*P74-P80/4.5)/Sorcadins!P$319,0),P68+P67) -> 0 | Q81: =IF(Q70>0,IF(Sorcadins!Q$319>0,(Sorcadins!Q$319*Q68+Q67-Q73*Q74-Q80/4.5)/Sorcadins!Q$319,0),Q68+Q67) -> 7.105427358e-15 | R81: =IF(R70>0,IF(Sorcadins!R$319>0,(Sorcadins!R$319*R68+R67-R73*R74-R80/4.5)/Sorcadins!R$319,0),R68+R67) -> 7.105427358e-15 | S81: =IF(S70>0,IF(Sorcadins!S$319>0,(Sorcadins!S$319*S68+S67-S73*S74-S80/4.5)/Sorcadins!S$319,0),S68+S67) -> 1.421085472e-14 | T81: =IF(T70>0,IF(Sorcadins!T$319>0,(Sorcadins!T$319*T68+T67-T73*T74-T80/4.5)/Sorcadins!T$319,0),T68+T67) -> 1.421085472e-14 | U81: =IF(U70>0,IF(Sorcadins!U$319>0,(Sorcadins!U$319*U68+U67-U73*U74-U80/4.5)/Sorcadins!U$319,0),U68+U67) -> 2 | V81: =IF(V70>0,IF(Sorcadins!V$319>0,(Sorcadins!V$319*V68+V67-V73*V74-V80/4.5)/Sorcadins!V$319,0),V68+V67) -> 6 | W81: =IF(W70>0,IF(Sorcadins!W$319>0,(Sorcadins!W$319*W68+W67-W73*W74-W80/4.5)/Sorcadins!W$319,0),W68+W67) -> 10 | X81: =IF(X70>0,IF(Sorcadins!X$319>0,(Sorcadins!X$319*X68+X67-X73*X74-X80/4.5)/Sorcadins!X$319,0),X68+X67) -> 14
D82: actual smites performed | E82: =E73+IF(E$7>0,MIN(E75,E76,E77/E$7),0) -> 0 | F82: =F73+IF(F$7>0,MIN(F75,F76,F77/F$7),0) -> 0 | G82: 0 | H82: 0 | I82: 0 | J82: 0 | K82: 0 | L82: 0 | M82: 0 | N82: 0 | O82: 0 | P82: 0 | Q82: 0 | R82: 0 | S82: 0 | T82: 0 | U82: 0 | V82: 0 | W82: 0 | X82: 0
D83: total daily smite damage: M1, B2, O3 | E83: =E79+E80 -> 0 | F83: =F79+F80 -> 0 | G83: 0 | H83: 0 | I83: 0 | J83: 0 | K83: 0 | L83: 0 | M83: 0 | N83: 0 | O83: 0 | P83: 0 | Q83: 0 | R83: 0 | S83: 0 | T83: 0 | U83: 0 | V83: 0 | W83: 0 | X83: 0
D85: SMITES - M1, B3, O1/O2 | E85: 1 | F85: 2 | G85: 3 | H85: 4 | I85: 5 | J85: 6 | K85: 7 | L85: 8 | M85: 9 | N85: 10 | O85: 11 | P85: 12 | Q85: 13 | R85: 14 | S85: 15 | T85: 16 | U85: 17 | V85: 18 | W85: 19 | X85: 20
D86: remaining sorcery points (based on Damage Scenario) | E86: =MAX(0,Sorcadins!E$616-Sorcadins!E$1474) -> 0 | F86: =MAX(0,Sorcadins!F$616-Sorcadins!F$1474) -> 0 | G86: =MAX(0,Sorcadins!G$616-Sorcadins!G$1474) -> 0 | H86: =MAX(0,Sorcadins!H$616-Sorcadins!H$1474) -> 0 | I86: =MAX(0,Sorcadins!I$616-Sorcadins!I$1474) -> 0 | J86: =MAX(0,Sorcadins!J$616-Sorcadins!J$1474) -> 0 | K86: =MAX(0,Sorcadins!K$616-Sorcadins!K$1474) -> 0 | L86: =MAX(0,Sorcadins!L$616-Sorcadins!L$1474) -> 0 | M86: =MAX(0,Sorcadins!M$616-Sorcadins!M$1474) -> 0 | N86: =MAX(0,Sorcadins!N$616-Sorcadins!N$1474) -> 0 | O86: =MAX(0,Sorcadins!O$616-Sorcadins!O$1474) -> 0 | P86: =MAX(0,Sorcadins!P$616-Sorcadins!P$1474) -> 0 | Q86: =MAX(0,Sorcadins!Q$616-Sorcadins!Q$1474) -> 0 | R86: =MAX(0,Sorcadins!R$616-Sorcadins!R$1474) -> 0 | S86: =MAX(0,Sorcadins!S$616-Sorcadins!S$1474) -> 0 | T86: =MAX(0,Sorcadins!T$616-Sorcadins!T$1474) -> 0 | U86: =MAX(0,Sorcadins!U$616-Sorcadins!U$1474) -> 0 | V86: =MAX(0,Sorcadins!V$616-Sorcadins!V$1474) -> 0 | W86: =MAX(0,Sorcadins!W$616-Sorcadins!W$1474) -> 0 | X86: =MAX(0,Sorcadins!X$616-Sorcadins!X$1474) -> 0 | Z86: *Sorc points directly convertible to Smite Dice
D87: remaining spell slot levels (based on Damage Scenario) | E87: =MAX(0,Sorcadins!E$327-MAX(0,Sorcadins!E$1474-Sorcadins!E$616)) -> 0 | F87: =MAX(0,Sorcadins!F$327-MAX(0,Sorcadins!F$1474-Sorcadins!F$616)) -> 0 | G87: =MAX(0,Sorcadins!G$327-MAX(0,Sorcadins!G$1474-Sorcadins!G$616)) -> 0 | H87: =MAX(0,Sorcadins!H$327-MAX(0,Sorcadins!H$1474-Sorcadins!H$616)) -> 0 | I87: =MAX(0,Sorcadins!I$327-MAX(0,Sorcadins!I$1474-Sorcadins!I$616)) -> 0 | J87: =MAX(0,Sorcadins!J$327-MAX(0,Sorcadins!J$1474-Sorcadins!J$616)) -> 1 | K87: =MAX(0,Sorcadins!K$327-MAX(0,Sorcadins!K$1474-Sorcadins!K$616)) -> 1 | L87: =MAX(0,Sorcadins!L$327-MAX(0,Sorcadins!L$1474-Sorcadins!L$616)) -> 4 | M87: =MAX(0,Sorcadins!M$327-MAX(0,Sorcadins!M$1474-Sorcadins!M$616)) -> 0 | N87: =MAX(0,Sorcadins!N$327-MAX(0,Sorcadins!N$1474-Sorcadins!N$616)) -> 1 | O87: =MAX(0,Sorcadins!O$327-MAX(0,Sorcadins!O$1474-Sorcadins!O$616)) -> 7.105427358e-15 | P87: =MAX(0,Sorcadins!P$327-MAX(0,Sorcadins!P$1474-Sorcadins!P$616)) -> 0 | Q87: =MAX(0,Sorcadins!Q$327-MAX(0,Sorcadins!Q$1474-Sorcadins!Q$616)) -> 7.105427358e-15 | R87: =MAX(0,Sorcadins!R$327-MAX(0,Sorcadins!R$1474-Sorcadins!R$616)) -> 7.105427358e-15 | S87: =MAX(0,Sorcadins!S$327-MAX(0,Sorcadins!S$1474-Sorcadins!S$616)) -> 1.421085472e-14 | T87: =MAX(0,Sorcadins!T$327-MAX(0,Sorcadins!T$1474-Sorcadins!T$616)) -> 1.421085472e-14 | U87: =MAX(0,Sorcadins!U$327-MAX(0,Sorcadins!U$1474-Sorcadins!U$616)) -> 2 | V87: =MAX(0,Sorcadins!V$327-MAX(0,Sorcadins!V$1474-Sorcadins!V$616)) -> 6 | W87: =MAX(0,Sorcadins!W$327-MAX(0,Sorcadins!W$1474-Sorcadins!W$616)) -> 10 | X87: =MAX(0,Sorcadins!X$327-MAX(0,Sorcadins!X$1474-Sorcadins!X$616)) -> 14
D88: total warlock smite levels remaining | E88: =MIN(Sorcadins!E$319*E87,Sorcadins!E$310) -> 0 | F88: =MIN(Sorcadins!F$319*F87,Sorcadins!F$310) -> 0 | G88: =MIN(Sorcadins!G$319*G87,Sorcadins!G$310) -> 0 | H88: =MIN(Sorcadins!H$319*H87,Sorcadins!H$310) -> 0 | I88: =MIN(Sorcadins!I$319*I87,Sorcadins!I$310) -> 0 | J88: =MIN(Sorcadins!J$319*J87,Sorcadins!J$310) -> 0 | K88: =MIN(Sorcadins!K$319*K87,Sorcadins!K$310) -> 0 | L88: =MIN(Sorcadins!L$319*L87,Sorcadins!L$310) -> 0 | M88: =MIN(Sorcadins!M$319*M87,Sorcadins!M$310) -> 0 | N88: =MIN(Sorcadins!N$319*N87,Sorcadins!N$310) -> 0 | O88: =MIN(Sorcadins!O$319*O87,Sorcadins!O$310) -> 0 | P88: =MIN(Sorcadins!P$319*P87,Sorcadins!P$310) -> 0 | Q88: =MIN(Sorcadins!Q$319*Q87,Sorcadins!Q$310) -> 0 | R88: =MIN(Sorcadins!R$319*R87,Sorcadins!R$310) -> 0 | S88: =MIN(Sorcadins!S$319*S87,Sorcadins!S$310) -> 0 | T88: =MIN(Sorcadins!T$319*T87,Sorcadins!T$310) -> 0 | U88: =MIN(Sorcadins!U$319*U87,Sorcadins!U$310) -> 0 | V88: =MIN(Sorcadins!V$319*V87,Sorcadins!V$310) -> 0 | W88: =MIN(Sorcadins!W$319*W87,Sorcadins!W$310) -> 0 | X88: =MIN(Sorcadins!X$319*X87,Sorcadins!X$310) -> 0
D89: total smite levels remaining | E89: =IF(E$5>=1,Sorcadins!E$319*E87+E86,IF(E$6,E88,0)) -> 0 | F89: =IF(F$5>=1,Sorcadins!F$319*F87+F86,IF(F$6,F88,0)) -> 0 | G89: =IF(G$5>=1,Sorcadins!G$319*G87+G86,IF(G$6,G88,0)) -> 0 | H89: =IF(H$5>=1,Sorcadins!H$319*H87+H86,IF(H$6,H88,0)) -> 0 | I89: =IF(I$5>=1,Sorcadins!I$319*I87+I86,IF(I$6,I88,0)) -> 0 | J89: =IF(J$5>=1,Sorcadins!J$319*J87+J86,IF(J$6,J88,0)) -> 0 | K89: =IF(K$5>=1,Sorcadins!K$319*K87+K86,IF(K$6,K88,0)) -> 0 | L89: =IF(L$5>=1,Sorcadins!L$319*L87+L86,IF(L$6,L88,0)) -> 0 | M89: =IF(M$5>=1,Sorcadins!M$319*M87+M86,IF(M$6,M88,0)) -> 0 | N89: =IF(N$5>=1,Sorcadins!N$319*N87+N86,IF(N$6,N88,0)) -> 0 | O89: =IF(O$5>=1,Sorcadins!O$319*O87+O86,IF(O$6,O88,0)) -> 0 | P89: =IF(P$5>=1,Sorcadins!P$319*P87+P86,IF(P$6,P88,0)) -> 0 | Q89: =IF(Q$5>=1,Sorcadins!Q$319*Q87+Q86,IF(Q$6,Q88,0)) -> 0 | R89: =IF(R$5>=1,Sorcadins!R$319*R87+R86,IF(R$6,R88,0)) -> 0 | S89: =IF(S$5>=1,Sorcadins!S$319*S87+S86,IF(S$6,S88,0)) -> 0 | T89: =IF(T$5>=1,Sorcadins!T$319*T87+T86,IF(T$6,T88,0)) -> 0 | U89: =IF(U$5>=1,Sorcadins!U$319*U87+U86,IF(U$6,U88,0)) -> 0 | V89: =IF(V$5>=1,Sorcadins!V$319*V87+V86,IF(V$6,V88,0)) -> 0 | W89: =IF(W$5>=1,Sorcadins!W$319*W87+W86,IF(W$6,W88,0)) -> 0 | X89: =IF(X$5>=1,Sorcadins!X$319*X87+X86,IF(X$6,X88,0)) -> 0
D90: max number of daily smites (after spells) | E90: =IF(E$6,Sorcadins!E$1347,IF(E$5,Sorcadins!E$328+E86/2,0)) -> 0 | F90: =IF(F$6,Sorcadins!F$1347,IF(F$5,Sorcadins!F$328+F86/2,0)) -> 0 | G90: =IF(G$6,Sorcadins!G$1347,IF(G$5,Sorcadins!G$328+G86/2,0)) -> 0 | H90: =IF(H$6,Sorcadins!H$1347,IF(H$5,Sorcadins!H$328+H86/2,0)) -> 0 | I90: =IF(I$6,Sorcadins!I$1347,IF(I$5,Sorcadins!I$328+I86/2,0)) -> 0 | J90: =IF(J$6,Sorcadins!J$1347,IF(J$5,Sorcadins!J$328+J86/2,0)) -> 0 | K90: =IF(K$6,Sorcadins!K$1347,IF(K$5,Sorcadins!K$328+K86/2,0)) -> 0 | L90: =IF(L$6,Sorcadins!L$1347,IF(L$5,Sorcadins!L$328+L86/2,0)) -> 0 | M90: =IF(M$6,Sorcadins!M$1347,IF(M$5,Sorcadins!M$328+M86/2,0)) -> 0 | N90: =IF(N$6,Sorcadins!N$1347,IF(N$5,Sorcadins!N$328+N86/2,0)) -> 0 | O90: =IF(O$6,Sorcadins!O$1347,IF(O$5,Sorcadins!O$328+O86/2,0)) -> 0 | P90: =IF(P$6,Sorcadins!P$1347,IF(P$5,Sorcadins!P$328+P86/2,0)) -> 0 | Q90: =IF(Q$6,Sorcadins!Q$1347,IF(Q$5,Sorcadins!Q$328+Q86/2,0)) -> 0 | R90: =IF(R$6,Sorcadins!R$1347,IF(R$5,Sorcadins!R$328+R86/2,0)) -> 0 | S90: =IF(S$6,Sorcadins!S$1347,IF(S$5,Sorcadins!S$328+S86/2,0)) -> 0 | T90: =IF(T$6,Sorcadins!T$1347,IF(T$5,Sorcadins!T$328+T86/2,0)) -> 0 | U90: =IF(U$6,Sorcadins!U$1347,IF(U$5,Sorcadins!U$328+U86/2,0)) -> 0 | V90: =IF(V$6,Sorcadins!V$1347,IF(V$5,Sorcadins!V$328+V86/2,0)) -> 0 | W90: =IF(W$6,Sorcadins!W$1347,IF(W$5,Sorcadins!W$328+W86/2,0)) -> 0 | X90: =IF(X$6,Sorcadins!X$1347,IF(X$5,Sorcadins!X$328+X86/2,0)) -> 0
D91: avg crits per day for smite purposes (based on Damage Scenario) | E91: ='Base Numbers'!$C$5*'Base Numbers'!$C$6*Sorcadins!E$1509 -> 0.9933333333 | F91: ='Base Numbers'!$C$5*'Base Numbers'!$C$6*Sorcadins!F$1509 -> 0.97 | G91: ='Base Numbers'!$C$5*'Base Numbers'!$C$6*Sorcadins!G$1509 -> 0.96 | H91: ='Base Numbers'!$C$5*'Base Numbers'!$C$6*Sorcadins!H$1509 -> 0.96 | I91: ='Base Numbers'!$C$5*'Base Numbers'!$C$6*Sorcadins!I$1509 -> 0.96 | J91: ='Base Numbers'!$C$5*'Base Numbers'!$C$6*Sorcadins!J$1509 -> 0.96 | K91: ='Base Numbers'!$C$5*'Base Numbers'!$C$6*Sorcadins!K$1509 -> 0.91 | L91: ='Base Numbers'!$C$5*'Base Numbers'!$C$6*Sorcadins!L$1509 -> 0.68269 | M91: ='Base Numbers'!$C$5*'Base Numbers'!$C$6*Sorcadins!M$1509 -> 0.6078115789 | N91: ='Base Numbers'!$C$5*'Base Numbers'!$C$6*Sorcadins!N$1509 -> 0.58269 | O91: ='Base Numbers'!$C$5*'Base Numbers'!$C$6*Sorcadins!O$1509 -> 0.5062536735 | P91: ='Base Numbers'!$C$5*'Base Numbers'!$C$6*Sorcadins!P$1509 -> 0.4510984839 | Q91: ='Base Numbers'!$C$5*'Base Numbers'!$C$6*Sorcadins!Q$1509 -> 0.4086585396 | R91: ='Base Numbers'!$C$5*'Base Numbers'!$C$6*Sorcadins!R$1509 -> 0.4086585396 | S91: ='Base Numbers'!$C$5*'Base Numbers'!$C$6*Sorcadins!S$1509 -> 0.3715156109 | T91: ='Base Numbers'!$C$5*'Base Numbers'!$C$6*Sorcadins!T$1509 -> 0.5181614583 | U91: ='Base Numbers'!$C$5*'Base Numbers'!$C$6*Sorcadins!U$1509 -> 0.4975624495 | V91: ='Base Numbers'!$C$5*'Base Numbers'!$C$6*Sorcadins!V$1509 -> 0.4975624495 | W91: ='Base Numbers'!$C$5*'Base Numbers'!$C$6*Sorcadins!W$1509 -> 0.4975624495 | X91: ='Base Numbers'!$C$5*'Base Numbers'!$C$6*Sorcadins!X$1509 -> 0.4975624495
D92: number of smites used on crits | E92: =MIN(E90,E91) -> 0 | F92: =MIN(F90,F91) -> 0 | G92: 0 | H92: 0 | I92: 0 | J92: 0 | K92: 0 | L92: 0 | M92: 0 | N92: 0 | O92: 0 | P92: 0 | Q92: 0 | R92: 0 | S92: 0 | T92: 0 | U92: 0 | V92: 0 | W92: 0 | X92: 0
D93: avg smite dice per crit | E93: =IF(E92>0,MIN(E$7,(E89/MIN(E92,E91))),0) -> 0 | F93: 0 | G93: 0 | H93: 0 | I93: 0 | J93: 0 | K93: 0 | L93: 0 | M93: 0 | N93: 0 | O93: 0 | P93: 0 | Q93: 0 | R93: 0 | S93: 0 | T93: 0 | U93: 0 | V93: 0 | W93: 0 | X93: 0
D94: smites left for non-crits | E94: =E90-E92 -> 0 | F94: =F90-F92 -> 0 | G94: 0 | H94: 0 | I94: 0 | J94: 0 | K94: 0 | L94: 0 | M94: 0 | N94: 0 | O94: 0 | P94: 0 | Q94: 0 | R94: 0 | S94: 0 | T94: 0 | U94: 0 | V94: 0 | W94: 0 | X94: 0
D95: total non-crit smite-qualifying attacks available | E95: =Sorcadins!E$1484*('Base Numbers'!$C$5*'Base Numbers'!$C$6)-E91 -> 18.87333333 | F95: =Sorcadins!F$1484*('Base Numbers'!$C$5*'Base Numbers'!$C$6)-F91 -> 18.43 | G95: =Sorcadins!G$1484*('Base Numbers'!$C$5*'Base Numbers'!$C$6)-G91 -> 18.24 | H95: =Sorcadins!H$1484*('Base Numbers'!$C$5*'Base Numbers'!$C$6)-H91 -> 18.24 | I95: =Sorcadins!I$1484*('Base Numbers'!$C$5*'Base Numbers'!$C$6)-I91 -> 18.24 | J95: =Sorcadins!J$1484*('Base Numbers'!$C$5*'Base Numbers'!$C$6)-J91 -> 18.24 | K95: =Sorcadins!K$1484*('Base Numbers'!$C$5*'Base Numbers'!$C$6)-K91 -> 17.29 | L95: =Sorcadins!L$1484*('Base Numbers'!$C$5*'Base Numbers'!$C$6)-L91 -> 12.97111 | M95: =Sorcadins!M$1484*('Base Numbers'!$C$5*'Base Numbers'!$C$6)-M91 -> 11.54842 | N95: =Sorcadins!N$1484*('Base Numbers'!$C$5*'Base Numbers'!$C$6)-N91 -> 11.07111 | O95: =Sorcadins!O$1484*('Base Numbers'!$C$5*'Base Numbers'!$C$6)-O91 -> 9.618819796 | P95: =Sorcadins!P$1484*('Base Numbers'!$C$5*'Base Numbers'!$C$6)-P91 -> 8.570871193 | Q95: =Sorcadins!Q$1484*('Base Numbers'!$C$5*'Base Numbers'!$C$6)-Q91 -> 7.764512252 | R95: =Sorcadins!R$1484*('Base Numbers'!$C$5*'Base Numbers'!$C$6)-R91 -> 7.764512252 | S95: =Sorcadins!S$1484*('Base Numbers'!$C$5*'Base Numbers'!$C$6)-S91 -> 7.058796607 | T95: =Sorcadins!T$1484*('Base Numbers'!$C$5*'Base Numbers'!$C$6)-T91 -> 6.91215076 | U95: =Sorcadins!U$1484*('Base Numbers'!$C$5*'Base Numbers'!$C$6)-U91 -> 6.71065803 | V95: =Sorcadins!V$1484*('Base Numbers'!$C$5*'Base Numbers'!$C$6)-V91 -> 6.71065803 | W95: =Sorcadins!W$1484*('Base Numbers'!$C$5*'Base Numbers'!$C$6)-W91 -> 6.71065803 | X95: =Sorcadins!X$1484*('Base Numbers'!$C$5*'Base Numbers'!$C$6)-X91 -> 6.71065803
D96: smite dice left for non-crits | E96: =ROUND(MAX(0,E89-E91*E93),4) -> 0 | F96: 0 | G96: 0 | H96: 0 | I96: 0 | J96: 0 | K96: 0 | L96: 0 | M96: 0 | N96: 0 | O96: 0 | P96: 0 | Q96: 0 | R96: 0 | S96: 0 | T96: 0 | U96: 0 | V96: 0 | W96: 0 | X96: 0
D97: total smite dice used on crits | E97: =E92*E93 -> 0 | F97: =F92*F93 -> 0 | G97: 0 | H97: 0 | I97: 0 | J97: 0 | K97: 0 | L97: 0 | M97: 0 | N97: 0 | O97: 0 | P97: 0 | Q97: 0 | R97: 0 | S97: 0 | T97: 0 | U97: 0 | V97: 0 | W97: 0 | X97: 0
D98: total crit smite damage per day | E98: =9*E97 -> 0 | F98: =9*F97 -> 0 | G98: 0 | H98: 0 | I98: 0 | J98: 0 | K98: 0 | L98: 0 | M98: 0 | N98: 0 | O98: 0 | P98: 0 | Q98: 0 | R98: 0 | S98: 0 | T98: 0 | U98: 0 | V98: 0 | W98: 0 | X98: 0
D99: total non-crit smite damage per day | E99: =4.5*MIN(MIN(E95,E94)*E$7,E96) -> 0 | F99: =4.5*MIN(MIN(F95,F94)*F$7,F96) -> 0 | G99: 0 | H99: 0 | I99: 0 | J99: 0 | K99: 0 | L99: 0 | M99: 0 | N99: 0 | O99: 0 | P99: 0 | Q99: 0 | R99: 0 | S99: 0 | T99: 0 | U99: 0 | V99: 0 | W99: 0 | X99: 0
D100: leftover sorc points + spell levels | E100: =IF(E89>0,IF(Sorcadins!E$319>0,(Sorcadins!E$319*E87+E86-E92*E93-E99/4.5)/Sorcadins!E$319,0),E87+E86) -> 0 | F100: =IF(F89>0,IF(Sorcadins!F$319>0,(Sorcadins!F$319*F87+F86-F92*F93-F99/4.5)/Sorcadins!F$319,0),F87+F86) -> 0 | G100: =IF(G89>0,IF(Sorcadins!G$319>0,(Sorcadins!G$319*G87+G86-G92*G93-G99/4.5)/Sorcadins!G$319,0),G87+G86) -> 0 | H100: =IF(H89>0,IF(Sorcadins!H$319>0,(Sorcadins!H$319*H87+H86-H92*H93-H99/4.5)/Sorcadins!H$319,0),H87+H86) -> 0 | I100: =IF(I89>0,IF(Sorcadins!I$319>0,(Sorcadins!I$319*I87+I86-I92*I93-I99/4.5)/Sorcadins!I$319,0),I87+I86) -> 0 | J100: =IF(J89>0,IF(Sorcadins!J$319>0,(Sorcadins!J$319*J87+J86-J92*J93-J99/4.5)/Sorcadins!J$319,0),J87+J86) -> 1 | K100: =IF(K89>0,IF(Sorcadins!K$319>0,(Sorcadins!K$319*K87+K86-K92*K93-K99/4.5)/Sorcadins!K$319,0),K87+K86) -> 1 | L100: =IF(L89>0,IF(Sorcadins!L$319>0,(Sorcadins!L$319*L87+L86-L92*L93-L99/4.5)/Sorcadins!L$319,0),L87+L86) -> 4 | M100: =IF(M89>0,IF(Sorcadins!M$319>0,(Sorcadins!M$319*M87+M86-M92*M93-M99/4.5)/Sorcadins!M$319,0),M87+M86) -> 0 | N100: =IF(N89>0,IF(Sorcadins!N$319>0,(Sorcadins!N$319*N87+N86-N92*N93-N99/4.5)/Sorcadins!N$319,0),N87+N86) -> 1 | O100: =IF(O89>0,IF(Sorcadins!O$319>0,(Sorcadins!O$319*O87+O86-O92*O93-O99/4.5)/Sorcadins!O$319,0),O87+O86) -> 7.105427358e-15 | P100: =IF(P89>0,IF(Sorcadins!P$319>0,(Sorcadins!P$319*P87+P86-P92*P93-P99/4.5)/Sorcadins!P$319,0),P87+P86) -> 0 | Q100: =IF(Q89>0,IF(Sorcadins!Q$319>0,(Sorcadins!Q$319*Q87+Q86-Q92*Q93-Q99/4.5)/Sorcadins!Q$319,0),Q87+Q86) -> 7.105427358e-15 | R100: =IF(R89>0,IF(Sorcadins!R$319>0,(Sorcadins!R$319*R87+R86-R92*R93-R99/4.5)/Sorcadins!R$319,0),R87+R86) -> 7.105427358e-15 | S100: =IF(S89>0,IF(Sorcadins!S$319>0,(Sorcadins!S$319*S87+S86-S92*S93-S99/4.5)/Sorcadins!S$319,0),S87+S86) -> 1.421085472e-14 | T100: =IF(T89>0,IF(Sorcadins!T$319>0,(Sorcadins!T$319*T87+T86-T92*T93-T99/4.5)/Sorcadins!T$319,0),T87+T86) -> 1.421085472e-14 | U100: =IF(U89>0,IF(Sorcadins!U$319>0,(Sorcadins!U$319*U87+U86-U92*U93-U99/4.5)/Sorcadins!U$319,0),U87+U86) -> 2 | V100: =IF(V89>0,IF(Sorcadins!V$319>0,(Sorcadins!V$319*V87+V86-V92*V93-V99/4.5)/Sorcadins!V$319,0),V87+V86) -> 6 | W100: =IF(W89>0,IF(Sorcadins!W$319>0,(Sorcadins!W$319*W87+W86-W92*W93-W99/4.5)/Sorcadins!W$319,0),W87+W86) -> 10 | X100: =IF(X89>0,IF(Sorcadins!X$319>0,(Sorcadins!X$319*X87+X86-X92*X93-X99/4.5)/Sorcadins!X$319,0),X87+X86) -> 14
D101: actual smites performed | E101: =E92+IF(E$7>0,MIN(E94,E95,E96/E$7),0) -> 0 | F101: =F92+IF(F$7>0,MIN(F94,F95,F96/F$7),0) -> 0 | G101: 0 | H101: 0 | I101: 0 | J101: 0 | K101: 0 | L101: 0 | M101: 0 | N101: 0 | O101: 0 | P101: 0 | Q101: 0 | R101: 0 | S101: 0 | T101: 0 | U101: 0 | V101: 0 | W101: 0 | X101: 0
D102: total daily smite damage: M1, B3, O1/O2 | E102: =E98+E99 -> 0 | F102: =F98+F99 -> 0 | G102: 0 | H102: 0 | I102: 0 | J102: 0 | K102: 0 | L102: 0 | M102: 0 | N102: 0 | O102: 0 | P102: 0 | Q102: 0 | R102: 0 | S102: 0 | T102: 0 | U102: 0 | V102: 0 | W102: 0 | X102: 0
D104: SMITES - M1, B3, O3 | E104: 1 | F104: 2 | G104: 3 | H104: 4 | I104: 5 | J104: 6 | K104: 7 | L104: 8 | M104: 9 | N104: 10 | O104: 11 | P104: 12 | Q104: 13 | R104: 14 | S104: 15 | T104: 16 | U104: 17 | V104: 18 | W104: 19 | X104: 20
D105: remaining sorcery points (based on Damage Scenario) | E105: =MAX(0,Sorcadins!E$616-Sorcadins!E$1474) -> 0 | F105: =MAX(0,Sorcadins!F$616-Sorcadins!F$1474) -> 0 | G105: =MAX(0,Sorcadins!G$616-Sorcadins!G$1474) -> 0 | H105: =MAX(0,Sorcadins!H$616-Sorcadins!H$1474) -> 0 | I105: =MAX(0,Sorcadins!I$616-Sorcadins!I$1474) -> 0 | J105: =MAX(0,Sorcadins!J$616-Sorcadins!J$1474) -> 0 | K105: =MAX(0,Sorcadins!K$616-Sorcadins!K$1474) -> 0 | L105: =MAX(0,Sorcadins!L$616-Sorcadins!L$1474) -> 0 | M105: =MAX(0,Sorcadins!M$616-Sorcadins!M$1474) -> 0 | N105: =MAX(0,Sorcadins!N$616-Sorcadins!N$1474) -> 0 | O105: =MAX(0,Sorcadins!O$616-Sorcadins!O$1474) -> 0 | P105: =MAX(0,Sorcadins!P$616-Sorcadins!P$1474) -> 0 | Q105: =MAX(0,Sorcadins!Q$616-Sorcadins!Q$1474) -> 0 | R105: =MAX(0,Sorcadins!R$616-Sorcadins!R$1474) -> 0 | S105: =MAX(0,Sorcadins!S$616-Sorcadins!S$1474) -> 0 | T105: =MAX(0,Sorcadins!T$616-Sorcadins!T$1474) -> 0 | U105: =MAX(0,Sorcadins!U$616-Sorcadins!U$1474) -> 0 | V105: =MAX(0,Sorcadins!V$616-Sorcadins!V$1474) -> 0 | W105: =MAX(0,Sorcadins!W$616-Sorcadins!W$1474) -> 0 | X105: =MAX(0,Sorcadins!X$616-Sorcadins!X$1474) -> 0 | Z105: *Sorc points directly convertible to Smite Dice
D106: remaining spell slot levels (based on Damage Scenario) | E106: =MAX(0,Sorcadins!E$327-MAX(0,Sorcadins!E$1474-Sorcadins!E$616)) -> 0 | F106: =MAX(0,Sorcadins!F$327-MAX(0,Sorcadins!F$1474-Sorcadins!F$616)) -> 0 | G106: =MAX(0,Sorcadins!G$327-MAX(0,Sorcadins!G$1474-Sorcadins!G$616)) -> 0 | H106: =MAX(0,Sorcadins!H$327-MAX(0,Sorcadins!H$1474-Sorcadins!H$616)) -> 0 | I106: =MAX(0,Sorcadins!I$327-MAX(0,Sorcadins!I$1474-Sorcadins!I$616)) -> 0 | J106: =MAX(0,Sorcadins!J$327-MAX(0,Sorcadins!J$1474-Sorcadins!J$616)) -> 1 | K106: =MAX(0,Sorcadins!K$327-MAX(0,Sorcadins!K$1474-Sorcadins!K$616)) -> 1 | L106: =MAX(0,Sorcadins!L$327-MAX(0,Sorcadins!L$1474-Sorcadins!L$616)) -> 4 | M106: =MAX(0,Sorcadins!M$327-MAX(0,Sorcadins!M$1474-Sorcadins!M$616)) -> 0 | N106: =MAX(0,Sorcadins!N$327-MAX(0,Sorcadins!N$1474-Sorcadins!N$616)) -> 1 | O106: =MAX(0,Sorcadins!O$327-MAX(0,Sorcadins!O$1474-Sorcadins!O$616)) -> 7.105427358e-15 | P106: =MAX(0,Sorcadins!P$327-MAX(0,Sorcadins!P$1474-Sorcadins!P$616)) -> 0 | Q106: =MAX(0,Sorcadins!Q$327-MAX(0,Sorcadins!Q$1474-Sorcadins!Q$616)) -> 7.105427358e-15 | R106: =MAX(0,Sorcadins!R$327-MAX(0,Sorcadins!R$1474-Sorcadins!R$616)) -> 7.105427358e-15 | S106: =MAX(0,Sorcadins!S$327-MAX(0,Sorcadins!S$1474-Sorcadins!S$616)) -> 1.421085472e-14 | T106: =MAX(0,Sorcadins!T$327-MAX(0,Sorcadins!T$1474-Sorcadins!T$616)) -> 1.421085472e-14 | U106: =MAX(0,Sorcadins!U$327-MAX(0,Sorcadins!U$1474-Sorcadins!U$616)) -> 2 | V106: =MAX(0,Sorcadins!V$327-MAX(0,Sorcadins!V$1474-Sorcadins!V$616)) -> 6 | W106: =MAX(0,Sorcadins!W$327-MAX(0,Sorcadins!W$1474-Sorcadins!W$616)) -> 10 | X106: =MAX(0,Sorcadins!X$327-MAX(0,Sorcadins!X$1474-Sorcadins!X$616)) -> 14
D107: total warlock smite levels remaining | E107: =MIN(Sorcadins!E$319*E106,Sorcadins!E$310) -> 0 | F107: =MIN(Sorcadins!F$319*F106,Sorcadins!F$310) -> 0 | G107: =MIN(Sorcadins!G$319*G106,Sorcadins!G$310) -> 0 | H107: =MIN(Sorcadins!H$319*H106,Sorcadins!H$310) -> 0 | I107: =MIN(Sorcadins!I$319*I106,Sorcadins!I$310) -> 0 | J107: =MIN(Sorcadins!J$319*J106,Sorcadins!J$310) -> 0 | K107: =MIN(Sorcadins!K$319*K106,Sorcadins!K$310) -> 0 | L107: =MIN(Sorcadins!L$319*L106,Sorcadins!L$310) -> 0 | M107: =MIN(Sorcadins!M$319*M106,Sorcadins!M$310) -> 0 | N107: =MIN(Sorcadins!N$319*N106,Sorcadins!N$310) -> 0 | O107: =MIN(Sorcadins!O$319*O106,Sorcadins!O$310) -> 0 | P107: =MIN(Sorcadins!P$319*P106,Sorcadins!P$310) -> 0 | Q107: =MIN(Sorcadins!Q$319*Q106,Sorcadins!Q$310) -> 0 | R107: =MIN(Sorcadins!R$319*R106,Sorcadins!R$310) -> 0 | S107: =MIN(Sorcadins!S$319*S106,Sorcadins!S$310) -> 0 | T107: =MIN(Sorcadins!T$319*T106,Sorcadins!T$310) -> 0 | U107: =MIN(Sorcadins!U$319*U106,Sorcadins!U$310) -> 0 | V107: =MIN(Sorcadins!V$319*V106,Sorcadins!V$310) -> 0 | W107: =MIN(Sorcadins!W$319*W106,Sorcadins!W$310) -> 0 | X107: =MIN(Sorcadins!X$319*X106,Sorcadins!X$310) -> 0
D108: total smite levels remaining | E108: =IF(E$5>=1,Sorcadins!E$319*E106+E105,IF(E$6,E107,0)) -> 0 | F108: =IF(F$5>=1,Sorcadins!F$319*F106+F105,IF(F$6,F107,0)) -> 0 | G108: =IF(G$5>=1,Sorcadins!G$319*G106+G105,IF(G$6,G107,0)) -> 0 | H108: =IF(H$5>=1,Sorcadins!H$319*H106+H105,IF(H$6,H107,0)) -> 0 | I108: =IF(I$5>=1,Sorcadins!I$319*I106+I105,IF(I$6,I107,0)) -> 0 | J108: =IF(J$5>=1,Sorcadins!J$319*J106+J105,IF(J$6,J107,0)) -> 0 | K108: =IF(K$5>=1,Sorcadins!K$319*K106+K105,IF(K$6,K107,0)) -> 0 | L108: =IF(L$5>=1,Sorcadins!L$319*L106+L105,IF(L$6,L107,0)) -> 0 | M108: =IF(M$5>=1,Sorcadins!M$319*M106+M105,IF(M$6,M107,0)) -> 0 | N108: =IF(N$5>=1,Sorcadins!N$319*N106+N105,IF(N$6,N107,0)) -> 0 | O108: =IF(O$5>=1,Sorcadins!O$319*O106+O105,IF(O$6,O107,0)) -> 0 | P108: =IF(P$5>=1,Sorcadins!P$319*P106+P105,IF(P$6,P107,0)) -> 0 | Q108: =IF(Q$5>=1,Sorcadins!Q$319*Q106+Q105,IF(Q$6,Q107,0)) -> 0 | R108: =IF(R$5>=1,Sorcadins!R$319*R106+R105,IF(R$6,R107,0)) -> 0 | S108: =IF(S$5>=1,Sorcadins!S$319*S106+S105,IF(S$6,S107,0)) -> 0 | T108: =IF(T$5>=1,Sorcadins!T$319*T106+T105,IF(T$6,T107,0)) -> 0 | U108: =IF(U$5>=1,Sorcadins!U$319*U106+U105,IF(U$6,U107,0)) -> 0 | V108: =IF(V$5>=1,Sorcadins!V$319*V106+V105,IF(V$6,V107,0)) -> 0 | W108: =IF(W$5>=1,Sorcadins!W$319*W106+W105,IF(W$6,W107,0)) -> 0 | X108: =IF(X$5>=1,Sorcadins!X$319*X106+X105,IF(X$6,X107,0)) -> 0
D109: max number of daily smites (after spells) | E109: =IF(OR(Sorcadins!E$12>=5,Sorcadins!E$7>=2),Sorcadins!E$328+E105/2,0) -> 0 | F109: =IF(OR(Sorcadins!F$12>=5,Sorcadins!F$7>=2),Sorcadins!F$328+F105/2,0) -> 0 | G109: =IF(OR(Sorcadins!G$12>=5,Sorcadins!G$7>=2),Sorcadins!G$328+G105/2,0) -> 0 | H109: =IF(OR(Sorcadins!H$12>=5,Sorcadins!H$7>=2),Sorcadins!H$328+H105/2,0) -> 0 | I109: =IF(OR(Sorcadins!I$12>=5,Sorcadins!I$7>=2),Sorcadins!I$328+I105/2,0) -> 0 | J109: =IF(OR(Sorcadins!J$12>=5,Sorcadins!J$7>=2),Sorcadins!J$328+J105/2,0) -> 0 | K109: =IF(OR(Sorcadins!K$12>=5,Sorcadins!K$7>=2),Sorcadins!K$328+K105/2,0) -> 0 | L109: =IF(OR(Sorcadins!L$12>=5,Sorcadins!L$7>=2),Sorcadins!L$328+L105/2,0) -> 0 | M109: =IF(OR(Sorcadins!M$12>=5,Sorcadins!M$7>=2),Sorcadins!M$328+M105/2,0) -> 0 | N109: =IF(OR(Sorcadins!N$12>=5,Sorcadins!N$7>=2),Sorcadins!N$328+N105/2,0) -> 0 | O109: =IF(OR(Sorcadins!O$12>=5,Sorcadins!O$7>=2),Sorcadins!O$328+O105/2,0) -> 0 | P109: =IF(OR(Sorcadins!P$12>=5,Sorcadins!P$7>=2),Sorcadins!P$328+P105/2,0) -> 0 | Q109: =IF(OR(Sorcadins!Q$12>=5,Sorcadins!Q$7>=2),Sorcadins!Q$328+Q105/2,0) -> 0 | R109: =IF(OR(Sorcadins!R$12>=5,Sorcadins!R$7>=2),Sorcadins!R$328+R105/2,0) -> 0 | S109: =IF(OR(Sorcadins!S$12>=5,Sorcadins!S$7>=2),Sorcadins!S$328+S105/2,0) -> 0 | T109: =IF(OR(Sorcadins!T$12>=5,Sorcadins!T$7>=2),Sorcadins!T$328+T105/2,0) -> 0 | U109: =IF(OR(Sorcadins!U$12>=5,Sorcadins!U$7>=2),Sorcadins!U$328+U105/2,0) -> 0 | V109: =IF(OR(Sorcadins!V$12>=5,Sorcadins!V$7>=2),Sorcadins!V$328+V105/2,0) -> 0 | W109: =IF(OR(Sorcadins!W$12>=5,Sorcadins!W$7>=2),Sorcadins!W$328+W105/2,0) -> 0 | X109: =IF(OR(Sorcadins!X$12>=5,Sorcadins!X$7>=2),Sorcadins!X$328+X105/2,0) -> 0
D110: avg crits per day for smite purposes (based on Damage Scenario) | E110: ='Base Numbers'!$C$5*'Base Numbers'!$C$6*Sorcadins!E$1510 -> 0.7933333333 | F110: ='Base Numbers'!$C$5*'Base Numbers'!$C$6*Sorcadins!F$1510 -> 0.77 | G110: ='Base Numbers'!$C$5*'Base Numbers'!$C$6*Sorcadins!G$1510 -> 0.76 | H110: ='Base Numbers'!$C$5*'Base Numbers'!$C$6*Sorcadins!H$1510 -> 0.76 | I110: ='Base Numbers'!$C$5*'Base Numbers'!$C$6*Sorcadins!I$1510 -> 0.76 | J110: ='Base Numbers'!$C$5*'Base Numbers'!$C$6*Sorcadins!J$1510 -> 0.76 | K110: ='Base Numbers'!$C$5*'Base Numbers'!$C$6*Sorcadins!K$1510 -> 0.71 | L110: ='Base Numbers'!$C$5*'Base Numbers'!$C$6*Sorcadins!L$1510 -> 0.48269 | M110: ='Base Numbers'!$C$5*'Base Numbers'!$C$6*Sorcadins!M$1510 -> 0.4078115789 | N110: ='Base Numbers'!$C$5*'Base Numbers'!$C$6*Sorcadins!N$1510 -> 0.38269 | O110: ='Base Numbers'!$C$5*'Base Numbers'!$C$6*Sorcadins!O$1510 -> 0.3062536735 | P110: ='Base Numbers'!$C$5*'Base Numbers'!$C$6*Sorcadins!P$1510 -> 0.2510984839 | Q110: ='Base Numbers'!$C$5*'Base Numbers'!$C$6*Sorcadins!Q$1510 -> 0.2086585396 | R110: ='Base Numbers'!$C$5*'Base Numbers'!$C$6*Sorcadins!R$1510 -> 0.2086585396 | S110: ='Base Numbers'!$C$5*'Base Numbers'!$C$6*Sorcadins!S$1510 -> 0.1715156109 | T110: ='Base Numbers'!$C$5*'Base Numbers'!$C$6*Sorcadins!T$1510 -> 0.3181614583 | U110: ='Base Numbers'!$C$5*'Base Numbers'!$C$6*Sorcadins!U$1510 -> 0.2975624495 | V110: ='Base Numbers'!$C$5*'Base Numbers'!$C$6*Sorcadins!V$1510 -> 0.2975624495 | W110: ='Base Numbers'!$C$5*'Base Numbers'!$C$6*Sorcadins!W$1510 -> 0.2975624495 | X110: ='Base Numbers'!$C$5*'Base Numbers'!$C$6*Sorcadins!X$1510 -> 0.2975624495
D111: number of smites used on crits | E111: =MIN(E109,E110) -> 0 | F111: =MIN(F109,F110) -> 0 | G111: 0 | H111: 0 | I111: 0 | J111: 0 | K111: 0 | L111: 0 | M111: 0 | N111: 0 | O111: 0 | P111: 0 | Q111: 0 | R111: 0 | S111: 0 | T111: 0 | U111: 0 | V111: 0 | W111: 0 | X111: 0
D112: avg smite dice per crit | E112: =IF(E111>0,MIN(E$7,(E108/MIN(E111,E110))),0) -> 0 | F112: 0 | G112: 0 | H112: 0 | I112: 0 | J112: 0 | K112: 0 | L112: 0 | M112: 0 | N112: 0 | O112: 0 | P112: 0 | Q112: 0 | R112: 0 | S112: 0 | T112: 0 | U112: 0 | V112: 0 | W112: 0 | X112: 0
D113: smites left for non-crits | E113: =E109-E111 -> 0 | F113: =F109-F111 -> 0 | G113: 0 | H113: 0 | I113: 0 | J113: 0 | K113: 0 | L113: 0 | M113: 0 | N113: 0 | O113: 0 | P113: 0 | Q113: 0 | R113: 0 | S113: 0 | T113: 0 | U113: 0 | V113: 0 | W113: 0 | X113: 0
D114: total non-crit smite-qualifying attacks available | E114: =Sorcadins!E$1485*('Base Numbers'!$C$5*'Base Numbers'!$C$6)-E110 -> 15.07333333 | F114: =Sorcadins!F$1485*('Base Numbers'!$C$5*'Base Numbers'!$C$6)-F110 -> 14.63 | G114: =Sorcadins!G$1485*('Base Numbers'!$C$5*'Base Numbers'!$C$6)-G110 -> 14.44 | H114: =Sorcadins!H$1485*('Base Numbers'!$C$5*'Base Numbers'!$C$6)-H110 -> 14.44 | I114: =Sorcadins!I$1485*('Base Numbers'!$C$5*'Base Numbers'!$C$6)-I110 -> 14.44 | J114: =Sorcadins!J$1485*('Base Numbers'!$C$5*'Base Numbers'!$C$6)-J110 -> 14.44 | K114: =Sorcadins!K$1485*('Base Numbers'!$C$5*'Base Numbers'!$C$6)-K110 -> 13.49 | L114: =Sorcadins!L$1485*('Base Numbers'!$C$5*'Base Numbers'!$C$6)-L110 -> 9.17111 | M114: =Sorcadins!M$1485*('Base Numbers'!$C$5*'Base Numbers'!$C$6)-M110 -> 7.74842 | N114: =Sorcadins!N$1485*('Base Numbers'!$C$5*'Base Numbers'!$C$6)-N110 -> 7.27111 | O114: =Sorcadins!O$1485*('Base Numbers'!$C$5*'Base Numbers'!$C$6)-O110 -> 5.818819796 | P114: =Sorcadins!P$1485*('Base Numbers'!$C$5*'Base Numbers'!$C$6)-P110 -> 4.770871193 | Q114: =Sorcadins!Q$1485*('Base Numbers'!$C$5*'Base Numbers'!$C$6)-Q110 -> 3.964512252 | R114: =Sorcadins!R$1485*('Base Numbers'!$C$5*'Base Numbers'!$C$6)-R110 -> 3.964512252 | S114: =Sorcadins!S$1485*('Base Numbers'!$C$5*'Base Numbers'!$C$6)-S110 -> 3.258796607 | T114: =Sorcadins!T$1485*('Base Numbers'!$C$5*'Base Numbers'!$C$6)-T110 -> 3.11215076 | U114: =Sorcadins!U$1485*('Base Numbers'!$C$5*'Base Numbers'!$C$6)-U110 -> 2.91065803 | V114: =Sorcadins!V$1485*('Base Numbers'!$C$5*'Base Numbers'!$C$6)-V110 -> 2.91065803 | W114: =Sorcadins!W$1485*('Base Numbers'!$C$5*'Base Numbers'!$C$6)-W110 -> 2.91065803 | X114: =Sorcadins!X$1485*('Base Numbers'!$C$5*'Base Numbers'!$C$6)-X110 -> 2.91065803
D115: smite dice left for non-crits | E115: =ROUND(MAX(0,E108-E110*E112),4) -> 0 | F115: 0 | G115: 0 | H115: 0 | I115: 0 | J115: 0 | K115: 0 | L115: 0 | M115: 0 | N115: 0 | O115: 0 | P115: 0 | Q115: 0 | R115: 0 | S115: 0 | T115: 0 | U115: 0 | V115: 0 | W115: 0 | X115: 0
D116: total smite dice used on crits | E116: =E111*E112 -> 0 | F116: =F111*F112 -> 0 | G116: 0 | H116: 0 | I116: 0 | J116: 0 | K116: 0 | L116: 0 | M116: 0 | N116: 0 | O116: 0 | P116: 0 | Q116: 0 | R116: 0 | S116: 0 | T116: 0 | U116: 0 | V116: 0 | W116: 0 | X116: 0
D117: total crit smite damage per day | E117: =9*E116 -> 0 | F117: =9*F116 -> 0 | G117: 0 | H117: 0 | I117: 0 | J117: 0 | K117: 0 | L117: 0 | M117: 0 | N117: 0 | O117: 0 | P117: 0 | Q117: 0 | R117: 0 | S117: 0 | T117: 0 | U117: 0 | V117: 0 | W117: 0 | X117: 0
D118: total non-crit smite damage per day | E118: =4.5*MIN(MIN(E114,E113)*E$7,E115) -> 0 | F118: =4.5*MIN(MIN(F114,F113)*F$7,F115) -> 0 | G118: 0 | H118: 0 | I118: 0 | J118: 0 | K118: 0 | L118: 0 | M118: 0 | N118: 0 | O118: 0 | P118: 0 | Q118: 0 | R118: 0 | S118: 0 | T118: 0 | U118: 0 | V118: 0 | W118: 0 | X118: 0
D119: leftover sorc points + spell levels | E119: =IF(E108>0,IF(Sorcadins!E$319>0,(Sorcadins!E$319*E106+E105-E111*E112-E118/4.5)/Sorcadins!E$319,0),E106+E105) -> 0 | F119: =IF(F108>0,IF(Sorcadins!F$319>0,(Sorcadins!F$319*F106+F105-F111*F112-F118/4.5)/Sorcadins!F$319,0),F106+F105) -> 0 | G119: =IF(G108>0,IF(Sorcadins!G$319>0,(Sorcadins!G$319*G106+G105-G111*G112-G118/4.5)/Sorcadins!G$319,0),G106+G105) -> 0 | H119: =IF(H108>0,IF(Sorcadins!H$319>0,(Sorcadins!H$319*H106+H105-H111*H112-H118/4.5)/Sorcadins!H$319,0),H106+H105) -> 0 | I119: =IF(I108>0,IF(Sorcadins!I$319>0,(Sorcadins!I$319*I106+I105-I111*I112-I118/4.5)/Sorcadins!I$319,0),I106+I105) -> 0 | J119: =IF(J108>0,IF(Sorcadins!J$319>0,(Sorcadins!J$319*J106+J105-J111*J112-J118/4.5)/Sorcadins!J$319,0),J106+J105) -> 1 | K119: =IF(K108>0,IF(Sorcadins!K$319>0,(Sorcadins!K$319*K106+K105-K111*K112-K118/4.5)/Sorcadins!K$319,0),K106+K105) -> 1 | L119: =IF(L108>0,IF(Sorcadins!L$319>0,(Sorcadins!L$319*L106+L105-L111*L112-L118/4.5)/Sorcadins!L$319,0),L106+L105) -> 4 | M119: =IF(M108>0,IF(Sorcadins!M$319>0,(Sorcadins!M$319*M106+M105-M111*M112-M118/4.5)/Sorcadins!M$319,0),M106+M105) -> 0 | N119: =IF(N108>0,IF(Sorcadins!N$319>0,(Sorcadins!N$319*N106+N105-N111*N112-N118/4.5)/Sorcadins!N$319,0),N106+N105) -> 1 | O119: =IF(O108>0,IF(Sorcadins!O$319>0,(Sorcadins!O$319*O106+O105-O111*O112-O118/4.5)/Sorcadins!O$319,0),O106+O105) -> 7.105427358e-15 | P119: =IF(P108>0,IF(Sorcadins!P$319>0,(Sorcadins!P$319*P106+P105-P111*P112-P118/4.5)/Sorcadins!P$319,0),P106+P105) -> 0 | Q119: =IF(Q108>0,IF(Sorcadins!Q$319>0,(Sorcadins!Q$319*Q106+Q105-Q111*Q112-Q118/4.5)/Sorcadins!Q$319,0),Q106+Q105) -> 7.105427358e-15 | R119: =IF(R108>0,IF(Sorcadins!R$319>0,(Sorcadins!R$319*R106+R105-R111*R112-R118/4.5)/Sorcadins!R$319,0),R106+R105) -> 7.105427358e-15 | S119: =IF(S108>0,IF(Sorcadins!S$319>0,(Sorcadins!S$319*S106+S105-S111*S112-S118/4.5)/Sorcadins!S$319,0),S106+S105) -> 1.421085472e-14 | T119: =IF(T108>0,IF(Sorcadins!T$319>0,(Sorcadins!T$319*T106+T105-T111*T112-T118/4.5)/Sorcadins!T$319,0),T106+T105) -> 1.421085472e-14 | U119: =IF(U108>0,IF(Sorcadins!U$319>0,(Sorcadins!U$319*U106+U105-U111*U112-U118/4.5)/Sorcadins!U$319,0),U106+U105) -> 2 | V119: =IF(V108>0,IF(Sorcadins!V$319>0,(Sorcadins!V$319*V106+V105-V111*V112-V118/4.5)/Sorcadins!V$319,0),V106+V105) -> 6 | W119: =IF(W108>0,IF(Sorcadins!W$319>0,(Sorcadins!W$319*W106+W105-W111*W112-W118/4.5)/Sorcadins!W$319,0),W106+W105) -> 10 | X119: =IF(X108>0,IF(Sorcadins!X$319>0,(Sorcadins!X$319*X106+X105-X111*X112-X118/4.5)/Sorcadins!X$319,0),X106+X105) -> 14
D120: actual smites performed | E120: =E111+IF(E$7>0,MIN(E113,E114,E115/E$7),0) -> 0 | F120: =F111+IF(F$7>0,MIN(F113,F114,F115/F$7),0) -> 0 | G120: 0 | H120: 0 | I120: 0 | J120: 0 | K120: 0 | L120: 0 | M120: 0 | N120: 0 | O120: 0 | P120: 0 | Q120: 0 | R120: 0 | S120: 0 | T120: 0 | U120: 0 | V120: 0 | W120: 0 | X120: 0
D121: total daily smite damage: M1, B3, O3 | E121: =E117+E118 -> 0 | F121: =F117+F118 -> 0 | G121: 0 | H121: 0 | I121: 0 | J121: 0 | K121: 0 | L121: 0 | M121: 0 | N121: 0 | O121: 0 | P121: 0 | Q121: 0 | R121: 0 | S121: 0 | T121: 0 | U121: 0 | V121: 0 | W121: 0 | X121: 0
D123: SMITES - M1, B4, O1/O2 | E123: 1 | F123: 2 | G123: 3 | H123: 4 | I123: 5 | J123: 6 | K123: 7 | L123: 8 | M123: 9 | N123: 10 | O123: 11 | P123: 12 | Q123: 13 | R123: 14 | S123: 15 | T123: 16 | U123: 17 | V123: 18 | W123: 19 | X123: 20
D124: remaining sorcery points (based on Damage Scenario) | E124: =MAX(0,Sorcadins!E$616-Sorcadins!E$1475) -> 0 | F124: =MAX(0,Sorcadins!F$616-Sorcadins!F$1475) -> 0 | G124: =MAX(0,Sorcadins!G$616-Sorcadins!G$1475) -> 0 | H124: =MAX(0,Sorcadins!H$616-Sorcadins!H$1475) -> 0 | I124: =MAX(0,Sorcadins!I$616-Sorcadins!I$1475) -> 0 | J124: =MAX(0,Sorcadins!J$616-Sorcadins!J$1475) -> 0 | K124: =MAX(0,Sorcadins!K$616-Sorcadins!K$1475) -> 0 | L124: =MAX(0,Sorcadins!L$616-Sorcadins!L$1475) -> 0 | M124: =MAX(0,Sorcadins!M$616-Sorcadins!M$1475) -> 0 | N124: =MAX(0,Sorcadins!N$616-Sorcadins!N$1475) -> 0 | O124: =MAX(0,Sorcadins!O$616-Sorcadins!O$1475) -> 0 | P124: =MAX(0,Sorcadins!P$616-Sorcadins!P$1475) -> 0 | Q124: =MAX(0,Sorcadins!Q$616-Sorcadins!Q$1475) -> 0 | R124: =MAX(0,Sorcadins!R$616-Sorcadins!R$1475) -> 0 | S124: =MAX(0,Sorcadins!S$616-Sorcadins!S$1475) -> 0 | T124: =MAX(0,Sorcadins!T$616-Sorcadins!T$1475) -> 0 | U124: =MAX(0,Sorcadins!U$616-Sorcadins!U$1475) -> 0 | V124: =MAX(0,Sorcadins!V$616-Sorcadins!V$1475) -> 0 | W124: =MAX(0,Sorcadins!W$616-Sorcadins!W$1475) -> 0 | X124: =MAX(0,Sorcadins!X$616-Sorcadins!X$1475) -> 0 | Z124: *Sorc points directly convertible to Smite Dice
D125: remaining spell slot levels (based on Damage Scenario) | E125: =MAX(0,Sorcadins!E$327-MAX(0,Sorcadins!E$1475-Sorcadins!E$616)) -> 0 | F125: =MAX(0,Sorcadins!F$327-MAX(0,Sorcadins!F$1475-Sorcadins!F$616)) -> 0 | G125: =MAX(0,Sorcadins!G$327-MAX(0,Sorcadins!G$1475-Sorcadins!G$616)) -> 0 | H125: =MAX(0,Sorcadins!H$327-MAX(0,Sorcadins!H$1475-Sorcadins!H$616)) -> 0 | I125: =MAX(0,Sorcadins!I$327-MAX(0,Sorcadins!I$1475-Sorcadins!I$616)) -> 0 | J125: =MAX(0,Sorcadins!J$327-MAX(0,Sorcadins!J$1475-Sorcadins!J$616)) -> 1 | K125: =MAX(0,Sorcadins!K$327-MAX(0,Sorcadins!K$1475-Sorcadins!K$616)) -> 1 | L125: =MAX(0,Sorcadins!L$327-MAX(0,Sorcadins!L$1475-Sorcadins!L$616)) -> 4 | M125: =MAX(0,Sorcadins!M$327-MAX(0,Sorcadins!M$1475-Sorcadins!M$616)) -> 0 | N125: =MAX(0,Sorcadins!N$327-MAX(0,Sorcadins!N$1475-Sorcadins!N$616)) -> 1 | O125: =MAX(0,Sorcadins!O$327-MAX(0,Sorcadins!O$1475-Sorcadins!O$616)) -> 7.105427358e-15 | P125: =MAX(0,Sorcadins!P$327-MAX(0,Sorcadins!P$1475-Sorcadins!P$616)) -> 0 | Q125: =MAX(0,Sorcadins!Q$327-MAX(0,Sorcadins!Q$1475-Sorcadins!Q$616)) -> 7.105427358e-15 | R125: =MAX(0,Sorcadins!R$327-MAX(0,Sorcadins!R$1475-Sorcadins!R$616)) -> 7.105427358e-15 | S125: =MAX(0,Sorcadins!S$327-MAX(0,Sorcadins!S$1475-Sorcadins!S$616)) -> 1.421085472e-14 | T125: =MAX(0,Sorcadins!T$327-MAX(0,Sorcadins!T$1475-Sorcadins!T$616)) -> 1.421085472e-14 | U125: =MAX(0,Sorcadins!U$327-MAX(0,Sorcadins!U$1475-Sorcadins!U$616)) -> 2 | V125: =MAX(0,Sorcadins!V$327-MAX(0,Sorcadins!V$1475-Sorcadins!V$616)) -> 6 | W125: =MAX(0,Sorcadins!W$327-MAX(0,Sorcadins!W$1475-Sorcadins!W$616)) -> 10 | X125: =MAX(0,Sorcadins!X$327-MAX(0,Sorcadins!X$1475-Sorcadins!X$616)) -> 14
D126: total warlock smite levels remaining | E126: =MIN(Sorcadins!E$319*E125,Sorcadins!E$310) -> 0 | F126: =MIN(Sorcadins!F$319*F125,Sorcadins!F$310) -> 0 | G126: =MIN(Sorcadins!G$319*G125,Sorcadins!G$310) -> 0 | H126: =MIN(Sorcadins!H$319*H125,Sorcadins!H$310) -> 0 | I126: =MIN(Sorcadins!I$319*I125,Sorcadins!I$310) -> 0 | J126: =MIN(Sorcadins!J$319*J125,Sorcadins!J$310) -> 0 | K126: =MIN(Sorcadins!K$319*K125,Sorcadins!K$310) -> 0 | L126: =MIN(Sorcadins!L$319*L125,Sorcadins!L$310) -> 0 | M126: =MIN(Sorcadins!M$319*M125,Sorcadins!M$310) -> 0 | N126: =MIN(Sorcadins!N$319*N125,Sorcadins!N$310) -> 0 | O126: =MIN(Sorcadins!O$319*O125,Sorcadins!O$310) -> 0 | P126: =MIN(Sorcadins!P$319*P125,Sorcadins!P$310) -> 0 | Q126: =MIN(Sorcadins!Q$319*Q125,Sorcadins!Q$310) -> 0 | R126: =MIN(Sorcadins!R$319*R125,Sorcadins!R$310) -> 0 | S126: =MIN(Sorcadins!S$319*S125,Sorcadins!S$310) -> 0 | T126: =MIN(Sorcadins!T$319*T125,Sorcadins!T$310) -> 0 | U126: =MIN(Sorcadins!U$319*U125,Sorcadins!U$310) -> 0 | V126: =MIN(Sorcadins!V$319*V125,Sorcadins!V$310) -> 0 | W126: =MIN(Sorcadins!W$319*W125,Sorcadins!W$310) -> 0 | X126: =MIN(Sorcadins!X$319*X125,Sorcadins!X$310) -> 0
D127: total smite levels remaining | E127: =IF(E$5>=1,Sorcadins!E$319*E125+E124,IF(E$6,E126,0)) -> 0 | F127: =IF(F$5>=1,Sorcadins!F$319*F125+F124,IF(F$6,F126,0)) -> 0 | G127: =IF(G$5>=1,Sorcadins!G$319*G125+G124,IF(G$6,G126,0)) -> 0 | H127: =IF(H$5>=1,Sorcadins!H$319*H125+H124,IF(H$6,H126,0)) -> 0 | I127: =IF(I$5>=1,Sorcadins!I$319*I125+I124,IF(I$6,I126,0)) -> 0 | J127: =IF(J$5>=1,Sorcadins!J$319*J125+J124,IF(J$6,J126,0)) -> 0 | K127: =IF(K$5>=1,Sorcadins!K$319*K125+K124,IF(K$6,K126,0)) -> 0 | L127: =IF(L$5>=1,Sorcadins!L$319*L125+L124,IF(L$6,L126,0)) -> 0 | M127: =IF(M$5>=1,Sorcadins!M$319*M125+M124,IF(M$6,M126,0)) -> 0 | N127: =IF(N$5>=1,Sorcadins!N$319*N125+N124,IF(N$6,N126,0)) -> 0 | O127: =IF(O$5>=1,Sorcadins!O$319*O125+O124,IF(O$6,O126,0)) -> 0 | P127: =IF(P$5>=1,Sorcadins!P$319*P125+P124,IF(P$6,P126,0)) -> 0 | Q127: =IF(Q$5>=1,Sorcadins!Q$319*Q125+Q124,IF(Q$6,Q126,0)) -> 0 | R127: =IF(R$5>=1,Sorcadins!R$319*R125+R124,IF(R$6,R126,0)) -> 0 | S127: =IF(S$5>=1,Sorcadins!S$319*S125+S124,IF(S$6,S126,0)) -> 0 | T127: =IF(T$5>=1,Sorcadins!T$319*T125+T124,IF(T$6,T126,0)) -> 0 | U127: =IF(U$5>=1,Sorcadins!U$319*U125+U124,IF(U$6,U126,0)) -> 0 | V127: =IF(V$5>=1,Sorcadins!V$319*V125+V124,IF(V$6,V126,0)) -> 0 | W127: =IF(W$5>=1,Sorcadins!W$319*W125+W124,IF(W$6,W126,0)) -> 0 | X127: =IF(X$5>=1,Sorcadins!X$319*X125+X124,IF(X$6,X126,0)) -> 0
D128: max number of daily smites (after spells) | E128: =IF(E$6,Sorcadins!E$1347,IF(E$5,Sorcadins!E$328+E124/2,0)) -> 0 | F128: =IF(F$6,Sorcadins!F$1347,IF(F$5,Sorcadins!F$328+F124/2,0)) -> 0 | G128: =IF(G$6,Sorcadins!G$1347,IF(G$5,Sorcadins!G$328+G124/2,0)) -> 0 | H128: =IF(H$6,Sorcadins!H$1347,IF(H$5,Sorcadins!H$328+H124/2,0)) -> 0 | I128: =IF(I$6,Sorcadins!I$1347,IF(I$5,Sorcadins!I$328+I124/2,0)) -> 0 | J128: =IF(J$6,Sorcadins!J$1347,IF(J$5,Sorcadins!J$328+J124/2,0)) -> 0 | K128: =IF(K$6,Sorcadins!K$1347,IF(K$5,Sorcadins!K$328+K124/2,0)) -> 0 | L128: =IF(L$6,Sorcadins!L$1347,IF(L$5,Sorcadins!L$328+L124/2,0)) -> 0 | M128: =IF(M$6,Sorcadins!M$1347,IF(M$5,Sorcadins!M$328+M124/2,0)) -> 0 | N128: =IF(N$6,Sorcadins!N$1347,IF(N$5,Sorcadins!N$328+N124/2,0)) -> 0 | O128: =IF(O$6,Sorcadins!O$1347,IF(O$5,Sorcadins!O$328+O124/2,0)) -> 0 | P128: =IF(P$6,Sorcadins!P$1347,IF(P$5,Sorcadins!P$328+P124/2,0)) -> 0 | Q128: =IF(Q$6,Sorcadins!Q$1347,IF(Q$5,Sorcadins!Q$328+Q124/2,0)) -> 0 | R128: =IF(R$6,Sorcadins!R$1347,IF(R$5,Sorcadins!R$328+R124/2,0)) -> 0 | S128: =IF(S$6,Sorcadins!S$1347,IF(S$5,Sorcadins!S$328+S124/2,0)) -> 0 | T128: =IF(T$6,Sorcadins!T$1347,IF(T$5,Sorcadins!T$328+T124/2,0)) -> 0 | U128: =IF(U$6,Sorcadins!U$1347,IF(U$5,Sorcadins!U$328+U124/2,0)) -> 0 | V128: =IF(V$6,Sorcadins!V$1347,IF(V$5,Sorcadins!V$328+V124/2,0)) -> 0 | W128: =IF(W$6,Sorcadins!W$1347,IF(W$5,Sorcadins!W$328+W124/2,0)) -> 0 | X128: =IF(X$6,Sorcadins!X$1347,IF(X$5,Sorcadins!X$328+X124/2,0)) -> 0
D129: avg crits per day for smite purposes (based on Damage Scenario) | E129: ='Base Numbers'!$C$5*'Base Numbers'!$C$6*Sorcadins!E$1511 -> 0.9933333333 | F129: ='Base Numbers'!$C$5*'Base Numbers'!$C$6*Sorcadins!F$1511 -> 0.97 | G129: ='Base Numbers'!$C$5*'Base Numbers'!$C$6*Sorcadins!G$1511 -> 0.96 | H129: ='Base Numbers'!$C$5*'Base Numbers'!$C$6*Sorcadins!H$1511 -> 0.96 | I129: ='Base Numbers'!$C$5*'Base Numbers'!$C$6*Sorcadins!I$1511 -> 0.96 | J129: ='Base Numbers'!$C$5*'Base Numbers'!$C$6*Sorcadins!J$1511 -> 0.96 | K129: ='Base Numbers'!$C$5*'Base Numbers'!$C$6*Sorcadins!K$1511 -> 0.91 | L129: ='Base Numbers'!$C$5*'Base Numbers'!$C$6*Sorcadins!L$1511 -> 0.68269 | M129: ='Base Numbers'!$C$5*'Base Numbers'!$C$6*Sorcadins!M$1511 -> 0.6078115789 | N129: ='Base Numbers'!$C$5*'Base Numbers'!$C$6*Sorcadins!N$1511 -> 0.58269 | O129: ='Base Numbers'!$C$5*'Base Numbers'!$C$6*Sorcadins!O$1511 -> 0.5062536735 | P129: ='Base Numbers'!$C$5*'Base Numbers'!$C$6*Sorcadins!P$1511 -> 0.4510984839 | Q129: ='Base Numbers'!$C$5*'Base Numbers'!$C$6*Sorcadins!Q$1511 -> 0.4086585396 | R129: ='Base Numbers'!$C$5*'Base Numbers'!$C$6*Sorcadins!R$1511 -> 0.4086585396 | S129: ='Base Numbers'!$C$5*'Base Numbers'!$C$6*Sorcadins!S$1511 -> 0.3715156109 | T129: ='Base Numbers'!$C$5*'Base Numbers'!$C$6*Sorcadins!T$1511 -> 0.5181614583 | U129: ='Base Numbers'!$C$5*'Base Numbers'!$C$6*Sorcadins!U$1511 -> 0.4975624495 | V129: ='Base Numbers'!$C$5*'Base Numbers'!$C$6*Sorcadins!V$1511 -> 0.4975624495 | W129: ='Base Numbers'!$C$5*'Base Numbers'!$C$6*Sorcadins!W$1511 -> 0.4975624495 | X129: ='Base Numbers'!$C$5*'Base Numbers'!$C$6*Sorcadins!X$1511 -> 0.4975624495
D130: number of smites used on crits | E130: =MIN(E128,E129) -> 0 | F130: =MIN(F128,F129) -> 0 | G130: 0 | H130: 0 | I130: 0 | J130: 0 | K130: 0 | L130: 0 | M130: 0 | N130: 0 | O130: 0 | P130: 0 | Q130: 0 | R130: 0 | S130: 0 | T130: 0 | U130: 0 | V130: 0 | W130: 0 | X130: 0
D131: avg smite dice per crit | E131: =IF(E130>0,MIN(E$7,(E127/MIN(E130,E129))),0) -> 0 | F131: 0 | G131: 0 | H131: 0 | I131: 0 | J131: 0 | K131: 0 | L131: 0 | M131: 0 | N131: 0 | O131: 0 | P131: 0 | Q131: 0 | R131: 0 | S131: 0 | T131: 0 | U131: 0 | V131: 0 | W131: 0 | X131: 0
D132: smites left for non-crits | E132: =E128-E130 -> 0 | F132: =F128-F130 -> 0 | G132: 0 | H132: 0 | I132: 0 | J132: 0 | K132: 0 | L132: 0 | M132: 0 | N132: 0 | O132: 0 | P132: 0 | Q132: 0 | R132: 0 | S132: 0 | T132: 0 | U132: 0 | V132: 0 | W132: 0 | X132: 0
D133: total non-crit smite-qualifying attacks available | E133: =Sorcadins!E$1486*('Base Numbers'!$C$5*'Base Numbers'!$C$6)-E129 -> 18.87333333 | F133: =Sorcadins!F$1486*('Base Numbers'!$C$5*'Base Numbers'!$C$6)-F129 -> 18.43 | G133: =Sorcadins!G$1486*('Base Numbers'!$C$5*'Base Numbers'!$C$6)-G129 -> 18.24 | H133: =Sorcadins!H$1486*('Base Numbers'!$C$5*'Base Numbers'!$C$6)-H129 -> 18.24 | I133: =Sorcadins!I$1486*('Base Numbers'!$C$5*'Base Numbers'!$C$6)-I129 -> 18.24 | J133: =Sorcadins!J$1486*('Base Numbers'!$C$5*'Base Numbers'!$C$6)-J129 -> 18.24 | K133: =Sorcadins!K$1486*('Base Numbers'!$C$5*'Base Numbers'!$C$6)-K129 -> 17.29 | L133: =Sorcadins!L$1486*('Base Numbers'!$C$5*'Base Numbers'!$C$6)-L129 -> 12.97111 | M133: =Sorcadins!M$1486*('Base Numbers'!$C$5*'Base Numbers'!$C$6)-M129 -> 11.54842 | N133: =Sorcadins!N$1486*('Base Numbers'!$C$5*'Base Numbers'!$C$6)-N129 -> 11.07111 | O133: =Sorcadins!O$1486*('Base Numbers'!$C$5*'Base Numbers'!$C$6)-O129 -> 9.618819796 | P133: =Sorcadins!P$1486*('Base Numbers'!$C$5*'Base Numbers'!$C$6)-P129 -> 8.570871193 | Q133: =Sorcadins!Q$1486*('Base Numbers'!$C$5*'Base Numbers'!$C$6)-Q129 -> 7.764512252 | R133: =Sorcadins!R$1486*('Base Numbers'!$C$5*'Base Numbers'!$C$6)-R129 -> 7.764512252 | S133: =Sorcadins!S$1486*('Base Numbers'!$C$5*'Base Numbers'!$C$6)-S129 -> 7.058796607 | T133: =Sorcadins!T$1486*('Base Numbers'!$C$5*'Base Numbers'!$C$6)-T129 -> 6.91215076 | U133: =Sorcadins!U$1486*('Base Numbers'!$C$5*'Base Numbers'!$C$6)-U129 -> 6.71065803 | V133: =Sorcadins!V$1486*('Base Numbers'!$C$5*'Base Numbers'!$C$6)-V129 -> 6.71065803 | W133: =Sorcadins!W$1486*('Base Numbers'!$C$5*'Base Numbers'!$C$6)-W129 -> 6.71065803 | X133: =Sorcadins!X$1486*('Base Numbers'!$C$5*'Base Numbers'!$C$6)-X129 -> 6.71065803
D134: smite dice left for non-crits | E134: =ROUND(MAX(0,E127-E129*E131),4) -> 0 | F134: =ROUND(MAX(0,F127-F129*F131),4) -> 0 | G134: 0 | H134: 0 | I134: 0 | J134: 0 | K134: 0 | L134: 0 | M134: 0 | N134: 0 | O134: 0 | P134: 0 | Q134: 0 | R134: 0 | S134: 0 | T134: 0 | U134: 0 | V134: 0 | W134: 0 | X134: 0
D135: total smite dice used on crits | E135: =E130*E131 -> 0 | F135: =F130*F131 -> 0 | G135: 0 | H135: 0 | I135: 0 | J135: 0 | K135: 0 | L135: 0 | M135: 0 | N135: 0 | O135: 0 | P135: 0 | Q135: 0 | R135: 0 | S135: 0 | T135: 0 | U135: 0 | V135: 0 | W135: 0 | X135: 0
D136: total crit smite damage per day | E136: =9*E135 -> 0 | F136: =9*F135 -> 0 | G136: 0 | H136: 0 | I136: 0 | J136: 0 | K136: 0 | L136: 0 | M136: 0 | N136: 0 | O136: 0 | P136: 0 | Q136: 0 | R136: 0 | S136: 0 | T136: 0 | U136: 0 | V136: 0 | W136: 0 | X136: 0
D137: total non-crit smite damage per day | E137: =4.5*MIN(MIN(E133,E132)*E$7,E134) -> 0 | F137: =4.5*MIN(MIN(F133,F132)*F$7,F134) -> 0 | G137: 0 | H137: 0 | I137: 0 | J137: 0 | K137: 0 | L137: 0 | M137: 0 | N137: 0 | O137: 0 | P137: 0 | Q137: 0 | R137: 0 | S137: 0 | T137: 0 | U137: 0 | V137: 0 | W137: 0 | X137: 0
